Workbook

Sheet INDICE
F1: ALEMANHA
F2: Trocas comerciais com Portugal (PT) 2018-2022 Setores agrícola e agroalimentar, do mar e das florestas
C3: Fonte
D4: Estatísticas do Comércio Internacional | F4: Alemanha - Síntese
D5: dados: 2022 definitivos | F5: 1. Evolução da balança comercial
F6: 2. Ranking dos parceiros comerciais de Portugal por país
C7: Data | D7: 2023-11-03T12:57:12.080 | F7: 2A Parceiros comerciais de Portugal - UE vs. Países Terceiros
F8: 3. Principais produtos transacionados (NC a 2 e 4 dígitos)
F9: 3A Principais produtos transacionados (sem mar nem florestas)
F10: 4A Evolução da balança comercial por produto
F11: 5.2. Trocas comerciais por produto (NC 2 dígitos)

Sheet Sintese
A1: Alemanha - Síntese (2018-2022)
A3: • As trocas comerciais de bens transacionáveis (excluindo serviços) entre Portugal e Alemanha representam um total de 7,2 mil milhões de € (M€) em exportações e 10,5 mil M€ em importações, na média do período 2018-2022, correspondendo a um saldo negativo da balança comercial de cerca de -3,4 M€. No que se refere ao total da economia (incluindo serviços), as exportações totalizam 10,3 mil M€ e as importações 11,5 mil milhões, correspondendo a um saldo negativo de cerca de -1,2 mil M€.
A4: • No que respeita aos produtos dos setores agrícola e agroalimentar, mar e florestas, Portugal exportou para Alemanha 635,2 M€ em média anual, no mesmo período (este país ocupa assim a 4ª posição em relação ao total dos países), enquanto as importações totalizaram 883 M€ (3ª posição), com um saldo negativo de -247,8 M€. Estes setores representam perto de 8,9% do total de exportações de bens transacionáveis e 8,4% das correspondentes importações.
A5: • Se nos referirmos apenas ao setor agrícola e agroalimentar, as exportações representam, em média, 259,8 M€ (7ª posição) e as importações 693,2 milhões (3ª posição), ou seja, Portugal tem um saldo negativo de -433,4 M€. Estes valores representam, respetivamente, cerca de 40,9% das exportações do setor agroflorestal e mar e 78,5% das importações.
A6: • As principais exportações agrícolas e agroalimentares (NC 4 dígitos) neste período são Outras frutas frescas (20%), Vinhos de uvas frescas (19%) e Tomates preparados (8%). As importações agrícolas e agroalimentares mais relevantes referem-se a Soja, mesmo triturada (10%), Chocolate e outras preparações com cacau (7%) e Produtos de padaria, pastelaria, etc. (6%). Se considerarmos também os produtos do mar e da floresta, merecem particular destaque, em termos de exportações, Papel e cartão p/ escrita, etc. (21%), Pastas químicas de madeira, à soda ou ao sulfato (13%) e Cortiça aglomerada e suas obras (9%). Nas importações destes setores, destacam-se Soja, mesmo triturada (8%), Chocolate e outras preparações com cacau (6%) e Produtos de padaria, pastelaria, etc. (5%).
A9: Saldo da Balança Comercial | B9: 2018 | C9: 2019 | D9: 2020 | E9: 2021 | F9: 2022 | G9: média 2018-2022 | J9: Posição entre os parceiros comerciais de Portugal (milhares de euros)
A10: Total Economia (bens e serviços) | B10: -1350.5 | C10: -891.3 | D10: -1272.1 | E10: -1889 | F10: -723.6 | G10: -1225.3 | J10: AA + M + F | K10: Posição | L10: média 2018-2022 | M10: % do total | N10: TVMA* 2018-2022 | O10: TVT* 2018-2022
A11: Total de Bens Transacionáveis* | B11: -3731.474341 | C11: -3421.939731 | D11: -2709.330385 | E11: -3312.692288 | F11: -3575.503442 | G11: -3350.188037 | J11: Exportações | K11: 4ª | L11: 635201.513 | M11: 0.04901328804 | N11: 0.07198561117 | O11: 0.3205529634
A12: Agrícola e Agroalimentar (AA) | B12: -485.132446 | C12: -391.818631 | D12: -399.564238 | E12: -430.536202 | F12: -460.073281 | G12: -433.4249596 | J12: Importações | K12: 3ª | L12: 882996.1958 | M12: 0.05904963245 | N12: 0.03683490841 | O12: 0.1556822494
A13: Mar (M) | B13: -30.015679 | C13: -13.370744 | D13: -10.926708 | E13: -13.764113 | F13: -16.187188 | G13: -16.8528864 | J13: AA
A14: Florestas (F) | B14: 227.455684 | C14: 1900-07-19T23:17:18.931 | D14: 155.548923 | E14: 184.416527 | F14: 1900-08-30T00:35:01.594 | G14: 202.4831632 | J14: Exportações | K14: 7ª | L14: 259817.9418 | M14: 0.03675474475 | N14: 0.113098574 | O14: 0.5350923433
A15: AA + M + F | B15: -287.692441 | C15: -203.219017 | D15: -254.942023 | E15: -259.883788 | F15: -233.236145 | G15: -247.7946828 | J15: Importações | K15: 3ª | L15: 693242.9014 | M15: 0.06795773454 | N15: 0.0244869711 | O15: 0.1285796063
K16: *TVMA - Taxa de variação média anual; TVT - Taxa de variação total
A17: milhões de euros *exclui serviços
A19: Evolução das trocas comerciais Portugal-Alemanha em milhares de euros (2018-2022)
E28: Exportações | G28: Importações | I28: Saldo
A29: Principais produtos agrícolas e agroalimentares, do mar e da floresta transacionados (NC 4 dígitos)
A48: Principais produtos agrícolas e agroalimentares transacionados (NC 4 dígitos)
A82: Fonte: GPP a partir de dados INE/Comércio Internacional (2022 definitivos) | N82: 2023-11-03T12:57:12.080

Sheet 1
A1: Evolução da balança comercial Portugal-Alemanha 2018-2022 em milhões de euros
A3: Total da Economia (TE)(1) | B3: 2018 | C3: 2019 | D3: 2020 | E3: 2021 | F3: 2022 | G3: média quinquénio | H3: var. 18/19 | I3: var. 19/20 | J3: var. 20/21 | K3: var. 21/22 | L3: TVMA* 2018-2022 | M3: TVT* 2018-2022
A4: Exportações | B4: 9947.6 | C4: 10566.6 | D4: 8589.1 | E4: 9572.5 | F4: 12939.2 | G4: 10323 | H4: 0.06222606458 | I4: -0.1871462911 | J4: 0.1144939516 | K4: 0.3517054061 | L4: 0.06794104407 | M4: 0.3007358559
A5: Importações | B5: 11298.1 | C5: 11457.9 | D5: 9861.2 | E5: 11461.5 | F5: 13662.8 | G5: 11548.3 | H5: 0.01414397111 | I5: -0.1393536337 | J5: 0.1622824808 | K5: 0.192060376 | L5: 0.04865727519 | M5: 0.2093006789
A6: Saldo (exp-imp) | B6: -1350.5 | C6: -891.3 | D6: -1272.1 | E6: -1889 | F6: -723.6 | G6: -1225.3
A7: Cobertura (exp/imp) | B7: 0.8804666271 | C7: 0.9222108763 | D7: 0.8709994727 | E7: 0.8351873664 | F7: 0.9470386744 | G7: 0.8938978031 | L7: Exportações
A8: Exp TE Alemanha / Exp TE Mundo | B8: 0.111590589 | C8: 0.1132892154 | D8: 0.1156224148 | E8: 0.1070693032 | F8: 0.108050173 | G8: 0.1107958055 | L8: Importações
A9: Imp TE Alemanha / Imp TE Mundo | B9: 0.1281045375 | C9: 0.1241352143 | D9: 0.1254848697 | E9: 0.1199771546 | F9: 0.1086955069 | G9: 0.1202172676
A10: (1) Todas as transações entre PT e Alemanha (inclui bens e serviços) | E10: Fonte: GEE/ME e GPP a partir de INE/Contas Nacionais (2016 e 2020 provisórios; 2021 preliminares) | H10: *TVMA - Taxa de variação média anual; TVT - Taxa de variação total
A22: Total de Bens Transacionáveis (BT)(1) | B22: 2018 | C22: 2019 | D22: 2020 | E22: 2021 | F22: 2022 | G22: média quinquénio | H22: var. 18/19 | I22: var. 19/20 | J22: var. 20/21 | K22: var. 21/22 | L22: TVMA* 2018-2022 | M22: TVT* 2018-2022
A23: Exportações | B23: 6687.984658 | C23: 7182.471489 | D23: 6378.668888 | E23: 7011.755859 | F23: 8501.840518 | G23: 7152.544282 | H23: 0.07393659769 | I23: -0.1119117009 | J23: 0.09925064024 | K23: 0.212512342 | L23: 0.06182860663 | M23: 0.2712111275
A24: Importações | B24: 10419.459 | C24: 10604.41122 | D24: 9087.999273 | E24: 10324.44815 | F24: 12077.34396 | G24: 10502.73232 | H24: 0.01775065491 | I24: -0.1429982217 | J24: 0.136052924 | K24: 0.1697810661 | L24: 0.03760383028 | M24: 0.1591143035
A25: Saldo (exp-imp) | B25: -3731.474341 | C25: -3421.939731 | D25: -2709.330385 | E25: -3312.692288 | F25: -3575.503442 | G25: -3350.188037
A26: Cobertura (exp/imp) | B26: 0.6418744638 | C26: 0.6773097855 | D26: 0.7018782348 | E26: 0.6791409826 | F26: 0.7039495229 | G26: 0.6810174786
A27: Exp BT Alemanha / Exp TE Alemanha | B27: 0.6723214301 | C27: 0.6797334515 | D27: 0.7426469465 | E27: 0.7324895126 | F27: 0.6570607548 | G27: 0.6928745793 | L27: Exportações
A28: Imp BT Alemanha / Imp TE Alemanha | B28: 0.922231083 | C28: 0.9255108894 | D28: 0.921591619 | E28: 0.9007938007 | F28: 0.8839581901 | G28: 0.9094613337 | L28: Importações
A29: Exp BT Alemanha / Exp BT Mundo | B29: 0.115609086 | C29: 0.1199020796 | D29: 0.11865659 | E29: 0.1102156302 | F29: 0.1085274681 | G29: 0.114087725
A30: Imp BT Alemanha / Imp BT Mundo | B30: 0.1381172203 | C30: 0.132593048 | D30: 0.1333615603 | E30: 0.1241729435 | F30: 0.1103096822 | G30: 0.1261760859
A31: Exp BT Alemanha / Exp TE Mundo | B31: 0.0750247444 | C31: 0.07700646944 | D31: 0.08586663333 | E31: 0.07842714169 | F31: 0.07099552819 | G31: 0.07676759711
A32: Imp BT Alemanha / Imp TE Mundo | B32: 0.1181419863 | C32: 0.1148884926 | D32: 0.1156458042 | E32: 0.1080746771 | F32: 0.09608228355 | G32: 0.1093329565
A33: (1) Todos os produtos transacionados entre PT e Alemanha (exclui serviços) | D33: TE - Total da Economia (bens e serviços) Fonte: INE/Contas Nacionais | H33: *TVMA - Taxa de variação média anual; TVT - Taxa de variação total
A46: Agro(1) + Mar + Florestas (AMF) | B46: 2018 | C46: 2019 | D46: 2020 | E46: 2021 | F46: 2022 | G46: média quinquénio | H46: var. 18/19 | I46: var. 19/20 | J46: var. 20/21 | K46: var. 21/22 | L46: TVMA* 2018-2022 | M46: TVT* 2018-2022
A47: Exportações | B47: 601.95592 | C47: 592.412119 | D47: 558.584993 | E47: 628.139859 | F47: 794.914674 | G47: 635.201513 | H47: -0.01585465095 | I47: -0.05710066509 | J47: 0.1245197541 | K47: 0.2655058624 | L47: 0.07198561117 | M47: 0.3205529634
A48: Importações | B48: 889.648361 | C48: 795.631136 | D48: 813.527016 | E48: 888.023647 | F48: 1028.150819 | G48: 882.9961958 | H48: -0.1056790853 | I48: 0.02249268435 | J48: 0.0915724119 | K48: 0.1577966673 | L48: 0.03683490841 | M48: 0.1556822494
A49: Saldo (exp-imp) | B49: -287.692441 | C49: -203.219017 | D49: -254.942023 | E49: -259.883788 | F49: -233.236145 | G49: -247.7946828
A50: Cobertura (exp/imp) | B50: 0.6766222998 | C50: 0.7445813672 | D50: 0.6866213193 | E50: 0.7073458698 | F50: 0.7731498719 | G50: 0.7193706111
A51: Exp AMF Alemanha / Exp BT Alemanha | B51: 0.09000557728 | C51: 0.08248026044 | D51: 0.08757077735 | E51: 0.08958381775 | F51: 0.0934991279 | G51: 0.08880777076 | L51: Exportações
A52: Imp AMF Alemanha / Imp BT Alemanha | B52: 0.08538335446 | C52: 0.07502831789 | D52: 0.08951662424 | E52: 0.08601173006 | F52: 0.08513054049 | G52: 0.08407299824 | L52: Importações
A53: Exp AMF Alemanha / Exp TE Alemanha | B53: 0.06051267843 | C53: 0.05606459211 | D53: 0.0650341704 | E53: 0.065619207 | F53: 0.06143460755 | G53: 0.06153264681
A54: Imp AMF Alemanha / Imp TE Alemanha | B54: 0.07874318346 | C54: 0.06943952522 | D54: 0.08249777066 | E54: 0.07747883322 | F54: 0.0752518385 | G54: 0.0764611411
A55: Exp AMF Alemanha / Exp AMF Mundo | B55: 0.05166688906 | C55: 0.05008630912 | D55: 0.04842338386 | E55: 0.0468881124 | F55: 0.04850481916 | G55: 0.04901328804
A56: Imp AMF Alemanha / Imp AMF Mundo | B56: 0.06526848197 | C56: 0.05751536983 | D56: 0.0623612749 | E56: 0.05942099403 | F56: 0.05323529913 | G56: 0.05904963245
A57: Exp AMF Alemanha / Exp BT Mundo | B57: 0.01040546253 | C57: 0.009889554756 | D57: 0.01039084982 | E57: 0.009873536932 | F57: 0.01014722362 | G57: 0.01013187653
A58: Imp AMF Alemanha / Imp BT Mundo | B58: 0.01179291158 | C58: 0.009948233357 | D58: 0.01193807668 | E58: 0.0106803297 | F58: 0.009390722865 | G58: 0.01060800184
A59: (1) Produtos agrícolas e agroalimentares | B59: BT - Total de Bens Transacionáveis (exclui serviços); TE - Total da Economia (bens e serviços) | H59: *TVMA - Taxa de variação média anual; TVT - Taxa de variação total
A71: Agroalimentar (AA)(1) | B71: 2018 | C71: 2019 | D71: 2020 | E71: 2021 | F71: 2022 | G71: média quinquénio | H71: var. 18/19 | I71: var. 19/20 | J71: var. 20/21 | K71: var. 21/22 | L71: TVMA* 2018-2022 | M71: TVT* 2018-2022
A72: Exportações | B72: 215.091179 | C72: 229.373045 | D72: 252.603928 | E72: 271.836735 | F72: 330.184822 | G72: 259.8179418 | H72: 0.06639912462 | I72: 0.1012799172 | J72: 0.07613819449 | K72: 0.2146438633 | L72: 0.113098574 | M72: 0.5350923433
A73: Importações | B73: 700.223625 | C73: 621.191676 | D73: 652.168166 | E73: 702.372937 | F73: 790.258103 | G73: 693.2429014 | H73: -0.1128667274 | I73: 0.04986623485 | J73: 0.07698132724 | K73: 0.125126071 | L73: 0.03070183573 | M73: 0.1285796063
A74: Saldo (exp-imp) | B74: -485.132446 | C74: -391.818631 | D74: -399.564238 | E74: -430.536202 | F74: -460.073281 | G74: -433.4249596
A75: Cobertura (exp/imp) | B75: 0.3071749814 | C75: 0.3692468104 | D75: 0.3873294361 | E75: 0.3870262088 | F75: 0.4178189641 | G75: 0.3747862997
A76: Exp AA Alemanha / Exp AMF Alemanha | B76: 0.3573204812 | C76: 0.3871849303 | D76: 0.4522211144 | E76: 0.432764664 | F76: 0.4153714012 | G76: 0.4090323094 | L76: Exportações
A77: Imp AA Alemanha / Imp AMF Alemanha | B77: 0.7870790929 | C77: 0.7807533515 | D77: 0.801655204 | E77: 0.7909394523 | F77: 0.768620798 | G77: 0.785102931 | L77: Importações
A78: Exp AA Alemanha / Exp BT Alemanha | B78: 0.03216083619 | C78: 0.03193511389 | D78: 0.03960135452 | E78: 0.03876871079 | F78: 0.03883686377 | G78: 0.03632524757
A79: Imp AA Alemanha / Imp BT Alemanha | B79: 0.06720345318 | C79: 0.05857861065 | D79: 0.07176146767 | E79: 0.06803007066 | F79: 0.06543310397 | G79: 0.06600595733
A80: Exp AA Alemanha / Exp TE Alemanha | B80: 0.02162241938 | C80: 0.02170736519 | D80: 0.02940982501 | E80: 0.02839767407 | F80: 0.02551817902 | G80: 0.02516884063
A81: Imp AA Alemanha / Imp TE Alemanha | B81: 0.06197711341 | C81: 0.05421514204 | D81: 0.06613476717 | E81: 0.06128106592 | F81: 0.05784012816 | G81: 0.06002986599
A82: Exp AA Alemanha / Exp AA Mundo | B82: 0.03522114259 | C82: 0.03645668481 | D82: 0.03817452194 | E82: 0.03647932481 | F82: 0.03719388305 | G82: 0.03675474475
A83: Imp AA Alemanha / Imp AA Mundo | B83: 0.07698253372 | C83: 0.06667240519 | D83: 0.07178949536 | E83: 0.06838512699 | F83: 0.0596997895 | G83: 0.06795773454
A84: Exp AA Alemanha / Exp AMF Mundo | B84: 0.01846163766 | C84: 0.0193926641 | D84: 0.02189807661 | E84: 0.02029151821 | F84: 0.0201475147 | G84: 0.0200480184
A85: Imp AA Alemanha / Imp AMF Mundo | B85: 0.05137145759 | C85: 0.04490531776 | D85: 0.04999224055 | E85: 0.04699840847 | F85: 0.0409177581 | G85: 0.04636003951
A86: (1) Produtos agrícolas e agroalimentares | H86: *TVMA - Taxa de variação média anual; TVT - Taxa de variação total
A87: AMF - Agroalimentar, Mar e Florestas; BT - Total de Bens Transacionáveis (exclui serviços); TE - Total da Economia (bens e serviços)
A98: Mar (M) | B98: 2018 | C98: 2019 | D98: 2020 | E98: 2021 | F98: 2022 | G98: média quinquénio | H98: var. 18/19 | I98: var. 19/20 | J98: var. 20/21 | K98: var. 21/22 | L98: TVMA* 2018-2022 | M98: TVT* 2018-2022
A99: Exportações | B99: 14.012109 | C99: 11.949738 | D99: 15.374276 | E99: 17.196304 | F99: 18.461836 | G99: 15.3988526 | H99: -0.1471849099 | I99: 0.2865785007 | J99: 0.1185114668 | K99: 0.07359325585 | L99: 0.07137829907 | M99: 0.3175629736
A100: Importações | B100: 44.027788 | C100: 25.320482 | D100: 26.300984 | E100: 30.960417 | F100: 34.649024 | G100: 32.251739 | H100: -0.4248977032 | I100: 0.03872367043 | J100: 0.1771581246 | K100: 0.1191394483 | L100: -0.05812984682 | M100: -0.213019196
A101: Saldo (exp-imp) | B101: -30.015679 | C101: -13.370744 | D101: -10.926708 | E101: -13.764113 | F101: -16.187188 | G101: -16.8528864
A102: Cobertura (exp/imp) | B102: 0.3182560296 | C102: 0.4719395942 | D102: 0.5845513613 | E102: 0.5554286946 | F102: 0.532824128 | G102: 0.4774580558
A103: Exp M Alemanha / Exp AMF Alemanha | B103: 0.02327763302 | C103: 0.02017132604 | D103: 0.0275236109 | E103: 0.02737655278 | F103: 0.02322492791 | G103: 0.02424246839 | L103: Exportações
A104: Imp M Alemanha / Imp AMF Alemanha | B104: 0.04948897781 | C104: 0.03182439808 | D104: 0.03232957662 | E104: 0.03486440604 | F104: 0.03370033205 | G104: 0.03652534309 | L104: Importações
A105: Exp M Alemanha / Exp BT Alemanha | B105: 0.002095116798 | C105: 0.001663736225 | D105: 0.002410264002 | E105: 0.002452496114 | F105: 0.002171510505 | G105: 0.002152919575
A106: Imp M Alemanha / Imp BT Alemanha | B106: 0.004225534935 | C106: 0.002387731056 | D106: 0.002894034562 | E106: 0.002998747881 | F106: 0.002868927482 | G106: 0.003070795105
A107: Exp M Alemanha / Exp TE Alemanha | B107: 0.001408591922 | C107: 0.001130897167 | D107: 0.001789975201 | E107: 0.001796427683 | F107: 0.001426814332 | G107: 0.001491703245
A108: Imp M Alemanha / Imp TE Alemanha | B108: 0.003896919659 | C108: 0.002209871093 | D108: 0.002667117998 | E108: 0.002701253501 | F108: 0.002536011945 | G108: 0.002792769412
A109: Exp M Alemanha / Exp M Mundo | B109: 0.01284563436 | C109: 0.01118484099 | D109: 0.01708880065 | E109: 0.01569827898 | F109: 0.01443321264 | G109: 0.01417051935
A110: Imp M Alemanha / Imp M Mundo | B110: 0.01997418187 | C110: 0.01161840555 | D110: 0.01366379356 | E110: 0.0147990483 | F110: 0.01332433324 | G110: 0.01465864109
A111: Exp M Alemanha / Exp AMF Mundo | B111: 0.001202682883 | C111: 0.001010307271 | D111: 0.001332786376 | E111: 0.001283634884 | F111: 0.001126520928 | G111: 0.001188203086
A112: Imp M Alemanha / Imp AMF Mundo | B112: 0.003230070456 | C112: 0.001830392026 | D112: 0.002016113615 | E112: 0.002071677663 | F112: 0.001794047258 | G112: 0.002156808085
A113: AMF - Agroalimentar, Mar e Florestas; BT - Total de Bens Transacionáveis (exclui serviços); TE - Total da Economia (bens e serviços) | H113: *TVMA - Taxa de variação média anual; TVT - Taxa de variação total
A125: Florestas (F) | B125: 2018 | C125: 2019 | D125: 2020 | E125: 2021 | F125: 2022 | G125: média quinquénio | H125: var. 18/19 | I125: var. 19/20 | J125: var. 20/21 | K125: var. 21/22 | L125: TVMA* 2018-2022 | M125: TVT* 2018-2022
A126: Exportações | B126: 372.852632 | C126: 351.089336 | D126: 290.606789 | E126: 339.10682 | F126: 446.268016 | G126: 359.9847186 | H126: -0.05836969926 | I126: -0.1722711025 | J126: 0.1668922848 | K126: 0.3160101469 | L126: 0.04595894232 | M126: 0.1969018795
A127: Importações | B127: 145.396948 | C127: 149.118978 | D127: 135.057866 | E127: 154.690293 | F127: 203.243692 | G127: 157.5015554 | H127: 0.02559909304 | I127: -0.09429458402 | J127: 0.1453630772 | K127: 0.3138748919 | L127: 0.08734020412 | M127: 0.3978539082
A128: Saldo (exp-imp) | B128: 227.455684 | C128: 201.970358 | D128: 155.548923 | E128: 184.416527 | F128: 243.024324 | G128: 202.4831632
A129: Cobertura (exp/imp) | B129: 2.564377294 | C129: 2.354424237 | D129: 2.151720574 | E129: 2.192166124 | F129: 2.195728741 | G129: 2.285594689
A130: Exp F Alemanha / Exp AMF Alemanha | B130: 0.6194018858 | C130: 0.5926437437 | D130: 0.5202552747 | E130: 0.5398587833 | F130: 0.5614036709 | G130: 0.5667252222 | L130: Exportações
A131: Imp F Alemanha / Imp AMF Alemanha | B131: 0.1634319293 | C131: 0.1874222504 | D131: 0.1660152193 | E131: 0.1741961416 | F131: 0.1976788699 | G131: 0.1783717259 | L131: Importações
A132: Exp F Alemanha / Exp BT Alemanha | B132: 0.0557496243 | C132: 0.04888141032 | D132: 0.04555915883 | E132: 0.04836261085 | F132: 0.05249075363 | G132: 0.05032960362
A133: Imp F Alemanha / Imp BT Alemanha | B133: 0.01395436635 | C133: 0.01406197618 | D133: 0.01486112201 | E133: 0.01498291151 | F133: 0.01682850904 | G133: 0.0149962458
A134: Exp F Alemanha / Exp TE Alemanha | B134: 0.03748166714 | C134: 0.03322632976 | D134: 0.03383437019 | E134: 0.03542510525 | F134: 0.0344896142 | G134: 0.03487210294
A135: Imp F Alemanha / Imp TE Alemanha | B135: 0.01286915039 | C135: 0.01301451208 | D135: 0.01369588549 | E135: 0.01349651381 | F135: 0.01487569839 | G135: 0.0136385057
A136: Exp F Alemanha / Exp F Mundo | B136: 0.08373017757 | C136: 0.07858252032 | D136: 0.07231385196 | E136: 0.06992843817 | F136: 0.07161087141 | G136: 0.07493224842
A137: Imp F Alemanha / Imp F Mundo | B137: 0.06238912744 | C137: 0.06380922456 | D137: 0.06633263279 | E137: 0.05991769516 | F137: 0.05847568907 | G137: 0.06171249086
A138: Exp F Alemanha / Exp AMF Mundo | B138: 0.03200256852 | C138: 0.02968333774 | D138: 0.02519252088 | E138: 0.02531295931 | F138: 0.02723078353 | G138: 0.02777706656
A139: Imp F Alemanha / Imp AMF Mundo | B139: 0.01066695393 | C139: 0.01077966005 | D139: 0.01035292073 | E139: 0.01035090789 | F139: 0.01052349377 | G139: 0.01053278485
A140: AMF - Agroalimentar, Mar e Florestas; BT - Total de Bens Transacionáveis (exclui serviços); TE - Total da Economia (bens e serviços) | H140: *TVMA - Taxa de variação média anual; TVT - Taxa de variação total
A150: Fonte: GPP a partir de dados INE/Comércio Internacional (2020 provisórios; 2021 preliminares) | K150: 2023-11-03T12:57:12.080

Sheet 2
A1: Ranking dos parceiros comerciais de Portugal por país (média 2018-2022 em milhares de euros) produtos agrícolas e agroalimentares, do mar e da floresta
A2: Exportações | F2: Importações | K2: Trocas comerciais (total e saldo)
A3: P | B3: País | C3: média quinquénio | D3: % do Total | F3: P | G3: País | H3: média quinquénio | I3: % do Total | K3: P | L3: País | M3: Total (exp+imp) | N3: % do Total | O3: Saldo (exp-imp)
A4: 1 | B4: Espanha | C4: 4148750.739 | D4: 0.3201250482 | F4: 1 | G4: Espanha | H4: 6893783.417 | I4: 0.4610160031 | K4: 1 | L4: Espanha | M4: 11042534.16 | N4: 0.395602026 | O4: -2745032.678
A5: 2 | B5: França | C5: 1358886.663 | D5: 0.1048541322 | F5: 2 | G5: França | H5: 986144.9388 | I5: 0.06594761841 | K5: 2 | L5: França | M5: 2345031.602 | N5: 0.08401144518 | O5: 372741.7244
A6: 3 | B6: Itália | C6: 876413.3826 | D6: 0.06762562854 | F6: 3 | G6: Alemanha | H6: 882996.1958 | I6: 0.05904963245 | K6: 3 | L6: Alemanha | M6: 1518197.709 | N6: 0.05438987836 | O6: -247794.6828
A7: 4 | B7: Alemanha | C7: 635201.513 | D7: 0.04901328804 | F7: 4 | G7: Países Baixos | H7: 837622.6294 | I7: 0.05601531312 | K7: 4 | L7: Países Baixos | M7: 1425039.699 | N7: 0.05105246534 | O7: -250205.5596
A8: 5 | B8: Países Baixos | C8: 587417.0698 | D8: 0.0453261547 | F8: 5 | G8: Brasil | H8: 705232.1134 | I8: 0.04716180804 | K8: 5 | L8: Itália | M8: 1326247.626 | N8: 0.04751321033 | O8: 426579.139
A9: 6 | B9: Estados Unidos | C9: 554009.1122 | D9: 0.04274833677 | F9: 6 | G9: Itália | H9: 449834.2436 | I9: 0.030082289 | K9: 6 | L9: Brasil | M9: 1157937.372 | N9: 0.04148344611 | O9: -252526.8544 | P9: Nota: Nesta listagem, o Reino Unido passa a ser constituído por três componentes: Reino Unido [até 2020] ; Reino Unido (sem Irlanda do Norte) pós-2020 e Reino Unido (Irlanda do Norte) pós-2020. Estas componentes são calculadas igualmente como média do quinquénio, embora a primeira corresponda apenas a 2018-2020 e as duas últimas a 2021-2022.
A10: 7 | B10: Brasil | C10: 452705.259 | D10: 0.03493154976 | F10: 7 | G10: Suécia | H10: 342054.8722 | I10: 0.02287463364 | K10: 7 | L10: Estados Unidos | M10: 835402.1152 | N10: 0.02992852589 | O10: 272616.1092
A11: 8 | B11: Reino Unido | C11: 382822.421 | D11: 0.02953926464 | F11: 8 | G11: Bélgica | H11: 286674.3358 | I11: 0.01917110656 | K11: 8 | L11: Reino Unido | M11: 527725.3878 | N11: 0.01890591685 | O11: 237919.4542
A12: 9 | B12: Angola | C12: 331091.7324 | D12: 0.02554763192 | F12: 9 | G12: Estados Unidos | H12: 281393.003 | I12: 0.01881792184 | K12: 9 | L12: Bélgica | M12: 526747.6872 | N12: 0.01887089044 | O12: -46600.9844
A13: 10 | B13: Reino Unido (sem Irlanda do Norte) pós 2020 | C13: 297693.4518 | D13: 0.02297056069 | F13: 10 | G13: Polónia | H13: 206886.255 | I13: 0.01383534536 | K13: 10 | L13: Polónia | M13: 458140.6776 | N13: 0.0164130242 | O13: 44368.1676
A14: 11 | B14: Polónia | C14: 251254.4226 | D14: 0.0193872419 | F14: 11 | G14: Ucrânia | H14: 195333.6414 | I14: 0.01306277398 | K14: 11 | L14: Suécia | M14: 435988.145 | N14: 0.01561940322 | O14: -248121.5994
A15: 12 | B15: Bélgica | C15: 240073.3514 | D15: 0.01852449039 | F15: 12 | G15: China, República Popular da | H15: 173665.6746 | I15: 0.01161374681 | K15: 12 | L15: China, República Popular da | M15: 367334.7522 | N15: 0.01315987528 | O15: 20003.403
A16: 13 | B16: Israel | C16: 214331.8496 | D16: 0.01653822994 | F16: 13 | G16: África do Sul | H16: 145344.1816 | I16: 0.009719770643 | K16: 13 | L16: Reino Unido (sem Irlanda do Norte) pós 2020 | M16: 358748.5572 | N16: 0.01285227232 | O16: 236638.3464
A17: 14 | B17: China, República Popular da | C17: 193669.0776 | D17: 0.01494385339 | F17: 14 | G17: Reino Unido | H17: 144902.9668 | I17: 0.009690264772 | K17: 14 | L17: Angola | M17: 346515.8172 | N17: 0.01241403082 | O17: 315667.6476
A18: 15 | B18: Turquia | C18: 167223.9134 | D18: 0.01290329709 | F18: 15 | G18: Dinamarca | H18: 144508.7452 | I18: 0.009663901532 | K18: 15 | L18: Dinamarca | M18: 229058.3694 | N18: 0.00820608329 | O18: -59959.121
A19: 16 | B19: Suíça | C19: 143369.888 | D19: 0.01106267771 | F19: 16 | G19: Roménia | H19: 138998.2312 | I19: 0.009295390515 | K19: 16 | L19: Turquia | M19: 223211.8948 | N19: 0.007996631622 | O19: 111235.932
A20: 17 | B20: Marrocos | C20: 109026.8306 | D20: 0.0084127058 | F20: 17 | G20: Irlanda | H20: 115719.6518 | I20: 0.007738654977 | K20: 17 | L20: Israel | M20: 222680.6996 | N20: 0.007977601399 | O20: 205982.9996
A21: 18 | B21: Cabo Verde | C21: 100863.1066 | D21: 0.007782778214 | F21: 18 | G21: Canadá | H21: 108524.1664 | I21: 0.007257462906 | K21: 18 | L21: Ucrânia | M21: 209671.7124 | N21: 0.007511550615 | O21: -180995.5704
A22: 19 | B22: Canadá | C22: 96453.797 | D22: 0.007442547977 | F22: 19 | G22: Rússia, Federação da | H22: 105950.8246 | I22: 0.007085372825 | K22: 19 | L22: Canadá | M22: 204977.9634 | N22: 0.00734339568 | O22: -12070.3694
A23: 20 | B23: Suécia | C23: 93933.2728 | D23: 0.007248059809 | F23: 20 | G23: Uruguai | H23: 102112.0792 | I23: 0.006828659935 | K23: 20 | L23: Rússia, Federação da | M23: 185978.7022 | N23: 0.006662741573 | O23: -25922.947
A24: 21 | B24: Dinamarca | C24: 84549.6242 | D24: 0.006524000652 | F24: 21 | G24: Argentina | H24: 97727.8454 | I24: 0.006535467965 | K24: 21 | L24: África do Sul | M24: 182499.4124 | N24: 0.006538094995 | O24: -108188.9508
A25: 22 | B25: Egito | C25: 83372.4854 | D25: 0.006433170511 | F25: 22 | G25: Índia | H25: 75558.034 | I25: 0.00505288036 | K25: 22 | L25: Irlanda | M25: 179693.3864 | N25: 0.006437568291 | O25: -51745.9172
A26: 23 | B26: Rússia, Federação da | C26: 80027.8776 | D26: 0.006175094574 | F26: 23 | G26: Finlândia | H26: 73941.3526 | I26: 0.004944766143 | K26: 23 | L26: Roménia | M26: 164861.988 | N26: 0.005906229091 | O26: -113134.4744
A27: 24 | B27: Argélia | C27: 78380.8918 | D27: 0.006048010196 | F27: 24 | G27: Vietname | H27: 70011.1556 | I27: 0.004681937504 | K27: 24 | L27: Marrocos | M27: 151643.736 | N27: 0.005432681335 | O27: 66409.9252
A28: 25 | B28: México | C28: 73493.3644 | D28: 0.005670879815 | F28: 25 | G28: Costa Rica | H28: 69969.0578 | I28: 0.004679122249 | K28: 25 | L28: Suíça | M28: 147880.9734 | N28: 0.005297879261 | O28: 138858.8026
A29: 26 | B29: Japão | C29: 66606.0156 | D29: 0.005139439629 | F29: 26 | G29: Áustria | H29: 63908.1406 | I29: 0.004273803478 | K29: 26 | L29: Grécia | M29: 116697.7842 | N29: 0.004180732359 | O29: -11083.3998
A30: 27 | B30: Irlanda | C30: 63973.7346 | D30: 0.004936328105 | F30: 27 | G30: Grécia | H30: 63890.592 | I30: 0.00427262993 | K30: 27 | L30: Argentina | M30: 113763.425 | N30: 0.004075608079 | O30: -81692.2658
A31: 28 | B31: Luxemburgo | C31: 54794.7774 | D31: 0.004228063304 | F31: 28 | G31: Reino Unido (sem Irlanda do Norte) pós 2020 | H31: 61055.1054 | I31: 0.004083009134 | K31: 28 | L31: Uruguai | M31: 105101.1588 | N31: 0.003765279851 | O31: -99122.9996
A32: 29 | B32: Grécia | C32: 52807.1922 | D32: 0.004074697665 | F32: 29 | G32: Turquia | H32: 55987.9814 | I32: 0.003744149453 | K32: 29 | L32: Finlândia | M32: 103158.5318 | N32: 0.003695684669 | O32: -44724.1734
A33: 30 | B33: Áustria | C33: 39217.279 | D33: 0.003026075588 | F33: 30 | G33: Equador | H33: 48767.8678 | I33: 0.003261310391 | K33: 30 | L33: Áustria | M33: 103125.4196 | N33: 0.003694498415 | O33: -24690.8616
A34: 31 | B34: Moçambique | C34: 37446.547 | D34: 0.002889442731 | F34: 31 | G34: Chile | H34: 47784.2222 | I34: 0.003195529914 | K34: 31 | L34: Cabo Verde | M34: 101700.8832 | N34: 0.00364346398 | O34: 100025.33
A35: 32 | B35: África do Sul | C35: 37155.2308 | D35: 0.00286696425 | F35: 32 | G35: Bulgária | H35: 46240.758 | I35: 0.003092312036 | K35: 32 | L35: Índia | M35: 100022.4076 | N35: 0.003583332099 | O35: -51093.6604
A36: 33 | B36: Chile | C36: 36026.5554 | D36: 0.002779873632 | F36: 33 | G36: Cuba | H36: 43073.1354 | I36: 0.002880479923 | K36: 33 | L36: Egito | M36: 93738.5794 | N36: 0.00335821211 | O36: 73006.3914
A37: 34 | B37: Austrália | C37: 34889.2592 | D37: 0.002692117817 | F37: 34 | G37: Marrocos | H37: 42616.9054 | I37: 0.002849969923 | K37: 34 | L37: México | M37: 93580.153 | N37: 0.003352536438 | O37: 53406.5758
A38: 35 | B38: Arábia Saudita | C38: 32818.8452 | D38: 0.00253236096 | F38: 35 | G38: Moçambique | H38: 40008.831 | I38: 0.002675557127 | K38: 35 | L38: Chile | M38: 83810.7776 | N38: 0.003002545698 | O38: -11757.6668
A39: 36 | B39: Guiné-Bissau | C39: 32182.3082 | D39: 0.002483244623 | F39: 36 | G39: Checa, República | H39: 35780.8524 | I39: 0.002392814593 | K39: 36 | L39: Argélia | M39: 83294.638 | N39: 0.002984054845 | O39: 73467.1456
A40: 37 | B40: Finlândia | C40: 29217.1792 | D40: 0.002254449951 | F40: 37 | G40: Colômbia | H40: 29157.4358 | I40: 0.001949879145 | K40: 37 | L40: Japão | M40: 82993.326 | N40: 0.002973260255 | O40: 50218.7052
A41: 38 | B41: Checa, República | C41: 29096.25 | D41: 0.002245118837 | F41: 38 | G41: Indonésia | H41: 28526.3034 | I41: 0.001907672693 | K41: 38 | L41: Moçambique | M41: 77455.378 | N41: 0.002774861643 | O41: -2562.284
A42: 39 | B42: Emirados Árabes Unidos | C42: 29052.9664 | D42: 0.002241778997 | F42: 39 | G42: Guiana | H42: 28025.2924 | I42: 0.001874168001 | K42: 39 | L42: Vietname | M42: 75958.0768 | N42: 0.002721220388 | O42: -64064.2344
A43: 40 | B43: São Tomé e Príncipe | C43: 26792.4812 | D43: 0.002067355905 | F43: 40 | G43: Hungria | H43: 24242.0034 | I43: 0.001621163712 | K43: 40 | L43: Costa Rica | M43: 73986.347 | N43: 0.002650582589 | O43: -65951.7686
A44: 41 | B44: Jordânia | C44: 26642.1032 | D44: 0.002055752468 | F44: 41 | G44: Namíbia | H44: 22831.866 | I44: 0.001526861952 | K44: 41 | L44: Checa, República | M44: 64877.1024 | N44: 0.002324241229 | O44: -6684.6024
A45: 42 | B45: Roménia | C45: 25863.7568 | D45: 0.001995693864 | F45: 42 | G45: Costa do Marfim | H45: 22796.209 | I45: 0.00152447742 | K45: 42 | L45: Luxemburgo | M45: 63347.0378 | N45: 0.002269426215 | O45: 46242.517
A46: 43 | B46: Tunísia | C46: 24967.3514 | D46: 0.001926525616 | F46: 43 | G46: Uganda | H46: 22685.1228 | I46: 0.001517048623 | K46: 43 | L46: Bulgária | M46: 59231.1196 | N46: 0.002121972238 | O46: -33250.3964
A47: 44 | B47: Índia | C47: 24464.3736 | D47: 0.001887714946 | F47: 44 | G47: México | H47: 20086.7886 | I47: 0.001343287196 | K47: 44 | L47: Equador | M47: 51817.4262 | N47: 0.001856374497 | O47: -45718.3094
A48: 45 | B48: Noruega | C48: 22053.074 | D48: 0.001701654744 | F48: 45 | G48: Peru | H48: 19493.8856 | I48: 0.001303637303 | K48: 45 | L48: Austrália | M48: 48712.5526 | N48: 0.001745141489 | O48: 21065.9658
A49: 46 | B49: Coreia, República da | C49: 18924.4824 | D49: 0.001460247005 | F49: 46 | G49: Paraguai | H49: 18840.7592 | I49: 0.001259960021 | K49: 46 | L49: Cuba | M49: 48369.362 | N49: 0.001732846585 | O49: -37776.9088
A50: 47 | B50: Hungria | C50: 18306.327 | D50: 0.001412549026 | F50: 47 | G50: Senegal | H50: 17576.5504 | I50: 0.001175417115 | K50: 47 | L50: Hungria | M50: 42548.3304 | N50: 0.00152430642 | O50: -5935.6764
A51: 48 | B51: Nigéria | C51: 16216.7282 | D51: 0.001251311834 | F51: 48 | G51: Nova Zelânda | H51: 17377.015 | I51: 0.001162073352 | K51: 48 | L51: Colômbia | M51: 37490.321 | N51: 0.00134310175 | O51: -20824.5506
A52: 49 | B52: Argentina | C52: 16035.5796 | D52: 0.001237334083 | F52: 49 | G52: Japão | H52: 16387.3104 | I52: 0.001095887684 | K52: 49 | L52: Tunísia | M52: 35510.5226 | N52: 0.001272174891 | O52: 14424.1802
A53: 50 | B53: Lituânia | C53: 14426.2296 | D53: 0.001113153751 | F53: 50 | G53: Lituânia | H53: 15822.4366 | I53: 0.001058112221 | K53: 50 | L53: Noruega | M53: 34932.4536 | N53: 0.0012514654 | O53: 9173.6944
A54: 51 | B54: Ucrânia | C54: 14338.071 | D54: 0.001106351275 | F54: 51 | G54: Angola | H54: 15424.0848 | I54: 0.001031472777 | K54: 51 | L54: Costa do Marfim | M54: 32973.8046 | N54: 0.001181296224 | O54: -12618.6134
A55: 52 | B55: Macau | C55: 14162.3328 | D55: 0.001092791001 | F55: 52 | G55: Mauritânia | H55: 14124.4552 | I55: 0.0009445611341 | K55: 52 | L55: Arábia Saudita | M55: 32855.5924 | N55: 0.001177061238 | O55: 32782.098
A56: 53 | B56: Síria, República Árabe da | C56: 13309.7072 | D56: 0.00102700088 | F56: 53 | G56: Austrália | H56: 13823.2934 | I56: 0.0009244211904 | K56: 53 | L56: Guiné-Bissau | M56: 32561.5128 | N56: 0.00116652575 | O56: 31803.1036
A57: 54 | B57: Iraque | C57: 13216.9518 | D57: 0.001019843707 | F57: 54 | G57: Tanzânia, República Unida da | H57: 13711.0264 | I57: 0.0009169134287 | K57: 54 | L57: Indonésia | M57: 32128.1024 | N57: 0.001150998695 | O57: -24924.5044
A58: 55 | B58: Bulgária | C58: 12990.3616 | D58: 0.001002359601 | F58: 55 | G58: Eslovénia | H58: 13709.4752 | I58: 0.0009168096935 | K58: 55 | L58: Coreia, República da | M58: 31301.2172 | N58: 0.00112137529 | O58: 6547.7476
A59: 56 | B59: HongKong | C59: 12801.5844 | D59: 0.0009877932133 | F59: 56 | G59: Suazilândia | H59: 13238.7086 | I59: 0.0008853275706 | K59: 56 | L59: Lituânia | M59: 30248.6662 | N59: 0.001083667342 | O59: -1396.207
A60: 57 | B60: Eslováquia | C60: 12740.7416 | D60: 0.0009830984737 | F60: 57 | G60: Noruega | H60: 12879.3796 | I60: 0.0008612977441 | K60: 57 | L60: Emirados Árabes Unidos | M60: 29704.259 | N60: 0.001064163794 | O60: 28401.6738
A61: 58 | B61: Letónia | C61: 11849.96 | D61: 0.0009143641678 | F61: 58 | G61: Tailândia | H61: 12766.4348 | I61: 0.0008537446551 | K61: 58 | L61: Senegal | M61: 28854.894 | N61: 0.001033735044 | O61: -6298.2068
A62: 59 | B62: Croácia | C62: 11388.7032 | D62: 0.0008787727658 | F62: 59 | G62: Camarões | H62: 12420.4028 | I62: 0.0008306040543 | K62: 59 | L62: Guiana | M62: 28164.8726 | N62: 0.001009014825 | O62: -27885.7122
A63: 60 | B63: Senegal | C63: 11278.3436 | D63: 0.0008702572211 | F63: 60 | G63: Coreia, República da | H63: 12376.7348 | I63: 0.0008276837933 | K63: 60 | L63: São Tomé e Príncipe | M63: 27846.3486 | N63: 0.0009976036088 | O63: 25738.6138
A64: 61 | B64: Dominicana, República | C64: 11211.5302 | D64: 0.0008651017793 | F64: 61 | G64: Estónia | H64: 12113.6096 | I64: 0.0008100875155 | K64: 61 | L64: Jordânia | M64: 26699.1202 | N64: 0.0009565038148 | O64: 26585.0862
A65: 62 | B65: Líbia, Jamahira Árabe da | C65: 11110.2892 | D65: 0.0008572898422 | F65: 62 | G65: Moldava, República de | H65: 11911.9324 | I65: 0.0007966005214 | K65: 62 | L65: Peru | M65: 25631.4274 | N65: 0.000918253407 | O65: -13356.3438
A66: 63 | B66: Costa do Marfim | C66: 10177.5956 | D66: 0.0007853215311 | F66: 63 | G66: Sérvia | H66: 11557.857 | I66: 0.000772922025 | K66: 63 | L66: Uganda | M66: 23651.4418 | N66: 0.0008473198419 | O66: -21718.8038
A67: 64 | B67: Malta | C67: 10082.9972 | D67: 0.0007780221489 | F67: 64 | G67: Tunísia | H67: 10543.1712 | I67: 0.0007050657604 | K67: 64 | L67: Namíbia | M67: 23571.3778 | N67: 0.0008444515256 | O67: -22092.3542
A68: 65 | B68: Território Palestiniano Ocupado | C68: 9895.7186 | D68: 0.0007635713962 | F68: 65 | G68: Paquistão | H68: 10440.9988 | I68: 0.0006982330665 | K68: 65 | L68: Tailândia | M68: 22048.0496 | N68: 0.0007898778459 | O68: -3484.82
A69: 66 | B69: Líbano | C69: 9880.5148 | D69: 0.0007623982437 | F69: 66 | G69: Egito | H69: 10366.094 | I69: 0.0006932238706 | K69: 66 | L69: Eslovénia | M69: 22027.284 | N69: 0.0007891339122 | O69: -5391.6664
A70: 67 | B70: Chipre | C70: 9763.9754 | D70: 0.0007534058546 | F70: 67 | G70: Islândia | H70: 10004.441 | I70: 0.0006690386286 | K70: 67 | L70: Nigéria | M70: 21603.5138 | N70: 0.0007739522204 | O70: 10829.9426
A71: 68 | B71: Tailândia | C71: 9281.6148 | D71: 0.0007161860455 | F71: 68 | G71: Maurícias | H71: 9636.4388 | I71: 0.0006444287891 | K71: 68 | L71: Nova Zelânda | M71: 21601.671 | N71: 0.0007738862016 | O71: -13152.359
A72: 69 | B72: Kuwait | C72: 9121.1468 | D72: 0.0007038040468 | F72: 69 | G72: Letónia | H72: 9340.8474 | I72: 0.0006246613613 | K72: 69 | L72: Camarões | M72: 21512.3584 | N72: 0.0007706865515 | O72: -3328.4472
A73: 70 | B73: Camarões | C73: 9091.9556 | D73: 0.0007015516015 | F73: 70 | G73: Luxemburgo | H73: 8552.2604 | I73: 0.0005719252649 | K73: 70 | L73: Letónia | M73: 21190.8074 | N73: 0.0007591668926 | O73: 2509.1126
A74: 71 | B74: Colômbia | C74: 8332.8852 | D74: 0.000642980368 | F74: 71 | G74: Israel | H74: 8348.85 | I74: 0.0005583223645 | K74: 71 | L74: Estónia | M74: 20382.3 | N74: 0.0007302018777 | O74: -3844.9192
A75: 72 | B75: Eslovénia | C75: 8317.8088 | D75: 0.0006418170459 | F75: 72 | G75: Filipinas | H75: 8338.4466 | I75: 0.0005576266458 | K75: 72 | L75: Paraguai | M75: 20050.052 | N75: 0.0007182989957 | O75: -17631.4664
A76: 73 | B76: Estónia | C76: 8268.6904 | D76: 0.000638026982 | F76: 73 | G76: Belize | H76: 8129.6594 | I76: 0.0005436641763 | K76: 73 | L76: Croácia | M76: 18469.8002 | N76: 0.0006616860113 | O76: 4307.6062
A77: 74 | B77: Geórgia | C77: 8048.6886 | D77: 0.0006210512486 | F77: 74 | G77: Malásia | H77: 8113.8152 | I77: 0.0005426046087 | K77: 74 | L77: Eslováquia | M77: 18139.0792 | N77: 0.0006498378344 | O77: 7342.404
A78: 75 | B78: Gibraltar | C78: 7970.9208 | D78: 0.0006150505456 | F78: 75 | G78: Bangladesh | H78: 7929.0306 | I78: 0.000530247293 | K78: 75 | L78: Sérvia | M78: 17502.4848 | N78: 0.0006270316533 | O78: -5613.2292
A79: 76 | B79: Gana | C79: 7307.4466 | D79: 0.0005638556863 | F79: 76 | G79: Croácia | H79: 7081.097 | I79: 0.0004735424424 | K79: 76 | L79: Mauritânia | M79: 16931.2984 | N79: 0.0006065687329 | O79: -11317.612
A80: 77 | B80: Taiwan | C80: 6603.7526 | D80: 0.0005095573952 | F80: 77 | G80: Quénia | H80: 6721.3334 | I80: 0.0004494835524 | K80: 77 | L80: HongKong | M80: 15600.7076 | N80: 0.0005588999271 | O80: 10002.4612
A81: 78 | B81: Belarus | C81: 6189.2796 | D81: 0.0004775759151 | F81: 78 | G81: Gana | H81: 6621.1502 | I81: 0.0004427838846 | K81: 78 | L81: Maurícias | M81: 15492.987 | N81: 0.000555040805 | O81: -3779.8906
A82: 79 | B82: Guatemala | C82: 6179.6032 | D82: 0.0004768292667 | F82: 79 | G82: Panamá | H82: 6513.4974 | I82: 0.0004355846936 | K82: 79 | L82: Suazilândia | M82: 15229.8654 | N82: 0.0005456143965 | O82: -11247.5518
A83: 80 | B83: Peru | C83: 6137.5418 | D83: 0.0004735837336 | F83: 80 | G83: Honduras | H83: 6221.5346 | I83: 0.0004160599254 | K83: 80 | L83: Moldava, República de | M83: 14881.0396 | N83: 0.0005331176098 | O83: -8942.8252
A84: 81 | B84: Vietname | C84: 5946.9212 | D84: 0.0004588751062 | F84: 81 | G84: Suriname | H84: 5829.6302 | I84: 0.0003898516463 | K84: 81 | L84: Síria, República Árabe da | M84: 14259.5412 | N84: 0.0005108522473 | O84: 12359.8732
A85: 82 | B85: Sérvia | C85: 5944.6278 | D85: 0.0004586981434 | F85: 82 | G85: Eslováquia | H85: 5398.3376 | I85: 0.0003610093142 | K85: 82 | L85: Tanzânia, República Unida da | M85: 14227.4986 | N85: 0.0005097043117 | O85: -13194.5542
A86: 83 | B86: Maurícias | C86: 5856.5482 | D86: 0.0004519017635 | F86: 83 | G86: Nigéria | H86: 5386.7856 | I86: 0.0003602367839 | K86: 83 | L86: Macau | M86: 14182.009 | N86: 0.0005080746335 | O86: 14142.6566
A87: 84 | B87: Andorra | C87: 5401.2632 | D87: 0.0004167711563 | F87: 84 | G87: Etiópia | H87: 5332.9722 | I87: 0.0003566380577 | K87: 84 | L87: Gana | M87: 13928.5968 | N87: 0.0004989960671 | O87: 686.2964
A88: 85 | B88: Cuba | C88: 5296.2266 | D88: 0.0004086663438 | F88: 85 | G88: Congo | H88: 5207.279 | I88: 0.0003482324301 | K88: 85 | L88: Paquistão | M88: 13696.3036 | N88: 0.000490674095 | O88: -7185.694
A89: 86 | B89: Singapura | C89: 4670.5802 | D89: 0.0003603903454 | F89: 86 | G89: Guatemala | H89: 5139.0112 | I89: 0.000343667078 | K89: 86 | L89: Dominicana, República | M89: 13463.2218 | N89: 0.0004823238711 | O89: 8959.8386
A90: 87 | B90: Omã | C90: 4393.4536 | D90: 0.0003390067599 | F90: 87 | G90: Camboja | H90: 4965.3018 | I90: 0.0003320504071 | K90: 87 | L90: Iraque | M90: 13230.1254 | N90: 0.0004739731242 | O90: 13203.7782
A91: 88 | B91: Nova Zelânda | C91: 4224.656 | D91: 0.0003259820343 | F91: 88 | G91: Argélia | H91: 4913.7462 | I91: 0.0003286026694 | K91: 88 | L91: Chipre | M91: 13179.1368 | N91: 0.0004721464427 | O91: 6348.814
A92: 89 | B92: Panamá | C92: 4203.97 | D92: 0.0003243858655 | F92: 89 | G92: Reino Unido (Irlanda do Norte) pós-2020 | H92: 4864.879 | I92: 0.0003253347163 | K92: 89 | L92: Filipinas | M92: 11817.2578 | N92: 0.0004233567279 | O92: -4859.6354
A93: 90 | B93: Costa Rica | C93: 4017.2892 | D93: 0.0003099812401 | F93: 90 | G93: Macedónia, Antiga República jugoslava da | H93: 4838.7308 | I93: 0.0003235860773 | K93: 90 | L93: Islândia | M93: 11807.9024 | N93: 0.000423021568 | O93: -8200.9796
A94: 91 | B94: Catar | C94: 3814.9902 | D94: 0.0002943714864 | F94: 91 | G94: Zimbabwe | H94: 4709.246 | I94: 0.0003149268895 | K94: 91 | L94: Malta | M94: 11740.4076 | N94: 0.000420603547 | O94: 8425.5868
A95: 92 | B95: Burquina Faso | C95: 3646.8948 | D95: 0.0002814009439 | F95: 92 | G95: Suíça | H95: 4511.0854 | I95: 0.0003016750651 | K95: 92 | L95: Malásia | M95: 11542.323 | N95: 0.000413507108 | O95: -4685.3074
A96: 93 | B96: Indonésia | C96: 3601.799 | D96: 0.0002779212711 | F96: 93 | G96: Sri Lanca | H96: 4405.8098 | I96: 0.0002946348473 | K96: 93 | L96: Guatemala | M96: 11318.6144 | N96: 0.0004054926818 | O96: 1040.592
A97: 94 | B97: Sudão | C97: 3570.9408 | D97: 0.000275540197 | F97: 94 | G97: Madagáscar | H97: 3797.7566 | I97: 0.0002539717979 | K97: 94 | L97: Líbia, Jamahira Árabe da | M97: 11116.3092 | N97: 0.0003982450387 | O97: 11104.2692
A98: 95 | B98: Filipinas | C98: 3478.8112 | D98: 0.0002684313118 | F98: 95 | G98: Mali | H98: 3762.6334 | I98: 0.0002516229632 | K98: 95 | L98: Panamá | M98: 10717.4674 | N98: 0.0003839564142 | O98: -2309.5274
A99: 96 | B99: Mali | C99: 3441.82 | D99: 0.0002655770045 | F99: 96 | G99: Myanmar | H99: 3487.5672 | I99: 0.000233228141 | K99: 96 | L99: Líbano | M99: 10422.5976 | N99: 0.0003733926171 | O99: 9338.432
A100: 97 | B100: Malásia | C100: 3428.5078 | D100: 0.0002645498112 | F100: 97 | G100: Nicarágua | H100: 3458.6704 | I100: 0.0002312956917 | K100: 97 | L100: Kuwait | M100: 10304.9986 | N100: 0.0003691795984 | O100: 7937.295
A101: 98 | B101: Venezuela | C101: 3292.1542 | D101: 0.0002540285229 | F101: 98 | G101: Taiwan | H101: 3425.7168 | I101: 0.0002290919472 | K101: 98 | L101: Taiwan | M101: 10029.4694 | N101: 0.0003593086839 | O101: 3178.0358
A102: 99 | B102: Paquistão | C102: 3255.3048 | D102: 0.0002511851571 | F102: 99 | G102: Chipre | H102: 3415.1614 | I102: 0.0002283860637 | K102: 99 | L102: Território Palestiniano Ocupado | M102: 9896.2038 | N102: 0.0003545344047 | O102: 9895.2334
A103: 100 | B103: Irão, República Islâmica do | C103: 3151.3458 | D103: 0.0002431634942 | F103: 100 | G103: Congo, República Democrática do | H103: 3287.5926 | I103: 0.0002198550068 | K103: 100 | L103: Bangladesh | M103: 9893.849 | N103: 0.0003544500433 | O103: -5964.2122
A104: 101 | B104: Equador | C104: 3049.5584 | D104: 0.0002353093959 | F104: 101 | G104: Malavi | H104: 3258.3272 | I104: 0.0002178979077 | K104: 101 | L104: Quénia | M104: 9768.3614 | N104: 0.0003499544132 | O104: -3674.3054
A105: 102 | B105: Quénia | C105: 3047.028 | D105: 0.0002351141457 | F105: 102 | G105: Papuásia-Nova Guiné | H105: 3105.1676 | I105: 0.0002076554875 | K105: 102 | L105: Geórgia | M105: 8359.5618 | N105: 0.0002994837542 | O105: 7737.8154
A106: 103 | B106: Uruguai | C106: 2989.0796 | D106: 0.0002306427432 | F106: 103 | G106: HongKong | H106: 2799.1232 | I106: 0.0001871890241 | K106: 103 | L106: Belize | M106: 8131.84 | N106: 0.0002913255539 | O106: -8127.4788
A107: 104 | B107: Moldava, República de | C107: 2969.1072 | D107: 0.000229101637 | F107: 104 | G107: Gabão | H107: 2643.292 | I107: 0.0001767679428 | K107: 104 | L107: Gibraltar | M107: 8002.9498 | N107: 0.0002867080247 | O107: 7938.8918
A108: 105 | B108: Mauritânia | C108: 2806.8432 | D108: 0.0002165810557 | F108: 105 | G108: Centro-Africana, República | H108: 2579.2684 | I108: 0.0001724864181 | K108: 105 | L108: Congo | M108: 7636.6094 | N108: 0.0002735837724 | O108: -2777.9486
A109: 106 | B109: Timor-Leste | C109: 2726.394 | D109: 0.0002103734511 | F109: 106 | G109: Gâmbia | H109: 2389.373 | I109: 0.000159787322 | K109: 106 | L109: Honduras | M109: 7591.1752 | N109: 0.0002719560788 | O109: -4851.894
A110: 107 | B110: Guiné | C110: 2700.6706 | D110: 0.0002083885874 | F110: 107 | G110: Dominicana, República | H110: 2251.6916 | I110: 0.0001505799934 | K110: 107 | L110: Etiópia | M110: 7365.0862 | N110: 0.0002638563741 | O110: -3300.8582
A111: 108 | B111: Arménia | C111: 2588.4812 | D111: 0.0001997318521 | F111: 108 | G111: Serra Leoa | H111: 1997.9044 | I111: 0.0001336081866 | K111: 108 | L111: Reino Unido (Irlanda do Norte) pós-2020 | M111: 7284.542 | N111: 0.0002609708545 | O111: -2445.216
A112: 109 | B112: Gabão | C112: 2550.5466 | D112: 0.0001968047503 | F112: 109 | G112: Benim | H112: 1832.1494 | I112: 0.0001225234595 | K112: 109 | L112: Mali | M112: 7204.4534 | N112: 0.0002581016569 | O112: -320.8134
A113: 110 | B113: Congo | C113: 2429.3304 | D113: 0.0001874514909 | F113: 110 | G113: El Salvador | H113: 1779.7304 | I113: 0.0001190179827 | K113: 110 | L113: Belarus | M113: 7048.5194 | N113: 0.0002525152756 | O113: 5330.0398
A114: 111 | B114: Reino Unido (Irlanda do Norte) pós-2020 | C114: 2419.663 | D114: 0.000186705537 | F114: 111 | G114: Burquina Faso | H114: 1725.7576 | I114: 0.0001154085968 | K114: 111 | L114: Suriname | M114: 6411.9606 | N114: 0.0002297103698 | O114: -5247.2998
A115: 112 | B115: Albânia | C115: 2229.7502 | D115: 0.0001720515247 | F115: 112 | G115: Malta | H115: 1657.4104 | I115: 0.000110837935 | K115: 112 | L115: Singapura | M115: 5982.0136 | N115: 0.0002143073924 | O115: 3359.1468
A116: 113 | B116: Seychelles | C116: 2209.8298 | D116: 0.0001705144309 | F116: 113 | G116: Laos, República Democrática Popular do | H116: 1570.485 | I116: 0.0001050248715 | K116: 113 | L116: Camboja | M116: 5868.6792 | N116: 0.0002102471542 | O116: -4061.9244
A117: 114 | B117: Guiné Equatorial | C117: 2176.263 | D117: 0.0001679243564 | F117: 114 | G117: Singapura | H117: 1311.4334 | I117: 8.770101232e-05 | K117: 114 | L117: Sri Lanca | M117: 5846.5976 | N117: 0.0002094560744 | O117: -2965.022
A118: 115 | B118: Etiópia | C118: 2032.114 | D118: 0.0001568015611 | F118: 115 | G118: Seychelles | H118: 1264.2444 | I118: 8.45452874e-05 | K118: 115 | L118: Macedónia, Antiga República jugoslava da | M118: 5789.6166 | N118: 0.0002074147134 | O118: -3887.845
A119: 116 | B119: Suazilândia | C119: 1991.1568 | D119: 0.00015364123 | F119: 116 | G119: Kuwait | H119: 1183.8518 | I119: 7.916909948e-05 | K119: 116 | L119: Andorra | M119: 5443.4826 | N119: 0.0001950143613 | O119: 5359.0438
A120: 117 | B120: Bangladesh | C120: 1964.8184 | D120: 0.0001516089119 | F120: 117 | G120: Bolívia | H120: 1171.3558 | I120: 7.833343992e-05 | K120: 117 | L120: Burquina Faso | M120: 5372.6524 | N120: 0.0001924768486 | O120: 1921.1372
A121: 118 | B121: Islândia | C121: 1803.4614 | D121: 0.0001391583163 | F121: 118 | G121: Togo | H121: 1123.3282 | I121: 7.512163432e-05 | K121: 118 | L121: Gabão | M121: 5193.8386 | N121: 0.0001860707917 | O121: -92.7454
A122: 119 | B122: Benim | C122: 1771.8166 | D122: 0.0001367165468 | F122: 119 | G122: São Tomé e Príncipe | H122: 1053.8674 | I122: 7.047650139e-05 | K122: 119 | L122: Nicarágua | M122: 5085.114 | N122: 0.000182175701 | O122: -1832.2268
A123: 120 | B123: Congo, República Democrática do | C123: 1727.181 | D123: 0.0001332723838 | F123: 120 | G123: Venezuela | H123: 1042.655 | I123: 6.972668151e-05 | K123: 120 | L123: Congo, República Democrática do | M123: 5014.7736 | N123: 0.0001796557356 | O123: -1560.4116
A124: 121 | B124: Jamaica | C124: 1687.498 | D124: 0.0001302103724 | F124: 121 | G124: Iémen | H124: 1024.4982 | I124: 6.851246069e-05 | K124: 121 | L124: Omã | M124: 4885.6232 | N124: 0.0001750288846 | O124: 3901.284
A125: 122 | B125: Nicarágua | C125: 1626.4436 | D125: 0.0001254993054 | F125: 122 | G125: Síria, República Árabe da | H125: 949.834 | I125: 6.351935473e-05 | K125: 122 | L125: Zimbabwe | M125: 4774.2052 | N125: 0.0001710373021 | O125: -4644.2868
A126: 123 | B126: Togo | C126: 1570.864 | D126: 0.0001212106838 | F126: 123 | G126: Belarus | H126: 859.2398 | I126: 5.746094334e-05 | K126: 123 | L126: Venezuela | M126: 4334.8092 | N126: 0.0001552958114 | O126: 2249.4992
A127: 124 | B127: El Salvador | C127: 1565.6294 | D127: 0.0001208067726 | F127: 124 | G127: Cabo Verde | H127: 837.7766 | I127: 5.602560978e-05 | K127: 124 | L127: Madagáscar | M127: 4107.7518 | N127: 0.0001471614135 | O127: -3487.7614
A128: 125 | B128: Cazaquistão | C128: 1534.519 | D128: 0.0001184062384 | F128: 125 | G128: Bósnia-Herzegovina | H128: 758.2198 | I128: 5.070531529e-05 | K128: 125 | L128: Myanmar | M128: 3979.95 | N128: 0.0001425828765 | O128: -2995.1844
A129: 126 | B129: Sri Lanca | C129: 1440.7878 | D129: 0.0001111737709 | F129: 126 | G129: Turquemenistão | H129: 720.6558 | I129: 4.819325419e-05 | K129: 126 | L129: Catar | M129: 3836.467 | N129: 0.0001374425559 | O129: 3793.5134
A130: 127 | B130: Azerbaijão | C130: 1435.1898 | D130: 0.0001107418191 | F130: 127 | G130: Chade | H130: 675.9004 | I130: 4.520027423e-05 | K130: 127 | L130: Benim | M130: 3603.966 | N130: 0.0001291131394 | O130: -60.3328
A131: 128 | B131: Bolívia | C131: 1412.2374 | D131: 0.0001089707708 | F131: 128 | G131: Emirados Árabes Unidos | H131: 651.2926 | I131: 4.355464817e-05 | K131: 128 | L131: Sudão | M131: 3591.4234 | N131: 0.000128663797 | O131: 3550.4582
A132: 129 | B132: Honduras | C132: 1369.6406 | D132: 0.0001056839253 | F132: 129 | G132: Timor-Leste | H132: 614.587 | I132: 4.109999186e-05 | K132: 129 | L132: Seychelles | M132: 3474.0742 | N132: 0.0001244597275 | O132: 945.5854
A133: 130 | B133: São Bartolomeu | C133: 1280.9726 | D133: 9.884214338e-05 | F133: 130 | G133: Faroé, Ilhas | H133: 597.6172 | I133: 3.996515067e-05 | K133: 130 | L133: Irão, República Islâmica do | M133: 3375.8844 | N133: 0.0001209420491 | O133: 2926.8072
A134: 131 | B134: Ruanda | C134: 1241.1874 | D134: 9.577224599e-05 | F134: 131 | G134: Líbano | H134: 542.0828 | I134: 3.625133409e-05 | K134: 131 | L134: El Salvador | M134: 3345.3598 | N134: 0.0001198484964 | O134: -214.101
A135: 132 | B135: Paraguai | C135: 1209.2928 | D135: 9.331120144e-05 | F135: 132 | G135: Omã | H135: 492.1696 | I135: 3.291343057e-05 | K135: 132 | L135: Timor-Leste | M135: 3340.981 | N135: 0.0001196916246 | O135: 2111.807
A136: 133 | B136: Iémen | C136: 1145.3826 | D136: 8.837977578e-05 | F136: 133 | G136: Gronelândia | H136: 481.3548 | I136: 3.219019986e-05 | K136: 133 | L136: Malavi | M136: 3267.4564 | N136: 0.0001170575842 | O136: -3249.198
A137: 134 | B137: Montenegro | C137: 1046.3476 | D137: 8.073805755e-05 | F137: 134 | G137: Guiné-Bissau | H137: 379.2046 | I137: 2.535899063e-05 | K137: 134 | L137: Papuásia-Nova Guiné | M137: 3108.0532 | N137: 0.0001113469178 | O137: -3102.282
A138: 135 | B138: Uganda | C138: 966.319 | D138: 7.456290724e-05 | F138: 135 | G138: Geórgia | H138: 310.8732 | I138: 2.078938537e-05 | K138: 135 | L138: Guiné | M138: 3003.4878 | N138: 0.0001076008317 | O138: 2397.8534
A139: 136 | B139: Macedónia, Antiga República jugoslava da | C139: 950.8858 | D139: 7.337205384e-05 | F139: 136 | G139: Usbequistão | H139: 308.419 | I139: 2.06252628e-05 | K139: 136 | L139: Gâmbia | M139: 2880.9438 | N139: 0.0001032106569 | O139: -1897.8022
A140: 137 | B140: Bermudas | C140: 907.5284 | D140: 7.002651909e-05 | F140: 137 | G140: Guiné | H140: 302.8172 | I140: 2.025064711e-05 | K140: 137 | L140: Togo | M140: 2694.1922 | N140: 9.652022605e-05 | O140: 447.5358
A141: 138 | B141: Camboja | C141: 903.3774 | D141: 6.970622049e-05 | F141: 138 | G141: Irão, República Islâmica do | H141: 224.5386 | I141: 1.501583117e-05 | K141: 138 | L141: Centro-Africana, República | M141: 2675.6308 | N141: 9.585525845e-05 | O141: -2482.906
A142: 139 | B142: Barbados | C142: 889.1274 | D142: 6.860666493e-05 | F142: 139 | G142: Zâmbia | H142: 199.3992 | I142: 1.333465481e-05 | K142: 139 | L142: Arménia | M142: 2615.5848 | N142: 9.370409288e-05 | O142: 2561.3776
A143: 140 | B143: Trindade e Tobago | C143: 876.5142 | D143: 6.763340779e-05 | F143: 140 | G143: Azerbaijão | H143: 125.9264 | I143: 8.421222731e-06 | K143: 140 | L143: Bolívia | M143: 2583.5932 | N143: 9.255798443e-05 | O143: 240.8816
A144: 141 | B144: Namíbia | C144: 739.5118 | D144: 5.706205688e-05 | F144: 141 | G144: Fiji, Ilhas | H144: 123.8396 | I144: 8.281669725e-06 | K144: 141 | L144: Serra Leoa | M144: 2504.721 | N144: 8.973236472e-05 | O144: -1491.0878
A145: 142 | B145: Turquemenistão | C145: 730.8192 | D145: 5.639132027e-05 | F145: 142 | G145: Maldivas | H145: 106.2128 | I145: 7.102892211e-06 | K145: 142 | L145: Albânia | M145: 2335.6576 | N145: 8.367561881e-05 | O145: 2123.8428
A146: 143 | B146: Barém | C146: 714.5288 | D146: 5.513432379e-05 | F146: 143 | G146: Albânia | H146: 105.9074 | I146: 7.082468841e-06 | K146: 143 | L146: Guiné Equatorial | M146: 2182.2494 | N146: 7.817972504e-05 | O146: 2170.2766
A147: 144 | B147: Burundi | C147: 677.1012 | D147: 5.224634305e-05 | F147: 144 | G147: Tajiquistão | H147: 59.4122 | I147: 3.973141209e-06 | K147: 144 | L147: Iémen | M147: 2169.8808 | N147: 7.773661631e-05 | O147: 120.8844
A148: 145 | B148: Aruba | C148: 656.9934 | D148: 5.069478913e-05 | F148: 145 | G148: Jordânia | H148: 57.017 | I148: 3.812964211e-06 | K148: 145 | L148: Jamaica | M148: 1698.661 | N148: 6.085502872e-05 | O148: 1676.335
A149: 146 | B149: Niger | C149: 652.165 | D149: 5.032222113e-05 | F149: 146 | G149: Andorra | H149: 42.2194 | I149: 2.823387081e-06 | K149: 146 | L149: Laos, República Democrática Popular do | M149: 1586.3348 | N149: 5.683090965e-05 | O149: -1554.6352
A150: 147 | B150: São Martinho (parte holandesa) | C150: 597.7744 | D150: 4.612534488e-05 | F150: 147 | G150: Libéria | H150: 38.8276 | I150: 2.596563292e-06 | K150: 147 | L150: Azerbaijão | M150: 1561.1162 | N150: 5.59274459e-05 | O150: 1309.2634
A151: 148 | B151: Suriname | C151: 582.3304 | D151: 4.493365814e-05 | F151: 148 | G151: Falkland Ilhas (Malvinas) | H151: 38.0622 | I151: 2.545377807e-06 | K151: 148 | L151: Cazaquistão | M151: 1551.583 | N151: 5.558591622e-05 | O151: 1517.455
A152: 149 | B152: Bósnia-Herzegovina | C152: 535.6404 | D152: 4.133097399e-05 | F152: 149 | G152: Aruba | H152: 38.0518 | I152: 2.544682315e-06 | K152: 149 | L152: Turquemenistão | M152: 1451.475 | N152: 5.199951774e-05 | O152: 10.1634
A153: 150 | B153: Tanzânia, República Unida da | C153: 516.4722 | D153: 3.98519213e-05 | F153: 150 | G153: Arábia Saudita | H153: 36.7472 | I153: 2.457438281e-06 | K153: 150 | L153: Bósnia-Herzegovina | M153: 1293.8602 | N153: 4.635292129e-05 | O153: -222.5794
A154: 151 | B154: Ceuta e Melilha | C154: 507.8786 | D154: 3.918882371e-05 | F154: 151 | G154: São Marino | H154: 32.7702 | I154: 2.191479731e-06 | K154: 151 | L154: São Bartolomeu | M154: 1281.3282 | N154: 4.590395871e-05 | O154: 1280.617
A155: 152 | B155: Serra Leoa | C155: 506.8166 | D155: 3.910687789e-05 | F155: 152 | G155: Gibraltar | H155: 32.029 | I155: 2.1419126e-06 | K155: 152 | L155: Ruanda | M155: 1241.8574 | N155: 4.448990572e-05 | O155: 1240.5174
A156: 153 | B156: Myanmar | C156: 492.3828 | D156: 3.799313999e-05 | F156: 153 | G156: Botswana | H156: 30.0284 | I156: 2.008124148e-06 | K156: 153 | L156: Montenegro | M156: 1046.7 | N156: 3.749833461e-05 | O156: 1045.9952
A157: 154 | B157: Gâmbia | C157: 491.5708 | D157: 3.793048461e-05 | F157: 154 | G157: São Pedro e Miquelon | H157: 28.9156 | I157: 1.933706578e-06 | K157: 154 | L157: Bermudas | M157: 908.3498 | N157: 3.25418981e-05 | O157: 906.707
A158: 155 | B158: Curaçau | C158: 479.6396 | D158: 3.700985182e-05 | F158: 155 | G158: Arménia | H158: 27.1036 | I158: 1.812530593e-06 | K158: 155 | L158: Barbados | M158: 899.4474 | N158: 3.222296701e-05 | O158: 878.8074
A159: 156 | B159: Kosovo | C159: 471.1818 | D159: 3.63572328e-05 | F159: 156 | G159: Catar | H159: 21.4768 | I159: 1.436243046e-06 | K159: 156 | L159: Trindade e Tobago | M159: 876.838 | N159: 3.141297862e-05 | O159: 876.1904
A160: 157 | B160: Polinésia Francesa | C160: 366.6458 | D160: 2.829104755e-05 | F160: 157 | G160: Sudão | H160: 20.4826 | I160: 1.369756752e-06 | K160: 157 | L160: Barém | M160: 719.1302 | N160: 2.576305041e-05 | O160: 709.9274
A161: 158 | B161: Antígua e Barbuda | C161: 363.7054 | D161: 2.806416101e-05 | F161: 158 | G161: Macau | H161: 19.6762 | I161: 1.315829427e-06 | K161: 158 | L161: Aruba | M161: 695.0452 | N161: 2.490019822e-05 | O161: 618.9416
A162: 159 | B162: Haiti | C162: 328.5232 | D162: 2.534943935e-05 | F162: 159 | G162: Quirguizistão | H162: 17.4758 | I162: 1.168679516e-06 | K162: 159 | L162: Burundi | M162: 677.2152 | N162: 2.426143324e-05 | O162: 676.9872
A163: 160 | B163: Comores | C163: 311.607 | D163: 2.404415502e-05 | F163: 160 | G163: Cazaquistão | H163: 17.064 | I163: 1.141140735e-06 | K163: 160 | L163: Chade | M163: 676.014 | N163: 2.42183999e-05 | O163: -675.7868
A164: 161 | B164: Madagáscar | C164: 309.9952 | D164: 2.391978564e-05 | F164: 161 | G164: Salomão, Ilhas | H164: 16.0532 | I164: 1.07354433e-06 | K164: 161 | L164: Niger | M164: 655.4318 | N164: 2.348103654e-05 | O164: 648.8982
A165: 162 | B165: Nova Caledónia | C165: 302.6442 | D165: 2.33525693e-05 | F165: 162 | G165: Santa Helena | H165: 15.7338 | I165: 1.052184722e-06 | K165: 162 | L165: Faroé, Ilhas | M165: 598.4668 | N165: 2.14402487e-05 | O165: -596.7676
A166: 163 | B166: Libéria | C166: 295.8354 | D166: 2.282719008e-05 | F166: 163 | G166: Marshall, Ilhas | H166: 13.4098 | I166: 8.96769165e-07 | K166: 163 | L166: São Martinho (parte holandesa) | M166: 597.7772 | N166: 2.141554358e-05 | O166: 597.7716
A167: 164 | B167: Somália | C167: 292.9902 | D167: 2.260764934e-05 | F167: 164 | G167: Iraque | H167: 13.1736 | I167: 8.809734874e-07 | K167: 164 | L167: Usbequistão | M167: 531.501 | N167: 1.904117927e-05 | O167: -85.337
A168: 165 | B168: Bahamas | C168: 280.4744 | D168: 2.164190776e-05 | F168: 165 | G168: Curaçau | H168: 12.9632 | I168: 8.669031633e-07 | K168: 165 | L168: Ceuta e Melilha | M168: 507.8786 | N168: 1.819489986e-05 | O168: 507.8786
A169: 166 | B169: Usbequistão | C169: 223.082 | D169: 1.721340724e-05 | F169: 166 | G169: Jamaica | H169: 11.163 | I169: 7.465162932e-07 | K169: 166 | L169: Curaçau | M169: 492.6028 | N169: 1.764763984e-05 | O169: 466.6764
A170: 167 | B170: São Marino | C170: 219.9688 | D170: 1.697318715e-05 | F170: 167 | G170: Nepal | H170: 11.0964 | I170: 7.420624739e-07 | K170: 167 | L170: Gronelândia | M170: 481.9304 | N170: 1.726529798e-05 | O170: -480.7792
A171: 168 | B171: Bonaire, Santo Eustáquio e Saba | C171: 206.5448 | D171: 1.593736723e-05 | F171: 168 | G171: Barbados | H171: 10.32 | I171: 6.901413729e-07 | K171: 168 | L171: Kosovo | M171: 479.738 | N171: 1.718675461e-05 | O171: 462.6256
A172: 169 | B172: Guiana | C172: 139.5802 | D172: 1.077025858e-05 | F172: 169 | G172: Antígua e Barbuda | H172: 9.2324 | I172: 6.174090321e-07 | K172: 169 | L172: Antígua e Barbuda | M172: 372.9378 | N172: 1.336060611e-05 | O172: 354.473
A173: 170 | B173: Zâmbia | C173: 138.1944 | D173: 1.066332777e-05 | F173: 170 | G173: Kosovo | H173: 8.5562 | I173: 5.721887224e-07 | K173: 170 | L173: Polinésia Francesa | M173: 367.1436 | N173: 1.315302719e-05 | O173: 366.148
A174: 171 | B174: Maldivas | C174: 129.0678 | D174: 9.959102945e-06 | F174: 171 | G174: Jibuti | H174: 7.3022 | I174: 4.883285207e-07 | K174: 171 | L174: Zâmbia | M174: 337.5936 | N174: 1.209438977e-05 | O174: -61.2048
A175: 172 | B175: Santa Lúcia | C175: 120.252 | D175: 9.278860005e-06 | F175: 172 | G175: Líbia, Jamahira Árabe da | H175: 6.02 | I175: 4.025824675e-07 | K175: 172 | L175: Libéria | M175: 334.663 | N175: 1.198940017e-05 | O175: 257.0078
A176: 173 | B176: Liechtenstein | C176: 119.4194 | D176: 9.214615095e-06 | F176: 173 | G176: Guiné Equatorial | H176: 5.9864 | I176: 4.003354956e-07 | K176: 173 | L176: Haiti | M176: 328.8052 | N176: 1.177954276e-05 | O176: 328.2412
A177: 174 | B177: Afeganistão | C177: 109.4574 | D177: 8.445929308e-06 | F177: 174 | G177: Barém | H177: 4.6014 | I177: 3.077147784e-07 | K177: 174 | L177: Comores | M177: 311.607 | N177: 1.11634122e-05 | O177: 311.607
A178: 175 | B178: Quirguizistão | C178: 109.2342 | D178: 8.428706795e-06 | F178: 175 | G178: São Cristovão e Nevis | H178: 4.4456 | I178: 2.972957837e-07 | K178: 175 | L178: Nova Caledónia | M178: 303.3516 | N178: 1.086766007e-05 | O178: 301.9368
A179: 176 | B179: Virgens Britânicas, Ilhas | C179: 102.589 | D179: 7.915951244e-06 | F179: 176 | G179: Afeganistão | H179: 4.3746 | I179: 2.92547718e-07 | K179: 176 | L179: Somália | M179: 292.9902 | N179: 1.049645988e-05 | O179: 292.9902
A180: 177 | B180: Botswana | C180: 98.1832 | D180: 7.575991814e-06 | F180: 177 | G180: Niger | H180: 3.2668 | I180: 2.184645191e-07 | K180: 177 | L180: Bahamas | M180: 280.4744 | N180: 1.004807767e-05 | O180: 280.4744
A181: 178 | B181: Jibuti | C181: 96.957 | D181: 7.481376023e-06 | F181: 178 | G181: Liechtenstein | H181: 1.8556 | I181: 1.240916988e-07 | K181: 178 | L181: São Marino | M181: 252.739 | N181: 9.05444883e-06 | O181: 187.1986
A182: 179 | B182: Centro-Africana, República | C182: 96.3624 | D182: 7.43549562e-06 | F182: 179 | G182: Lesoto | H182: 1.7136 | I182: 1.145955675e-07 | K182: 179 | L182: Maldivas | M182: 235.2806 | N182: 8.428996527e-06 | O182: 22.855
A183: 180 | B183: Nepal | C183: 77.231 | D183: 5.959282482e-06 | F183: 180 | G183: Butão | H183: 1.2178 | I183: 8.143935697e-08 | K183: 180 | L183: Bonaire, Santo Eustáquio e Saba | M183: 206.5448 | N183: 7.399528061e-06 | O183: 206.5448
A184: 181 | B184: Zimbabwe | C184: 64.9592 | D184: 5.012368383e-06 | F184: 181 | G184: Bermudas | H184: 0.8214 | I184: 5.493043835e-08 | K184: 181 | L184: Fiji, Ilhas | M184: 135.9458 | N184: 4.870298172e-06 | O184: -111.7334
A185: 182 | B185: Caimão, Ilhas | C185: 51.6906 | D185: 3.988539409e-06 | F185: 182 | G185: Nova Caledónia | H185: 0.7074 | I185: 4.730678364e-08 | K185: 182 | L185: Botswana | M185: 128.2116 | N185: 4.593218188e-06 | O185: 68.1548
A186: 183 | B186: Mongólia | C186: 37.8358 | D186: 2.919478191e-06 | F186: 183 | G186: Ruanda | H186: 0.67 | I186: 4.480568991e-08 | K186: 183 | L186: Quirguizistão | M186: 126.71 | N186: 4.539422927e-06 | O186: 91.7584
A187: 184 | B187: Turcas e Caicos, Ilhas | C187: 19.071 | D187: 1.471552566e-06 | F187: 184 | G187: Polinésia Francesa | H187: 0.4978 | I187: 3.328995886e-08 | K187: 184 | L187: Liechtenstein | M187: 121.275 | N187: 4.344712458e-06 | O187: 117.5638
A188: 185 | B188: Laos, República Democrática Popular do | C188: 15.8498 | D188: 1.222998996e-06 | F188: 185 | G188: Território Palestiniano Ocupado | H188: 0.4852 | I188: 3.244734439e-08 | K188: 185 | L188: Santa Lúcia | M188: 120.2746 | N188: 4.308872834e-06 | O188: 120.2294
A189: 186 | B189: Fiji, Ilhas | C189: 12.1062 | D189: 9.341361058e-07 | F189: 186 | G189: São Bartolomeu | H189: 0.3556 | I189: 2.378045273e-08 | K189: 186 | L189: Afeganistão | M189: 113.832 | N189: 4.078064799e-06 | O189: 105.0828
A190: 187 | B190: Anguila | C190: 10.0614 | D190: 7.763556702e-07 | F190: 187 | G190: Montenegro | H190: 0.3524 | I190: 2.356645541e-08 | K190: 187 | L190: Jibuti | M190: 104.2592 | N190: 3.73511643e-06 | O190: 89.6548
A191: 188 | B191: Malavi | C191: 9.1292 | D191: 7.044254462e-07 | F191: 188 | G191: Micronésia, Estados Federados da | H191: 0.3438 | I191: 2.29913376e-08 | K191: 188 | L191: Virgens Britânicas, Ilhas | M191: 102.596 | N191: 3.675531802e-06 | O191: 102.582
A192: 189 | B192: Brunei Darussalam | C192: 7.7238 | D192: 5.959822615e-07 | F192: 189 | G192: Trindade e Tobago | H192: 0.3238 | I192: 2.165385432e-08 | K192: 189 | L192: Nepal | M192: 88.3274 | N192: 3.164355021e-06 | O192: 66.1346
A193: 190 | B193: São Vicente e Granadinas | C193: 7.6034 | D193: 5.866919815e-07 | F193: 190 | G193: Haiti | H193: 0.282 | I193: 1.885851426e-08 | K193: 190 | L193: Tajiquistão | M193: 59.4122 | N193: 2.128459497e-06 | O193: -59.4122
A194: 191 | B194: Guam | C194: 6.6636 | D194: 5.141753279e-07 | F194: 191 | G194: Oceano Indico, Território Britânico do | H194: 0.128 | I194: 8.559892998e-09 | K194: 191 | L194: Caimão, Ilhas | M194: 51.6906 | N194: 1.851830911e-06 | O194: 51.6906
A195: 192 | B195: Territórios Franceses do Sul | C195: 6.3102 | D195: 4.8690635e-07 | F195: 192 | G195: Burundi | H195: 0.114 | I195: 7.623654701e-09 | K195: 192 | L195: Falkland Ilhas (Malvinas) | M195: 38.0622 | N195: 1.363589483e-06 | O195: -38.0622
A196: 193 | B196: Menores distantes dos Estados Unidos, lhas | C196: 4.5544 | D196: 3.514256728e-07 | F196: 193 | G196: Nauru | H196: 0.0694 | I196: 4.641066985e-09 | K196: 193 | L196: Mongólia | M196: 37.85 | N196: 1.355987355e-06 | O196: 37.8216
A197: 194 | B197: Sudão do Sul | C197: 3.771 | D197: 2.909771237e-07 | F197: 194 | G197: Vanuatu | H197: 0.065 | I197: 4.346820663e-09 | K197: 194 | L197: São Pedro e Miquelon | M197: 29.2314 | N197: 1.047223482e-06 | O197: -28.5998
A198: 195 | B198: Melilha | C198: 3.6164 | D198: 2.790479104e-07 | F198: 195 | G198: Santa Lúcia | H198: 0.0226 | I198: 1.511356107e-09 | K198: 195 | L198: Turcas e Caicos, Ilhas | M198: 19.071 | N198: 6.832241705e-07 | O198: 19.071
A199: 196 | B199: Marianas do Norte, Ilhas | C199: 2.9244 | D199: 2.256519492e-07 | F199: 196 | G199: São Vicente e Granadinas | H199: 0.0144 | I199: 9.629879622e-10 | K199: 196 | L199: Salomão, Ilhas | M199: 16.0532 | N199: 5.751106001e-07 | O199: -16.0532
A200: 197 | B200: Papuásia-Nova Guiné | C200: 2.8856 | D200: 2.226580716e-07 | F200: 197 | G200: Mongólia | H200: 0.0142 | I200: 9.496131294e-10 | K200: 197 | L200: Santa Helena | M200: 15.7338 | N200: 5.636680014e-07 | O200: -15.7338
... 58 more rows

Sheet 2AA
A1: Ranking dos parceiros comerciais de Portugal por país (média 2018-2022 em milhares de euros) produtos agrícolas e agroalimentares
A2: Exportações | F2: Importações | K2: Trocas comerciais (total e saldo)
A3: P | B3: País | C3: média quinquénio | D3: % do Total | F3: P | G3: País | H3: média quinquénio | I3: % do Total | K3: P | L3: País | M3: Total (exp+imp) | N3: % do Total | O3: Saldo (exp-imp)
A4: 1 | B4: Espanha | C4: 2415706.759 | D4: 0.3417342339 | F4: 1 | G4: Espanha | H4: 4700233.367 | I4: 0.4607579981 | K4: 1 | L4: Espanha | M4: 7115940.126 | N4: 0.4120392909 | O4: -2284526.609
A5: 2 | B5: França | C5: 675806.7388 | D5: 0.09560195886 | F5: 2 | G5: França | H5: 803086.6822 | I5: 0.07872558298 | K5: 2 | L5: França | M5: 1478893.421 | N5: 0.08563340693 | O5: -127279.9434
A6: 3 | B6: Itália | C6: 450048.5236 | D6: 0.06366542085 | F6: 3 | G6: Alemanha | H6: 693242.9014 | I6: 0.06795773454 | K6: 3 | L6: Alemanha | M6: 953060.8432 | N6: 0.05518575298 | O6: -433424.9596
A7: 4 | B7: Brasil | C7: 371201.5514 | D7: 0.05251145543 | F7: 4 | G7: Países Baixos | H7: 600479.2596 | I7: 0.05886423076 | K7: 4 | L7: Países Baixos | M7: 932127.81 | N7: 0.05397365282 | O7: -268830.7092
A8: 5 | B8: Países Baixos | C8: 331648.5504 | D8: 0.0469161511 | F8: 5 | G8: Brasil | H8: 551829.2644 | I8: 0.05409513258 | K8: 5 | L8: Brasil | M8: 923030.8158 | N8: 0.05344690316 | O8: -180627.713
A9: 6 | B9: Angola | C9: 270788.7526 | D9: 0.03830671359 | F9: 6 | G9: Itália | H9: 327446.3636 | I9: 0.03209915746 | K9: 6 | L9: Itália | M9: 777494.8872 | N9: 0.04501983383 | O9: 122602.16 | P9: Nota: Nesta listagem, o Reino Unido passa a ser constituído por três componentes: Reino Unido [até 2020] ; Reino Unido (sem Irlanda do Norte) pós-2020 e Reino Unido (Irlanda do Norte) pós-2020. Estas componentes são calculadas igualmente como média do quinquénio, embora a primeira corresponda apenas a 2018-2020 e as duas últimas a 2021-2022.
A10: 7 | B10: Alemanha | C10: 259817.9418 | D10: 0.03675474475 | F10: 7 | G10: Bélgica | H10: 257333.6916 | I10: 0.02522609992 | K10: 7 | L10: Bélgica | M10: 424096.2578 | N10: 0.02455674419 | O10: -90571.1254
A11: 8 | B11: Reino Unido | C11: 202835.6198 | D11: 0.02869382838 | F11: 8 | G11: Estados Unidos | H11: 216724.4778 | I11: 0.02124522949 | K11: 8 | L11: Estados Unidos | M11: 400307.8654 | N11: 0.02317930816 | O11: -33141.0902
A12: 9 | B12: Estados Unidos | C12: 183583.3876 | D12: 0.02597034102 | F12: 9 | G12: Ucrânia | H12: 191922.8274 | I12: 0.01881395472 | K12: 9 | L12: Polónia | M12: 317334.5188 | N12: 0.01837484405 | O12: -48783.4444
A13: 10 | B13: Israel | C13: 169488.4306 | D13: 0.02397641965 | F13: 10 | G13: Polónia | H13: 183058.9816 | I13: 0.017945043 | K13: 10 | L13: Reino Unido | M13: 313115.4092 | N13: 0.01813054198 | O13: 92555.8304
A14: 11 | B14: Bélgica | C14: 166762.5662 | D14: 0.02359080944 | F14: 11 | G14: Roménia | H14: 135395.1758 | I14: 0.01327261974 | K14: 11 | L14: Angola | M14: 277910.725 | N14: 0.01609206036 | O14: 263666.7802
A15: 12 | B15: Reino Unido (sem Irlanda do Norte) pós 2020 | C15: 153037.8236 | D15: 0.02164925988 | F15: 12 | G15: África do Sul | H15: 112521.5396 | I15: 0.01103034579 | K15: 12 | L15: Reino Unido (sem Irlanda do Norte) pós 2020 | M15: 202616.3834 | N15: 0.01173223909 | O15: 103459.2638
A16: 13 | B16: Polónia | C16: 134275.5372 | D16: 0.01899508195 | F16: 13 | G16: Reino Unido | H16: 110279.7894 | I16: 0.01081058982 | K16: 13 | L16: Ucrânia | M16: 198678.0056 | N16: 0.01150419243 | O16: -185167.6492
A17: 14 | B17: Suíça | C17: 91992.068 | D17: 0.01301351614 | F17: 14 | G17: Irlanda | H17: 108062.8466 | I17: 0.01059326569 | K17: 14 | L17: Canadá | M17: 175329.8698 | N17: 0.01015224889 | O17: -30892.3678
A18: 15 | B18: Cabo Verde | C18: 85414.0192 | D18: 0.0120829626 | F18: 15 | G18: Canadá | H18: 103111.1188 | I18: 0.01010785401 | K18: 15 | L18: Israel | M18: 174655.5912 | N18: 0.01011320566 | O18: 164321.27
A19: 16 | B19: Canadá | C19: 72218.751 | D19: 0.01021631432 | F19: 16 | G19: Argentina | H19: 72787.4116 | I19: 0.007135258919 | K19: 16 | L19: Roménia | M19: 151197.393 | N19: 0.008754889093 | O19: -119592.9586
A20: 17 | B20: China, República Popular da | C20: 72213.4462 | D20: 0.01021556388 | F20: 17 | G20: Dinamarca | H20: 70233.1534 | I20: 0.006884868183 | K20: 17 | L20: Irlanda | M20: 134807.959 | N20: 0.007805880158 | O20: -81317.7342
A21: 18 | B21: Japão | C21: 54923.0146 | D21: 0.007769599622 | F21: 18 | G21: Costa Rica | H21: 69966.4334 | I21: 0.006858721955 | K21: 18 | L21: África do Sul | M21: 134356.7194 | N21: 0.007779751714 | O21: -90686.3598
A22: 19 | B22: Suécia | C22: 50793.0088 | D22: 0.007185354716 | F22: 19 | G22: Reino Unido (sem Irlanda do Norte) pós 2020 | H22: 49578.5598 | I22: 0.004860124206 | K22: 19 | L22: Dinamarca | M22: 117665.3674 | N22: 0.006813260608 | O22: -22800.9394
A23: 20 | B23: Rússia, Federação da | C23: 48391.7838 | D23: 0.006845669122 | F23: 20 | G23: China, República Popular da | H23: 45047.8158 | I23: 0.004415981039 | K23: 20 | L23: China, República Popular da | M23: 117261.262 | N23: 0.006789861408 | O23: 27165.6304
A24: 21 | B24: Dinamarca | C24: 47432.214 | D24: 0.006709925059 | F24: 21 | G24: Bulgária | H24: 43907.4694 | I24: 0.004304194307 | K24: 21 | L24: Suíça | M24: 94990.5356 | N24: 0.005500303858 | O24: 88993.6004
A25: 22 | B25: Luxemburgo | C25: 45125.6972 | D25: 0.006383637214 | F25: 22 | G25: Cuba | H25: 35799.7426 | I25: 0.00350940399 | K25: 22 | L25: Cabo Verde | M25: 85541.4296 | N25: 0.004953165621 | O25: 85286.6088
A26: 23 | B26: Marrocos | C26: 40786.9258 | D26: 0.005769859604 | F26: 23 | G26: Grécia | H26: 30645.8102 | I26: 0.003004170443 | K26: 23 | L26: Argentina | M26: 73024.74 | N26: 0.004228402931 | O26: -72550.0832
A27: 24 | B27: Guiné-Bissau | C27: 30105.237 | D27: 0.004258790959 | F27: 24 | G27: Vietname | H27: 28845.3448 | I27: 0.002827673072 | K27: 24 | L27: Costa Rica | M27: 71166.1566 | N27: 0.004120784068 | O27: -68766.7102
A28: 25 | B28: Irlanda | C28: 26745.1124 | D28: 0.00378345611 | F28: 25 | G28: Colômbia | H28: 28227.4602 | I28: 0.002767102617 | K28: 25 | L28: Japão | M28: 68496.2538 | N28: 0.003966186807 | O28: 41349.7754
A29: 26 | B29: São Tomé e Príncipe | C29: 25259.196 | D29: 0.003573253237 | F29: 26 | G29: Guiana | H29: 28025.2924 | I29: 0.002747284361 | K29: 26 | L29: Suécia | M29: 64449.5152 | N29: 0.003731865653 | O29: 37136.5024
A30: 27 | B30: Arábia Saudita | C30: 25195.0996 | D30: 0.003564185938 | F30: 27 | G30: Chile | H30: 24583.4362 | I30: 0.002409883503 | K30: 27 | L30: Rússia, Federação da | M30: 60550.976 | N30: 0.003506125793 | O30: 36232.5916
A31: 28 | B31: Moçambique | C31: 25036.1622 | D31: 0.003541702104 | F31: 28 | G31: Áustria | H31: 23718.0114 | I31: 0.002325046992 | K31: 28 | L31: Luxemburgo | M31: 53191.4828 | N31: 0.003079983877 | O31: 37059.9116
A32: 29 | B32: Grécia | C32: 22444.1484 | D32: 0.003175026866 | F32: 29 | G32: Uruguai | H32: 22544.1794 | I32: 0.002209977709 | K32: 29 | L32: Grécia | M32: 53089.9586 | N32: 0.003074105249 | O32: -8201.6618
A33: 30 | B33: África do Sul | C33: 21835.1798 | D33: 0.003088880062 | F33: 30 | G33: Checa, República | H33: 21986.3926 | I33: 0.002155298567 | K33: 30 | L33: Bulgária | M33: 52078.8802 | N33: 0.003015560065 | O33: -35736.0586
A34: 31 | B34: Finlândia | C34: 19871.7108 | D34: 0.002811120945 | F34: 31 | G34: Costa do Marfim | H34: 21706.691 | I34: 0.002127879769 | K34: 31 | L34: Marrocos | M34: 50674.6404 | N34: 0.002934249379 | O34: 30899.2112
A35: 32 | B35: Checa, República | C35: 18184.9724 | D35: 0.002572509097 | F35: 32 | G35: Índia | H35: 20830.7032 | I35: 0.00204200778 | K35: 32 | L35: Checa, República | M35: 40171.365 | N35: 0.002326070829 | O35: -3801.4202
A36: 33 | B36: Jordânia | C36: 17519.4376 | D36: 0.002478360242 | F36: 33 | G36: Paraguai | H36: 18542.9402 | I36: 0.001817741235 | K36: 33 | L36: Cuba | M36: 38669.2808 | N36: 0.00223909459 | O36: -32930.2044
A37: 34 | B37: Noruega | C37: 16995.9884 | D37: 0.002404311308 | F37: 34 | G37: Turquia | H37: 17991.0046 | I37: 0.001763635678 | K37: 34 | L37: Áustria | M37: 38078.486 | N37: 0.002204885383 | O37: -9357.5368
A38: 35 | B38: Roménia | C38: 15802.2172 | D38: 0.002235436304 | F38: 35 | G38: Hungria | H38: 16792.9934 | I38: 0.001646196139 | K38: 35 | L38: Moçambique | M38: 35149.7218 | N38: 0.002035299088 | O38: 14922.6026
A39: 36 | B39: Austrália | C39: 14444.222 | D39: 0.002043329606 | F39: 36 | G39: Uganda | H39: 16711.9036 | I39: 0.001638247007 | K39: 36 | L39: Colômbia | M39: 34588.8908 | N39: 0.002002824895 | O39: -21866.0296
A40: 37 | B40: Áustria | C40: 14360.4746 | D40: 0.002031482409 | F40: 37 | G40: Suécia | H40: 13656.5064 | I40: 0.001338730241 | K40: 37 | L40: Vietname | M40: 30879.9888 | N40: 0.001788065732 | O40: -26810.7008
A41: 38 | B41: Coreia, República da | C41: 13720.4568 | D41: 0.001940943277 | F41: 38 | G41: Japão | H41: 13573.2392 | I41: 0.001330567662 | K41: 38 | L41: Guiné-Bissau | M41: 30466.6832 | N41: 0.001764133807 | O41: 29743.7908
A42: 39 | B42: Iraque | C42: 12397.914 | D42: 0.001753851798 | F42: 39 | G42: Suazilândia | H42: 13238.5804 | I42: 0.001297761478 | K42: 39 | L42: Chile | M42: 30213.2108 | N42: 0.001749456816 | O42: -18953.6616
A43: 40 | B43: Emirados Árabes Unidos | C43: 11828.644 | D43: 0.001673320895 | F43: 40 | G43: Indonésia | H43: 13212.7406 | I43: 0.001295228435 | K43: 40 | L43: Guiana | M43: 28043.5358 | N43: 0.001623824597 | O43: -28007.049
A44: 41 | B44: Argélia | C44: 11256.5744 | D44: 0.001592393951 | F44: 41 | G44: México | H44: 13063.7214 | I44: 0.001280620269 | K44: 41 | L44: Hungria | M44: 28003.0576 | N44: 0.001621480759 | O44: -5582.9292
A45: 42 | B45: Macau | C45: 11226.3746 | D45: 0.001588121783 | F45: 42 | G45: Austrália | H45: 12930.0706 | I45: 0.001267518648 | K45: 42 | L45: Turquia | M45: 27957.3216 | N45: 0.001618832475 | O45: -8024.6876
A46: 43 | B46: Hungria | C46: 11210.0642 | D46: 0.001585814457 | F46: 43 | G46: Rússia, Federação da | H46: 12159.1922 | I46: 0.001191950403 | K46: 43 | L46: Finlândia | M46: 27396.6714 | N46: 0.001586368752 | O46: 12346.7502
A47: 44 | B47: Nigéria | C47: 10936.4444 | D47: 0.001547107254 | F47: 44 | G47: Moldava, República de | H47: 11903.439 | I47: 0.001166879237 | K47: 44 | L47: Austrália | M47: 27374.2926 | N47: 0.001585072937 | O47: 1514.1514
A48: 45 | B48: Turquia | C48: 9966.317 | D48: 0.001409869676 | F48: 45 | G48: Lituânia | H48: 11893.779 | I48: 0.001165932279 | K48: 45 | L48: Costa do Marfim | M48: 27312.2412 | N48: 0.001581479931 | O48: -16101.1408
A49: 46 | B49: Território Palestiniano Ocupado | C49: 9369.3582 | D49: 0.001325421819 | F49: 46 | G49: Peru | H49: 11310.0138 | I49: 0.001108706507 | K49: 46 | L49: São Tomé e Príncipe | M49: 26312.808 | N49: 0.001523609046 | O49: 24205.584
A50: 47 | B50: Eslováquia | C50: 9079.0046 | D50: 0.001284347395 | F50: 47 | G50: Paquistão | H50: 10304.445 | I50: 0.001010131855 | K50: 47 | L50: Arábia Saudita | M50: 25220.0634 | N50: 0.001460335087 | O50: 25170.1358
A51: 48 | B51: Senegal | C51: 8493.732 | D51: 0.001201552708 | F51: 48 | G51: Tailândia | H51: 10200.8142 | I51: 0.0009999730572 | K51: 48 | L51: Uruguai | M51: 24295.8202 | N51: 0.001406817982 | O51: -20792.5386
A52: 49 | B52: Bulgária | C52: 8171.4108 | D52: 0.001155956036 | F52: 49 | G52: Moçambique | H52: 10113.5596 | I52: 0.0009914195979 | K52: 49 | L52: Índia | M52: 23845.568 | N52: 0.001380746712 | O52: -17815.8384
A53: 50 | B53: Líbia, Jamahira Árabe da | C53: 7994.4952 | D53: 0.001130928944 | F53: 50 | G53: Marrocos | H53: 9887.7146 | I53: 0.000969280295 | K53: 50 | L53: Paraguai | M53: 19187.5668 | N53: 0.001111031189 | O53: -17898.3136
A54: 51 | B54: Gibraltar | C54: 7555.2434 | D54: 0.001068790865 | F54: 51 | G54: Egito | H54: 9790.5476 | I54: 0.0009597551355 | K54: 51 | L54: México | M54: 18719.3066 | N54: 0.001083917189 | O54: -7408.1362
A55: 52 | B55: Kuwait | C55: 7350.4748 | D55: 0.00103982359 | F55: 52 | G55: Sérvia | H55: 8809.786 | I55: 0.0008636123026 | K55: 52 | L55: Noruega | M55: 18007.7536 | N55: 0.001042715635 | O55: 15984.2232
A56: 53 | B56: Ucrânia | C56: 6755.1782 | D56: 0.0009556108741 | F56: 53 | G56: Equador | H56: 8208.356 | I56: 0.0008046548719 | K56: 53 | L56: Jordânia | M56: 17549.35 | N56: 0.001016172368 | O56: 17489.5252
A57: 54 | B57: Colômbia | C57: 6361.4306 | D57: 0.0008999099766 | F57: 54 | G57: Luxemburgo | H57: 8065.7856 | I57: 0.000790678874 | K57: 54 | L57: Uganda | M57: 17196.9522 | N57: 0.0009957672303 | O57: -16226.855
A58: 55 | B58: Letónia | C58: 5847.3278 | D58: 0.0008271832163 | F58: 55 | G58: Nova Zelânda | H58: 7880.7508 | I58: 0.0007725401439 | K58: 55 | L58: Lituânia | M58: 16927.7228 | N58: 0.0009801778508 | O58: -6859.8352
A59: 56 | B59: HongKong | C59: 5831.0346 | D59: 0.0008248783238 | F59: 56 | G59: Finlândia | H59: 7524.9606 | I59: 0.0007376624757 | K59: 56 | L59: Suazilândia | M59: 15229.1586 | N59: 0.0008818246921 | O59: -11248.0022
A60: 57 | B60: Maurícias | C60: 5663.2906 | D60: 0.0008011486774 | F60: 57 | G60: Letónia | H60: 7523.6884 | I60: 0.0007375377635 | K60: 57 | L60: Coreia, República da | M60: 14661.023 | N60: 0.0008489275365 | O60: 12779.8906
A61: 58 | B61: México | C61: 5655.5852 | D61: 0.0008000586448 | F61: 58 | G61: Malásia | H61: 7403.8212 | I61: 0.0007257873318 | K61: 58 | L61: Indonésia | M61: 14350.1382 | N61: 0.000830926155 | O61: -12075.343
A62: 59 | B62: Chile | C62: 5629.7746 | D62: 0.0007964073881 | F62: 59 | G62: Angola | H62: 7121.9724 | I62: 0.0006981580464 | K62: 59 | L62: Letónia | M62: 13371.0162 | N62: 0.0007742313645 | O62: -1676.3606
A63: 60 | B63: Costa do Marfim | C63: 5605.5502 | D63: 0.0007929805207 | F63: 60 | G63: Camarões | H63: 6330.963 | I63: 0.0006206163843 | K63: 60 | L63: Tailândia | M63: 13287.6996 | N63: 0.0007694070248 | O63: -7113.9288
A64: 61 | B64: Andorra | C64: 5268.3636 | D64: 0.0007452809379 | F64: 61 | G64: Honduras | H64: 6193.8364 | I64: 0.0006071740352 | K64: 61 | L64: Peru | M64: 13096.7276 | N64: 0.0007583490386 | O64: -9523.3
A65: 62 | B65: Lituânia | C65: 5033.9438 | D65: 0.0007121191022 | F65: 62 | G65: Etiópia | H65: 5332.904 | I65: 0.0005227779089 | K65: 62 | L65: Eslováquia | M65: 12639.492 | N65: 0.0007318734038 | O65: 5518.5172
A66: 63 | B66: Malta | C66: 4911.2352 | D66: 0.0006947603192 | F66: 63 | G66: Israel | H66: 5167.1606 | I66: 0.0005065302907 | K66: 63 | L66: Iraque | M66: 12410.178 | N66: 0.0007185952738 | O66: 12385.65
A67: 64 | B67: Estónia | C67: 4891.9612 | D67: 0.0006920337525 | F67: 64 | G67: Belize | H67: 5153.7922 | I67: 0.0005052198032 | K67: 64 | L67: Emirados Árabes Unidos | M67: 12284.869 | N67: 0.0007113394185 | O67: 11372.419
A68: 65 | B68: Síria, República Árabe da | C68: 4399.3294 | D68: 0.000622344354 | F68: 65 | G68: Camboja | H68: 4964.3942 | I68: 0.0004866533541 | K68: 65 | L68: Moldava, República de | M68: 12104.827 | N68: 0.0007009143198 | O68: -11702.051
A69: 66 | B69: Chipre | C69: 4051.8682 | D69: 0.0005731912908 | F69: 66 | G69: Zimbabwe | H69: 4709.0808 | I69: 0.0004616253009 | K69: 66 | L69: Argélia | M69: 11803.9212 | N69: 0.0006834907595 | O69: 10709.2276
A70: 67 | B70: Omã | C70: 3805.6814 | D70: 0.0005383648545 | F70: 67 | G70: Guatemala | H70: 4635.2426 | I70: 0.0004543870345 | K70: 67 | L70: Sérvia | M70: 11344.2962 | N70: 0.0006568767695 | O70: -6275.2758
A71: 68 | B71: Eslovénia | C71: 3315.0192 | D71: 0.0004689540826 | F71: 68 | G71: Suriname | H71: 4613.819 | I71: 0.0004522869058 | K71: 68 | L71: Egito | M71: 11329.12 | N71: 0.0006559980113 | O71: -8251.9752
A72: 69 | B72: Mali | C72: 3288.1148 | D72: 0.0004651480931 | F72: 69 | G72: Macedónia, Antiga República jugoslava da | H72: 4601.7574 | I72: 0.0004511045222 | K72: 69 | L72: Macau | M72: 11244.0184 | N72: 0.0006510703135 | O72: 11208.7308
A73: 70 | B73: Tailândia | C73: 3086.8854 | D73: 0.0004366814861 | F73: 70 | G73: Tanzânia, República Unida da | H73: 4539.7292 | I73: 0.0004450239753 | K73: 70 | L73: Nigéria | M73: 11134.6158 | N73: 0.0006447354977 | O73: 10738.273
A74: 71 | B74: Índia | C74: 3014.8648 | D74: 0.0004264932029 | F74: 71 | G74: Eslovénia | H74: 4539.0796 | I74: 0.0004449602959 | K74: 71 | L74: Paquistão | M74: 10571.2956 | N74: 0.0006121171716 | O74: -10037.5944
A75: 72 | B75: Singapura | C75: 2938.7244 | D75: 0.0004157221186 | F75: 72 | G75: Filipinas | H75: 4493.8362 | I75: 0.0004405251419 | K75: 72 | L75: Nova Zelânda | M75: 10270.7832 | N75: 0.0005947163905 | O75: -5490.7184
A76: 73 | B76: Cuba | C76: 2869.5382 | D76: 0.0004059347994 | F76: 73 | G76: Tunísia | H76: 4123.8374 | I76: 0.0004042546224 | K76: 73 | L76: Território Palestiniano Ocupado | M76: 9369.8434 | N76: 0.000542548639 | O76: 9368.873
A77: 74 | B77: Gana | C77: 2746.7854 | D77: 0.0003885697637 | F77: 74 | G77: Estónia | H77: 4040.7446 | I77: 0.0003961091391 | K77: 74 | L77: Senegal | M77: 9057.1362 | N77: 0.0005244417338 | O77: 7930.3278
A78: 75 | B78: Taiwan | C78: 2744.6238 | D78: 0.0003882639763 | F78: 75 | G78: Mali | H78: 3761.0172 | I78: 0.000368687812 | K78: 75 | L78: Equador | M78: 9035.7916 | N78: 0.0005232058024 | O78: -7380.9204
A79: 76 | B79: Sérvia | C79: 2534.5102 | D79: 0.0003585405797 | F79: 76 | G79: Eslováquia | H79: 3560.4874 | I79: 0.0003490301265 | K79: 76 | L79: Estónia | M79: 8932.7058 | N79: 0.0005172367528 | O79: 851.2166
A80: 77 | B80: Líbano | C80: 2490.8708 | D80: 0.0003523671992 | F80: 77 | G80: Myanmar | H80: 3336.3804 | I80: 0.0003270611976 | K80: 77 | L80: Malásia | M80: 8922.5932 | N80: 0.0005166511958 | O80: -5885.0492
A81: 78 | B81: Timor-Leste | C81: 2471.9198 | D81: 0.0003496863252 | F81: 78 | G81: Quénia | H81: 3256.788 | I81: 0.0003192588542 | K81: 78 | L81: Camarões | M81: 8612.0928 | N81: 0.0004986720725 | O81: -4049.8332
A82: 79 | B82: Belarus | C82: 2455.9286 | D82: 0.0003474241547 | F82: 79 | G82: Malavi | H82: 3254.1854 | I82: 0.0003190037245 | K82: 79 | L82: Kuwait | M82: 8534.0068 | N82: 0.0004941506039 | O82: 6166.9428
A83: 80 | B83: Nova Zelânda | C83: 2390.0324 | D83: 0.0003381022503 | F83: 80 | G83: Nicarágua | H83: 3164.5168 | I83: 0.0003102136238 | K83: 80 | L83: Líbia, Jamahira Árabe da | M83: 8000.447 | N83: 0.0004632555151 | O83: 7988.5434
A84: 81 | B84: Filipinas | C84: 2342.9576 | D84: 0.0003314428863 | F84: 81 | G84: Chipre | H84: 3103.6452 | I84: 0.000304246457 | K84: 81 | L84: Eslovénia | M84: 7854.0988 | N84: 0.0004547814123 | O84: -1224.0604
A85: 82 | B85: Guiné | C85: 2294.4076 | D85: 0.0003245748354 | F85: 82 | G85: Sri Lanca | H85: 3086.3876 | I85: 0.0003025547161 | K85: 82 | L85: Gibraltar | M85: 7555.2434 | N85: 0.0004374765776 | O85: 7555.2434
A86: 83 | B86: Camarões | C86: 2281.1298 | D86: 0.0003226965118 | F86: 83 | G86: Suíça | H86: 2998.4676 | I86: 0.0002939360284 | K86: 83 | L86: Maurícias | M86: 7215.0914 | N86: 0.0004177805169 | O86: 4111.4898
A87: 84 | B87: Irão, República Islâmica do | C87: 2234.7082 | D87: 0.0003161295517 | F87: 84 | G87: Taiwan | H87: 2719.0514 | I87: 0.0002665452078 | K87: 84 | L87: Chipre | M87: 7155.5134 | N87: 0.00041433073 | O87: 948.223
A88: 85 | B88: Congo | C88: 2180.7492 | D88: 0.000308496325 | F88: 85 | G88: Reino Unido (Irlanda do Norte) pós-2020 | H88: 2486.6052 | I88: 0.0002437587976 | K88: 85 | L88: Mali | M88: 7049.132 | N88: 0.0004081708529 | O88: -472.9024
A89: 86 | B89: Seychelles | C89: 2103.9052 | D89: 0.0002976257069 | F89: 86 | G89: Dominicana, República | H89: 2224.7388 | I89: 0.0002180883619 | K89: 86 | L89: HongKong | M89: 7034.0506 | N89: 0.000407297584 | O89: 4628.0186
A90: 87 | B90: Gabão | C90: 2079.6516 | D90: 0.0002941947088 | F90: 87 | G90: Serra Leoa | H90: 1997.841 | I90: 0.0001958458544 | K90: 87 | L90: Honduras | M90: 7007.5386 | N90: 0.000405762441 | O90: -5380.1342
A91: 88 | B91: Venezuela | C91: 2058.4802 | D91: 0.0002911997293 | F91: 88 | G91: Benim | H91: 1817.5436 | I91: 0.0001781715258 | K91: 88 | L91: Filipinas | M91: 6836.7938 | N91: 0.0003958756847 | O91: -2150.8786
A92: 89 | B92: Vietname | C92: 2034.644 | D92: 0.000287827778 | F92: 89 | G92: Croácia | H92: 1794.8456 | I92: 0.0001759464692 | K92: 89 | L92: Etiópia | M92: 6077.3128 | N92: 0.0003518989216 | O92: -4588.4952
A93: 90 | B93: Suazilândia | C93: 1990.5782 | D93: 0.0002815940775 | F93: 90 | G93: Burquina Faso | H93: 1725.7566 | I93: 0.000169173761 | K93: 90 | L93: Taiwan | M93: 5463.6752 | N93: 0.0003163670317 | O93: 25.5724
A94: 91 | B94: Sudão | C94: 1865.0268 | D94: 0.0002638331422 | F94: 91 | G94: Gana | H94: 1658.8832 | I94: 0.0001626182452 | K94: 91 | L94: Malta | M94: 5451.155 | N94: 0.0003156420657 | O94: 4371.3154
A95: 92 | B95: Burquina Faso | C95: 1848.8938 | D95: 0.0002615509122 | F95: 92 | G95: Laos, República Democrática Popular do | H95: 1570.3752 | I95: 0.0001539419167 | K95: 92 | L95: Camboja | M95: 5365.826 | N95: 0.0003107012005 | O95: -4562.9624
A96: 93 | B96: Guiné Equatorial | C96: 1818.0792 | D96: 0.0002571917723 | F96: 93 | G96: Maurícias | H96: 1551.8008 | I96: 0.0001521210915 | K96: 93 | L96: Síria, República Árabe da | M96: 5349.1634 | N96: 0.0003097363743 | O96: 3449.4954
A97: 94 | B97: Peru | C97: 1786.7138 | D97: 0.0002527547143 | F97: 94 | G97: Madagáscar | H97: 1535.4408 | I97: 0.0001505173411 | K97: 94 | L97: Andorra | M97: 5273.09 | N97: 0.0003053314426 | O97: 5263.6372
A98: 95 | B98: Croácia | C98: 1762.667 | D98: 0.0002493529708 | F98: 95 | G98: Panamá | H98: 1513.6732 | I98: 0.0001483834905 | K98: 95 | L98: Belize | M98: 5155.9728 | N98: 0.000298549923 | O98: -5151.6116
A99: 96 | B99: Uruguai | C99: 1751.6408 | D99: 0.0002477931664 | F99: 96 | G99: Congo, República Democrática do | H99: 1226.6954 | I99: 0.0001202514158 | K99: 96 | L99: Guatemala | M99: 5127.1054 | N99: 0.0002968783936 | O99: -4143.3798
A100: 97 | B100: Dominicana, República | C100: 1708.9932 | D100: 0.0002417600894 | F100: 97 | G100: HongKong | H100: 1203.016 | I100: 0.0001179301538 | K100: 97 | L100: Tanzânia, República Unida da | M100: 4910.617 | N100: 0.0002843429133 | O100: -4168.8414
A101: 98 | B101: Benim | C101: 1572.4166 | D101: 0.0002224394912 | F101: 98 | G101: Kuwait | H101: 1183.532 | I101: 0.0001160201616 | K101: 98 | L101: Macedónia, Antiga República jugoslava da | M101: 4874.4688 | N101: 0.0002822497987 | O101: -4329.046
A102: 99 | B102: Bangladesh | C102: 1558.9346 | D102: 0.0002205322808 | F102: 99 | G102: Togo | H102: 1123.3282 | I102: 0.0001101184584 | K102: 99 | L102: Tunísia | M102: 4849.4484 | N102: 0.0002808010248 | O102: -3398.2264
A103: 100 | B103: Egito | C103: 1538.5724 | D103: 0.0002176517736 | F103: 100 | G103: Singapura | H103: 1066.466 | I103: 0.0001045443281 | K103: 100 | L103: Zimbabwe | M103: 4772.3634 | N103: 0.0002763375178 | O103: -4645.7982
A104: 101 | B104: Malásia | C104: 1518.772 | D104: 0.0002148507405 | F104: 101 | G104: São Tomé e Príncipe | H104: 1053.612 | I104: 0.0001032842665 | K104: 101 | L104: Suriname | M104: 4769.9158 | N104: 0.0002761957927 | O104: -4457.7222
A105: 102 | B105: Catar | C105: 1515.1716 | D105: 0.0002143414155 | F105: 102 | G105: Noruega | H105: 1011.7652 | I105: 9.918207707e-05 | K105: 102 | L105: Gana | M105: 4405.6686 | N105: 0.0002551045306 | O105: 1087.9022
A106: 103 | B106: Geórgia | C106: 1344.215 | D106: 0.0001901573035 | F106: 103 | G106: Síria, República Árabe da | H106: 949.834 | I106: 9.3111039e-05 | K106: 103 | L106: Omã | M106: 4283.851 | N106: 0.0002480508404 | O106: 3327.5118
A107: 104 | B107: Albânia | C107: 1266.1722 | D107: 0.0001791170991 | F107: 104 | G107: Coreia, República da | H107: 940.5662 | I107: 9.220252816e-05 | K107: 104 | L107: Singapura | M107: 4005.1904 | N107: 0.0002319153595 | O107: 1872.2584
A108: 105 | B108: Reino Unido (Irlanda do Norte) pós-2020 | C108: 1227.8066 | D108: 0.0001736897686 | F108: 105 | G108: El Salvador | H108: 728.093 | I108: 7.137404612e-05 | K108: 105 | L108: Dominicana, República | M108: 3933.732 | N108: 0.0002277776534 | O108: -515.7456
A109: 106 | B109: Costa Rica | C109: 1199.7232 | D109: 0.0001697169937 | F109: 106 | G109: Turquemenistão | H109: 720.6558 | I109: 7.06449867e-05 | K109: 106 | L109: Myanmar | M109: 3786.5898 | N109: 0.000219257575 | O109: -2886.171
A110: 107 | B110: Indonésia | C110: 1137.3976 | D110: 0.0001609001987 | F110: 107 | G110: Chade | H110: 675.9004 | I110: 6.625767082e-05 | K110: 107 | L110: Reino Unido (Irlanda do Norte) pós-2020 | M110: 3714.4118 | N110: 0.0002150782015 | O110: -1258.7986
A111: 108 | B111: Islândia | C111: 1133.5366 | D111: 0.0001603540083 | F111: 108 | G111: Timor-Leste | H111: 614.309 | I111: 6.021994291e-05 | K111: 108 | L111: Quénia | M111: 3707.2604 | N111: 0.0002146641089 | O111: -2806.3156
A112: 109 | B112: Congo, República Democrática do | C112: 1102.9278 | D112: 0.0001560239816 | F112: 109 | G112: Senegal | H112: 563.4042 | I112: 5.522980904e-05 | K112: 109 | L112: Nicarágua | M112: 3581.5684 | N112: 0.0002073860766 | O112: -2747.4652
A113: 110 | B113: Togo | C113: 886.836 | D113: 0.0001254548881 | F113: 110 | G113: Argélia | H113: 547.3468 | I113: 5.36557222e-05 | K113: 110 | L113: Burquina Faso | M113: 3574.6504 | N113: 0.0002069854987 | O113: 123.1372
A114: 111 | B114: Panamá | C114: 853.2114 | D114: 0.0001206982359 | F114: 111 | G114: Malta | H114: 539.9198 | I114: 5.292766268e-05 | K114: 111 | L114: Croácia | M114: 3557.5126 | N114: 0.0002059931566 | O114: -32.1786
A115: 112 | B115: Equador | C115: 827.4356 | D115: 0.000117051902 | F115: 112 | G115: Líbano | H115: 532.182 | I115: 5.216913582e-05 | K115: 112 | L115: Sri Lanca | M115: 3479.4264 | N115: 0.0002014716764 | O115: -2693.3488
A116: 113 | B116: Ruanda | C116: 825.8566 | D116: 0.0001168285312 | F116: 113 | G116: Omã | H116: 478.1696 | I116: 4.687436781e-05 | K116: 113 | L116: Benim | M116: 3389.9602 | N116: 0.0001962912521 | O116: -245.127
A117: 114 | B117: Honduras | C117: 813.7022 | D117: 0.0001151091278 | F117: 114 | G117: Emirados Árabes Unidos | H117: 456.225 | I117: 4.472316612e-05 | K117: 114 | L117: Malavi | M117: 3260.7888 | N117: 0.0001888117496 | O117: -3247.582
A118: 115 | B118: Bermudas | C118: 793.1712 | D118: 0.0001122047415 | F118: 115 | G118: Belarus | H118: 370.985 | I118: 3.636719553e-05 | K118: 115 | L118: Timor-Leste | M118: 3086.2288 | N118: 0.000178704079 | O118: 1857.6108
A119: 116 | B119: Etiópia | C119: 744.4088 | D119: 0.0001053066437 | F119: 116 | G119: Guiné-Bissau | H119: 361.4462 | I119: 3.54321189e-05 | K119: 116 | L119: Líbano | M119: 3023.0528 | N119: 0.0001750459546 | O119: 1958.6888
A120: 117 | B120: Tunísia | C120: 725.611 | D120: 0.0001026474419 | F120: 117 | G120: Usbequistão | H120: 308.3676 | I120: 3.022889013e-05 | K120: 117 | L120: Belarus | M120: 2826.9136 | N120: 0.0001636887684 | O120: 2084.9436
A121: 118 | B121: Burundi | C121: 677.0954 | D121: 9.578425733e-05 | F121: 118 | G121: Guiné | H121: 302.1342 | I121: 2.961783773e-05 | K121: 118 | L121: Guiné | M121: 2596.5418 | N121: 0.0001503493879 | O121: 1992.2734
A122: 119 | B122: Iémen | C122: 670.7886 | D122: 9.489207559e-05 | F122: 119 | G122: Geórgia | H122: 294.6596 | I122: 2.888511204e-05 | K122: 119 | L122: Serra Leoa | M122: 2499.2974 | N122: 0.0001447185769 | O122: -1496.3846
A123: 120 | B123: Paraguai | C123: 644.6266 | D123: 9.119110857e-05 | F123: 120 | G123: Bolívia | H123: 281.7088 | I123: 2.761556131e-05 | K123: 120 | L123: Irão, República Islâmica do | M123: 2440.2744 | N123: 0.0001413009266 | O123: 2029.142
A124: 121 | B124: Namíbia | C124: 633.7298 | D124: 8.964960955e-05 | F124: 121 | G124: Bangladesh | H124: 280.8088 | I124: 2.752733544e-05 | K124: 121 | L124: Congo | M124: 2380.0768 | N124: 0.0001378152626 | O124: 1981.4216
A125: 122 | B125: Azerbaijão | C125: 594.9756 | D125: 8.416730637e-05 | F125: 122 | G125: Irão, República Islâmica do | H125: 205.5662 | I125: 2.015139747e-05 | K125: 122 | L125: Panamá | M125: 2366.8846 | N125: 0.0001370513853 | O125: -660.4618
A126: 123 | B126: Arménia | C126: 559.6906 | D126: 7.917576822e-05 | F126: 123 | G126: Congo | H126: 199.3276 | I126: 1.953983532e-05 | K126: 123 | L126: Congo, República Democrática do | M126: 2329.6232 | N126: 0.0001348938123 | O126: -123.7676
A127: 124 | B127: Cazaquistão | C127: 531.8816 | D127: 7.524181089e-05 | F127: 124 | G127: Zâmbia | H127: 199.294 | I127: 1.953654155e-05 | K127: 124 | L127: Venezuela | M127: 2213.4414 | N127: 0.0001281664557 | O127: 1903.519
A128: 125 | B128: Aruba | C128: 522.985 | D128: 7.398326708e-05 | F128: 125 | G128: Nigéria | H128: 198.1714 | I128: 1.942649448e-05 | K128: 125 | L128: Seychelles | M128: 2103.9052 | N128: 0.000121823904 | O128: 2103.9052
A129: 126 | B129: Serra Leoa | C129: 501.4564 | D129: 7.093775686e-05 | F129: 126 | G129: Islândia | H129: 193.9226 | I129: 1.900998993e-05 | K129: 126 | L129: Gabão | M129: 2079.9016 | N129: 0.0001204340066 | O129: 2079.4016
A130: 127 | B130: Guatemala | C130: 491.8628 | D130: 6.958061302e-05 | F130: 127 | G130: Venezuela | H130: 154.9612 | I130: 1.519065262e-05 | K130: 127 | L130: Togo | M130: 2010.1642 | N130: 0.0001163959529 | O130: -236.4922
A131: 128 | B131: Uganda | C131: 485.0486 | D131: 6.861665272e-05 | F131: 128 | G131: Cabo Verde | H131: 127.4104 | I131: 1.248988215e-05 | K131: 128 | L131: Sudão | M131: 1881.5594 | N131: 0.0001089492586 | O131: 1848.4942
A132: 129 | B132: São Bartolomeu | C132: 472.0258 | D132: 6.677440239e-05 | F132: 129 | G132: Azerbaijão | H132: 124.836 | I132: 1.223751694e-05 | K132: 129 | L132: Bangladesh | M132: 1839.7434 | N132: 0.0001065279573 | O132: 1278.1258
A133: 130 | B133: Mauritânia | C133: 470.2498 | D133: 6.652316328e-05 | F133: 130 | G133: Albânia | H133: 104.1554 | I133: 1.021022359e-05 | K133: 130 | L133: Guiné Equatorial | M133: 1818.0792 | N133: 0.0001052735199 | O133: 1818.0792
A134: 131 | B134: Barém | C134: 469.46 | D134: 6.641143544e-05 | F134: 131 | G134: Namíbia | H134: 70.1862 | I134: 6.880265399e-06 | K134: 131 | L134: Madagáscar | M134: 1665.0982 | N134: 9.641535334e-05 | O134: -1405.7834
A135: 132 | B135: Gâmbia | C135: 455.249 | D135: 6.440109823e-05 | F135: 132 | G135: Tajiquistão | H135: 59.4122 | I135: 5.824103655e-06 | K135: 132 | L135: Geórgia | M135: 1638.8746 | N135: 9.489690977e-05 | O135: 1049.5554
A136: 133 | B136: Quénia | C136: 450.4724 | D136: 6.372538387e-05 | F136: 133 | G136: Iémen | H136: 45.76 | I136: 4.485795565e-06 | K136: 133 | L136: Laos, República Democrática Popular do | M136: 1584.7624 | N136: 9.176361296e-05 | O136: -1555.988
A137: 134 | B137: Myanmar | C137: 450.2094 | D137: 6.368817898e-05 | F137: 134 | G137: Libéria | H137: 38.8276 | I137: 3.806221064e-06 | K137: 134 | L137: Catar | M137: 1531.2412 | N137: 8.866453723e-05 | O137: 1499.102
A138: 135 | B138: Kosovo | C138: 418.4652 | D138: 5.919753465e-05 | F138: 135 | G138: Aruba | H138: 38.0318 | I138: 3.728209785e-06 | K138: 135 | L138: Albânia | M138: 1370.3276 | N138: 7.934704376e-05 | O138: 1162.0168
A139: 136 | B139: Nicarágua | C139: 417.0516 | D139: 5.89975619e-05 | F139: 136 | G139: São Marino | H139: 32.7702 | I139: 3.212421718e-06 | K139: 136 | L139: Islândia | M139: 1327.4592 | N139: 7.686480462e-05 | O139: 939.614
A140: 137 | B140: Camboja | C140: 401.4318 | D140: 5.678793097e-05 | F140: 137 | G140: Botswana | H140: 30.0284 | I140: 2.943646493e-06 | K140: 137 | L140: El Salvador | M140: 1020.6408 | N140: 5.90988828e-05 | O140: -435.5452
A141: 138 | B141: Sri Lanca | C141: 393.0388 | D141: 5.560062815e-05 | F141: 138 | G141: Jordânia | H141: 29.9124 | I141: 2.932275159e-06 | K141: 138 | L141: Ruanda | M141: 826.094 | N141: 4.783390247e-05 | O141: 825.6192
A142: 139 | B142: Bolívia | C142: 391.1324 | D142: 5.533094222e-05 | F142: 139 | G142: Bósnia-Herzegovina | H142: 27.8982 | I142: 2.734825652e-06 | K142: 139 | L142: Bermudas | M142: 793.8626 | N142: 4.596758502e-05 | O142: 792.4798
A143: 140 | B143: Tanzânia, República Unida da | C143: 370.8878 | D143: 5.246707107e-05 | F143: 140 | G143: Papuásia-Nova Guiné | H143: 25.837 | I143: 2.532768794e-06 | K143: 140 | L143: Turquemenistão | M143: 732.4956 | N143: 4.241420842e-05 | O143: -708.816
A144: 141 | B144: São Martinho (parte holandesa) | C144: 349.244 | D144: 4.940526426e-05 | F144: 141 | G144: Arábia Saudita | H144: 24.9638 | I144: 2.44717009e-06 | K144: 141 | L144: Azerbaijão | M144: 719.8116 | N144: 4.167975784e-05 | O144: 470.1396
A145: 142 | B145: Comores | C145: 311.607 | D145: 4.408100406e-05 | F145: 142 | G145: Macau | H145: 17.6438 | I145: 1.729599646e-06 | K145: 142 | L145: Iémen | M145: 716.5486 | N145: 4.149081805e-05 | O145: 625.0286
A146: 143 | B146: Libéria | C146: 294.774 | D146: 4.169974965e-05 | F146: 143 | G146: Quirguizistão | H146: 17.4758 | I146: 1.713130816e-06 | K146: 143 | L146: Namíbia | M146: 703.916 | N146: 4.075934372e-05 | O146: 563.5436
A147: 144 | B147: Somália | C147: 292.8146 | D147: 4.142256615e-05 | F147: 144 | G147: Sudão | H147: 16.5326 | I147: 1.6206701e-06 | K147: 144 | L147: Burundi | M147: 677.2094 | N147: 3.921293266e-05 | O147: 676.9814
A148: 145 | B148: El Salvador | C148: 292.5478 | D148: 4.13848237e-05 | F148: 145 | G148: Catar | H148: 16.0696 | I148: 1.575282789e-06 | K148: 145 | L148: Chade | M148: 675.9044 | N148: 3.913736832e-05 | O148: -675.8964
A149: 146 | B149: Jamaica | C149: 276.7996 | D149: 3.915702886e-05 | F149: 146 | G149: Arménia | H149: 15.3428 | I149: 1.504035494e-06 | K149: 146 | L149: Bolívia | M149: 672.8412 | N149: 3.89599977e-05 | O149: 109.4236
A150: 147 | B150: Macedónia, Antiga República jugoslava da | C150: 272.7114 | D150: 3.857869794e-05 | F150: 147 | G150: Curaçau | H150: 12.9632 | I150: 1.270766282e-06 | K150: 147 | L150: Arménia | M150: 575.0334 | N150: 3.32965638e-05 | O150: 544.3478
A151: 148 | B151: Paquistão | C151: 266.8506 | D151: 3.77496089e-05 | F151: 148 | G151: Iraque | H151: 12.264 | I151: 1.202224581e-06 | K151: 148 | L151: Aruba | M151: 561.0168 | N151: 3.248495074e-05 | O151: 484.9532
A152: 149 | B152: Antígua e Barbuda | C152: 264.4064 | D152: 3.740384392e-05 | F152: 149 | G152: Jamaica | H152: 11.1274 | I152: 1.090805104e-06 | K152: 149 | L152: Cazaquistão | M152: 538.873 | N152: 3.12027427e-05 | O152: 524.8902
A153: 150 | B153: Argentina | C153: 237.3284 | D153: 3.357329637e-05 | F153: 150 | G153: Kosovo | H153: 8.3722 | I153: 8.207162943e-07 | K153: 150 | L153: Barém | M153: 473.8092 | N153: 2.743530768e-05 | O153: 465.1108
A154: 151 | B154: Curaçau | C154: 224.0074 | D154: 3.168886164e-05 | F154: 151 | G154: Cazaquistão | H154: 6.9914 | I154: 6.853581974e-07 | K154: 151 | L154: São Bartolomeu | M154: 472.3088 | N154: 2.734842896e-05 | O154: 471.7428
A155: 152 | B155: Moldava, República de | C155: 201.388 | D155: 2.848904307e-05 | F155: 152 | G155: Líbia, Jamahira Árabe da | H155: 5.9518 | I155: 5.834475097e-07 | K155: 152 | L155: Mauritânia | M155: 471.8238 | N155: 2.732034567e-05 | O155: 468.6758
A156: 153 | B156: Haiti | C156: 195.7344 | D156: 2.768926526e-05 | F156: 153 | G156: Andorra | H156: 4.7264 | I156: 4.633230804e-07 | K156: 153 | L156: Gâmbia | M156: 455.249 | N156: 2.636060335e-05 | O156: 455.249
A157: 154 | B157: Ceuta e Melilha | C157: 191.5534 | D157: 2.709780654e-05 | F157: 154 | G157: São Cristovão e Nevis | H157: 4.4456 | I157: 4.357966076e-07 | K157: 154 | L157: Kosovo | M157: 426.8374 | N157: 2.471546648e-05 | O157: 410.093
A158: 155 | B158: Suriname | C158: 156.0968 | D158: 2.208199326e-05 | F158: 155 | G158: Afeganistão | H158: 4.3746 | I158: 4.288365664e-07 | K158: 155 | L158: São Martinho (parte holandesa) | M158: 349.244 | N158: 2.022252121e-05 | O158: 349.244
A159: 156 | B159: Nova Caledónia | C159: 140.1192 | D159: 1.98217467e-05 | F159: 156 | G159: Barém | H159: 4.3492 | I159: 4.263466362e-07 | K159: 156 | L159: Usbequistão | M159: 348.7024 | N159: 2.019116056e-05 | O159: -268.0328
A160: 157 | B160: Trindade e Tobago | C160: 140.025 | D160: 1.980842084e-05 | F160: 157 | G160: Nepal | H160: 2.446 | I160: 2.397783206e-07 | K160: 157 | L160: Zâmbia | M160: 336.52 | N160: 1.948575448e-05 | O160: -62.068
A161: 158 | B161: Zâmbia | C161: 137.226 | D161: 1.941246462e-05 | F161: 158 | G161: Liechtenstein | H161: 1.7982 | I161: 1.762752969e-07 | K161: 158 | L161: Libéria | M161: 333.6016 | N161: 1.931676831e-05 | O161: 255.9464
A162: 159 | B162: Polinésia Francesa | C162: 133.1554 | D162: 1.883662346e-05 | F162: 159 | G162: Lesoto | H162: 1.7136 | I162: 1.679820647e-07 | K162: 159 | L162: Comores | M162: 311.607 | N162: 1.80431995e-05 | O162: 311.607
A163: 160 | B163: Madagáscar | C163: 129.6574 | D163: 1.834178428e-05 | F163: 160 | G163: Mauritânia | H163: 1.574 | I163: 1.542972513e-07 | K163: 160 | L163: Somália | M163: 292.8146 | N163: 1.695504993e-05 | O163: 292.8146
A164: 161 | B164: Maldivas | C164: 127.1794 | D164: 1.799123783e-05 | F164: 161 | G164: Fiji, Ilhas | H164: 1.3818 | I164: 1.354561257e-07 | K164: 161 | L164: Jamaica | M164: 287.927 | N164: 1.667203979e-05 | O164: 265.6722
A165: 162 | B165: Niger | C165: 113.05 | D165: 1.599244404e-05 | F165: 162 | G165: Bermudas | H165: 0.6914 | I165: 6.777707722e-08 | K165: 162 | L165: Antígua e Barbuda | M165: 264.426 | N165: 1.531124484e-05 | O165: 264.3868
A166: 163 | B166: Liechtenstein | C166: 106.2456 | D166: 1.502987008e-05 | F166: 163 | G166: Território Palestiniano Ocupado | H166: 0.4852 | I166: 4.756354913e-08 | K166: 163 | L166: Curaçau | M166: 236.9706 | N166: 1.372147548e-05 | O166: 211.0442
A167: 164 | B167: Centro-Africana, República | C167: 83.0308 | D167: 1.174582417e-05 | F167: 164 | G167: Montenegro | H167: 0.3086 | I167: 3.025167201e-08 | K167: 164 | L167: Haiti | M167: 195.7358 | N167: 1.133382783e-05 | O167: 195.733
A168: 165 | B168: Jibuti | C168: 77.3086 | D168: 1.093634196e-05 | F168: 165 | G168: São Bartolomeu | H168: 0.283 | I168: 2.774213603e-08 | K168: 165 | L168: Ceuta e Melilha | M168: 191.5534 | N168: 1.109165138e-05 | O168: 191.5534
A169: 166 | B169: Nepal | C169: 76.6542 | D169: 1.084376828e-05 | F169: 166 | G169: Gabão | H169: 0.25 | I169: 2.450718731e-08 | K169: 166 | L169: Nova Caledónia | M169: 140.1192 | N169: 8.113420685e-06 | O169: 140.1192
A170: 167 | B170: Zimbabwe | C170: 63.2826 | D170: 8.952175488e-06 | F170: 167 | G170: Ruanda | H170: 0.2374 | I170: 2.327202507e-08 | K170: 167 | L170: Trindade e Tobago | M170: 140.0354 | N170: 8.108568354e-06 | O170: 140.0146
A171: 168 | B171: Caimão, Ilhas | C171: 51.4562 | D171: 7.279172037e-06 | F171: 168 | G171: Barbados | H171: 0.1378 | I171: 1.350836164e-08 | K171: 168 | L171: Polinésia Francesa | M171: 133.1554 | N171: 7.710190871e-06 | O171: 133.1554
A172: 169 | B172: Bósnia-Herzegovina | C172: 50.6168 | D172: 7.16042761e-06 | F172: 169 | G172: Oceano Indico, Território Britânico do | H172: 0.128 | I172: 1.25476799e-08 | K172: 169 | L172: Maldivas | M172: 127.183 | N172: 7.364366789e-06 | O172: 127.1758
A173: 170 | B173: Montenegro | C173: 46.101 | D173: 6.521606922e-06 | F173: 170 | G173: Niger | H173: 0.1252 | I173: 1.22731994e-08 | K173: 170 | L173: Niger | M173: 113.1752 | N173: 6.553263283e-06 | O173: 112.9248
A174: 171 | B174: Bahamas | C174: 42.9652 | D174: 6.078005807e-06 | F174: 171 | G174: Burundi | H174: 0.114 | I174: 1.117527741e-08 | K174: 171 | L174: Liechtenstein | M174: 108.0438 | N174: 6.256136217e-06 | O174: 104.4474
A175: 172 | B175: Usbequistão | C175: 40.3348 | D175: 5.705900325e-06 | F175: 172 | G175: Antígua e Barbuda | H175: 0.0196 | I175: 1.921363485e-09 | K175: 172 | L175: Centro-Africana, República | M175: 83.0308 | N175: 4.807790868e-06 | O175: 83.0308
A176: 173 | B176: Mongólia | C176: 30.8452 | D176: 4.363468684e-06 | F176: 173 | G176: São Vicente e Granadinas | H176: 0.0144 | I176: 1.411613989e-09 | K176: 173 | L176: Nepal | M176: 79.1002 | N176: 4.580194569e-06 | O176: 74.2082
A177: 174 | B177: Afeganistão | C177: 18.9718 | D177: 2.683816451e-06 | F177: 174 | G177: Mongólia | H177: 0.0112 | I177: 1.097921991e-09 | K177: 174 | L177: Bósnia-Herzegovina | M177: 78.515 | N177: 4.546309321e-06 | O177: 22.7186
A178: 175 | B178: Guiana | C178: 18.2434 | D178: 2.580774467e-06 | F178: 175 | G178: Trindade e Tobago | H178: 0.0104 | I178: 1.019498992e-09 | K178: 175 | L178: Jibuti | M178: 77.3086 | N178: 4.476454293e-06 | O178: 77.3086
A179: 176 | B179: Turcas e Caicos, Ilhas | C179: 18.0666 | D179: 2.555763728e-06 | F179: 176 | G179: Virgens Britânicas, Ilhas | H179: 0.007 | I179: 6.862012446e-10 | K179: 176 | L179: Tajiquistão | M179: 59.4122 | N179: 3.440186444e-06 | O179: -59.4122
A180: 177 | B180: Laos, República Democrática Popular do | C180: 14.3872 | D180: 2.035263077e-06 | F180: 177 | G180: Santa Lúcia | H180: 0.004 | I180: 3.921149969e-10 | K180: 177 | L180: Caimão, Ilhas | M180: 51.4562 | N180: 2.979504575e-06 | O180: 51.4562
A181: 178 | B181: Barbados | C181: 14.032 | D181: 1.985015256e-06 | F181: 178 | G181: Maldivas | H181: 0.0036 | I181: 3.529034972e-10 | K181: 178 | L181: Montenegro | M181: 46.4096 | N181: 2.687287742e-06 | O181: 45.7924
A182: 179 | B182: Turquemenistão | C182: 11.8398 | D182: 1.674899061e-06 | F182: 179 | G182: Haiti | H182: 0.0014 | I182: 1.372402489e-10 | K182: 179 | L182: Bahamas | M182: 42.9652 | N182: 2.487844224e-06 | O182: 42.9652
A183: 180 | B183: Virgens Britânicas, Ilhas | C183: 9.9272 | D183: 1.40433605e-06 | F183: 180 | G183: Anguila | H183: 0 | I183: 0 | K183: 180 | L183: São Marino | M183: 32.7902 | N183: 1.898674036e-06 | O183: -32.7502
A184: 181 | B184: Fiji, Ilhas | C184: 8.1268 | D184: 1.149645238e-06 | F184: 181 | G184: Antárctica | H184: 0 | I184: 0 | K184: 181 | L184: Mongólia | M184: 30.8564 | N184: 1.786699853e-06 | O184: 30.834
A185: 182 | B185: Santa Lúcia | C185: 7.138 | D185: 1.00976617e-06 | F185: 182 | G185: Antilhas Holandesas | H185: 0 | I185: 0 | K185: 182 | L185: Botswana | M185: 30.1228 | N185: 1.744221696e-06 | O185: -29.934
A186: 183 | B186: Brunei Darussalam | C186: 6.98 | D186: 9.874149436e-07 | F186: 183 | G186: Bahamas | H186: 0 | I186: 0 | K186: 183 | L186: Papuásia-Nova Guiné | M186: 28.7226 | N186: 1.663144929e-06 | O186: -22.9514
A187: 184 | B187: Malavi | C187: 6.6034 | D187: 9.341398049e-07 | F187: 184 | G187: Bonaire, Santo Eustáquio e Saba | H187: 0 | I187: 0 | K187: 184 | L187: Afeganistão | M187: 23.3464 | N187: 1.351843036e-06 | O187: 14.5972
A188: 185 | B188: Guam | C188: 6.5774 | D188: 9.30461755e-07 | F188: 185 | G188: Bouvet, Ilha | H188: 0 | I188: 0 | K188: 185 | L188: Quirguizistão | M188: 22.1324 | N188: 1.281547939e-06 | O188: -12.8192
A189: 186 | B189: São Vicente e Granadinas | C189: 5.6654 | D189: 8.014470804e-07 | F189: 186 | G189: Brunei Darussalam | H189: 0 | I189: 0 | K189: 186 | L189: Turcas e Caicos, Ilhas | M189: 18.0666 | N189: 1.046123059e-06 | O189: 18.0666
A190: 187 | B190: Quirguizistão | C190: 4.6566 | D190: 6.58738743e-07 | F190: 187 | G190: Butão | H190: 0 | I190: 0 | K190: 187 | L190: Barbados | M190: 14.1698 | N190: 8.204839053e-07 | O190: 13.8942
A191: 188 | B191: Menores distantes dos Estados Unidos, lhas | C191: 4.5542 | D191: 6.442528848e-07 | F191: 188 | G191: Caimão, Ilhas | H191: 0 | I191: 0 | K191: 188 | L191: Virgens Britânicas, Ilhas | M191: 9.9342 | N191: 5.752269765e-07 | O191: 9.9202
A192: 189 | B192: Sudão do Sul | C192: 3.771 | D192: 5.334587037e-07 | F192: 189 | G192: Centro-Africana, República | H192: 0 | I192: 0 | K192: 189 | L192: Fiji, Ilhas | M192: 9.5086 | N192: 5.505831601e-07 | O192: 6.745
A193: 190 | B193: Bonaire, Santo Eustáquio e Saba | C193: 3.1276 | D193: 4.424411142e-07 | F193: 190 | G193: Ceuta | H193: 0 | I193: 0 | K193: 190 | L193: Santa Lúcia | M193: 7.142 | N193: 4.135482541e-07 | O193: 7.134
A194: 191 | B194: Marianas do Norte, Ilhas | C194: 2.9244 | D194: 4.136957394e-07 | F194: 191 | G194: Ceuta e Melilha | H194: 0 | I194: 0 | K194: 191 | L194: Brunei Darussalam | M194: 6.98 | N194: 4.041678541e-07 | O194: 6.98
A195: 192 | B195: Papuásia-Nova Guiné | C195: 2.8856 | D195: 4.082069572e-07 | F195: 192 | G195: Christmas, Ilha | H195: 0 | I195: 0 | K195: 192 | L195: Guam | M195: 6.5774 | N195: 3.808558228e-07 | O195: 6.5774
A196: 193 | B196: Belize | C196: 2.1806 | D196: 3.084752186e-07 | F196: 193 | G196: Cocos (Keeling), Ilhas | H196: 0 | I196: 0 | K196: 193 | L196: São Vicente e Granadinas | M196: 5.6798 | N196: 3.288814581e-07 | O196: 5.651
A197: 194 | B197: Melilha | C197: 1.3464 | D197: 1.904664011e-07 | F197: 194 | G197: Comores | H197: 0 | I197: 0 | K197: 194 | L197: Menores distantes dos Estados Unidos, lhas | M197: 4.5542 | N197: 2.637050489e-07 | O197: 4.5542
A198: 195 | B198: Granada | C198: 0.6866 | D198: 9.712881092e-08 | F198: 195 | G198: Cook, Ilhas | H198: 0 | I198: 0 | K198: 195 | L198: São Cristovão e Nevis | M198: 4.4456 | N198: 2.574167066e-07 | O198: -4.4456
A199: 196 | B199: Virgens dos Estados Unidos, Ilhas | C199: 0.295 | D199: 4.173172039e-08 | F199: 196 | G199: Coreia, República Popular Democrática da | H199: 0 | I199: 0 | K199: 196 | L199: Sudão do Sul | M199: 3.771 | N199: 2.183548679e-07 | O199: 3.771
A200: 197 | B200: Botswana | C200: 0.0944 | D200: 1.335415053e-08 | F200: 197 | G200: Domínica | H200: 0 | I200: 0 | K200: 197 | L200: Bonaire, Santo Eustáquio e Saba | M200: 3.1276 | N200: 1.810996247e-07 | O200: 3.1276
... 58 more rows

Sheet 2A
A1: Parceiros comerciais de Portugal - União Europeia vs. Países Terceiros (média 2018-2022 em milhões de euros) produtos agrícolas e agroalimentares, do mar e da floresta
A2: Exportações | F2: Importações | K2: Trocas comerciais (total e saldo)
A3: P | B3: Grupo de Países | C3: média quinquénio | D3: % do Total | F3: P | G3: Grupo de Países | H3: média quinquénio | I3: % do Total | K3: P | L3: Grupo de Países | M3: média quinquénio | N3: % do Total | O3: Saldo (exp-imp)
A4: 1 | B4: União Europeia | C4: 8689.586002 | D4: 0.6705040416 | F4: 1 | G4: União Europeia | H4: 11670.31785 | I4: 0.7804427503 | K4: 1 | L4: União Europeia | M4: 20359.90385 | N4: 0.7293995292 | O4: -2980.731848
A5: 2 | B5: Países Terceiros | C5: 4270.778311 | D5: 0.3295409146 | F5: 2 | G5: Países Terceiros | H5: 3283.140101 | I5: 0.2195572497 | K5: 2 | L5: Países Terceiros | M5: 7553.918411 | N5: 0.2706213434 | O5: 987.6382102
B6: Outros | C6: 0 | D6: -4.495620481e-05 | G6: Outros | H6: 0 | I6: 0 | L6: Outros | M6: 0 | N6: -2.087262559e-05 | O6: 0
B7: Total | C7: 12959.78169 | D7: 1 | G7: Total | H7: 14953.45795 | I7: 1 | L7: Total | M7: 27913.23964 | N7: 1 | O7: -1993.67626
F27: valores em milhões de euros
A28: Nota: Outros = Países não determinados, abastecimentos de bordo, etc.
A29: Fonte: GPP a partir de dados INE/Comércio Internacional (2022 provisórios) | M29: 2023-08-10

Sheet 3
A1: Principais produtos agrícolas e agroalimentares, do mar e da floresta transacionados entre Portugal e Alemanha em 2018-2022 (NC a 2 e 4 dígitos) em milhões de euros
AC4: P | AE4: Cód.NC | AF4: Descritivo | AG4: Média export quinquénio | AH4: % do total | AI4: % acumulada | AN4: P | AO4: NC | AP4: Exportações | AQ4: 2018 | AR4: 2019 | AS4: 2020 | AT4: 2021 | AU4: 2022 | AV4: média quinquénio
AC5: 1 | AD5: º | AE5: 48 | AF5: Papel e cartão | AG5: 156.0890906 | AH5: 0.2457316102 | AN5: 1º | AO5: 48 | AP5: Papel e cartão | AQ5: 163.235624 | AR5: 162.649338 | AS5: 122.76937 | AT5: 128.684427 | AU5: 203.106694 | AV5: 156.0890906
AC6: 2 | AD6: º | AE6: 47 | AF6: Pastas de madeira | AG6: 81.4248664 | AH6: 0.1281874566 | AN6: 2º | AO6: 47 | AP6: Pastas de madeira | AQ6: 105.503979 | AR6: 83.264865 | AS6: 54.484483 | AT6: 68.192297 | AU6: 95.678708 | AV6: 81.4248664
AC7: 3 | AD7: º | AE7: 45 | AF7: Cortiça e suas obras | AG7: 79.1209768 | AH7: 0.124560435 | AI7: 0.4984795019 | AN7: 3º | AO7: 45 | AP7: Cortiça e suas obras | AQ7: 76.650106 | AR7: 77.198987 | AS7: 77.664711 | AT7: 86.360941 | AU7: 77.730139 | AV7: 79.1209768
AC8: 4 | AD8: º | AE8: 08 | AF8: Frutas | AG8: 73.4605822 | AH8: 0.1156492557 | AO8: - | AP8: Outros | AQ8: 256.566211 | AR8: 269.298929 | AS8: 303.666429 | AT8: 344.902194 | AU8: 418.399133 | AV8: 318.5665792
AC9: 5 | AD9: º | AE9: 22 | AF9: Bebidas, líquidos alcoólicos e vinagres | AG9: 56.9674234 | AH9: 0.08968401717 | AP9: Total | AQ9: 601.95592 | AR9: 592.412119 | AS9: 558.584993 | AT9: 628.139859 | AU9: 794.914674 | AV9: 635.201513
AC10: 6 | AD10: º | AE10: 20 | AF10: Preparações de produtos vegetais | AG10: 27.422281 | AH10: 0.04317099446
AC11: 7 | AD11: º | AE11: 38f | AF11: Tall oil, essências e colofónias (f) | AG11: 26.3511116 | AH11: 0.04148464867
AC12: 8 | AD12: º | AE12: 07 | AF12: Produtos hortícolas | AG12: 17.6404234 | AH12: 0.02777138127
AC13: 9 | AD13: º | AE13: 44 | AF13: Madeira e suas obras | AG13: 16.9916808 | AH13: 0.02675006349
AC14: 10 | AD14: º | AE14: 21 | AF14: Preparações alimentícias diversas | AG14: 13.1853872 | AH14: 0.02075780194 | AI14: 0.8637476646
AE15: - | AF15: Outros | AG15: 86.5476896 | AH15: 0.1362523354
AE16: Total | AG16: 635.201513 | AH16: 1
AC38: P | AE38: Cód.NC | AF38: Descritivo | AG38: Média import quinquénio | AH38: % do total | AI38: % acumulada | AN38: P | AO38: NC | AP38: Importações | AQ38: 2018 | AR38: 2019 | AS38: 2020 | AT38: 2021 | AU38: 2022 | AV38: média quinquénio
AC39: 1 | AD39: º | AE39: 48 | AF39: Papel e cartão | AG39: 98.1353864 | AH39: 0.1111390818 | AN39: 1º | AO39: 48 | AP39: Papel e cartão | AQ39: 92.154114 | AR39: 93.134822 | AS39: 83.014589 | AT39: 92.468794 | AU39: 129.904613 | AV39: 98.1353864
AC40: 2 | AD40: º | AE40: 12 | AF40: Sementes e frutos oleaginosos | AG40: 95.7168804 | AH40: 0.1084001051 | AN40: 2º | AO40: 12 | AP40: Sementes e frutos oleaginosos | AQ40: 90.789146 | AR40: 89.350007 | AS40: 119.160344 | AT40: 127.195805 | AU40: 52.0891 | AV40: 95.7168804
AC41: 3 | AD41: º | AE41: 04 | AF41: Leite e laticínios; ovos; mel, etc. | AG41: 91.622272 | AH41: 0.1037629295 | AI41: 0.3233021163 | AN41: 3º | AO41: 04 | AP41: Leite e laticínios; ovos; mel, etc. | AQ41: 84.890168 | AR41: 90.781275 | AS41: 84.366628 | AT41: 88.729946 | AU41: 109.343343 | AV41: 91.622272
AC42: 4 | AD42: º | AE42: 19a | AF42: Preparações à base de cereais (exc. NC 19022010) (a) | AG42: 62.6363058 | AH42: 0.07093609927 | AO42: - | AP42: Outros | AQ42: 621.814933 | AR42: 522.365032 | AS42: 526.985455 | AT42: 579.629102 | AU42: 736.813763 | AV42: 597.521657
AC43: 5 | AD43: º | AE43: 18 | AF43: Cacau e suas preparações | AG43: 52.217745 | AH43: 0.05913699883 | AP43: Total | AQ43: 889.648361 | AR43: 795.631136 | AS43: 813.527016 | AT43: 888.023647 | AU43: 1028.150819 | AV43: 882.9961958
AC44: 6 | AD44: º | AE44: 21 | AF44: Preparações alimentícias diversas | AG44: 51.9324352 | AH44: 0.05881388328
AC45: 7 | AD45: º | AE45: 44 | AF45: Madeira e suas obras | AG45: 45.8244414 | AH45: 0.05189653321
AC46: 8 | AD46: º | AE46: 10 | AF46: Cereais | AG46: 40.2814726 | AH46: 0.04561907831
AC47: 9 | AD47: º | AE47: 02 | AF47: Carnes e miudezas | AG47: 39.141718 | AH47: 0.04432829743
AC48: 10 | AD48: º | AE48: 08 | AF48: Frutas | AG48: 38.5492546 | AH48: 0.04365732806 | AI48: 0.6976903347
AE49: - | AF49: Outros | AG49: 266.9382844 | AH49: 0.3023096653
AE50: Total | AG50: 882.9961958 | AH50: 1
AC62: DESAGREGAÇÃO A 4 DÍGITOS | AN62: DESAGREGAÇÃO A 4 DÍGITOS
AC64: P | AE64: Cód.NC | AF64: Descritivo | AG64: Média export quinquénio | AH64: % do total | AI64: % acumulada | AN64: P | AO64: NC | AP64: Exportações | AQ64: 2018 | AR64: 2019 | AS64: 2020 | AT64: 2021 | AU64: 2022 | AV64: média quinquénio
AC65: 1 | AD65: º | AE65: 4802 | AF65: Papel e cartão p/ escrita, etc. | AG65: 130.5400316 | AH65: 0.2055096358 | AN65: 1º | AO65: 4802 | AP65: Papel e cartão p/ escrita, etc. | AQ65: 130.672823 | AR65: 129.90817 | AS65: 104.57011 | AT65: 105.384066 | AU65: 182.164989 | AV65: 130.5400316
AC66: 2 | AD66: º | AE66: 4703 | AF66: Pastas químicas de madeira, à soda ou ao sulfato | AG66: 80.7096522 | AH66: 0.1270614924 | AN66: 2º | AO66: 4703 | AP66: Pastas químicas de madeira, à soda ou ao sulfato | AQ66: 102.351389 | AR66: 83.174514 | AS66: 54.265915 | AT66: 68.187696 | AU66: 95.568747 | AV66: 80.7096522
AC67: 3 | AD67: º | AE67: 4504 | AF67: Cortiça aglomerada e suas obras | AG67: 56.3666548 | AH67: 0.08873822503 | AI67: 0.4213093532 | AN67: 3º | AO67: 4504 | AP67: Cortiça aglomerada e suas obras | AQ67: 56.2775 | AR67: 53.312895 | AS67: 58.345943 | AT67: 61.039441 | AU67: 52.857495 | AV67: 56.3666548
AC68: 4 | AD68: º | AE68: 0810 | AF68: Outras frutas frescas | AG68: 51.9987768 | AH68: 0.08186185917 | AN68: - | AO68: - | AP68: Outros | AQ68: 312.654208 | AR68: 326.01654 | AS68: 341.403025 | AT68: 393.528656 | AU68: 464.323443 | AV68: 367.5851744
AC69: 5 | AD69: º | AE69: 2204 | AF69: Vinhos de uvas frescas | AG69: 49.969911 | AH69: 0.07866780853 | AP69: Total | AQ69: 601.95592 | AR69: 592.412119 | AS69: 558.584993 | AT69: 628.139859 | AU69: 794.914674 | AV69: 635.201513
AC70: 6 | AD70: º | AE70: 3806 | AF70: Colofónias e derivados | AG70: 24.95792 | AH70: 0.03929134218
AC71: 7 | AD71: º | AE71: 2002 | AF71: Tomates preparados | AG71: 21.9973574 | AH71: 0.03463051795
AC72: 8 | AD72: º | AE72: 4503 | AF72: Obras de cortiça natural | AG72: 13.5239338 | AH72: 0.02129077706
AC73: 9 | AD73: º | AE73: 0808 | AF73: Maçãs, peras e marmelos, frescos | AG73: 12.7901682 | AH73: 0.02013560727
AC74: 10 | AD74: º | AE74: 4804 | AF74: Papel e cartão "kraft", não revestidos | AG74: 9.7289748 | AH74: 0.01531635961 | AI74: 0.712503625
AE75: - | AF75: Outros | AG75: 182.6181324 | AH75: 0.287496375
AE76: Total | AG76: 635.201513 | AH76: 1
AC89: DESAGREGAÇÃO A 4 DÍGITOS | AN89: DESAGREGAÇÃO A 4 DÍGITOS
G91: média 2018-2022 em milhões de euros | I91: Cód. NC | J91: Descritivo | K91: Export | L91: Import | M91: Saldo | AC91: P | AE91: Cód.NC | AF91: Descritivo | AG91: Média import quinquénio | AH91: % do total | AI91: % acumulada | AN91: P | AO91: NC | AP91: Importações | AQ91: 2018 | AR91: 2019 | AS91: 2020 | AT91: 2021 | AU91: 2022 | AV91: média quinquénio
I92: 4802 | J92: Papel e cartão p/ escrita, etc. | K92: 130.5400316 | L92: 4.0438868 | M92: 126.4961448 | AC92: 1 | AD92: º | AE92: 1201 | AF92: Soja, mesmo triturada | AG92: 69.1638898 | AH92: 0.07832863848 | AN92: 1º | AO92: 1201 | AP92: Soja, mesmo triturada | AQ92: 38.851137 | AR92: 60.744942 | AS92: 115.737374 | AT92: 107.481892 | AU92: 23.004104 | AV92: 69.1638898
I93: 4703 | J93: Pastas químicas de madeira, à soda ou ao sulfato | K93: 80.7096522 | L93: 8.853524 | M93: 71.8561282 | AC93: 2 | AD93: º | AE93: 1806 | AF93: Chocolate e outras preparações com cacau | AG93: 50.2598544 | AH93: 0.05691967263 | AN93: 2º | AO93: 1806 | AP93: Chocolate e outras preparações com cacau | AQ93: 45.525909 | AR93: 48.856632 | AS93: 50.648029 | AT93: 50.197606 | AU93: 56.071096 | AV93: 50.2598544
I94: 4504 | J94: Cortiça aglomerada e suas obras | K94: 56.3666548 | L94: 0.3540764 | M94: 56.0125784 | AC94: 3 | AD94: º | AE94: 1905 | AF94: Produtos de padaria, pastelaria, etc. | AG94: 40.0232906 | AH94: 0.0453266852 | AI94: 0.1805749963 | AN94: 3º | AO94: 1905 | AP94: Produtos de padaria, pastelaria, etc. | AQ94: 33.565983 | AR94: 36.967824 | AS94: 37.590421 | AT94: 40.83204 | AU94: 51.160185 | AV94: 40.0232906
I95: 0810 | J95: Outras frutas frescas | K95: 51.9987768 | L95: 4.8246474 | M95: 47.1741294 | AC95: 4 | AD95: º | AE95: 0406 | AF95: Queijos e requeijão | AG95: 36.5430264 | AH95: 0.04138525916 | AN95: - | AO95: - | AP95: Outros | AQ95: 771.705332 | AR95: 649.061738 | AS95: 609.551192 | AT95: 689.512109 | AU95: 897.915434 | AV95: 723.549161
I96: 2204 | J96: Vinhos de uvas frescas | K96: 49.969911 | L96: 2.8340018 | M96: 47.1359092 | AC96: 5 | AD96: º | AE96: 0403 | AF96: Leitelho, leite coalhado, iogurte, etc. | AG96: 28.3725326 | AH96: 0.03213211193 | AP96: Total | AQ96: 889.648361 | AR96: 795.631136 | AS96: 813.527016 | AT96: 888.023647 | AU96: 1028.150819 | AV96: 882.9961958
I97: 3806 | J97: Colofónias e derivados | K97: 24.95792 | L97: 2.9679614 | M97: 21.9899586 | AC97: 6 | AD97: º | AE97: 4811 | AF97: Papel, cartão, pasta de celulose, etc. | AG97: 27.1595546 | AH97: 0.030758405
I98: 2002 | J98: Tomates preparados | K98: 21.9973574 | L98: 0.7113718 | M98: 21.2859856 | AC98: 7 | AD98: º | AE98: 2402 | AF98: Charutos, cigarrilhas e cigarros | AG98: 22.3273968 | AH98: 0.02528594903
I99: 4503 | J99: Obras de cortiça natural | K99: 13.5239338 | L99: 0.0619482 | M99: 13.4619856 | AC99: 8 | AD99: º | AE99: 4810 | AF99: Papel e cartão revestidos | AG99: 21.9804268 | AH99: 0.02489300283
I100: 0808 | J100: Maçãs, peras e marmelos, frescos | K100: 12.7901682 | L100: 1.7264302 | M100: 11.063738 | AC100: 9 | AD100: º | AE100: 2309 | AF100: Preparações p/ alimentação animal | AG100: 21.0562232 | AH100: 0.02384633513
I101: 4501 | J101: Cortiça natural em bruto | K101: 9.168176 | L101: 0.0165604 | M101: 9.1516156 | AC101: 10 | AD101: º | AE101: 2106 | AF101: Outras preparações alimentícias | AG101: 19.7373842 | AH101: 0.02235273979 | AI101: 0.3812287992
I102: - | J102: Outros | K102: 169.013958 | L102: 519.978208 | M102: -350.96425 | AE102: - | AF102: Outros | AG102: 546.3726164 | AH102: 0.6187712008
I103: 2106 | J103: Outras preparações alimentícias | K103: 0.7675504 | L103: 19.7373842 | M103: -18.9698338 | AE103: Total | AG103: 882.9961958 | AH103: 1
I104: 2309 | J104: Preparações p/ alimentação animal | K104: 0.301131 | L104: 21.0562232 | M104: -20.7550922
I105: 4810 | J105: Papel e cartão revestidos | K105: 0.1274048 | L105: 21.9804268 | M105: -21.853022
I106: 2402 | J106: Charutos, cigarrilhas e cigarros | K106: 0.2660898 | L106: 22.3273968 | M106: -22.061307
I107: 4811 | J107: Papel, cartão, pasta de celulose, etc. | K107: 2.7580288 | L107: 27.1595546 | M107: -24.4015258
I108: 0403 | J108: Leitelho, leite coalhado, iogurte, etc. | K108: 0.0449224 | L108: 28.3725326 | M108: -28.3276102
I109: 1905 | J109: Produtos de padaria, pastelaria, etc. | K109: 8.4310502 | L109: 40.0232906 | M109: -31.5922404
I110: 0406 | J110: Queijos e requeijão | K110: 1.316774 | L110: 36.5430264 | M110: -35.2262524
I111: 1806 | J111: Chocolate e outras preparações com cacau | K111: 0.1503048 | L111: 50.2598544 | M111: -50.1095496
I112: 1201 | J112: Soja, mesmo triturada | K112: 0.001717 | L112: 69.1638898 | M112: -69.1621728
I113: Total | K113: 635.201513 | L113: 882.9961958 | M113: -247.7946828
A116: Fonte: GPP a partir de dados INE/Comércio Internacional (2022 definitivos) | Y116: 2023-11-03T12:57:12.080

Sheet 3A
A1: Principais produtos agrícolas e agroalimentares transacionados entre Portugal e Alemanha em 2018-2022 (NC a 2 e 4 dígitos) em milhões de euros
AC4: P | AE4: Cód.NC | AF4: Descritivo | AG4: Média export quinquénio | AH4: % do total | AI4: % acumulada | AN4: P | AO4: NC | AP4: Exportações | AQ4: 2018 | AR4: 2019 | AS4: 2020 | AT4: 2021 | AU4: 2022 | AV4: média quinquénio
AC5: 1 | AD5: º | AE5: 08 | AF5: Frutas | AG5: 73.4605822 | AH5: 0.2827386811 | AN5: 1º | AO5: 08 | AP5: Frutas | AQ5: 59.503729 | AR5: 68.172337 | AS5: 69.32257 | AT5: 80.521592 | AU5: 89.782683 | AV5: 73.4605822
AC6: 2 | AD6: º | AE6: 22 | AF6: Bebidas, líquidos alcoólicos e vinagres | AG6: 56.9674234 | AH6: 0.219259005 | AN6: 2º | AO6: 22 | AP6: Bebidas, líquidos alcoólicos e vinagres | AQ6: 56.386188 | AR6: 54.861642 | AS6: 58.223946 | AT6: 59.449314 | AU6: 55.916027 | AV6: 56.9674234
AC7: 3 | AD7: º | AE7: 20 | AF7: Preparações de produtos vegetais | AG7: 27.422281 | AH7: 0.1055442161 | AI7: 0.6075419023 | AN7: 3º | AO7: 20 | AP7: Preparações de produtos vegetais | AQ7: 22.109366 | AR7: 21.448741 | AS7: 22.820902 | AT7: 26.285219 | AU7: 44.447177 | AV7: 27.422281
AC8: 4 | AD8: º | AE8: 07 | AF8: Produtos hortícolas | AG8: 17.6404234 | AH8: 0.06789532423 | AO8: - | AP8: Outros | AQ8: 77.091896 | AR8: 84.890325 | AS8: 102.23651 | AT8: 105.58061 | AU8: 140.038935 | AV8: 101.9676552
AC9: 5 | AD9: º | AE9: 21 | AF9: Preparações alimentícias diversas | AG9: 13.1853872 | AH9: 0.05074856305 | AP9: Total | AQ9: 215.091179 | AR9: 229.373045 | AS9: 252.603928 | AT9: 271.836735 | AU9: 330.184822 | AV9: 259.8179418
AC10: 6 | AD10: º | AE10: 19a | AF10: Preparações à base de cereais (exc. NC 19022010) (a) | AG10: 11.929736 | AH10: 0.0459157513
AC11: 7 | AD11: º | AE11: 15 | AF11: Gorduras e óleos animais ou vegetais | AG11: 10.255133 | AH11: 0.03947045739
AC12: 8 | AD12: º | AE12: 05a | AF12: Outros produtos de origem animal (exc. NC 0508, 051191) (a) | AG12: 8.258595 | AH12: 0.0317860843
AC13: 9 | AD13: º | AE13: 02 | AF13: Carnes e miudezas | AG13: 8.1026966 | AH13: 0.03118605491
AC14: 10 | AD14: º | AE14: 06 | AF14: Plantas vivas e produtos de floricultura | AG14: 7.1662388 | AH14: 0.02758177034 | AI14: 0.9021259078
AE15: - | AF15: Outros | AG15: 25.4294452 | AH15: 0.09787409223
AE16: Total | AG16: 259.8179418 | AH16: 1
AC38: P | AE38: Cód.NC | AF38: Descritivo | AG38: Média import quinquénio | AH38: % do total | AI38: % acumulada | AN38: P | AO38: NC | AP38: Importações | AQ38: 2018 | AR38: 2019 | AS38: 2020 | AT38: 2021 | AU38: 2022 | AV38: média quinquénio
AC39: 1 | AD39: º | AE39: 12 | AF39: Sementes e frutos oleaginosos | AG39: 95.7168804 | AH39: 0.1380712016 | AN39: 1º | AO39: 12 | AP39: Sementes e frutos oleaginosos | AQ39: 90.789146 | AR39: 89.350007 | AS39: 119.160344 | AT39: 127.195805 | AU39: 52.0891 | AV39: 95.7168804
AC40: 2 | AD40: º | AE40: 04 | AF40: Leite e laticínios; ovos; mel, etc. | AG40: 91.622272 | AH40: 0.132164746 | AN40: 2º | AO40: 04 | AP40: Leite e laticínios; ovos; mel, etc. | AQ40: 84.890168 | AR40: 90.781275 | AS40: 84.366628 | AT40: 88.729946 | AU40: 109.343343 | AV40: 91.622272
AC41: 3 | AD41: º | AE41: 19a | AF41: Preparações à base de cereais (exc. NC 19022010) (a) | AG41: 62.6363058 | AH41: 0.09035261042 | AI41: 0.3605885581 | AN41: 3º | AO41: 19a | AP41: Preparações à base de cereais (exc. NC 19022010) (a) | AQ41: 52.848259 | AR41: 55.570363 | AS41: 58.390985 | AT41: 64.494747 | AU41: 81.877175 | AV41: 62.6363058
AC42: 4 | AD42: º | AE42: 18 | AF42: Cacau e suas preparações | AG42: 52.217745 | AH42: 0.07532387983 | AO42: - | AP42: Outros | AQ42: 471.696052 | AR42: 385.490031 | AS42: 390.250209 | AT42: 421.952439 | AU42: 546.948485 | AV42: 443.2674432
AC43: 5 | AD43: º | AE43: 21 | AF43: Preparações alimentícias diversas | AG43: 51.9324352 | AH43: 0.07491232163 | AP43: Total | AQ43: 700.223625 | AR43: 621.191676 | AS43: 652.168166 | AT43: 702.372937 | AU43: 790.258103 | AV43: 693.2429014
AC44: 6 | AD44: º | AE44: 10 | AF44: Cereais | AG44: 40.2814726 | AH44: 0.05810585657
AC45: 7 | AD45: º | AE45: 02 | AF45: Carnes e miudezas | AG45: 39.141718 | AH45: 0.05646176531
AC46: 8 | AD46: º | AE46: 08 | AF46: Frutas | AG46: 38.5492546 | AH46: 0.05560713932
AC47: 9 | AD47: º | AE47: 23a | AF47: Resíduos indústrias alimentares; alimentos p/ animais (exc. NC 230120) (a) | AG47: 28.9047354 | AH47: 0.04169496051
AC48: 10 | AD48: º | AE48: 24 | AF48: Tabaco | AG48: 26.49926 | AH48: 0.03822507226 | AI48: 0.7609195535
AE49: - | AF49: Outros | AG49: 165.7408224 | AH49: 0.2390804465
AE50: Total | AG50: 693.2429014 | AH50: 1
AC62: DESAGREGAÇÃO A 4 DÍGITOS | AN62: DESAGREGAÇÃO A 4 DÍGITOS
AC64: P | AE64: Cód.NC | AF64: Descritivo | AG64: Média export quinquénio | AH64: % do total | AI64: % acumulada | AN64: P | AO64: NC | AP64: Exportações | AQ64: 2018 | AR64: 2019 | AS64: 2020 | AT64: 2021 | AU64: 2022 | AV64: média quinquénio
AC65: 1 | AD65: º | AE65: 0810 | AF65: Outras frutas frescas | AG65: 51.9987768 | AH65: 0.200135435 | AN65: 1º | AO65: 0810 | AP65: Outras frutas frescas | AQ65: 48.007289 | AR65: 53.54234 | AS65: 49.673776 | AT65: 54.692108 | AU65: 54.078371 | AV65: 51.9987768
AC66: 2 | AD66: º | AE66: 2204 | AF66: Vinhos de uvas frescas | AG66: 49.969911 | AH66: 0.1923266371 | AN66: 2º | AO66: 2204 | AP66: Vinhos de uvas frescas | AQ66: 49.477419 | AR66: 48.331935 | AS66: 48.188177 | AT66: 53.839433 | AU66: 50.012591 | AV66: 49.969911
AC67: 3 | AD67: º | AE67: 2002 | AF67: Tomates preparados | AG67: 21.9973574 | AH67: 0.08466450487 | AI67: 0.4771265769 | AN67: 3º | AO67: 2002 | AP67: Tomates preparados | AQ67: 15.916662 | AR67: 16.057736 | AS67: 17.418293 | AT67: 22.76755 | AU67: 37.826546 | AV67: 21.9973574
AC68: 4 | AD68: º | AE68: 0808 | AF68: Maçãs, peras e marmelos, frescos | AG68: 12.7901682 | AH68: 0.04922742483 | AN68: - | AO68: - | AP68: Outros | AQ68: 101.689809 | AR68: 111.441034 | AS68: 137.323682 | AT68: 140.537644 | AU68: 188.267314 | AV68: 135.8518966
AC69: 5 | AD69: º | AE69: 1905 | AF69: Produtos de padaria, pastelaria, etc. | AG69: 8.4310502 | AH69: 0.0324498383 | AP69: Total | AQ69: 215.091179 | AR69: 229.373045 | AS69: 252.603928 | AT69: 271.836735 | AU69: 330.184822 | AV69: 259.8179418
AC70: 6 | AD70: º | AE70: 0504 | AF70: Tripas de animais (excepto peixes) | AG70: 7.7727006 | AH70: 0.02991595017
AC71: 7 | AD71: º | AE71: 0704 | AF71: Couves, frescas ou refrigeradas | AG71: 5.8641614 | AH71: 0.02257027117
AC72: 8 | AD72: º | AE72: 0602 | AF72: Plantas vivas | AG72: 5.7793734 | AH72: 0.02224393496
AC73: 9 | AD73: º | AE73: 1211 | AF73: Plantas, partes de plantas para usos não alimentares | AG73: 5.1707558 | AH73: 0.01990145778
AC74: 10 | AD74: º | AE74: 2105 | AF74: Sorvetes, mesmo contendo cacau | AG74: 5.1045318 | AH74: 0.01964657161 | AI74: 0.6730820258
AE75: - | AF75: Outros | AG75: 84.9391552 | AH75: 0.3269179742
AE76: Total | AG76: 259.8179418 | AH76: 1
AC89: DESAGREGAÇÃO A 4 DÍGITOS | AN89: DESAGREGAÇÃO A 4 DÍGITOS
G91: média 2018-2022 em milhões de euros | I91: Cód. NC | J91: Descritivo | K91: Export | L91: Import | M91: Saldo | AC91: P | AE91: Cód.NC | AF91: Descritivo | AG91: Média import quinquénio | AH91: % do total | AI91: % acumulada | AN91: P | AO91: NC | AP91: Importações | AQ91: 2018 | AR91: 2019 | AS91: 2020 | AT91: 2021 | AU91: 2022 | AV91: média quinquénio
I92: 0810 | J92: Outras frutas frescas | K92: 51.9987768 | L92: 4.8246474 | M92: 47.1741294 | AC92: 1 | AD92: º | AE92: 1201 | AF92: Soja, mesmo triturada | AG92: 69.1638898 | AH92: 0.09976862318 | AN92: 1º | AO92: 1201 | AP92: Soja, mesmo triturada | AQ92: 38.851137 | AR92: 60.744942 | AS92: 115.737374 | AT92: 107.481892 | AU92: 23.004104 | AV92: 69.1638898
I93: 2204 | J93: Vinhos de uvas frescas | K93: 49.969911 | L93: 2.8340018 | M93: 47.1359092 | AC93: 2 | AD93: º | AE93: 1806 | AF93: Chocolate e outras preparações com cacau | AG93: 50.2598544 | AH93: 0.07249963079 | AN93: 2º | AO93: 1806 | AP93: Chocolate e outras preparações com cacau | AQ93: 45.525909 | AR93: 48.856632 | AS93: 50.648029 | AT93: 50.197606 | AU93: 56.071096 | AV93: 50.2598544
I94: 2002 | J94: Tomates preparados | K94: 21.9973574 | L94: 0.7113718 | M94: 21.2859856 | AC94: 3 | AD94: º | AE94: 1905 | AF94: Produtos de padaria, pastelaria, etc. | AG94: 40.0232906 | AH94: 0.05773343011 | AI94: 0.2300016841 | AN94: 3º | AO94: 1905 | AP94: Produtos de padaria, pastelaria, etc. | AQ94: 33.565983 | AR94: 36.967824 | AS94: 37.590421 | AT94: 40.83204 | AU94: 51.160185 | AV94: 40.0232906
I95: 0808 | J95: Maçãs, peras e marmelos, frescos | K95: 12.7901682 | L95: 1.7264302 | M95: 11.063738 | AC95: 4 | AD95: º | AE95: 0406 | AF95: Queijos e requeijão | AG95: 36.5430264 | AH95: 0.05271316349 | AN95: - | AO95: - | AP95: Outros | AQ95: 582.280596 | AR95: 474.622278 | AS95: 448.192342 | AT95: 503.861399 | AU95: 660.022718 | AV95: 533.7958666
I96: 1211 | J96: Plantas, partes de plantas para usos não alimentares | K96: 5.1707558 | L96: 0.272817 | M96: 4.8979388 | AC96: 5 | AD96: º | AE96: 0403 | AF96: Leitelho, leite coalhado, iogurte, etc. | AG96: 28.3725326 | AH96: 0.04092726019 | AP96: Total | AQ96: 700.223625 | AR96: 621.191676 | AS96: 652.168166 | AT96: 702.372937 | AU96: 790.258103 | AV96: 693.2429014
I97: 0704 | J97: Couves, frescas ou refrigeradas | K97: 5.8641614 | L97: 1.9009936 | M97: 3.9631678 | AC97: 6 | AD97: º | AE97: 2402 | AF97: Charutos, cigarrilhas e cigarros | AG97: 22.3273968 | AH97: 0.03220717696
I98: 0504 | J98: Tripas de animais (excepto peixes) | K98: 7.7727006 | L98: 3.8109924 | M98: 3.9617082 | AC98: 7 | AD98: º | AE98: 2309 | AF98: Preparações p/ alimentação animal | AG98: 21.0562232 | AH98: 0.03037351433
I99: 2301 | J99: Farinhas de carnes, etc. (exc. NC 2301 20) (a) | K99: 3.863721 | L99: 0.005459 | M99: 3.858262 | AC99: 8 | AD99: º | AE99: 2106 | AF99: Outras preparações alimentícias | AG99: 19.7373842 | AH99: 0.02847109456
I100: 0706 | J100: Cenouras, nabos, beterrabas, etc., frescos ou refrigerados | K100: 3.018611 | L100: 0.3566228 | M100: 2.6619882 | AC100: 9 | AD100: º | AE100: 2105 | AF100: Sorvetes, mesmo contendo cacau | AG100: 16.4613884 | AH100: 0.02374548425
I101: 1509 | J101: Azeite (processos mecânicos ou físicos) | K101: 2.687766 | L101: 0.0743466 | M101: 2.6134194 | AC101: 10 | AD101: º | AE101: 0207 | AF101: Carnes e miudezas de aves de capoeira | AG101: 14.9772862 | AH101: 0.02160467301 | AI101: 0.4600440509
I102: - | J102: Outros | K102: 83.0021812 | L102: 359.8403494 | M102: -276.8381682 | AE102: - | AF102: Outros | AG102: 374.3206288 | AH102: 0.5399559491
I103: 1005 | J103: Milho | K103: 0.0004662 | L103: 14.4239852 | M103: -14.423519 | AE103: Total | AG103: 693.2429014 | AH103: 1
I104: 0207 | J104: Carnes e miudezas de aves de capoeira | K104: 0.4018256 | L104: 14.9772862 | M104: -14.5754606
I105: 2106 | J105: Outras preparações alimentícias | K105: 0.7675504 | L105: 19.7373842 | M105: -18.9698338
I106: 2309 | J106: Preparações p/ alimentação animal | K106: 0.301131 | L106: 21.0562232 | M106: -20.7550922
I107: 2402 | J107: Charutos, cigarrilhas e cigarros | K107: 0.2660898 | L107: 22.3273968 | M107: -22.061307
I108: 0403 | J108: Leitelho, leite coalhado, iogurte, etc. | K108: 0.0449224 | L108: 28.3725326 | M108: -28.3276102
I109: 1905 | J109: Produtos de padaria, pastelaria, etc. | K109: 8.4310502 | L109: 40.0232906 | M109: -31.5922404
I110: 0406 | J110: Queijos e requeijão | K110: 1.316774 | L110: 36.5430264 | M110: -35.2262524
I111: 1806 | J111: Chocolate e outras preparações com cacau | K111: 0.1503048 | L111: 50.2598544 | M111: -50.1095496
I112: 1201 | J112: Soja, mesmo triturada | K112: 0.001717 | L112: 69.1638898 | M112: -69.1621728
I113: Total | K113: 259.8179418 | L113: 693.2429014 | M113: -433.4249596
A116: Fonte: GPP a partir de dados INE/Comércio Internacional (2022 definitivos) | Y116: 2023-11-03T12:57:12.080

Sheet 4A
A1: Evolução da balança comercial Portugal-Alemanha 2018-2022 por produto em euros (NC 2 dígitos)
A3: =+aux!A31 -> Evolução da balança comercial Portugal-Alemanha para Frutas
A5: Selecione o produto:
Q7: Para obter uma maior desagregação deste produto, clique no botão respetivo:
A20: =+aux!A43 -> Evolução da balança comercial Portugal-Alemanha para Sementes e frutos oleaginosos
A22: Selecione o produto:
A38: Fonte: GPP a partir de dados INE/Comércio Internacional (2022 definitivos) | N38: 2023-11-03T12:57:12.080

Sheet 5.2
A1: Trocas comerciais Portugal-Alemanha 2018-2022 em milhares de euros (NC 2 dígitos) | C1: Produtos agrícolas e agroalimentares, do mar e da floresta
A2: Cód. NC | B2: Descritivo | C2: Importações | K2: Exportações | S2: Saldo quinquénio (exp-imp) | T2: Evolução das importações | U2: =+"Variação das Importações " & INDEX(K3:N3,1,aux!AL1) & "-"& '5.2'!O3 &"" -> Variação das Importações 2018-2022 | Z2: Evolução das exportações | AA2: ="Variação das Exportações " & INDEX(K3:N3,1,aux!AL1) & "-"& '5.2'!O3 &"" -> Variação das Exportações 2018-2022
C3: 2018 | D3: 2019 | E3: 2020 | F3: 2021 | G3: 2022 | H3: média quinquénio | I3: % Subtot | J3: % Total | K3: 2018 | L3: 2019 | M3: 2020 | N3: 2021 | O3: 2022 | P3: média quinquénio | Q3: % Subtot | R3: % Total | U3: variação total em valor | V3: % no subtotal de variação | W3: % no total de variação | X3: taxa de variação média anual | Y3: taxa de variação total | AA3: variação total em valor | AB3: % no subtotal de variação | AC3: % no total de variação | AD3: taxa de variação média anual | AE3: taxa de variação total
A4: 01 | B4: Animais vivos | C4: 578.216 | D4: 1874.547 | E4: 1020.472 | F4: 675.31 | G4: 1614.765 | H4: 1152.662 | I4: 0.001662710138 | J4: 0.001305398602 | K4: 1706.525 | L4: 2055.447 | M4: 1412.493 | N4: 2028.041 | O4: 2472.194 | P4: 1934.94 | Q4: 0.007447291694 | R4: 0.003046182921 | S4: 782.278 | U4: =G4-INDEX($C4:$G4,1,aux!$AL$1) -> 1036.549 | V4: =IF($U$37<>0,U4/$U$37, "n.d.") -> 0.01151280069 | W4: =IF($U$53<>0,U4/$U$53, "n.d.") -> 0.007483975483 | X4: =+IF(INDEX($C4:$G4,1,aux!$AL$1)>0,(G4/INDEX($C4:$G4,1,aux!$AL$1))^(1/($G$3-INDEX($C$3:$G$3,1,aux!$AL$1)))-1,"n.d.") -> 0.2927210052 | Y4: =IF(INDEX($C4:$G4,1,aux!$AL$1)>0,(G4-INDEX($C4:$G4,1,aux!$AL$1))/INDEX($C4:$G4,1,aux!$AL$1),"n.d.") -> 1.792667446 | AA4: =O4-INDEX($K4:$O4,1,aux!$AL$1) -> 765.669 | AB4: =IF($AA$37<>0,AA4/$AA$37, "n.d.") -> 0.0066525742 | AC4: =IF($AA$53<>0,AA4/$AA$53, "n.d.") -> 0.003968044901 | AD4: =+IF(INDEX($K4:$O4,1,aux!$AL$1)>0,(O4/INDEX($K4:$O4,1,aux!$AL$1))^(1/($O$3-INDEX($K$3:$O$3,1,aux!$AL$1)))-1,"n.d.") -> 0.0970905477 | AE4: =IF(INDEX($K4:$O4,1,aux!$AL$1)>0,(O4-INDEX($K4:$O4,1,aux!$AL$1))/INDEX($K4:$O4,1,aux!$AL$1),"n.d.") -> 0.4486714229
A5: 02 | B5: Carnes e miudezas | C5: 34971.388 | D5: 37083.26 | E5: 34455.067 | F5: 43340.873 | G5: 45858.002 | H5: 39141.718 | I5: 0.05646176531 | J5: 0.04432829743 | K5: 5242.945 | L5: 6558.004 | M5: 7096.491 | N5: 9146.731 | O5: 12469.312 | P5: 8102.6966 | Q5: 0.03118605491 | R5: 0.01275610406 | S5: -31039.0214 | U5: =G5-INDEX($C5:$G5,1,aux!$AL$1) -> 10886.614 | V5: 0.1209160562 | W5: 0.07860231621 | X5: =+IF(INDEX($C5:$G5,1,aux!$AL$1)>0,(G5/INDEX($C5:$G5,1,aux!$AL$1))^(1/($G$3-INDEX($C$3:$G$3,1,aux!$AL$1)))-1,"n.d.") -> 0.07010295868 | Y5: =IF(INDEX($C5:$G5,1,aux!$AL$1)>0,(G5-INDEX($C5:$G5,1,aux!$AL$1))/INDEX($C5:$G5,1,aux!$AL$1),"n.d.") -> 0.3113005981 | AA5: =O5-INDEX($K5:$O5,1,aux!$AL$1) -> 7226.367 | AB5: 0.0627868474 | AC5: 0.03745031956 | AD5: =+IF(INDEX($K5:$O5,1,aux!$AL$1)>0,(O5/INDEX($K5:$O5,1,aux!$AL$1))^(1/($O$3-INDEX($K$3:$O$3,1,aux!$AL$1)))-1,"n.d.") -> 0.2418432969 | AE5: =IF(INDEX($K5:$O5,1,aux!$AL$1)>0,(O5-INDEX($K5:$O5,1,aux!$AL$1))/INDEX($K5:$O5,1,aux!$AL$1),"n.d.") -> 1.378303034
A6: 04 | B6: Leite e laticínios; ovos; mel, etc. | C6: 84890.168 | D6: 90781.275 | E6: 84366.628 | F6: 88729.946 | G6: 109343.343 | H6: 91622.272 | I6: 0.132164746 | J6: 0.1037629295 | K6: 1772.238 | L6: 3093.796 | M6: 6201.126 | N6: 7069.575 | O6: 9635.195 | P6: 5554.386 | Q6: 0.02137799246 | R6: 0.008744289625 | S6: -86067.886 | U6: =G6-INDEX($C6:$G6,1,aux!$AL$1) -> 24453.175 | V6: 0.2715978983 | W6: 0.1765540869 | X6: =+IF(INDEX($C6:$G6,1,aux!$AL$1)>0,(G6/INDEX($C6:$G6,1,aux!$AL$1))^(1/($G$3-INDEX($C$3:$G$3,1,aux!$AL$1)))-1,"n.d.") -> 0.06532897363 | Y6: =IF(INDEX($C6:$G6,1,aux!$AL$1)>0,(G6-INDEX($C6:$G6,1,aux!$AL$1))/INDEX($C6:$G6,1,aux!$AL$1),"n.d.") -> 0.2880566216 | AA6: =O6-INDEX($K6:$O6,1,aux!$AL$1) -> 7862.957 | AB6: 0.06831790875 | AC6: 0.0407494184 | AD6: =+IF(INDEX($K6:$O6,1,aux!$AL$1)>0,(O6/INDEX($K6:$O6,1,aux!$AL$1))^(1/($O$3-INDEX($K$3:$O$3,1,aux!$AL$1)))-1,"n.d.") -> 0.5269844555 | AE6: =IF(INDEX($K6:$O6,1,aux!$AL$1)>0,(O6-INDEX($K6:$O6,1,aux!$AL$1))/INDEX($K6:$O6,1,aux!$AL$1),"n.d.") -> 4.436738745
A7: 05a | B7: Outros produtos de origem animal (exc. NC 0508, 051191) (a) | C7: 7315.399 | D7: 1848.671 | E7: 4116.247 | F7: 3846.646 | G7: 4402.602 | H7: 4305.913 | I7: 0.006211261581 | J7: 0.004876479673 | K7: 7498.288 | L7: 5377.942 | M7: 7324.518 | N7: 10157.255 | O7: 10934.972 | P7: 8258.595 | Q7: 0.0317860843 | R7: 0.01300153547 | S7: 3952.682 | U7: =G7-INDEX($C7:$G7,1,aux!$AL$1) -> -2912.797 | V7: -0.03235201741 | W7: -0.02103065203 | X7: =+IF(INDEX($C7:$G7,1,aux!$AL$1)>0,(G7/INDEX($C7:$G7,1,aux!$AL$1))^(1/($G$3-INDEX($C$3:$G$3,1,aux!$AL$1)))-1,"n.d.") -> -0.1192191736 | Y7: =IF(INDEX($C7:$G7,1,aux!$AL$1)>0,(G7-INDEX($C7:$G7,1,aux!$AL$1))/INDEX($C7:$G7,1,aux!$AL$1),"n.d.") -> -0.3981733601 | AA7: =O7-INDEX($K7:$O7,1,aux!$AL$1) -> 3436.684 | AB7: 0.02985989417 | AC7: 0.01781045912 | AD7: =+IF(INDEX($K7:$O7,1,aux!$AL$1)>0,(O7/INDEX($K7:$O7,1,aux!$AL$1))^(1/($O$3-INDEX($K$3:$O$3,1,aux!$AL$1)))-1,"n.d.") -> 0.09891446377 | AE7: =IF(INDEX($K7:$O7,1,aux!$AL$1)>0,(O7-INDEX($K7:$O7,1,aux!$AL$1))/INDEX($K7:$O7,1,aux!$AL$1),"n.d.") -> 0.4583291546
A8: 06 | B8: Plantas vivas e produtos de floricultura | C8: 6637.737 | D8: 6866.913 | E8: 9189.865 | F8: 9932.218 | G8: 10527.707 | H8: 8630.888 | I8: 0.01245002002 | J8: 0.009774547208 | K8: 4515.544 | L8: 5859.007 | M8: 7494.578 | N8: 9126.861 | O8: 8835.204 | P8: 7166.2388 | Q8: 0.02758177034 | R8: 0.01128183522 | S8: -1464.6492 | U8: =G8-INDEX($C8:$G8,1,aux!$AL$1) -> 3889.97 | V8: 0.0432053374 | W8: 0.02808592754 | X8: =+IF(INDEX($C8:$G8,1,aux!$AL$1)>0,(G8/INDEX($C8:$G8,1,aux!$AL$1))^(1/($G$3-INDEX($C$3:$G$3,1,aux!$AL$1)))-1,"n.d.") -> 0.1222211184 | Y8: =IF(INDEX($C8:$G8,1,aux!$AL$1)>0,(G8-INDEX($C8:$G8,1,aux!$AL$1))/INDEX($C8:$G8,1,aux!$AL$1),"n.d.") -> 0.5860385851 | AA8: =O8-INDEX($K8:$O8,1,aux!$AL$1) -> 4319.66 | AB8: 0.0375316993 | AC8: 0.02238644223 | AD8: =+IF(INDEX($K8:$O8,1,aux!$AL$1)>0,(O8/INDEX($K8:$O8,1,aux!$AL$1))^(1/($O$3-INDEX($K$3:$O$3,1,aux!$AL$1)))-1,"n.d.") -> 0.1827055254 | AE8: =IF(INDEX($K8:$O8,1,aux!$AL$1)>0,(O8-INDEX($K8:$O8,1,aux!$AL$1))/INDEX($K8:$O8,1,aux!$AL$1),"n.d.") -> 0.9566200662
A9: 07 | B9: Produtos hortícolas | C9: 18182.19 | D9: 21076.473 | E9: 19427.986 | F9: 15157.042 | G9: 13667.563 | H9: 17502.2508 | I9: 0.02524692393 | J9: 0.01982143398 | K9: 10878.509 | L9: 16905.413 | M9: 19768.17 | N9: 21899.397 | O9: 18750.628 | P9: 17640.4234 | Q9: 0.06789532423 | R9: 0.02777138127 | S9: 138.1726 | U9: =G9-INDEX($C9:$G9,1,aux!$AL$1) -> -4514.627 | V9: -0.05014331288 | W9: -0.03259600635 | X9: =+IF(INDEX($C9:$G9,1,aux!$AL$1)>0,(G9/INDEX($C9:$G9,1,aux!$AL$1))^(1/($G$3-INDEX($C$3:$G$3,1,aux!$AL$1)))-1,"n.d.") -> -0.06886806224 | Y9: =IF(INDEX($C9:$G9,1,aux!$AL$1)>0,(G9-INDEX($C9:$G9,1,aux!$AL$1))/INDEX($C9:$G9,1,aux!$AL$1),"n.d.") -> -0.2482994073 | AA9: =O9-INDEX($K9:$O9,1,aux!$AL$1) -> 7872.119 | AB9: 0.06839751349 | AC9: 0.04079690005 | AD9: =+IF(INDEX($K9:$O9,1,aux!$AL$1)>0,(O9/INDEX($K9:$O9,1,aux!$AL$1))^(1/($O$3-INDEX($K$3:$O$3,1,aux!$AL$1)))-1,"n.d.") -> 0.145807368 | AE9: =IF(INDEX($K9:$O9,1,aux!$AL$1)>0,(O9-INDEX($K9:$O9,1,aux!$AL$1))/INDEX($K9:$O9,1,aux!$AL$1),"n.d.") -> 0.7236395171
A10: 08 | B10: Frutas | C10: 29700.623 | D10: 34836.471 | E10: 41672.705 | F10: 40702.084 | G10: 45834.39 | H10: 38549.2546 | I10: 0.05560713932 | J10: 0.04365732806 | K10: 59503.729 | L10: 68172.337 | M10: 69322.57 | N10: 80521.592 | O10: 89782.683 | P10: 73460.5822 | Q10: 0.2827386811 | R10: 0.1156492557 | S10: 34911.3276 | U10: =G10-INDEX($C10:$G10,1,aux!$AL$1) -> 16133.767 | V10: 0.17919543 | W10: 0.1164872251 | X10: =+IF(INDEX($C10:$G10,1,aux!$AL$1)>0,(G10/INDEX($C10:$G10,1,aux!$AL$1))^(1/($G$3-INDEX($C$3:$G$3,1,aux!$AL$1)))-1,"n.d.") -> 0.114567754 | Y10: =IF(INDEX($C10:$G10,1,aux!$AL$1)>0,(G10-INDEX($C10:$G10,1,aux!$AL$1))/INDEX($C10:$G10,1,aux!$AL$1),"n.d.") -> 0.5432130834 | AA10: =O10-INDEX($K10:$O10,1,aux!$AL$1) -> 30278.954 | AB10: 0.2630810287 | AC10: 0.1569193072 | AD10: =+IF(INDEX($K10:$O10,1,aux!$AL$1)>0,(O10/INDEX($K10:$O10,1,aux!$AL$1))^(1/($O$3-INDEX($K$3:$O$3,1,aux!$AL$1)))-1,"n.d.") -> 0.1083121623 | AE10: =IF(INDEX($K10:$O10,1,aux!$AL$1)>0,(O10-INDEX($K10:$O10,1,aux!$AL$1))/INDEX($K10:$O10,1,aux!$AL$1),"n.d.") -> 0.5088580919
A11: 09 | B11: Café, chá, mate e especiarias | C11: 12938.579 | D11: 11371.55 | E11: 16158.751 | F11: 19750.606 | G11: 23439.855 | H11: 16731.8682 | I11: 0.02413565024 | J11: 0.01894896975 | K11: 1541.644 | L11: 2309.527 | M11: 2830.781 | N11: 3277.561 | O11: 5676.684 | P11: 3127.2394 | Q11: 0.01203627193 | R11: 0.004923224104 | S11: -13604.6288 | U11: =G11-INDEX($C11:$G11,1,aux!$AL$1) -> 10501.276 | V11: 0.1166361624 | W11: 0.07582014176 | X11: =+IF(INDEX($C11:$G11,1,aux!$AL$1)>0,(G11/INDEX($C11:$G11,1,aux!$AL$1))^(1/($G$3-INDEX($C$3:$G$3,1,aux!$AL$1)))-1,"n.d.") -> 0.1601578548 | Y11: =IF(INDEX($C11:$G11,1,aux!$AL$1)>0,(G11-INDEX($C11:$G11,1,aux!$AL$1))/INDEX($C11:$G11,1,aux!$AL$1),"n.d.") -> 0.8116251406 | AA11: =O11-INDEX($K11:$O11,1,aux!$AL$1) -> 4135.04 | AB11: 0.03592761418 | AC11: 0.02142965745 | AD11: =+IF(INDEX($K11:$O11,1,aux!$AL$1)>0,(O11/INDEX($K11:$O11,1,aux!$AL$1))^(1/($O$3-INDEX($K$3:$O$3,1,aux!$AL$1)))-1,"n.d.") -> 0.3852483948 | AE11: =IF(INDEX($K11:$O11,1,aux!$AL$1)>0,(O11-INDEX($K11:$O11,1,aux!$AL$1))/INDEX($K11:$O11,1,aux!$AL$1),"n.d.") -> 2.682227544
A12: 10 | B12: Cereais | C12: 86441.746 | D12: 8602.299 | E12: 11089.202 | F12: 30161.159 | G12: 65112.957 | H12: 40281.4726 | I12: 0.05810585657 | J12: 0.04561907831 | K12: 819.631 | L12: 868.54 | M12: 1018.324 | N12: 766.759 | O12: 1058.556 | P12: 906.362 | Q12: 0.003488450388 | R12: 0.001426888919 | S12: -39375.1106 | U12: =G12-INDEX($C12:$G12,1,aux!$AL$1) -> -21328.789 | V12: -0.2368957923 | W12: -0.1539957435 | X12: =+IF(INDEX($C12:$G12,1,aux!$AL$1)>0,(G12/INDEX($C12:$G12,1,aux!$AL$1))^(1/($G$3-INDEX($C$3:$G$3,1,aux!$AL$1)))-1,"n.d.") -> -0.06838607361 | Y12: =IF(INDEX($C12:$G12,1,aux!$AL$1)>0,(G12-INDEX($C12:$G12,1,aux!$AL$1))/INDEX($C12:$G12,1,aux!$AL$1),"n.d.") -> -0.2467417653 | AA12: =O12-INDEX($K12:$O12,1,aux!$AL$1) -> 238.925 | AB12: 0.002075918302 | AC12: 0.001238217987 | AD12: =+IF(INDEX($K12:$O12,1,aux!$AL$1)>0,(O12/INDEX($K12:$O12,1,aux!$AL$1))^(1/($O$3-INDEX($K$3:$O$3,1,aux!$AL$1)))-1,"n.d.") -> 0.06604089582 | AE12: =IF(INDEX($K12:$O12,1,aux!$AL$1)>0,(O12-INDEX($K12:$O12,1,aux!$AL$1))/INDEX($K12:$O12,1,aux!$AL$1),"n.d.") -> 0.2915031276
A13: 11 | B13: Produtos da indústria de moagem e outros | C13: 2670.546 | D13: 3372.147 | E13: 3725.445 | F13: 4227.007 | G13: 5676.724 | H13: 3934.3738 | I13: 0.005675317832 | J13: 0.004455708664 | K13: 40.742 | L13: 57.67 | M13: 205.175 | N13: 340.63 | O13: 1035.977 | P13: 336.0388 | Q13: 0.001293362566 | R13: 0.0005290270774 | S13: -3598.335 | U13: =G13-INDEX($C13:$G13,1,aux!$AL$1) -> 3006.178 | V13: 0.03338918675 | W13: 0.02170487111 | X13: =+IF(INDEX($C13:$G13,1,aux!$AL$1)>0,(G13/INDEX($C13:$G13,1,aux!$AL$1))^(1/($G$3-INDEX($C$3:$G$3,1,aux!$AL$1)))-1,"n.d.") -> 0.2074646611 | Y13: =IF(INDEX($C13:$G13,1,aux!$AL$1)>0,(G13-INDEX($C13:$G13,1,aux!$AL$1))/INDEX($C13:$G13,1,aux!$AL$1),"n.d.") -> 1.125679168 | AA13: =O13-INDEX($K13:$O13,1,aux!$AL$1) -> 995.235 | AB13: 0.008647176109 | AC13: 0.005157760295 | AD13: =+IF(INDEX($K13:$O13,1,aux!$AL$1)>0,(O13/INDEX($K13:$O13,1,aux!$AL$1))^(1/($O$3-INDEX($K$3:$O$3,1,aux!$AL$1)))-1,"n.d.") -> 1.245571782 | AE13: =IF(INDEX($K13:$O13,1,aux!$AL$1)>0,(O13-INDEX($K13:$O13,1,aux!$AL$1))/INDEX($K13:$O13,1,aux!$AL$1),"n.d.") -> 24.42774042
A14: 12 | B14: Sementes e frutos oleaginosos | C14: 90789.146 | D14: 89350.007 | E14: 119160.344 | F14: 127195.805 | G14: 52089.1 | H14: 95716.8804 | I14: 0.1380712016 | J14: 0.1084001051 | K14: 1861.639 | L14: 4421.608 | M14: 11343.765 | N14: 5398.623 | O14: 10221.991 | P14: 6649.5252 | Q14: 0.02559301776 | R14: 0.01046837116 | S14: -89067.3552 | U14: =G14-INDEX($C14:$G14,1,aux!$AL$1) -> -38700.046 | V14: -0.4298358458 | W14: -0.2794177559 | X14: =+IF(INDEX($C14:$G14,1,aux!$AL$1)>0,(G14/INDEX($C14:$G14,1,aux!$AL$1))^(1/($G$3-INDEX($C$3:$G$3,1,aux!$AL$1)))-1,"n.d.") -> -0.129681469 | Y14: =IF(INDEX($C14:$G14,1,aux!$AL$1)>0,(G14-INDEX($C14:$G14,1,aux!$AL$1))/INDEX($C14:$G14,1,aux!$AL$1),"n.d.") -> -0.4262629147 | AA14: =O14-INDEX($K14:$O14,1,aux!$AL$1) -> 8360.352 | AB14: 0.07263956359 | AC14: 0.04332714545 | AD14: =+IF(INDEX($K14:$O14,1,aux!$AL$1)>0,(O14/INDEX($K14:$O14,1,aux!$AL$1))^(1/($O$3-INDEX($K$3:$O$3,1,aux!$AL$1)))-1,"n.d.") -> 0.5307702259 | AE14: =IF(INDEX($K14:$O14,1,aux!$AL$1)>0,(O14-INDEX($K14:$O14,1,aux!$AL$1))/INDEX($K14:$O14,1,aux!$AL$1),"n.d.") -> 4.490855638
A15: 13a | B15: Sucos e extratos vegetais (exc. NC 1301) (a) | C15: 1716.471 | D15: 2040.027 | E15: 1701.276 | F15: 1864.291 | G15: 2122.345 | H15: 1888.882 | I15: 0.002724704423 | J15: 0.002139173429 | K15: 27.759 | L15: 5.636 | M15: 1.112 | N15: 3.752 | O15: 6.24 | P15: 8.8998 | Q15: 3.425398546e-05 | R15: 1.401098678e-05 | S15: -1879.9822 | U15: =G15-INDEX($C15:$G15,1,aux!$AL$1) -> 405.874 | V15: 0.004507984152 | W15: 0.002930446187 | X15: =+IF(INDEX($C15:$G15,1,aux!$AL$1)>0,(G15/INDEX($C15:$G15,1,aux!$AL$1))^(1/($G$3-INDEX($C$3:$G$3,1,aux!$AL$1)))-1,"n.d.") -> 0.05449585761 | Y15: =IF(INDEX($C15:$G15,1,aux!$AL$1)>0,(G15-INDEX($C15:$G15,1,aux!$AL$1))/INDEX($C15:$G15,1,aux!$AL$1),"n.d.") -> 0.236458408 | AA15: =O15-INDEX($K15:$O15,1,aux!$AL$1) -> -21.519 | AB15: -0.0001869694923 | AC15: -0.0001115212425 | AD15: =+IF(INDEX($K15:$O15,1,aux!$AL$1)>0,(O15/INDEX($K15:$O15,1,aux!$AL$1))^(1/($O$3-INDEX($K$3:$O$3,1,aux!$AL$1)))-1,"n.d.") -> -0.3114346042 | AE15: =IF(INDEX($K15:$O15,1,aux!$AL$1)>0,(O15-INDEX($K15:$O15,1,aux!$AL$1))/INDEX($K15:$O15,1,aux!$AL$1),"n.d.") -> -0.7752080406
A16: 14 | B16: Matérias para entrançar e outros | C16: 39.441 | D16: 53.042 | E16: 24.351 | F16: 90.238 | G16: 57.667 | H16: 52.9478 | I16: 7.637698113e-05 | J16: 5.996379175e-05 | K16: 1.354 | L16: 0.525 | M16: 0.064 | N16: 0.001 | O16: 0.112 | P16: 0.4112 | Q16: 1.582646668e-06 | R16: 6.473536218e-07 | S16: -52.5366 | U16: =G16-INDEX($C16:$G16,1,aux!$AL$1) -> 18.226 | V16: 0.0002024335611 | W16: 0.0001315933324 | X16: =+IF(INDEX($C16:$G16,1,aux!$AL$1)>0,(G16/INDEX($C16:$G16,1,aux!$AL$1))^(1/($G$3-INDEX($C$3:$G$3,1,aux!$AL$1)))-1,"n.d.") -> 0.09962564642 | Y16: =IF(INDEX($C16:$G16,1,aux!$AL$1)>0,(G16-INDEX($C16:$G16,1,aux!$AL$1))/INDEX($C16:$G16,1,aux!$AL$1),"n.d.") -> 0.4621079587 | AA16: =O16-INDEX($K16:$O16,1,aux!$AL$1) -> -1.242 | AB16: -1.079121286e-05 | AC16: -6.436608727e-06 | AD16: =+IF(INDEX($K16:$O16,1,aux!$AL$1)>0,(O16/INDEX($K16:$O16,1,aux!$AL$1))^(1/($O$3-INDEX($K$3:$O$3,1,aux!$AL$1)))-1,"n.d.") -> -0.4637098263 | AE16: =IF(INDEX($K16:$O16,1,aux!$AL$1)>0,(O16-INDEX($K16:$O16,1,aux!$AL$1))/INDEX($K16:$O16,1,aux!$AL$1),"n.d.") -> -0.917282127
A17: 15 | B17: Gorduras e óleos animais ou vegetais | C17: 17450.244 | D17: 6959.676 | E17: 4458.971 | F17: 4270.257 | G17: 11536.981 | H17: 8935.2258 | I17: 0.01288902603 | J17: 0.01011921211 | K17: 13395.053 | L17: 10667.775 | M17: 8176.371 | N17: 5447.106 | O17: 13589.36 | P17: 10255.133 | Q17: 0.03947045739 | R17: 0.01614469234 | S17: 1319.9072 | U17: =G17-INDEX($C17:$G17,1,aux!$AL$1) -> -5913.263 | V17: -0.0656777618 | W17: -0.042694282 | X17: =+IF(INDEX($C17:$G17,1,aux!$AL$1)>0,(G17/INDEX($C17:$G17,1,aux!$AL$1))^(1/($G$3-INDEX($C$3:$G$3,1,aux!$AL$1)))-1,"n.d.") -> -0.09827799428 | Y17: =IF(INDEX($C17:$G17,1,aux!$AL$1)>0,(G17-INDEX($C17:$G17,1,aux!$AL$1))/INDEX($C17:$G17,1,aux!$AL$1),"n.d.") -> -0.3388642016 | AA17: =O17-INDEX($K17:$O17,1,aux!$AL$1) -> 194.307 | AB17: 0.001688251366 | AC17: 0.001006987224 | AD17: =+IF(INDEX($K17:$O17,1,aux!$AL$1)>0,(O17/INDEX($K17:$O17,1,aux!$AL$1))^(1/($O$3-INDEX($K$3:$O$3,1,aux!$AL$1)))-1,"n.d.") -> 0.003606907771 | AE17: =IF(INDEX($K17:$O17,1,aux!$AL$1)>0,(O17-INDEX($K17:$O17,1,aux!$AL$1))/INDEX($K17:$O17,1,aux!$AL$1),"n.d.") -> 0.01450587765
A18: 16a | B18: Preparações de carnes (exc. NC 1604-05) (a) | C18: 24280.144 | D18: 23414.39 | E18: 23858.683 | F18: 25660.593 | G18: 30203.598 | H18: 25483.4816 | I18: 0.03675981615 | J18: 0.0288602394 | K18: 603.665 | L18: 758.125 | M18: 1639.123 | N18: 1698.92 | O18: 1722.476 | P18: 1284.4618 | Q18: 0.004943699389 | R18: 0.002022132778 | S18: -24199.0198 | U18: =G18-INDEX($C18:$G18,1,aux!$AL$1) -> 5923.454 | V18: 0.06579095177 | W18: 0.04276786192 | X18: =+IF(INDEX($C18:$G18,1,aux!$AL$1)>0,(G18/INDEX($C18:$G18,1,aux!$AL$1))^(1/($G$3-INDEX($C$3:$G$3,1,aux!$AL$1)))-1,"n.d.") -> 0.05609225044 | Y18: =IF(INDEX($C18:$G18,1,aux!$AL$1)>0,(G18-INDEX($C18:$G18,1,aux!$AL$1))/INDEX($C18:$G18,1,aux!$AL$1),"n.d.") -> 0.2439628859 | AA18: =O18-INDEX($K18:$O18,1,aux!$AL$1) -> 1118.811 | AB18: 0.009720875722 | AC18: 0.005798187316 | AD18: =+IF(INDEX($K18:$O18,1,aux!$AL$1)>0,(O18/INDEX($K18:$O18,1,aux!$AL$1))^(1/($O$3-INDEX($K$3:$O$3,1,aux!$AL$1)))-1,"n.d.") -> 0.2996885584 | AE18: =IF(INDEX($K18:$O18,1,aux!$AL$1)>0,(O18-INDEX($K18:$O18,1,aux!$AL$1))/INDEX($K18:$O18,1,aux!$AL$1),"n.d.") -> 1.853364035
A19: 17 | B19: Açúcares e produtos de confeitaria | C19: 10631.295 | D19: 11576.505 | E19: 11964.89 | F19: 10042.219 | G19: 14155.83 | H19: 11674.1478 | I19: 0.01683990961 | J19: 0.0132210624 | K19: 128.962 | L19: 132.495 | M19: 122.12 | N19: 201.145 | O19: 664.876 | P19: 249.9196 | Q19: 0.000961902778 | R19: 0.0003934493147 | S19: -11424.2282 | U19: =G19-INDEX($C19:$G19,1,aux!$AL$1) -> 3524.535 | V19: 0.03914650341 | W19: 0.02544745451 | X19: =+IF(INDEX($C19:$G19,1,aux!$AL$1)>0,(G19/INDEX($C19:$G19,1,aux!$AL$1))^(1/($G$3-INDEX($C$3:$G$3,1,aux!$AL$1)))-1,"n.d.") -> 0.07420530373 | Y19: =IF(INDEX($C19:$G19,1,aux!$AL$1)>0,(G19-INDEX($C19:$G19,1,aux!$AL$1))/INDEX($C19:$G19,1,aux!$AL$1),"n.d.") -> 0.3315245226 | AA19: =O19-INDEX($K19:$O19,1,aux!$AL$1) -> 535.914 | AB19: 0.00465633015 | AC19: 0.002777350024 | AD19: =+IF(INDEX($K19:$O19,1,aux!$AL$1)>0,(O19/INDEX($K19:$O19,1,aux!$AL$1))^(1/($O$3-INDEX($K$3:$O$3,1,aux!$AL$1)))-1,"n.d.") -> 0.5068489652 | AE19: =IF(INDEX($K19:$O19,1,aux!$AL$1)>0,(O19-INDEX($K19:$O19,1,aux!$AL$1))/INDEX($K19:$O19,1,aux!$AL$1),"n.d.") -> 4.155596222
A20: 18 | B20: Cacau e suas preparações | C20: 47047.023 | D20: 50885.921 | E20: 52638.434 | F20: 52124.909 | G20: 58392.438 | H20: 52217.745 | I20: 0.07532387983 | J20: 0.05913699883 | K20: 97.72 | L20: 126.895 | M20: 168.361 | N20: 292.213 | O20: 89.685 | P20: 154.9748 | Q20: 0.0005964745888 | R20: 0.0002439773786 | S20: -52062.7702 | U20: =G20-INDEX($C20:$G20,1,aux!$AL$1) -> 11345.415 | V20: 0.1260118929 | W20: 0.08191490002 | X20: =+IF(INDEX($C20:$G20,1,aux!$AL$1)>0,(G20/INDEX($C20:$G20,1,aux!$AL$1))^(1/($G$3-INDEX($C$3:$G$3,1,aux!$AL$1)))-1,"n.d.") -> 0.05549484152 | Y20: =IF(INDEX($C20:$G20,1,aux!$AL$1)>0,(G20-INDEX($C20:$G20,1,aux!$AL$1))/INDEX($C20:$G20,1,aux!$AL$1),"n.d.") -> 0.24115054 | AA20: =O20-INDEX($K20:$O20,1,aux!$AL$1) -> -8.035 | AB20: -6.981271763e-05 | AC20: -4.164102345e-05 | AD20: =+IF(INDEX($K20:$O20,1,aux!$AL$1)>0,(O20/INDEX($K20:$O20,1,aux!$AL$1))^(1/($O$3-INDEX($K$3:$O$3,1,aux!$AL$1)))-1,"n.d.") -> -0.02122224927 | AE20: =IF(INDEX($K20:$O20,1,aux!$AL$1)>0,(O20-INDEX($K20:$O20,1,aux!$AL$1))/INDEX($K20:$O20,1,aux!$AL$1),"n.d.") -> -0.0822247237
A21: 19a | B21: Preparações à base de cereais (exc. NC 19022010) (a) | C21: 52848.259 | D21: 55570.363 | E21: 58390.985 | F21: 64494.747 | G21: 81877.175 | H21: 62636.3058 | I21: 0.09035261042 | J21: 0.07093609927 | K21: 9912.93 | L21: 11536.962 | M21: 11319.841 | N21: 13065.915 | O21: 13813.032 | P21: 11929.736 | Q21: 0.0459157513 | R21: 0.01878102579 | S21: -50706.5698 | U21: =G21-INDEX($C21:$G21,1,aux!$AL$1) -> 29028.916 | V21: 0.3224199956 | W21: 0.2095913417 | X21: =+IF(INDEX($C21:$G21,1,aux!$AL$1)>0,(G21/INDEX($C21:$G21,1,aux!$AL$1))^(1/($G$3-INDEX($C$3:$G$3,1,aux!$AL$1)))-1,"n.d.") -> 0.1156630281 | Y21: =IF(INDEX($C21:$G21,1,aux!$AL$1)>0,(G21-INDEX($C21:$G21,1,aux!$AL$1))/INDEX($C21:$G21,1,aux!$AL$1),"n.d.") -> 0.5492880286 | AA21: =O21-INDEX($K21:$O21,1,aux!$AL$1) -> 3900.102 | AB21: 0.03388633723 | AC21: 0.02021210191 | AD21: =+IF(INDEX($K21:$O21,1,aux!$AL$1)>0,(O21/INDEX($K21:$O21,1,aux!$AL$1))^(1/($O$3-INDEX($K$3:$O$3,1,aux!$AL$1)))-1,"n.d.") -> 0.08648002106 | AE21: =IF(INDEX($K21:$O21,1,aux!$AL$1)>0,(O21-INDEX($K21:$O21,1,aux!$AL$1))/INDEX($K21:$O21,1,aux!$AL$1),"n.d.") -> 0.3934358459
A22: 20 | B22: Preparações de produtos vegetais | C22: 23247.686 | D22: 24000.545 | E22: 25779.262 | F22: 27026.405 | G22: 32034.802 | H22: 26417.74 | I22: 0.03810748 | J22: 0.02991829424 | K22: 22109.366 | L22: 21448.741 | M22: 22820.902 | N22: 26285.219 | O22: 44447.177 | P22: 27422.281 | Q22: 0.1055442161 | R22: 0.04317099446 | S22: 1004.541 | U22: =G22-INDEX($C22:$G22,1,aux!$AL$1) -> 8787.116 | V22: 0.09759723381 | W22: 0.06344375491 | X22: =+IF(INDEX($C22:$G22,1,aux!$AL$1)>0,(G22/INDEX($C22:$G22,1,aux!$AL$1))^(1/($G$3-INDEX($C$3:$G$3,1,aux!$AL$1)))-1,"n.d.") -> 0.08345425185 | Y22: =IF(INDEX($C22:$G22,1,aux!$AL$1)>0,(G22-INDEX($C22:$G22,1,aux!$AL$1))/INDEX($C22:$G22,1,aux!$AL$1),"n.d.") -> 0.3779780921 | AA22: =O22-INDEX($K22:$O22,1,aux!$AL$1) -> 22337.811 | AB22: 0.1940837949 | AC22: 0.1157646934 | AD22: =+IF(INDEX($K22:$O22,1,aux!$AL$1)>0,(O22/INDEX($K22:$O22,1,aux!$AL$1))^(1/($O$3-INDEX($K$3:$O$3,1,aux!$AL$1)))-1,"n.d.") -> 0.1907400835 | AE22: =IF(INDEX($K22:$O22,1,aux!$AL$1)>0,(O22-INDEX($K22:$O22,1,aux!$AL$1))/INDEX($K22:$O22,1,aux!$AL$1),"n.d.") -> 1.010332499
A23: 21 | B23: Preparações alimentícias diversas | C23: 42196.22 | D23: 44296.491 | E23: 48389.542 | F23: 55305.993 | G23: 69473.93 | H23: 51932.4352 | I23: 0.07491232163 | J23: 0.05881388328 | K23: 9974.439 | L23: 7762.584 | M23: 10161.986 | N23: 12973.999 | O23: 25053.928 | P23: 13185.3872 | Q23: 0.05074856305 | R23: 0.02075780194 | S23: -38747.048 | U23: =G23-INDEX($C23:$G23,1,aux!$AL$1) -> 27277.71 | V23: 0.3029696024 | W23: 0.1969474794 | X23: =+IF(INDEX($C23:$G23,1,aux!$AL$1)>0,(G23/INDEX($C23:$G23,1,aux!$AL$1))^(1/($G$3-INDEX($C$3:$G$3,1,aux!$AL$1)))-1,"n.d.") -> 0.1327578478 | Y23: =IF(INDEX($C23:$G23,1,aux!$AL$1)>0,(G23-INDEX($C23:$G23,1,aux!$AL$1))/INDEX($C23:$G23,1,aux!$AL$1),"n.d.") -> 0.6464491369 | AA23: =O23-INDEX($K23:$O23,1,aux!$AL$1) -> 15079.489 | AB23: 0.131019304 | AC23: 0.07814876852 | AD23: =+IF(INDEX($K23:$O23,1,aux!$AL$1)>0,(O23/INDEX($K23:$O23,1,aux!$AL$1))^(1/($O$3-INDEX($K$3:$O$3,1,aux!$AL$1)))-1,"n.d.") -> 0.2589162418 | AE23: =IF(INDEX($K23:$O23,1,aux!$AL$1)>0,(O23-INDEX($K23:$O23,1,aux!$AL$1))/INDEX($K23:$O23,1,aux!$AL$1),"n.d.") -> 1.511813246
A24: 22 | B24: Bebidas, líquidos alcoólicos e vinagres | C24: 16625.423 | D24: 16229.121 | E24: 17419.936 | F24: 21917.115 | G24: 25591.893 | H24: 19556.6976 | I24: 0.02821045489 | J24: 0.02214811082 | K24: 56386.188 | L24: 54861.642 | M24: 58223.946 | N24: 59449.314 | O24: 55916.027 | P24: 56967.4234 | Q24: 0.219259005 | R24: 0.08968401717 | S24: 37410.7258 | U24: =G24-INDEX($C24:$G24,1,aux!$AL$1) -> 8966.47 | V24: 0.09958929289 | W24: 0.06473870666 | X24: =+IF(INDEX($C24:$G24,1,aux!$AL$1)>0,(G24/INDEX($C24:$G24,1,aux!$AL$1))^(1/($G$3-INDEX($C$3:$G$3,1,aux!$AL$1)))-1,"n.d.") -> 0.1138646644 | Y24: =IF(INDEX($C24:$G24,1,aux!$AL$1)>0,(G24-INDEX($C24:$G24,1,aux!$AL$1))/INDEX($C24:$G24,1,aux!$AL$1),"n.d.") -> 0.539322819 | AA24: =O24-INDEX($K24:$O24,1,aux!$AL$1) -> -470.161 | AB24: -0.004085030135 | AC24: -0.00243658808 | AD24: =+IF(INDEX($K24:$O24,1,aux!$AL$1)>0,(O24/INDEX($K24:$O24,1,aux!$AL$1))^(1/($O$3-INDEX($K$3:$O$3,1,aux!$AL$1)))-1,"n.d.") -> -0.002091107437 | AE24: =IF(INDEX($K24:$O24,1,aux!$AL$1)>0,(O24-INDEX($K24:$O24,1,aux!$AL$1))/INDEX($K24:$O24,1,aux!$AL$1),"n.d.") -> -0.008338229923
A25: 23a | B25: Resíduos indústrias alimentares; alimentos p/ animais (exc. NC 230120) (a) | C25: 21766.144 | D25: 20981.864 | E25: 29915.259 | F25: 25811.297 | G25: 46049.113 | H25: 28904.7354 | I25: 0.04169496051 | J25: 0.03273483571 | K25: 6051.726 | L25: 5775.859 | M25: 5454.248 | N25: 1970.222 | O25: 1591.857 | P25: 4168.7824 | Q25: 0.01604501356 | R25: 0.006562928952 | S25: -24735.953 | U25: =G25-INDEX($C25:$G25,1,aux!$AL$1) -> 24282.969 | V25: 0.2697074447 | W25: 0.1753251845 | X25: =+IF(INDEX($C25:$G25,1,aux!$AL$1)>0,(G25/INDEX($C25:$G25,1,aux!$AL$1))^(1/($G$3-INDEX($C$3:$G$3,1,aux!$AL$1)))-1,"n.d.") -> 0.2060350868 | Y25: =IF(INDEX($C25:$G25,1,aux!$AL$1)>0,(G25-INDEX($C25:$G25,1,aux!$AL$1))/INDEX($C25:$G25,1,aux!$AL$1),"n.d.") -> 1.115630265 | AA25: =O25-INDEX($K25:$O25,1,aux!$AL$1) -> -4459.869 | AB25: -0.03874991601 | AC25: -0.02311306902 | AD25: =+IF(INDEX($K25:$O25,1,aux!$AL$1)>0,(O25/INDEX($K25:$O25,1,aux!$AL$1))^(1/($O$3-INDEX($K$3:$O$3,1,aux!$AL$1)))-1,"n.d.") -> -0.2838463681 | AE25: =IF(INDEX($K25:$O25,1,aux!$AL$1)>0,(O25-INDEX($K25:$O25,1,aux!$AL$1))/INDEX($K25:$O25,1,aux!$AL$1),"n.d.") -> -0.7369581835
A26: 24 | B26: Tabaco | C26: 46593.025 | D26: 39007.939 | E26: 16107.648 | F26: 13164.125 | G26: 17623.563 | H26: 26499.26 | I26: 0.03822507226 | J26: 0.03001061627 | K26: 545.29 | L26: 126.651 | M26: 188.881 | N26: 104.959 | O26: 660.88 | P26: 325.3322 | Q26: 0.001252154481 | R26: 0.000512171639 | S26: -26173.9278 | U26: =G26-INDEX($C26:$G26,1,aux!$AL$1) -> -28969.462 | V26: -0.3217596486 | W26: -0.2091620786 | X26: =+IF(INDEX($C26:$G26,1,aux!$AL$1)>0,(G26/INDEX($C26:$G26,1,aux!$AL$1))^(1/($G$3-INDEX($C$3:$G$3,1,aux!$AL$1)))-1,"n.d.") -> -0.2157704512 | Y26: =IF(INDEX($C26:$G26,1,aux!$AL$1)>0,(G26-INDEX($C26:$G26,1,aux!$AL$1))/INDEX($C26:$G26,1,aux!$AL$1),"n.d.") -> -0.6217553378 | AA26: =O26-INDEX($K26:$O26,1,aux!$AL$1) -> 115.59 | AB26: 0.001004312636 | AC26: 0.0005990399378 | AD26: =+IF(INDEX($K26:$O26,1,aux!$AL$1)>0,(O26/INDEX($K26:$O26,1,aux!$AL$1))^(1/($O$3-INDEX($K$3:$O$3,1,aux!$AL$1)))-1,"n.d.") -> 0.0492374154 | AE26: =IF(INDEX($K26:$O26,1,aux!$AL$1)>0,(O26-INDEX($K26:$O26,1,aux!$AL$1))/INDEX($K26:$O26,1,aux!$AL$1),"n.d.") -> 0.211978947
A27: 29 | B27: Manitol e sorbitol (NC 290543; 290544) | C27: 1049.815 | D27: 843.727 | E27: 513.746 | F27: 1356.6 | G27: 2019.441 | H27: 1156.6658 | I27: 0.001668485602 | J27: 0.001309932937 | K27: 0.632 | L27: 28.449 | M27: 3.952 | N27: 7.627 | O27: 50.464 | P27: 18.2248 | Q27: 7.014450147e-05 | R27: 2.869136743e-05 | S27: -1138.441 | U27: =G27-INDEX($C27:$G27,1,aux!$AL$1) -> 969.626 | V27: 0.01076949655 | W27: 0.007000785502 | X27: =+IF(INDEX($C27:$G27,1,aux!$AL$1)>0,(G27/INDEX($C27:$G27,1,aux!$AL$1))^(1/($G$3-INDEX($C$3:$G$3,1,aux!$AL$1)))-1,"n.d.") -> 0.1776862348 | Y27: =IF(INDEX($C27:$G27,1,aux!$AL$1)>0,(G27-INDEX($C27:$G27,1,aux!$AL$1))/INDEX($C27:$G27,1,aux!$AL$1),"n.d.") -> 0.9236160657 | AA27: =O27-INDEX($K27:$O27,1,aux!$AL$1) -> 49.832 | AB27: 0.000432969178 | AC27: 0.0002582520822 | AD27: =+IF(INDEX($K27:$O27,1,aux!$AL$1)>0,(O27/INDEX($K27:$O27,1,aux!$AL$1))^(1/($O$3-INDEX($K$3:$O$3,1,aux!$AL$1)))-1,"n.d.") -> 1.989276916 | AE27: =IF(INDEX($K27:$O27,1,aux!$AL$1)>0,(O27-INDEX($K27:$O27,1,aux!$AL$1))/INDEX($K27:$O27,1,aux!$AL$1),"n.d.") -> 78.84810127
A28: 33 | B28: Óleos essenciais e resinóides (NC 3301) | C28: 6008.478 | D28: 7719.087 | E28: 8041.53 | F28: 7434.839 | G28: 8483.249 | H28: 7537.4366 | I28: 0.01087272092 | J28: 0.008536205066 | K28: 232.871 | L28: 164.977 | M28: 180.44 | N28: 260.98 | O28: 437.061 | P28: 255.2658 | Q28: 0.000982479494 | R28: 0.0004018658564 | S28: -7282.1708 | U28: =G28-INDEX($C28:$G28,1,aux!$AL$1) -> 2474.771 | V28: 0.02748692562 | W28: 0.01786806556 | X28: =+IF(INDEX($C28:$G28,1,aux!$AL$1)>0,(G28/INDEX($C28:$G28,1,aux!$AL$1))^(1/($G$3-INDEX($C$3:$G$3,1,aux!$AL$1)))-1,"n.d.") -> 0.09005756888 | Y28: =IF(INDEX($C28:$G28,1,aux!$AL$1)>0,(G28-INDEX($C28:$G28,1,aux!$AL$1))/INDEX($C28:$G28,1,aux!$AL$1),"n.d.") -> 0.4118798471 | AA28: =O28-INDEX($K28:$O28,1,aux!$AL$1) -> 204.19 | AB28: 0.001774120574 | AC28: 0.001058205424 | AD28: =+IF(INDEX($K28:$O28,1,aux!$AL$1)>0,(O28/INDEX($K28:$O28,1,aux!$AL$1))^(1/($O$3-INDEX($K$3:$O$3,1,aux!$AL$1)))-1,"n.d.") -> 0.1704602299 | AE28: =IF(INDEX($K28:$O28,1,aux!$AL$1)>0,(O28-INDEX($K28:$O28,1,aux!$AL$1))/INDEX($K28:$O28,1,aux!$AL$1),"n.d.") -> 0.8768373907
A29: 35 | B29: Caseínas, albuminas, gelatinas, peptonas, dextrinas (NC 3501 a 3505) | C29: 3792.556 | D29: 3762.199 | E29: 3659.636 | F29: 4438.043 | G29: 5400.13 | H29: 4210.5128 | I29: 0.00607364719 | J29: 0.004768438211 | K29: 7.774 | L29: 21.456 | M29: 22.991 | N29: 15.534 | O29: 17.733 | P29: 17.0976 | Q29: 6.580607899e-05 | R29: 2.691681246e-05 | S29: -4193.4152 | U29: =G29-INDEX($C29:$G29,1,aux!$AL$1) -> 1607.574 | V29: 0.01785509325 | W29: 0.0116068265 | X29: =+IF(INDEX($C29:$G29,1,aux!$AL$1)>0,(G29/INDEX($C29:$G29,1,aux!$AL$1))^(1/($G$3-INDEX($C$3:$G$3,1,aux!$AL$1)))-1,"n.d.") -> 0.09236569556 | Y29: =IF(INDEX($C29:$G29,1,aux!$AL$1)>0,(G29-INDEX($C29:$G29,1,aux!$AL$1))/INDEX($C29:$G29,1,aux!$AL$1),"n.d.") -> 0.4238761405 | AA29: =O29-INDEX($K29:$O29,1,aux!$AL$1) -> 9.959 | AB29: 8.652954012e-05 | AC29: 5.161206628e-05 | AD29: =+IF(INDEX($K29:$O29,1,aux!$AL$1)>0,(O29/INDEX($K29:$O29,1,aux!$AL$1))^(1/($O$3-INDEX($K$3:$O$3,1,aux!$AL$1)))-1,"n.d.") -> 0.2289505816 | AE29: =IF(INDEX($K29:$O29,1,aux!$AL$1)>0,(O29-INDEX($K29:$O29,1,aux!$AL$1))/INDEX($K29:$O29,1,aux!$AL$1),"n.d.") -> 1.281065089
A30: 38a | B30: Agentes de acabamento, ácidos gordos, sorbitol (NC 380910, 382311-12-13-19-70, 382460) (a) | C30: 1834.65 | D30: 604.006 | E30: 698.713 | F30: 1702.497 | G30: 1084.014 | H30: 1184.776 | I30: 0.001709034449 | J30: 0.001341767955 | K30: 0 | L30: 0.643 | M30: 0 | N30: 0.001 | O30: 0 | P30: 0.1288 | Q30: 4.957317386e-07 | R30: 2.027702979e-07 | S30: -1184.6472 | U30: =G30-INDEX($C30:$G30,1,aux!$AL$1) -> -750.636 | V30: -0.008337206109 | W30: -0.005419658328 | X30: =+IF(INDEX($C30:$G30,1,aux!$AL$1)>0,(G30/INDEX($C30:$G30,1,aux!$AL$1))^(1/($G$3-INDEX($C$3:$G$3,1,aux!$AL$1)))-1,"n.d.") -> -0.1232608168 | Y30: =IF(INDEX($C30:$G30,1,aux!$AL$1)>0,(G30-INDEX($C30:$G30,1,aux!$AL$1))/INDEX($C30:$G30,1,aux!$AL$1),"n.d.") -> -0.4091439784 | AA30: =O30-INDEX($K30:$O30,1,aux!$AL$1) -> 0 | AB30: 0 | AC30: 0 | AD30: =+IF(INDEX($K30:$O30,1,aux!$AL$1)>0,(O30/INDEX($K30:$O30,1,aux!$AL$1))^(1/($O$3-INDEX($K$3:$O$3,1,aux!$AL$1)))-1,"n.d.") -> n.d. | AE30: =IF(INDEX($K30:$O30,1,aux!$AL$1)>0,(O30-INDEX($K30:$O30,1,aux!$AL$1))/INDEX($K30:$O30,1,aux!$AL$1),"n.d.") -> n.d.
A31: 41 | B31: Couro e peles em bruto (NC 4101 a 4103) | C31: 7021.881 | D31: 5028.033 | E31: 3527.287 | F31: 1199.485 | G31: 5168.528 | H31: 4389.0428 | I31: 0.006331175972 | J31: 0.004970624812 | K31: 167.213 | L31: 42.842 | M31: 76.532 | N31: 242.46 | O31: 1098.386 | P31: 325.4866 | Q31: 0.001252748743 | R31: 0.0005124147115 | S31: -4063.5562 | U31: =G31-INDEX($C31:$G31,1,aux!$AL$1) -> -1853.353 | V31: -0.02058492525 | W31: -0.01338137263 | X31: =+IF(INDEX($C31:$G31,1,aux!$AL$1)>0,(G31/INDEX($C31:$G31,1,aux!$AL$1))^(1/($G$3-INDEX($C$3:$G$3,1,aux!$AL$1)))-1,"n.d.") -> -0.07374972049 | Y31: =IF(INDEX($C31:$G31,1,aux!$AL$1)>0,(G31-INDEX($C31:$G31,1,aux!$AL$1))/INDEX($C31:$G31,1,aux!$AL$1),"n.d.") -> -0.2639396766 | AA31: =O31-INDEX($K31:$O31,1,aux!$AL$1) -> 931.173 | AB31: 0.008090568477 | AC31: 0.004825761883 | AD31: =+IF(INDEX($K31:$O31,1,aux!$AL$1)>0,(O31/INDEX($K31:$O31,1,aux!$AL$1))^(1/($O$3-INDEX($K$3:$O$3,1,aux!$AL$1)))-1,"n.d.") -> 0.6009259249 | AE31: =IF(INDEX($K31:$O31,1,aux!$AL$1)>0,(O31-INDEX($K31:$O31,1,aux!$AL$1))/INDEX($K31:$O31,1,aux!$AL$1),"n.d.") -> 5.568783528
A32: 43 | B32: Peles com pelo em bruto (NC 4301) | C32: 0 | D32: 0 | E32: 1.667 | F32: 0 | G32: 0 | H32: 0.3334 | I32: 4.809281124e-07 | J32: 3.775780706e-07 | K32: 0 | L32: 0 | M32: 0 | N32: 0 | O32: 0 | P32: 0 | Q32: 0 | R32: 0 | S32: -0.3334 | U32: =G32-INDEX($C32:$G32,1,aux!$AL$1) -> 0 | V32: 0 | W32: 0 | X32: =+IF(INDEX($C32:$G32,1,aux!$AL$1)>0,(G32/INDEX($C32:$G32,1,aux!$AL$1))^(1/($G$3-INDEX($C$3:$G$3,1,aux!$AL$1)))-1,"n.d.") -> n.d. | Y32: =IF(INDEX($C32:$G32,1,aux!$AL$1)>0,(G32-INDEX($C32:$G32,1,aux!$AL$1))/INDEX($C32:$G32,1,aux!$AL$1),"n.d.") -> n.d. | AA32: =O32-INDEX($K32:$O32,1,aux!$AL$1) -> 0 | AB32: 0 | AC32: 0 | AD32: =+IF(INDEX($K32:$O32,1,aux!$AL$1)>0,(O32/INDEX($K32:$O32,1,aux!$AL$1))^(1/($O$3-INDEX($K$3:$O$3,1,aux!$AL$1)))-1,"n.d.") -> n.d. | AE32: =IF(INDEX($K32:$O32,1,aux!$AL$1)>0,(O32-INDEX($K32:$O32,1,aux!$AL$1))/INDEX($K32:$O32,1,aux!$AL$1),"n.d.") -> n.d.
A33: 50 | B33: Seda crua (NC 5001-5003) | C33: 78.699 | D33: 53.94 | E33: 170.725 | F33: 41.373 | G33: 17.303 | H33: 72.408 | I33: 0.0001044482386 | J33: 8.200261829e-05 | K33: 0 | L33: 9.423 | M33: 0 | N33: 0 | O33: 0 | P33: 1.8846 | Q33: 7.253540641e-06 | R33: 2.96693248e-06 | S33: -70.5234 | U33: =G33-INDEX($C33:$G33,1,aux!$AL$1) -> -61.396 | V33: -0.0006819165431 | W33: -0.0004432845517 | X33: =+IF(INDEX($C33:$G33,1,aux!$AL$1)>0,(G33/INDEX($C33:$G33,1,aux!$AL$1))^(1/($G$3-INDEX($C$3:$G$3,1,aux!$AL$1)))-1,"n.d.") -> -0.3152405279 | Y33: =IF(INDEX($C33:$G33,1,aux!$AL$1)>0,(G33-INDEX($C33:$G33,1,aux!$AL$1))/INDEX($C33:$G33,1,aux!$AL$1),"n.d.") -> -0.7801369776 | AA33: =O33-INDEX($K33:$O33,1,aux!$AL$1) -> 0 | AB33: 0 | AC33: 0 | AD33: =+IF(INDEX($K33:$O33,1,aux!$AL$1)>0,(O33/INDEX($K33:$O33,1,aux!$AL$1))^(1/($O$3-INDEX($K$3:$O$3,1,aux!$AL$1)))-1,"n.d.") -> n.d. | AE33: =IF(INDEX($K33:$O33,1,aux!$AL$1)>0,(O33-INDEX($K33:$O33,1,aux!$AL$1))/INDEX($K33:$O33,1,aux!$AL$1),"n.d.") -> n.d.
A34: 51 | B34: Lã não cardada (NC 5101-5103) | C34: 569.425 | D34: 401.213 | E34: 213.147 | F34: 286.363 | G34: 463.846 | H34: 386.7988 | I34: 0.0005579556591 | J34: 0.0004380526234 | K34: 45.476 | L34: 25.291 | M34: 0 | N34: 38.652 | O34: 86.213 | P34: 39.1264 | Q34: 0.0001505916017 | R34: 6.159683061e-05 | S34: -347.6724 | U34: =G34-INDEX($C34:$G34,1,aux!$AL$1) -> -105.579 | V34: -0.001172650771 | W34: -0.0007622897205 | X34: =+IF(INDEX($C34:$G34,1,aux!$AL$1)>0,(G34/INDEX($C34:$G34,1,aux!$AL$1))^(1/($G$3-INDEX($C$3:$G$3,1,aux!$AL$1)))-1,"n.d.") -> -0.04997655884 | Y34: =IF(INDEX($C34:$G34,1,aux!$AL$1)>0,(G34-INDEX($C34:$G34,1,aux!$AL$1))/INDEX($C34:$G34,1,aux!$AL$1),"n.d.") -> -0.1854133556 | AA34: =O34-INDEX($K34:$O34,1,aux!$AL$1) -> 40.737 | AB34: 0.0003539465685 | AC34: 0.0002111176568 | AD34: =+IF(INDEX($K34:$O34,1,aux!$AL$1)>0,(O34/INDEX($K34:$O34,1,aux!$AL$1))^(1/($O$3-INDEX($K$3:$O$3,1,aux!$AL$1)))-1,"n.d.") -> 0.1734041638 | AE34: =IF(INDEX($K34:$O34,1,aux!$AL$1)>0,(O34-INDEX($K34:$O34,1,aux!$AL$1))/INDEX($K34:$O34,1,aux!$AL$1),"n.d.") -> 0.8957911866
A35: 52 | B35: Algodão (NC 5201-5203) | C35: 309.856 | D35: 699.275 | E35: 309.766 | F35: 409.125 | G35: 927.351 | H35: 531.0746 | I35: 0.0007660729002 | J35: 0.0006014460793 | K35: 21.327 | L35: 196.783 | M35: 25.067 | N35: 45.691 | O35: 65.919 | P35: 70.9574 | Q35: 0.0002731043111 | R35: 0.0001117084871 | S35: -460.1172 | U35: =G35-INDEX($C35:$G35,1,aux!$AL$1) -> 617.495 | V35: 0.006858428168 | W35: 0.004458368529 | X35: =+IF(INDEX($C35:$G35,1,aux!$AL$1)>0,(G35/INDEX($C35:$G35,1,aux!$AL$1))^(1/($G$3-INDEX($C$3:$G$3,1,aux!$AL$1)))-1,"n.d.") -> 0.315288608 | Y35: =IF(INDEX($C35:$G35,1,aux!$AL$1)>0,(G35-INDEX($C35:$G35,1,aux!$AL$1))/INDEX($C35:$G35,1,aux!$AL$1),"n.d.") -> 1.992845064 | AA35: =O35-INDEX($K35:$O35,1,aux!$AL$1) -> 44.592 | AB35: 0.0003874410336 | AC35: 0.0002310960196 | AD35: =+IF(INDEX($K35:$O35,1,aux!$AL$1)>0,(O35/INDEX($K35:$O35,1,aux!$AL$1))^(1/($O$3-INDEX($K$3:$O$3,1,aux!$AL$1)))-1,"n.d.") -> 0.3259288199 | AE35: =IF(INDEX($K35:$O35,1,aux!$AL$1)>0,(O35-INDEX($K35:$O35,1,aux!$AL$1))/INDEX($K35:$O35,1,aux!$AL$1),"n.d.") -> 2.090870727
A36: 53 | B36: Linho e cânhamo em bruto (NC 5301-5302) | C36: 1.152 | D36: 0.699 | E36: 0 | F36: 13.727 | G36: 7.898 | H36: 4.6952 | I36: 6.772806459e-06 | J36: 5.317350202e-06 | K36: 0 | L36: 0 | M36: 0 | N36: 0 | O36: 0 | P36: 0 | Q36: 0 | R36: 0 | S36: -4.6952 | U36: =G36-INDEX($C36:$G36,1,aux!$AL$1) -> 6.746 | V36: 7.492685191e-05 | W36: =IF($U$53<>0,U36/$U$53, "n.d.") -> 4.870671682e-05 | X36: =+IF(INDEX($C36:$G36,1,aux!$AL$1)>0,(G36/INDEX($C36:$G36,1,aux!$AL$1))^(1/($G$3-INDEX($C$3:$G$3,1,aux!$AL$1)))-1,"n.d.") -> 0.6181402568 | Y36: =IF(INDEX($C36:$G36,1,aux!$AL$1)>0,(G36-INDEX($C36:$G36,1,aux!$AL$1))/INDEX($C36:$G36,1,aux!$AL$1),"n.d.") -> 5.855902778 | AA36: =O36-INDEX($K36:$O36,1,aux!$AL$1) -> 0 | AB36: 0 | AC36: =IF($AA$53<>0,AA36/$AA$53, "n.d.") -> 0 | AD36: =+IF(INDEX($K36:$O36,1,aux!$AL$1)>0,(O36/INDEX($K36:$O36,1,aux!$AL$1))^(1/($O$3-INDEX($K$3:$O$3,1,aux!$AL$1)))-1,"n.d.") -> n.d. | AE36: =IF(INDEX($K36:$O36,1,aux!$AL$1)>0,(O36-INDEX($K36:$O36,1,aux!$AL$1))/INDEX($K36:$O36,1,aux!$AL$1),"n.d.") -> n.d.
A37: Subtotal Agrícola e Agroalimentar | C37: 700223.625 | D37: 621191.676 | E37: 652168.166 | F37: 702372.937 | G37: 790258.103 | H37: 693242.9014 | I37: 1 | J37: 0.785102931 | K37: 215091.179 | L37: 229373.045 | M37: 252603.928 | N37: 271836.735 | O37: 330184.822 | P37: 259817.9418 | Q37: 1 | R37: 0.4090323094 | S37: -433424.9596 | U37: =G37-INDEX($C37:$G37,1,aux!$AL$1) -> 90034.478 | V37: 1 | W37: 0.6500568965 | X37: =+IF(INDEX($C37:$G37,1,aux!$AL$1)>0,(G37/INDEX($C37:$G37,1,aux!$AL$1))^(1/($G$3-INDEX($C$3:$G$3,1,aux!$AL$1)))-1,"n.d.") -> 0.03070183573 | Y37: =IF(INDEX($C37:$G37,1,aux!$AL$1)>0,(G37-INDEX($C37:$G37,1,aux!$AL$1))/INDEX($C37:$G37,1,aux!$AL$1),"n.d.") -> 0.1285796063 | AA37: =O37-INDEX($K37:$O37,1,aux!$AL$1) -> 115093.643 | AB37: 1 | AC37: 0.5964675902 | AD37: =+IF(INDEX($K37:$O37,1,aux!$AL$1)>0,(O37/INDEX($K37:$O37,1,aux!$AL$1))^(1/($O$3-INDEX($K$3:$O$3,1,aux!$AL$1)))-1,"n.d.") -> 0.113098574 | AE37: =IF(INDEX($K37:$O37,1,aux!$AL$1)>0,(O37-INDEX($K37:$O37,1,aux!$AL$1))/INDEX($K37:$O37,1,aux!$AL$1),"n.d.") -> 0.5350923433
A38: 03 | B38: Peixes e crustáceos | C38: 32067.463 | D38: 11700.856 | E38: 8943.769 | F38: 13294.117 | G38: 17653.11 | H38: 16731.863 | I38: 0.5187894829 | J38: 0.01894896386 | K38: 5691.803 | L38: 6087.225 | M38: 5245.901 | N38: 6603.455 | O38: 7436.705 | P38: 6213.0178 | Q38: 0.4034727756 | R38: 0.009781176009 | S38: -10518.8452 | U38: =G38-INDEX($C38:$G38,1,aux!$AL$1) -> -14414.353 | V38: =IF($U$44<>0,U38/$U$44, "n.d.") -> 1.536913926 | W38: -0.1040729039 | X38: =+IF(INDEX($C38:$G38,1,aux!$AL$1)>0,(G38/INDEX($C38:$G38,1,aux!$AL$1))^(1/($G$3-INDEX($C$3:$G$3,1,aux!$AL$1)))-1,"n.d.") -> -0.1386311617 | Y38: =IF(INDEX($C38:$G38,1,aux!$AL$1)>0,(G38-INDEX($C38:$G38,1,aux!$AL$1))/INDEX($C38:$G38,1,aux!$AL$1),"n.d.") -> -0.4495008851 | AA38: =O38-INDEX($K38:$O38,1,aux!$AL$1) -> 1744.902 | AB38: =IF($AA$44<>0,AA38/$AA$44, "n.d.") -> 0.3921368659 | AC38: 0.009042875557 | AD38: =+IF(INDEX($K38:$O38,1,aux!$AL$1)>0,(O38/INDEX($K38:$O38,1,aux!$AL$1))^(1/($O$3-INDEX($K$3:$O$3,1,aux!$AL$1)))-1,"n.d.") -> 0.06913531098 | AE38: =IF(INDEX($K38:$O38,1,aux!$AL$1)>0,(O38-INDEX($K38:$O38,1,aux!$AL$1))/INDEX($K38:$O38,1,aux!$AL$1),"n.d.") -> 0.3065640185
A39: 05p | B39: Outros produtos de pescado (NC 0508, 051191) (p) | C39: 3.25 | D39: 3.813 | E39: 10.27 | F39: 30.102 | G39: 59.568 | H39: 21.4006 | I39: 0.0006635487159 | J39: 2.423634451e-05 | K39: 0 | L39: 0.165 | M39: 0.575 | N39: 6.109 | O39: 4.744 | P39: 2.3186 | Q39: 0.00015056966 | R39: 3.650180222e-06 | S39: -19.082 | U39: =G39-INDEX($C39:$G39,1,aux!$AL$1) -> 56.318 | V39: -0.006004842429 | W39: 0.0004066209424 | X39: =+IF(INDEX($C39:$G39,1,aux!$AL$1)>0,(G39/INDEX($C39:$G39,1,aux!$AL$1))^(1/($G$3-INDEX($C$3:$G$3,1,aux!$AL$1)))-1,"n.d.") -> 1.069104449 | Y39: =IF(INDEX($C39:$G39,1,aux!$AL$1)>0,(G39-INDEX($C39:$G39,1,aux!$AL$1))/INDEX($C39:$G39,1,aux!$AL$1),"n.d.") -> 17.32861538 | AA39: =O39-INDEX($K39:$O39,1,aux!$AL$1) -> 4.744 | AB39: 0.001066132821 | AC39: 2.458556506e-05 | AD39: =+IF(INDEX($K39:$O39,1,aux!$AL$1)>0,(O39/INDEX($K39:$O39,1,aux!$AL$1))^(1/($O$3-INDEX($K$3:$O$3,1,aux!$AL$1)))-1,"n.d.") -> n.d. | AE39: =IF(INDEX($K39:$O39,1,aux!$AL$1)>0,(O39-INDEX($K39:$O39,1,aux!$AL$1))/INDEX($K39:$O39,1,aux!$AL$1),"n.d.") -> n.d.
A40: 16p | B40: Preparações e conservas de peixes ou crustáceos (NC 1604-05) (p) | C40: 11699.774 | D40: 13337.283 | E40: 16945.998 | F40: 14633.646 | G40: 16150.58 | H40: 14553.4562 | I40: 0.4512456274 | J40: 0.01648190136 | K40: 6673.839 | L40: 5002.539 | M40: 8479.964 | N40: 8006.585 | O40: 7986.96 | P40: 7229.9774 | Q40: 0.4695140338 | R40: 0.01138217912 | S40: -7323.4788 | U40: =G40-INDEX($C40:$G40,1,aux!$AL$1) -> 4450.806 | V40: -0.4745621065 | W40: 0.03213521308 | X40: =+IF(INDEX($C40:$G40,1,aux!$AL$1)>0,(G40/INDEX($C40:$G40,1,aux!$AL$1))^(1/($G$3-INDEX($C$3:$G$3,1,aux!$AL$1)))-1,"n.d.") -> 0.08393355958 | Y40: =IF(INDEX($C40:$G40,1,aux!$AL$1)>0,(G40-INDEX($C40:$G40,1,aux!$AL$1))/INDEX($C40:$G40,1,aux!$AL$1),"n.d.") -> 0.3804181175 | AA40: =O40-INDEX($K40:$O40,1,aux!$AL$1) -> 1313.121 | AB40: 0.2951014748 | AC40: 0.006805190087 | AD40: =+IF(INDEX($K40:$O40,1,aux!$AL$1)>0,(O40/INDEX($K40:$O40,1,aux!$AL$1))^(1/($O$3-INDEX($K$3:$O$3,1,aux!$AL$1)))-1,"n.d.") -> 0.04592717286 | AE40: =IF(INDEX($K40:$O40,1,aux!$AL$1)>0,(O40-INDEX($K40:$O40,1,aux!$AL$1))/INDEX($K40:$O40,1,aux!$AL$1),"n.d.") -> 0.1967564696
A41: 19p | B41: Massas recheadas com pescado (NC 19022010) (p) | C41: 0.791 | D41: 36.814 | E41: 30.253 | F41: 54.507 | G41: 9.939 | H41: 26.4608 | I41: 0.000820445682 | J41: 2.996706002e-05 | K41: 11.681 | L41: 7.734 | M41: 0.946 | N41: 2.568 | O41: 15.541 | P41: 7.694 | Q41: 0.0004996476166 | R41: 1.211269155e-05 | S41: -18.7668 | U41: =G41-INDEX($C41:$G41,1,aux!$AL$1) -> 9.148 | V41: -0.0009753950521 | W41: 6.604936932e-05 | X41: =+IF(INDEX($C41:$G41,1,aux!$AL$1)>0,(G41/INDEX($C41:$G41,1,aux!$AL$1))^(1/($G$3-INDEX($C$3:$G$3,1,aux!$AL$1)))-1,"n.d.") -> 0.8827452118 | Y41: =IF(INDEX($C41:$G41,1,aux!$AL$1)>0,(G41-INDEX($C41:$G41,1,aux!$AL$1))/INDEX($C41:$G41,1,aux!$AL$1),"n.d.") -> 11.56510746 | AA41: =O41-INDEX($K41:$O41,1,aux!$AL$1) -> 3.86 | AB41: 0.0008674689481 | AC41: 2.000427511e-05 | AD41: =+IF(INDEX($K41:$O41,1,aux!$AL$1)>0,(O41/INDEX($K41:$O41,1,aux!$AL$1))^(1/($O$3-INDEX($K$3:$O$3,1,aux!$AL$1)))-1,"n.d.") -> 0.07398875485 | AE41: =IF(INDEX($K41:$O41,1,aux!$AL$1)>0,(O41-INDEX($K41:$O41,1,aux!$AL$1))/INDEX($K41:$O41,1,aux!$AL$1),"n.d.") -> 0.33045116
A42: 23p | B42: Farinhas de pescado (NC 230120) (p) | C42: 0 | D42: 0 | E42: 0 | F42: 192.823 | G42: 5.993 | H42: 39.7632 | I42: 0.001232900961 | J42: 4.503213059e-05 | K42: 379.351 | L42: 0.229 | M42: 513.1 | N42: 1234.839 | O42: 1783.276 | P42: 782.159 | Q42: 0.05079332989 | R42: 0.001231355694 | S42: 742.3958 | U42: =G42-INDEX($C42:$G42,1,aux!$AL$1) -> 5.993 | V42: -0.0006389967804 | W42: 4.32699902e-05 | X42: =+IF(INDEX($C42:$G42,1,aux!$AL$1)>0,(G42/INDEX($C42:$G42,1,aux!$AL$1))^(1/($G$3-INDEX($C$3:$G$3,1,aux!$AL$1)))-1,"n.d.") -> n.d. | Y42: =IF(INDEX($C42:$G42,1,aux!$AL$1)>0,(G42-INDEX($C42:$G42,1,aux!$AL$1))/INDEX($C42:$G42,1,aux!$AL$1),"n.d.") -> n.d. | AA42: =O42-INDEX($K42:$O42,1,aux!$AL$1) -> 1403.925 | AB42: 0.3155081199 | AC42: 0.007275777703 | AD42: =+IF(INDEX($K42:$O42,1,aux!$AL$1)>0,(O42/INDEX($K42:$O42,1,aux!$AL$1))^(1/($O$3-INDEX($K$3:$O$3,1,aux!$AL$1)))-1,"n.d.") -> 0.4724628041 | AE42: =IF(INDEX($K42:$O42,1,aux!$AL$1)>0,(O42-INDEX($K42:$O42,1,aux!$AL$1))/INDEX($K42:$O42,1,aux!$AL$1),"n.d.") -> 3.700860153
A43: 25 | B43: Sal e cloreto de sódio puro; água do mar (NC 2501) | C43: 256.51 | D43: 241.716 | E43: 370.694 | F43: 2755.222 | G43: 769.834 | H43: 878.7952 | I43: 0.02724799429 | J43: 0.0009952423399 | K43: 1255.435 | L43: 851.846 | M43: 1133.79 | N43: 1342.748 | O43: 1234.61 | P43: 1163.6858 | Q43: 0.07556964342 | R43: 0.001831994692 | S43: 284.8906 | U43: =G43-INDEX($C43:$G43,1,aux!$AL$1) -> 513.324 | V43: -0.05473258523 | W43: 0.003706244694 | X43: =+IF(INDEX($C43:$G43,1,aux!$AL$1)>0,(G43/INDEX($C43:$G43,1,aux!$AL$1))^(1/($G$3-INDEX($C$3:$G$3,1,aux!$AL$1)))-1,"n.d.") -> 0.3162039713 | Y43: =IF(INDEX($C43:$G43,1,aux!$AL$1)>0,(G43-INDEX($C43:$G43,1,aux!$AL$1))/INDEX($C43:$G43,1,aux!$AL$1),"n.d.") -> 2.001185139 | AA43: =O43-INDEX($K43:$O43,1,aux!$AL$1) -> -20.825 | AB43: -0.004680062395 | AC43: -0.000107924619 | AD43: =+IF(INDEX($K43:$O43,1,aux!$AL$1)>0,(O43/INDEX($K43:$O43,1,aux!$AL$1))^(1/($O$3-INDEX($K$3:$O$3,1,aux!$AL$1)))-1,"n.d.") -> -0.004173017498 | AE43: =IF(INDEX($K43:$O43,1,aux!$AL$1)>0,(O43-INDEX($K43:$O43,1,aux!$AL$1))/INDEX($K43:$O43,1,aux!$AL$1),"n.d.") -> -0.01658787592
A44: Subtotal Mar | C44: 44027.788 | D44: 25320.482 | E44: 26300.984 | F44: 30960.417 | G44: 34649.024 | H44: 32251.739 | I44: 1 | J44: 0.03652534309 | K44: 14012.109 | L44: 11949.738 | M44: 15374.276 | N44: 17196.304 | O44: 18461.836 | P44: 15398.8526 | Q44: 1 | R44: 0.02424246839 | S44: -16852.8864 | U44: =G44-INDEX($C44:$G44,1,aux!$AL$1) -> -9378.764 | V44: 1 | W44: -0.06771550581 | X44: =+IF(INDEX($C44:$G44,1,aux!$AL$1)>0,(G44/INDEX($C44:$G44,1,aux!$AL$1))^(1/($G$3-INDEX($C$3:$G$3,1,aux!$AL$1)))-1,"n.d.") -> -0.05812984682 | Y44: =IF(INDEX($C44:$G44,1,aux!$AL$1)>0,(G44-INDEX($C44:$G44,1,aux!$AL$1))/INDEX($C44:$G44,1,aux!$AL$1),"n.d.") -> -0.213019196 | AA44: =O44-INDEX($K44:$O44,1,aux!$AL$1) -> 4449.727 | AB44: 1 | AC44: 0.02306050857 | AD44: =+IF(INDEX($K44:$O44,1,aux!$AL$1)>0,(O44/INDEX($K44:$O44,1,aux!$AL$1))^(1/($O$3-INDEX($K$3:$O$3,1,aux!$AL$1)))-1,"n.d.") -> 0.07137829907 | AE44: =IF(INDEX($K44:$O44,1,aux!$AL$1)>0,(O44-INDEX($K44:$O44,1,aux!$AL$1))/INDEX($K44:$O44,1,aux!$AL$1),"n.d.") -> 0.3175629736
A45: 13f | B45: Gomas e resinas (NC 1301) (f) | C45: 228.081 | D45: 195.271 | E45: 239.566 | F45: 223.926 | G45: 288.174 | H45: 235.0036 | I45: 0.001492071614 | J45: 0.000266143389 | K45: 2.572 | L45: 4.523 | M45: 1.177 | N45: 0 | O45: 0.372 | P45: 1.7288 | Q45: 4.802426077e-06 | R45: 2.721655986e-06 | S45: -233.2748 | U45: =G45-INDEX($C45:$G45,1,aux!$AL$1) -> 60.093 | V45: =IF($U$52<>0,U45/$U$52, "n.d.") -> 0.001038831157 | W45: 0.0004338767764 | X45: =+IF(INDEX($C45:$G45,1,aux!$AL$1)>0,(G45/INDEX($C45:$G45,1,aux!$AL$1))^(1/($G$3-INDEX($C$3:$G$3,1,aux!$AL$1)))-1,"n.d.") -> 0.06020884133 | Y45: =IF(INDEX($C45:$G45,1,aux!$AL$1)>0,(G45-INDEX($C45:$G45,1,aux!$AL$1))/INDEX($C45:$G45,1,aux!$AL$1),"n.d.") -> 0.2634721875 | AA45: =O45-INDEX($K45:$O45,1,aux!$AL$1) -> -2.2 | AB45: =IF($AA$52<>0,AA45/$AA$52, "n.d.") -> -2.996647133e-05 | AC45: -1.140140032e-05 | AD45: =+IF(INDEX($K45:$O45,1,aux!$AL$1)>0,(O45/INDEX($K45:$O45,1,aux!$AL$1))^(1/($O$3-INDEX($K$3:$O$3,1,aux!$AL$1)))-1,"n.d.") -> -0.3833084554 | AE45: =IF(INDEX($K45:$O45,1,aux!$AL$1)>0,(O45-INDEX($K45:$O45,1,aux!$AL$1))/INDEX($K45:$O45,1,aux!$AL$1),"n.d.") -> -0.8553654743
A46: 38f | B46: Tall oil, essências e colofónias (NC 3803,3805,3806) (f) | C46: 1966.95 | D46: 2512.352 | E46: 3935.385 | F46: 1487.192 | G46: 4974.897 | H46: 2975.3552 | I46: 0.01889095757 | J46: 0.003369612705 | K46: 12309.805 | L46: 13984.15 | M46: 19840.901 | N46: 40320.354 | O46: 45300.348 | P46: 26351.1116 | Q46: 0.07320063947 | R46: 0.04148464867 | S46: 23375.7564 | U46: =G46-INDEX($C46:$G46,1,aux!$AL$1) -> 3007.947 | V46: 0.05199855328 | W46: 0.02171764345 | X46: =+IF(INDEX($C46:$G46,1,aux!$AL$1)>0,(G46/INDEX($C46:$G46,1,aux!$AL$1))^(1/($G$3-INDEX($C$3:$G$3,1,aux!$AL$1)))-1,"n.d.") -> 0.2610946792 | Y46: =IF(INDEX($C46:$G46,1,aux!$AL$1)>0,(G46-INDEX($C46:$G46,1,aux!$AL$1))/INDEX($C46:$G46,1,aux!$AL$1),"n.d.") -> 1.529244261 | AA46: =O46-INDEX($K46:$O46,1,aux!$AL$1) -> 32990.543 | AB46: 0.449368255 | AC46: 0.1709719944 | AD46: =+IF(INDEX($K46:$O46,1,aux!$AL$1)>0,(O46/INDEX($K46:$O46,1,aux!$AL$1))^(1/($O$3-INDEX($K$3:$O$3,1,aux!$AL$1)))-1,"n.d.") -> 0.3850408777 | AE46: =IF(INDEX($K46:$O46,1,aux!$AL$1)>0,(O46-INDEX($K46:$O46,1,aux!$AL$1))/INDEX($K46:$O46,1,aux!$AL$1),"n.d.") -> 2.680021576
A47: 44 | B47: Madeira e suas obras | C47: 49006.49 | D47: 40111.232 | E47: 37751.958 | F47: 46713.28 | G47: 55539.247 | H47: 45824.4414 | I47: 0.290945961 | J47: 0.05189653321 | K47: 15150.5 | L47: 13984.231 | M47: 15842.843 | N47: 15536.168 | O47: 24444.662 | P47: 16991.6808 | Q47: 0.04720111694 | R47: 0.02675006349 | S47: -28832.7606 | U47: =G47-INDEX($C47:$G47,1,aux!$AL$1) -> 6532.757 | V47: 0.1129321471 | W47: 0.04716708349 | X47: =+IF(INDEX($C47:$G47,1,aux!$AL$1)>0,(G47/INDEX($C47:$G47,1,aux!$AL$1))^(1/($G$3-INDEX($C$3:$G$3,1,aux!$AL$1)))-1,"n.d.") -> 0.03177879321 | Y47: =IF(INDEX($C47:$G47,1,aux!$AL$1)>0,(G47-INDEX($C47:$G47,1,aux!$AL$1))/INDEX($C47:$G47,1,aux!$AL$1),"n.d.") -> 0.1333039155 | AA47: =O47-INDEX($K47:$O47,1,aux!$AL$1) -> 9294.162 | AB47: 0.1265969269 | AC47: 0.04816657346 | AD47: =+IF(INDEX($K47:$O47,1,aux!$AL$1)>0,(O47/INDEX($K47:$O47,1,aux!$AL$1))^(1/($O$3-INDEX($K$3:$O$3,1,aux!$AL$1)))-1,"n.d.") -> 0.1270398385 | AE47: =IF(INDEX($K47:$O47,1,aux!$AL$1)>0,(O47-INDEX($K47:$O47,1,aux!$AL$1))/INDEX($K47:$O47,1,aux!$AL$1),"n.d.") -> 0.6134557935
A48: 45 | B48: Cortiça e suas obras | C48: 233.562 | D48: 250.091 | E48: 187.373 | F48: 1006.695 | G48: 485.427 | H48: 432.6296 | I48: 0.002746827477 | J48: 0.0004899563577 | K48: 76650.106 | L48: 77198.987 | M48: 77664.711 | N48: 86360.941 | O48: 77730.139 | P48: 79120.9768 | Q48: 0.2197898208 | R48: 0.124560435 | S48: 78688.3472 | U48: =G48-INDEX($C48:$G48,1,aux!$AL$1) -> 251.865 | V48: 0.004354004782 | W48: 0.001818487582 | X48: =+IF(INDEX($C48:$G48,1,aux!$AL$1)>0,(G48/INDEX($C48:$G48,1,aux!$AL$1))^(1/($G$3-INDEX($C$3:$G$3,1,aux!$AL$1)))-1,"n.d.") -> 0.2006887343 | Y48: =IF(INDEX($C48:$G48,1,aux!$AL$1)>0,(G48-INDEX($C48:$G48,1,aux!$AL$1))/INDEX($C48:$G48,1,aux!$AL$1),"n.d.") -> 1.078364631 | AA48: =O48-INDEX($K48:$O48,1,aux!$AL$1) -> 1080.033 | AB48: 0.0147112627 | AC48: 0.005597222088 | AD48: =+IF(INDEX($K48:$O48,1,aux!$AL$1)>0,(O48/INDEX($K48:$O48,1,aux!$AL$1))^(1/($O$3-INDEX($K$3:$O$3,1,aux!$AL$1)))-1,"n.d.") -> 0.003504146029 | AE48: =IF(INDEX($K48:$O48,1,aux!$AL$1)>0,(O48-INDEX($K48:$O48,1,aux!$AL$1))/INDEX($K48:$O48,1,aux!$AL$1),"n.d.") -> 0.01409043061
A49: 46 | B49: Obras de espartaria ou de cestaria | C49: 620.506 | D49: 693.867 | E49: 636.653 | F49: 722.731 | G49: 551.652 | H49: 645.0818 | I49: 0.004095717013 | J49: 0.0007305601123 | K49: 0.046 | L49: 3.242 | M49: 3.304 | N49: 12.633 | O49: 7.093 | P49: 5.2636 | Q49: 1.462173178e-05 | R49: 8.286504192e-06 | S49: -639.8182 | U49: =G49-INDEX($C49:$G49,1,aux!$AL$1) -> -68.854 | V49: -0.001190283069 | W49: -0.0004971319715 | X49: =+IF(INDEX($C49:$G49,1,aux!$AL$1)>0,(G49/INDEX($C49:$G49,1,aux!$AL$1))^(1/($G$3-INDEX($C$3:$G$3,1,aux!$AL$1)))-1,"n.d.") -> -0.02897636042 | Y49: =IF(INDEX($C49:$G49,1,aux!$AL$1)>0,(G49-INDEX($C49:$G49,1,aux!$AL$1))/INDEX($C49:$G49,1,aux!$AL$1),"n.d.") -> -0.1109642775 | AA49: =O49-INDEX($K49:$O49,1,aux!$AL$1) -> 7.047 | AB49: 9.598805613e-05 | AC49: 3.652075821e-05 | AD49: =+IF(INDEX($K49:$O49,1,aux!$AL$1)>0,(O49/INDEX($K49:$O49,1,aux!$AL$1))^(1/($O$3-INDEX($K$3:$O$3,1,aux!$AL$1)))-1,"n.d.") -> 2.523855019 | AE49: =IF(INDEX($K49:$O49,1,aux!$AL$1)>0,(O49-INDEX($K49:$O49,1,aux!$AL$1))/INDEX($K49:$O49,1,aux!$AL$1),"n.d.") -> 153.1956522
A50: 47 | B50: Pastas de madeira | C50: 1187.245 | D50: 12221.343 | E50: 9292.342 | F50: 12067.675 | G50: 11499.682 | H50: 9253.6574 | I50: 0.0587528001 | J50: 0.01047983835 | K50: 105503.979 | L50: 83264.865 | M50: 54484.483 | N50: 68192.297 | O50: 95678.708 | P50: 81424.8664 | Q50: 0.2261897858 | R50: 0.1281874566 | S50: 72171.209 | U50: =G50-INDEX($C50:$G50,1,aux!$AL$1) -> 10312.437 | V50: 0.1782716932 | W50: 0.07445670748 | X50: =+IF(INDEX($C50:$G50,1,aux!$AL$1)>0,(G50/INDEX($C50:$G50,1,aux!$AL$1))^(1/($G$3-INDEX($C$3:$G$3,1,aux!$AL$1)))-1,"n.d.") -> 0.7641534991 | Y50: =IF(INDEX($C50:$G50,1,aux!$AL$1)>0,(G50-INDEX($C50:$G50,1,aux!$AL$1))/INDEX($C50:$G50,1,aux!$AL$1),"n.d.") -> 8.686022683 | AA50: =O50-INDEX($K50:$O50,1,aux!$AL$1) -> -9825.271 | AB50: -0.1338312281 | AC50: -0.05091902179 | AD50: =+IF(INDEX($K50:$O50,1,aux!$AL$1)>0,(O50/INDEX($K50:$O50,1,aux!$AL$1))^(1/($O$3-INDEX($K$3:$O$3,1,aux!$AL$1)))-1,"n.d.") -> -0.0241420247 | AE50: =IF(INDEX($K50:$O50,1,aux!$AL$1)>0,(O50-INDEX($K50:$O50,1,aux!$AL$1))/INDEX($K50:$O50,1,aux!$AL$1),"n.d.") -> -0.09312701846
A51: 48 | B51: Papel e cartão | C51: 92154.114 | D51: 93134.822 | E51: 83014.589 | F51: 92468.794 | G51: 129904.613 | H51: 98135.3864 | I51: 0.6230756652 | J51: 0.1111390818 | K51: 163235.624 | L51: 162649.338 | M51: 122769.37 | N51: 128684.427 | O51: 203106.694 | P51: 156089.0906 | Q51: 0.4335992128 | R51: 0.2457316102 | S51: 57953.7042 | U51: =G51-INDEX($C51:$G51,1,aux!$AL$1) -> 37750.499 | V51: 0.6525950536 | W51: 0.2725619425 | X51: =+IF(INDEX($C51:$G51,1,aux!$AL$1)>0,(G51/INDEX($C51:$G51,1,aux!$AL$1))^(1/($G$3-INDEX($C$3:$G$3,1,aux!$AL$1)))-1,"n.d.") -> 0.0896260095 | Y51: =IF(INDEX($C51:$G51,1,aux!$AL$1)>0,(G51-INDEX($C51:$G51,1,aux!$AL$1))/INDEX($C51:$G51,1,aux!$AL$1),"n.d.") -> 0.4096452927 | AA51: =O51-INDEX($K51:$O51,1,aux!$AL$1) -> 39871.07 | AB51: 0.5430887619 | AC51: 0.2066300138 | AD51: =+IF(INDEX($K51:$O51,1,aux!$AL$1)>0,(O51/INDEX($K51:$O51,1,aux!$AL$1))^(1/($O$3-INDEX($K$3:$O$3,1,aux!$AL$1)))-1,"n.d.") -> 0.05615418277 | AE51: =IF(INDEX($K51:$O51,1,aux!$AL$1)>0,(O51-INDEX($K51:$O51,1,aux!$AL$1))/INDEX($K51:$O51,1,aux!$AL$1),"n.d.") -> 0.24425471
A52: Subtotal Florestas | C52: 145396.948 | D52: 149118.978 | E52: 135057.866 | F52: 154690.293 | G52: 203243.692 | H52: 157501.5554 | I52: 1 | J52: 0.1783717259 | K52: 372852.632 | L52: 351089.336 | M52: 290606.789 | N52: 339106.82 | O52: 446268.016 | P52: 359984.7186 | Q52: 1 | R52: 0.5667252222 | S52: 202483.1632 | U52: =G52-INDEX($C52:$G52,1,aux!$AL$1) -> 57846.744 | V52: 1 | W52: 0.4176586094 | X52: =+IF(INDEX($C52:$G52,1,aux!$AL$1)>0,(G52/INDEX($C52:$G52,1,aux!$AL$1))^(1/($G$3-INDEX($C$3:$G$3,1,aux!$AL$1)))-1,"n.d.") -> 0.08734020412 | Y52: =IF(INDEX($C52:$G52,1,aux!$AL$1)>0,(G52-INDEX($C52:$G52,1,aux!$AL$1))/INDEX($C52:$G52,1,aux!$AL$1),"n.d.") -> 0.3978539082 | AA52: =O52-INDEX($K52:$O52,1,aux!$AL$1) -> 73415.384 | AB52: 1 | AC52: 0.3804719013 | AD52: =+IF(INDEX($K52:$O52,1,aux!$AL$1)>0,(O52/INDEX($K52:$O52,1,aux!$AL$1))^(1/($O$3-INDEX($K$3:$O$3,1,aux!$AL$1)))-1,"n.d.") -> 0.04595894232 | AE52: =IF(INDEX($K52:$O52,1,aux!$AL$1)>0,(O52-INDEX($K52:$O52,1,aux!$AL$1))/INDEX($K52:$O52,1,aux!$AL$1),"n.d.") -> 0.1969018795
B53: TOTAL | C53: 889648.361 | D53: 795631.136 | E53: 813527.016 | F53: 888023.647 | G53: 1028150.819 | H53: 882996.1958 | J53: 1 | K53: 601955.92 | L53: 592412.119 | M53: 558584.993 | N53: 628139.859 | O53: 794914.674 | P53: 635201.513 | R53: 1 | S53: -247794.6828 | U53: =G53-INDEX($C53:$G53,1,aux!$AL$1) -> 138502.458 | W53: 1 | X53: =+IF(INDEX($C53:$G53,1,aux!$AL$1)>0,(G53/INDEX($C53:$G53,1,aux!$AL$1))^(1/($G$3-INDEX($C$3:$G$3,1,aux!$AL$1)))-1,"n.d.") -> 0.03683490841 | Y53: =IF(INDEX($C53:$G53,1,aux!$AL$1)>0,(G53-INDEX($C53:$G53,1,aux!$AL$1))/INDEX($C53:$G53,1,aux!$AL$1),"n.d.") -> 0.1556822494 | AA53: =O53-INDEX($K53:$O53,1,aux!$AL$1) -> 192958.754 | AC53: 1 | AD53: =+IF(INDEX($K53:$O53,1,aux!$AL$1)>0,(O53/INDEX($K53:$O53,1,aux!$AL$1))^(1/($O$3-INDEX($K$3:$O$3,1,aux!$AL$1)))-1,"n.d.") -> 0.07198561117 | AE53: =IF(INDEX($K53:$O53,1,aux!$AL$1)>0,(O53-INDEX($K53:$O53,1,aux!$AL$1))/INDEX($K53:$O53,1,aux!$AL$1),"n.d.") -> 0.3205529634
B54: a - agrícola e agroalimentar; p - pescas; f - florestas
A55: Fonte: GPP a partir de dados INE/Comércio Internacional (2022 definitivos) | S55: 2023-11-03T12:57:12.080

Sheet 5.2_var
A1: ="Principais contributos por produto para a variação das trocas comerciais PT-Alemanha_x000D_ no período " & INDEX('5.2'!K3:N3,1,aux!AL1) & "-2022 (NC 2 dígitos - milhares de euros) Produtos agrícolas e agroalimentares, do mar e da floresta" -> Principais contributos por produto para a variação das trocas comerciais PT-Alemanha no período 2018-2022 (NC 2 dígitos - milhares de euros) Produtos agrícolas e agroalimentares, do mar e da floresta
E5: aumento das importações | J5: aumento das exportações
E17: redução das importações | J17: redução das exportações
A28: Fonte: GPP a partir de dados INE/Comércio Internacional (2022 definitivos) | F28: a - agrícola e agroalimentar; p - mar; f - florestas | H28: ='3'!Y116 -> 2023-11-03T12:57:12.080
A29: Cód. NC | B29: Descritivo | C29: ="Variação das Importações " & INDEX('5.2'!K3:N3,1,aux!AL1) & "-"& '5.2'!O3 &"" -> Variação das Importações 2018-2022 | F29: Cód. NC | G29: Descritivo | H29: ="Variação das Exportações " & INDEX('5.2'!K3:N3,1,aux!AL1) & "-"& '5.2'!O3 &"" -> Variação das Exportações 2018-2022
C30: variação total em valor | D30: % do aumento/ redução total | H30: variação total em valor | I30: % do aumento/ redução total
A31: =IF(C31>0,aux!AU6,"") -> 48 | B31: =IF(C31>0,aux!AV6,"") -> Papel e cartão | C31: =IF(aux!AW6>0,aux!AW6,0) -> 37750.499 | D31: =IF(SUM($C$31:$C$41)<>0,C31/SUM($C$31:$C$41),0) -> 0.1462655586 | F31: =IF(H31>0,aux!AZ6,"") -> 48 | G31: =IF(H31>0,aux!BA6,"") -> Papel e cartão | H31: =IF(aux!BB6>0,aux!BB6,0) -> 39871.07 | I31: =IF(SUM($H$31:$H$41)<>0,H31/SUM($H$31:$H$41),0) -> 0.1919019955
A32: =IF(C32>0,aux!AU7,"") -> 19a | B32: =IF(C32>0,aux!AV7,"") -> Preparações à base de cereais (exc. NC 19022010) (a) | C32: =IF(aux!AW7>0,aux!AW7,0) -> 29028.916 | D32: =IF(SUM($C$31:$C$41)<>0,C32/SUM($C$31:$C$41),0) -> 0.1124734964 | F32: =IF(H32>0,aux!AZ7,"") -> 38f | G32: =IF(H32>0,aux!BA7,"") -> Tall oil, essências e colofónias (NC 3803,3805,3806) (f) | H32: =IF(aux!BB7>0,aux!BB7,0) -> 32990.543 | I32: =IF(SUM($H$31:$H$41)<>0,H32/SUM($H$31:$H$41),0) -> 0.1587855815
A33: =IF(C33>0,aux!AU8,"") -> 21 | B33: =IF(C33>0,aux!AV8,"") -> Preparações alimentícias diversas | C33: =IF(aux!AW8>0,aux!AW8,0) -> 27277.71 | D33: 0.1056883908 | F33: =IF(H33>0,aux!AZ8,"") -> 08 | G33: =IF(H33>0,aux!BA8,"") -> Frutas | H33: =IF(aux!BB8>0,aux!BB8,0) -> 30278.954 | I33: 0.1457345312
A34: =IF(C34>0,aux!AU9,"") -> 04 | B34: =IF(C34>0,aux!AV9,"") -> Leite e laticínios; ovos; mel, etc. | C34: =IF(aux!AW9>0,aux!AW9,0) -> 24453.175 | D34: 0.09474463636 | F34: =IF(H34>0,aux!AZ9,"") -> 20 | G34: =IF(H34>0,aux!BA9,"") -> Preparações de produtos vegetais | H34: =IF(aux!BB9>0,aux!BB9,0) -> 22337.811 | I34: 0.1075133049
A35: =IF(C35>0,aux!AU10,"") -> 23a | B35: =IF(C35>0,aux!AV10,"") -> Resíduos indústrias alimentares; alimentos p/ animais (exc. NC 230120) (a) | C35: =IF(aux!AW10>0,aux!AW10,0) -> 24282.969 | D35: 0.09408516758 | F35: =IF(H35>0,aux!AZ10,"") -> 21 | G35: =IF(H35>0,aux!BA10,"") -> Preparações alimentícias diversas | H35: =IF(aux!BB10>0,aux!BB10,0) -> 15079.489 | I35: 0.07257853952
A36: =IF(C36>0,aux!AU11,"") -> 08 | B36: =IF(C36>0,aux!AV11,"") -> Frutas | C36: =IF(aux!AW11>0,aux!AW11,0) -> 16133.767 | D36: 0.06251081455 | F36: =IF(H36>0,aux!AZ11,"") -> 44 | G36: =IF(H36>0,aux!BA11,"") -> Madeira e suas obras | H36: =IF(aux!BB11>0,aux!BB11,0) -> 9294.162 | I36: 0.04473339276
A37: =IF(C37>0,aux!AU12,"") -> 18 | B37: =IF(C37>0,aux!AV12,"") -> Cacau e suas preparações | C37: =IF(aux!AW12>0,aux!AW12,0) -> 11345.415 | D37: 0.04395818615 | F37: =IF(H37>0,aux!AZ12,"") -> 12 | G37: =IF(H37>0,aux!BA12,"") -> Sementes e frutos oleaginosos | H37: =IF(aux!BB12>0,aux!BB12,0) -> 8360.352 | I37: 0.04023890585
A38: =IF(C38>0,aux!AU13,"") -> 02 | B38: =IF(C38>0,aux!AV13,"") -> Carnes e miudezas | C38: =IF(aux!AW13>0,aux!AW13,0) -> 10886.614 | D38: 0.04218054648 | F38: =IF(H38>0,aux!AZ13,"") -> 07 | G38: =IF(H38>0,aux!BA13,"") -> Produtos hortícolas | H38: =IF(aux!BB13>0,aux!BB13,0) -> 7872.119 | I38: 0.03788900937
A39: =IF(C39>0,aux!AU14,"") -> 09 | B39: =IF(C39>0,aux!AV14,"") -> Café, chá, mate e especiarias | C39: =IF(aux!AW14>0,aux!AW14,0) -> 10501.276 | D39: 0.04068754164 | F39: =IF(H39>0,aux!AZ14,"") -> 04 | G39: =IF(H39>0,aux!BA14,"") -> Leite e laticínios; ovos; mel, etc. | H39: =IF(aux!BB14>0,aux!BB14,0) -> 7862.957 | I39: 0.03784491208
A40: =IF(C40>0,aux!AU15,"") -> 47 | B40: =IF(C40>0,aux!AV15,"") -> Pastas de madeira | C40: =IF(aux!AW15>0,aux!AW15,0) -> 10312.437 | D40: 0.03995587868 | F40: =IF(H40>0,aux!AZ15,"") -> 02 | G40: =IF(H40>0,aux!BA15,"") -> Carnes e miudezas | H40: =IF(aux!BB15>0,aux!BB15,0) -> 7226.367 | I40: 0.03478096393
B41: Outros contributos para o aumento das importações | C41: =SUMIF(aux!AW16:AW51,">0") -> 56122.835 | D41: 0.2174497828 | G41: Outros contributos para o aumento das exportações | H41: =SUMIF(aux!BB16:BB51,">0") -> 26594.052 | I41: 0.1279988635
B42: Outros contributos para a redução das importações | C42: =SUMIF(aux!AW6:AW41,"<0") -> -130.25 | D42: =IF(SUM($C$42:$C$52)<>0,C42/SUM($C$42:$C$52),0) -> 0.001089109155 | G42: Outros contributos para a redução das exportações | H42: =SUMIF(aux!BB6:BB41,"<0") -> 0 | I42: =IF(SUM($H$42:$H$52)<>0,H42/SUM($H$42:$H$52),0) -> 0
A43: =IF(C43<>0,aux!AU42,"") -> 51 | B43: =IF(C43<0,aux!AV42,"") -> Lã não cardada (NC 5101-5103) | C43: =IF(aux!AW42<0,aux!AW42,0) -> -105.579 | D43: =IF(SUM($C$42:$C$52)<>0,C43/SUM($C$42:$C$52),0) -> 0.0008828180844 | F43: =IF(H43<>0,aux!AZ42,"") ->  | G43: =IF(H43<>0,aux!BA42,"") ->  | H43: =IF(aux!BB42<0,aux!BB42,0) -> 0 | I43: =IF(SUM($H$42:$H$52)<>0,H43/SUM($H$42:$H$52),0) -> 0
A44: =IF(C44<>0,aux!AU43,"") -> 38a | B44: =IF(C44<0,aux!AV43,"") -> Agentes de acabamento, ácidos gordos, sorbitol (NC 380910, 382311-12-13-19-70, 382460) (a) | C44: =IF(aux!AW43<0,aux!AW43,0) -> -750.636 | D44: 0.00627657996 | F44: =IF(H44<>0,aux!AZ43,"") ->  | G44: =IF(H44<>0,aux!BA43,"") ->  | H44: =IF(aux!BB43<0,aux!BB43,0) -> 0 | I44: 0
A45: =IF(C45<>0,aux!AU44,"") -> 41 | B45: =IF(C45<0,aux!AV44,"") -> Couro e peles em bruto (NC 4101 a 4103) | C45: =IF(aux!AW44<0,aux!AW44,0) -> -1853.353 | D45: 0.01549714948 | F45: =IF(H45<>0,aux!AZ44,"") -> 14 | G45: =IF(H45<>0,aux!BA44,"") -> Matérias para entrançar e outros | H45: =IF(aux!BB44<0,aux!BB44,0) -> -1.242 | I45: 8.386722724e-05
A46: =IF(C46<>0,aux!AU45,"") -> 05a | B46: =IF(C46<0,aux!AV45,"") -> Outros produtos de origem animal (exc. NC 0508, 051191) (a) | C46: =IF(aux!AW45<0,aux!AW45,0) -> -2912.797 | D46: 0.02435588391 | F46: =IF(H46<>0,aux!AZ45,"") -> 13f | G46: =IF(H46<>0,aux!BA45,"") -> Gomas e resinas (NC 1301) (f) | H46: =IF(aux!BB45<0,aux!BB45,0) -> -2.2 | I46: 0.0001485570853
A47: =IF(C47<>0,aux!AU46,"") -> 07 | B47: =IF(C47<0,aux!AV46,"") -> Produtos hortícolas | C47: =IF(aux!AW46<0,aux!AW46,0) -> -4514.627 | D47: 0.03774987791 | F47: =IF(H47<>0,aux!AZ46,"") -> 18 | G47: =IF(H47<>0,aux!BA46,"") -> Cacau e suas preparações | H47: =IF(aux!BB46<0,aux!BB46,0) -> -8.035 | I47: 0.000542570991
A48: =IF(C48<>0,aux!AU47,"") -> 15 | B48: =IF(C48<0,aux!AV47,"") -> Gorduras e óleos animais ou vegetais | C48: =IF(aux!AW47<0,aux!AW47,0) -> -5913.263 | D48: 0.04944482818 | F48: =IF(H48<>0,aux!AZ47,"") -> 25 | G48: =IF(H48<>0,aux!BA47,"") -> Sal e cloreto de sódio puro; água do mar (NC 2501) | H48: =IF(aux!BB47<0,aux!BB47,0) -> -20.825 | I48: 0.001406227864
A49: =IF(C49<>0,aux!AU48,"") -> 03 | B49: =IF(C49<0,aux!AV48,"") -> Peixes e crustáceos | C49: =IF(aux!AW48<0,aux!AW48,0) -> -14414.353 | D49: 0.1205282443 | F49: =IF(H49<>0,aux!AZ48,"") -> 13a | G49: =IF(H49<>0,aux!BA48,"") -> Sucos e extratos vegetais (exc. NC 1301) (a) | H49: =IF(aux!BB48<0,aux!BB48,0) -> -21.519 | I49: 0.001453090872
A50: =IF(C50<>0,aux!AU49,"") -> 10 | B50: =IF(C50<0,aux!AV49,"") -> Cereais | C50: =IF(aux!AW49<0,aux!AW49,0) -> -21328.789 | D50: 0.1783445633 | F50: =IF(H50<>0,aux!AZ49,"") -> 22 | G50: =IF(H50<>0,aux!BA49,"") -> Bebidas, líquidos alcoólicos e vinagres | H50: =IF(aux!BB49<0,aux!BB49,0) -> -470.161 | I50: 0.03174806717
A51: =IF(C51<>0,aux!AU50,"") -> 24 | B51: =IF(C51<0,aux!AV50,"") -> Tabaco | C51: =IF(aux!AW50<0,aux!AW50,0) -> -28969.462 | D51: 0.2422334456 | F51: =IF(H51<>0,aux!AZ50,"") -> 23a | G51: =IF(H51<>0,aux!BA50,"") -> Resíduos indústrias alimentares; alimentos p/ animais (exc. NC 230120) (a) | H51: =IF(aux!BB50<0,aux!BB50,0) -> -4459.869 | I51: 0.3011568815
A52: =IF(C52<>0,aux!AU51,"") -> 12 | B52: =IF(C52<0,aux!AV51,"") -> Sementes e frutos oleaginosos | C52: =IF(aux!AW51<0,aux!AW51,0) -> -38700.046 | D52: 0.3235975002 | F52: =IF(H52<>0,aux!AZ51,"") -> 47 | G52: =IF(H52<>0,aux!BA51,"") -> Pastas de madeira | H52: =IF(aux!BB51<0,aux!BB51,0) -> -9825.271 | I52: 0.6634607372
A53: TOTAL | C53: =SUM(C31:C52) -> 138502.458 | F53: TOTAL | H53: =SUM(H31:H52) -> 192958.754

Sheet 5.2A
A1: Trocas comerciais Portugal-Alemanha 2018-2022 em milhares de euros (NC 4 dígitos) | G1: Produtos agrícolas e agroalimentares, do mar e da floresta
A2: Cód. NC | B2: Descritivo | C2: Importações | K2: Exportações | S2: Saldo quinquénio (exp-imp) | T2: Evolução das importações | U2: =+"Variação das Importações " & INDEX(K3:N3,1,aux!AL1) & "-"& '5.2'!O3 &"" -> Variação das Importações 2018-2022 | Z2: Evolução das exportações | AA2: ="Variação das Exportações " & INDEX(K3:N3,1,aux!AL1) & "-"& '5.2'!O3 &"" -> Variação das Exportações 2018-2022
C3: 2018 | D3: 2019 | E3: 2020 | F3: 2021 | G3: 2022 | H3: média quinquénio | I3: % Subtot | J3: % Total | K3: 2018 | L3: 2019 | M3: 2020 | N3: 2021 | O3: 2022 | P3: média quinquénio | Q3: % Subtot | R3: % Total | U3: variação total em valor | V3: % no subtotal de variação | W3: % no total de variação | X3: taxa de variação média anual | Y3: taxa de variação total | AA3: variação total em valor | AB3: % no subtotal de variação | AC3: % no total de variação | AD3: taxa de variação média anual | AE3: taxa de variação total | AX3: filtro
A4: 0101 | B4: Equídeos vivos | C4: 0 | D4: 1473.791 | E4: 0 | F4: 0 | G4: 1079.154 | H4: 510.589 | I4: 0.0007365225074 | J4: 0.0005782459793 | K4: 0 | L4: 0 | M4: 0 | N4: 0 | O4: 41.79 | P4: 8.358 | Q4: 3.216867912e-05 | R4: 1.315802911e-05 | S4: -502.231 | U4: =G4-INDEX($C4:$G4,1,aux!$AL$1) -> 1079.154 | V4: =IF($U$237<>0,U4/$U$237, "n.d.") -> 0.01198600829 | W4: =IF($U$322<>0,U4/$U$322, "n.d.") -> 0.007791587352 | X4: =+IF(INDEX($C4:$G4,1,aux!$AL$1)>0,(G4/INDEX($C4:$G4,1,aux!$AL$1))^(1/($G$3-INDEX($C$3:$G$3,1,aux!$AL$1)))-1,"n.d.") -> n.d. | Y4: =IF(INDEX($C4:$G4,1,aux!$AL$1)>0,(G4-INDEX($C4:$G4,1,aux!$AL$1))/INDEX($C4:$G4,1,aux!$AL$1),"n.d.") -> n.d. | AA4: =O4-INDEX($K4:$O4,1,aux!$AL$1) -> 41.79 | AB4: =IF($AA$237<>0,AA4/$AA$237, "n.d.") -> 0.0003630956403 | AC4: =IF($AA$322<>0,AA4/$AA$322, "n.d.") -> 0.0002165747816 | AD4: =+IF(INDEX($K4:$O4,1,aux!$AL$1)>0,(O4/INDEX($K4:$O4,1,aux!$AL$1))^(1/($O$3-INDEX($K$3:$O$3,1,aux!$AL$1)))-1,"n.d.") -> n.d. | AE4: =IF(INDEX($K4:$O4,1,aux!$AL$1)>0,(O4-INDEX($K4:$O4,1,aux!$AL$1))/INDEX($K4:$O4,1,aux!$AL$1),"n.d.") -> n.d. | AX4: =+LEFT(A4,2) -> 01
A5: 0102 | B5: Bovinos vivos | C5: 188.277 | D5: 75.954 | E5: 357.905 | F5: 0 | G5: 58.256 | H5: 136.0784 | I5: 0.0001962925256 | J5: 0.0001541098372 | K5: 0 | L5: 0 | M5: 0 | N5: 0 | O5: 0 | P5: 0 | Q5: 0 | R5: 0 | S5: -136.0784 | U5: =G5-INDEX($C5:$G5,1,aux!$AL$1) -> -130.021 | V5: -0.00144412455 | W5: -0.0009387631229 | X5: =+IF(INDEX($C5:$G5,1,aux!$AL$1)>0,(G5/INDEX($C5:$G5,1,aux!$AL$1))^(1/($G$3-INDEX($C$3:$G$3,1,aux!$AL$1)))-1,"n.d.") -> -0.2541768698 | Y5: =IF(INDEX($C5:$G5,1,aux!$AL$1)>0,(G5-INDEX($C5:$G5,1,aux!$AL$1))/INDEX($C5:$G5,1,aux!$AL$1),"n.d.") -> -0.6905835551 | AA5: =O5-INDEX($K5:$O5,1,aux!$AL$1) -> 0 | AB5: 0 | AC5: 0 | AD5: =+IF(INDEX($K5:$O5,1,aux!$AL$1)>0,(O5/INDEX($K5:$O5,1,aux!$AL$1))^(1/($O$3-INDEX($K$3:$O$3,1,aux!$AL$1)))-1,"n.d.") -> n.d. | AE5: =IF(INDEX($K5:$O5,1,aux!$AL$1)>0,(O5-INDEX($K5:$O5,1,aux!$AL$1))/INDEX($K5:$O5,1,aux!$AL$1),"n.d.") -> n.d. | AX5: 01
A6: 0103 | B6: Suínos vivos | C6: 0 | D6: 29.639 | E6: 0 | F6: 0 | G6: 0 | H6: 5.9278 | I6: 8.550826829e-06 | J6: 6.713279206e-06 | K6: 1706.525 | L6: 2055.447 | M6: 1412.493 | N6: 2028.041 | O6: 2430.404 | P6: 1926.582 | Q6: 0.007415123015 | R6: 0.003033024891 | S6: 1920.6542 | U6: =G6-INDEX($C6:$G6,1,aux!$AL$1) -> 0 | V6: 0 | W6: 0 | X6: =+IF(INDEX($C6:$G6,1,aux!$AL$1)>0,(G6/INDEX($C6:$G6,1,aux!$AL$1))^(1/($G$3-INDEX($C$3:$G$3,1,aux!$AL$1)))-1,"n.d.") -> n.d. | Y6: =IF(INDEX($C6:$G6,1,aux!$AL$1)>0,(G6-INDEX($C6:$G6,1,aux!$AL$1))/INDEX($C6:$G6,1,aux!$AL$1),"n.d.") -> n.d. | AA6: =O6-INDEX($K6:$O6,1,aux!$AL$1) -> 723.879 | AB6: 0.00628947856 | AC6: 0.00375147012 | AD6: =+IF(INDEX($K6:$O6,1,aux!$AL$1)>0,(O6/INDEX($K6:$O6,1,aux!$AL$1))^(1/($O$3-INDEX($K$3:$O$3,1,aux!$AL$1)))-1,"n.d.") -> 0.09242455663 | AE6: =IF(INDEX($K6:$O6,1,aux!$AL$1)>0,(O6-INDEX($K6:$O6,1,aux!$AL$1))/INDEX($K6:$O6,1,aux!$AL$1),"n.d.") -> 0.4241830621 | AX6: 01
A7: 0104 | B7: Ovinos ou caprinos vivos | C7: 0 | D7: 0 | E7: 0 | F7: 0 | G7: 0 | H7: 0 | I7: 0 | J7: 0 | K7: 0 | L7: 0 | M7: 0 | N7: 0 | O7: 0 | P7: 0 | Q7: 0 | R7: 0 | S7: 0 | U7: =G7-INDEX($C7:$G7,1,aux!$AL$1) -> 0 | V7: 0 | W7: 0 | X7: =+IF(INDEX($C7:$G7,1,aux!$AL$1)>0,(G7/INDEX($C7:$G7,1,aux!$AL$1))^(1/($G$3-INDEX($C$3:$G$3,1,aux!$AL$1)))-1,"n.d.") -> n.d. | Y7: =IF(INDEX($C7:$G7,1,aux!$AL$1)>0,(G7-INDEX($C7:$G7,1,aux!$AL$1))/INDEX($C7:$G7,1,aux!$AL$1),"n.d.") -> n.d. | AA7: =O7-INDEX($K7:$O7,1,aux!$AL$1) -> 0 | AB7: 0 | AC7: 0 | AD7: =+IF(INDEX($K7:$O7,1,aux!$AL$1)>0,(O7/INDEX($K7:$O7,1,aux!$AL$1))^(1/($O$3-INDEX($K$3:$O$3,1,aux!$AL$1)))-1,"n.d.") -> n.d. | AE7: =IF(INDEX($K7:$O7,1,aux!$AL$1)>0,(O7-INDEX($K7:$O7,1,aux!$AL$1))/INDEX($K7:$O7,1,aux!$AL$1),"n.d.") -> n.d. | AX7: 01
A8: 0105 | B8: Aves de capoeira vivas | C8: 389.939 | D8: 294.961 | E8: 589.598 | F8: 634.111 | G8: 369.687 | H8: 455.6592 | I8: 0.0006572864996 | J8: 0.0005160375573 | K8: 0 | L8: 0 | M8: 0 | N8: 0 | O8: 0 | P8: 0 | Q8: 0 | R8: 0 | S8: -455.6592 | U8: =G8-INDEX($C8:$G8,1,aux!$AL$1) -> -20.252 | V8: -0.0002249360517 | W8: -0.0001462212317 | X8: =+IF(INDEX($C8:$G8,1,aux!$AL$1)>0,(G8/INDEX($C8:$G8,1,aux!$AL$1))^(1/($G$3-INDEX($C$3:$G$3,1,aux!$AL$1)))-1,"n.d.") -> -0.01324490767 | Y8: =IF(INDEX($C8:$G8,1,aux!$AL$1)>0,(G8-INDEX($C8:$G8,1,aux!$AL$1))/INDEX($C8:$G8,1,aux!$AL$1),"n.d.") -> -0.0519363285 | AA8: =O8-INDEX($K8:$O8,1,aux!$AL$1) -> 0 | AB8: 0 | AC8: 0 | AD8: =+IF(INDEX($K8:$O8,1,aux!$AL$1)>0,(O8/INDEX($K8:$O8,1,aux!$AL$1))^(1/($O$3-INDEX($K$3:$O$3,1,aux!$AL$1)))-1,"n.d.") -> n.d. | AE8: =IF(INDEX($K8:$O8,1,aux!$AL$1)>0,(O8-INDEX($K8:$O8,1,aux!$AL$1))/INDEX($K8:$O8,1,aux!$AL$1),"n.d.") -> n.d. | AX8: 01
A9: 0106 | B9: Outros animais vivos | C9: 0 | D9: 0.202 | E9: 72.969 | F9: 41.199 | G9: 107.668 | H9: 44.4076 | I9: 6.405777818e-05 | J9: 5.02919494e-05 | K9: 0 | L9: 0 | M9: 0 | N9: 0 | O9: 0 | P9: 0 | Q9: 0 | R9: 0 | S9: -44.4076 | U9: =G9-INDEX($C9:$G9,1,aux!$AL$1) -> 107.668 | V9: 0.001195852993 | W9: 0.0007773724853 | X9: =+IF(INDEX($C9:$G9,1,aux!$AL$1)>0,(G9/INDEX($C9:$G9,1,aux!$AL$1))^(1/($G$3-INDEX($C$3:$G$3,1,aux!$AL$1)))-1,"n.d.") -> n.d. | Y9: =IF(INDEX($C9:$G9,1,aux!$AL$1)>0,(G9-INDEX($C9:$G9,1,aux!$AL$1))/INDEX($C9:$G9,1,aux!$AL$1),"n.d.") -> n.d. | AA9: =O9-INDEX($K9:$O9,1,aux!$AL$1) -> 0 | AB9: 0 | AC9: 0 | AD9: =+IF(INDEX($K9:$O9,1,aux!$AL$1)>0,(O9/INDEX($K9:$O9,1,aux!$AL$1))^(1/($O$3-INDEX($K$3:$O$3,1,aux!$AL$1)))-1,"n.d.") -> n.d. | AE9: =IF(INDEX($K9:$O9,1,aux!$AL$1)>0,(O9-INDEX($K9:$O9,1,aux!$AL$1))/INDEX($K9:$O9,1,aux!$AL$1),"n.d.") -> n.d. | AX9: 01
A10: 01SS | B10: Animais vivos | C10: 0 | D10: 0 | E10: 0 | F10: 0 | G10: 0 | H10: 0 | I10: 0 | J10: 0 | K10: 0 | L10: 0 | M10: 0 | N10: 0 | O10: 0 | P10: 0 | Q10: 0 | R10: 0 | S10: 0 | U10: =G10-INDEX($C10:$G10,1,aux!$AL$1) -> 0 | V10: 0 | W10: 0 | X10: =+IF(INDEX($C10:$G10,1,aux!$AL$1)>0,(G10/INDEX($C10:$G10,1,aux!$AL$1))^(1/($G$3-INDEX($C$3:$G$3,1,aux!$AL$1)))-1,"n.d.") -> n.d. | Y10: =IF(INDEX($C10:$G10,1,aux!$AL$1)>0,(G10-INDEX($C10:$G10,1,aux!$AL$1))/INDEX($C10:$G10,1,aux!$AL$1),"n.d.") -> n.d. | AA10: =O10-INDEX($K10:$O10,1,aux!$AL$1) -> 0 | AB10: 0 | AC10: 0 | AD10: =+IF(INDEX($K10:$O10,1,aux!$AL$1)>0,(O10/INDEX($K10:$O10,1,aux!$AL$1))^(1/($O$3-INDEX($K$3:$O$3,1,aux!$AL$1)))-1,"n.d.") -> n.d. | AE10: =IF(INDEX($K10:$O10,1,aux!$AL$1)>0,(O10-INDEX($K10:$O10,1,aux!$AL$1))/INDEX($K10:$O10,1,aux!$AL$1),"n.d.") -> n.d. | AX10: 01
A11: 0201 | B11: Carnes de bovino, frescas ou refrigeradas | C11: 10045.065 | D11: 10030.544 | E11: 8470.576 | F11: 10265.276 | G11: 12761.322 | H11: 10314.5566 | I11: 0.01487870497 | J11: 0.01168131488 | K11: 3445.806 | L11: 480.771 | M11: 1912.869 | N11: 3587.353 | O11: 4627.075 | P11: 2810.7748 | Q11: 0.0108182475 | R11: 0.00442501276 | S11: -7503.7818 | U11: =G11-INDEX($C11:$G11,1,aux!$AL$1) -> 2716.257 | V11: 0.0301690759 | W11: 0.01961161585 | X11: =+IF(INDEX($C11:$G11,1,aux!$AL$1)>0,(G11/INDEX($C11:$G11,1,aux!$AL$1))^(1/($G$3-INDEX($C$3:$G$3,1,aux!$AL$1)))-1,"n.d.") -> 0.06166067013 | Y11: =IF(INDEX($C11:$G11,1,aux!$AL$1)>0,(G11-INDEX($C11:$G11,1,aux!$AL$1))/INDEX($C11:$G11,1,aux!$AL$1),"n.d.") -> 0.2704071104 | AA11: =O11-INDEX($K11:$O11,1,aux!$AL$1) -> 1181.269 | AB11: 0.01026354688 | AC11: 0.006121873071 | AD11: =+IF(INDEX($K11:$O11,1,aux!$AL$1)>0,(O11/INDEX($K11:$O11,1,aux!$AL$1))^(1/($O$3-INDEX($K$3:$O$3,1,aux!$AL$1)))-1,"n.d.") -> 0.07647495238 | AE11: =IF(INDEX($K11:$O11,1,aux!$AL$1)>0,(O11-INDEX($K11:$O11,1,aux!$AL$1))/INDEX($K11:$O11,1,aux!$AL$1),"n.d.") -> 0.3428135536 | AX11: 02
A12: 0202 | B12: Carnes de bovino, congeladas | C12: 2779.452 | D12: 5387.303 | E12: 2535.167 | F12: 3008.434 | G12: 3973.599 | H12: 3536.791 | I12: 0.005101806297 | J12: 0.004005443078 | K12: 57.03 | L12: 1336.388 | M12: 610.13 | N12: 566.859 | O12: 587.346 | P12: 631.5506 | Q12: 0.002430742833 | R12: 0.0009942523547 | S12: -2905.2404 | U12: =G12-INDEX($C12:$G12,1,aux!$AL$1) -> 1194.147 | V12: 0.01326321901 | W12: 0.008621846986 | X12: =+IF(INDEX($C12:$G12,1,aux!$AL$1)>0,(G12/INDEX($C12:$G12,1,aux!$AL$1))^(1/($G$3-INDEX($C$3:$G$3,1,aux!$AL$1)))-1,"n.d.") -> 0.09346834436 | Y12: =IF(INDEX($C12:$G12,1,aux!$AL$1)>0,(G12-INDEX($C12:$G12,1,aux!$AL$1))/INDEX($C12:$G12,1,aux!$AL$1),"n.d.") -> 0.429633971 | AA12: =O12-INDEX($K12:$O12,1,aux!$AL$1) -> 530.316 | AB12: 0.004607691495 | AC12: 0.002748338642 | AD12: =+IF(INDEX($K12:$O12,1,aux!$AL$1)>0,(O12/INDEX($K12:$O12,1,aux!$AL$1))^(1/($O$3-INDEX($K$3:$O$3,1,aux!$AL$1)))-1,"n.d.") -> 0.7914210001 | AE12: =IF(INDEX($K12:$O12,1,aux!$AL$1)>0,(O12-INDEX($K12:$O12,1,aux!$AL$1))/INDEX($K12:$O12,1,aux!$AL$1),"n.d.") -> 9.298895318 | AX12: 02
A13: 0203 | B13: Carnes de suíno | C13: 2681.893 | D13: 2520.971 | E13: 2044.925 | F13: 3138.697 | G13: 3905.052 | H13: 2858.3076 | I13: 0.004123096817 | J13: 0.003237055396 | K13: 1427.342 | L13: 4195.81 | M13: 3997.166 | N13: 3759.033 | O13: 4857.48 | P13: 3647.3662 | Q13: 0.01403816139 | R13: 0.005742061575 | S13: 789.0586 | U13: =G13-INDEX($C13:$G13,1,aux!$AL$1) -> 1223.159 | V13: 0.01358545112 | W13: 0.008831316192 | X13: =+IF(INDEX($C13:$G13,1,aux!$AL$1)>0,(G13/INDEX($C13:$G13,1,aux!$AL$1))^(1/($G$3-INDEX($C$3:$G$3,1,aux!$AL$1)))-1,"n.d.") -> 0.09849059678 | Y13: =IF(INDEX($C13:$G13,1,aux!$AL$1)>0,(G13-INDEX($C13:$G13,1,aux!$AL$1))/INDEX($C13:$G13,1,aux!$AL$1),"n.d.") -> 0.4560804626 | AA13: =O13-INDEX($K13:$O13,1,aux!$AL$1) -> 3430.138 | AB13: 0.02980301875 | AC13: 0.01777653477 | AD13: =+IF(INDEX($K13:$O13,1,aux!$AL$1)>0,(O13/INDEX($K13:$O13,1,aux!$AL$1))^(1/($O$3-INDEX($K$3:$O$3,1,aux!$AL$1)))-1,"n.d.") -> 0.3582219476 | AE13: =IF(INDEX($K13:$O13,1,aux!$AL$1)>0,(O13-INDEX($K13:$O13,1,aux!$AL$1))/INDEX($K13:$O13,1,aux!$AL$1),"n.d.") -> 2.403164764 | AX13: 02
A14: 0204 | B14: Carnes de ovino ou caprino | C14: 755.22 | D14: 953.944 | E14: 212.813 | F14: 171.241 | G14: 450.918 | H14: 508.8272 | I14: 0.0007339811183 | J14: 0.0005762507273 | K14: 3.69 | L14: 269.668 | M14: 10.477 | N14: 7.532 | O14: 63.195 | P14: 70.9124 | Q14: 0.0002729311129 | R14: 0.0001116376434 | S14: -437.9148 | U14: =G14-INDEX($C14:$G14,1,aux!$AL$1) -> -304.302 | V14: -0.003379838555 | W14: -0.002197087361 | X14: =+IF(INDEX($C14:$G14,1,aux!$AL$1)>0,(G14/INDEX($C14:$G14,1,aux!$AL$1))^(1/($G$3-INDEX($C$3:$G$3,1,aux!$AL$1)))-1,"n.d.") -> -0.1209652937 | Y14: =IF(INDEX($C14:$G14,1,aux!$AL$1)>0,(G14-INDEX($C14:$G14,1,aux!$AL$1))/INDEX($C14:$G14,1,aux!$AL$1),"n.d.") -> -0.4029315961 | AA14: =O14-INDEX($K14:$O14,1,aux!$AL$1) -> 59.505 | AB14: 0.000517013785 | AC14: 0.0003083819664 | AD14: =+IF(INDEX($K14:$O14,1,aux!$AL$1)>0,(O14/INDEX($K14:$O14,1,aux!$AL$1))^(1/($O$3-INDEX($K$3:$O$3,1,aux!$AL$1)))-1,"n.d.") -> 1.034295732 | AE14: =IF(INDEX($K14:$O14,1,aux!$AL$1)>0,(O14-INDEX($K14:$O14,1,aux!$AL$1))/INDEX($K14:$O14,1,aux!$AL$1),"n.d.") -> 16.12601626 | AX14: 02
A15: 0205 | B15: Carnes de equídeo | C15: 0 | D15: 0 | E15: 0 | F15: 0 | G15: 0 | H15: 0 | I15: 0 | J15: 0 | K15: 0 | L15: 0 | M15: 0 | N15: 0 | O15: 0 | P15: 0 | Q15: 0 | R15: 0 | S15: 0 | U15: =G15-INDEX($C15:$G15,1,aux!$AL$1) -> 0 | V15: 0 | W15: 0 | X15: =+IF(INDEX($C15:$G15,1,aux!$AL$1)>0,(G15/INDEX($C15:$G15,1,aux!$AL$1))^(1/($G$3-INDEX($C$3:$G$3,1,aux!$AL$1)))-1,"n.d.") -> n.d. | Y15: =IF(INDEX($C15:$G15,1,aux!$AL$1)>0,(G15-INDEX($C15:$G15,1,aux!$AL$1))/INDEX($C15:$G15,1,aux!$AL$1),"n.d.") -> n.d. | AA15: =O15-INDEX($K15:$O15,1,aux!$AL$1) -> 0 | AB15: 0 | AC15: 0 | AD15: =+IF(INDEX($K15:$O15,1,aux!$AL$1)>0,(O15/INDEX($K15:$O15,1,aux!$AL$1))^(1/($O$3-INDEX($K$3:$O$3,1,aux!$AL$1)))-1,"n.d.") -> n.d. | AE15: =IF(INDEX($K15:$O15,1,aux!$AL$1)>0,(O15-INDEX($K15:$O15,1,aux!$AL$1))/INDEX($K15:$O15,1,aux!$AL$1),"n.d.") -> n.d. | AX15: 02
A16: 0206 | B16: Miudezas de bovino, suíno, ovino, caprino,equídeo | C16: 608.692 | D16: 747.43 | E16: 532.573 | F16: 710.689 | G16: 1049.928 | H16: 729.8624 | I16: 0.001052823474 | J16: 0.0008265747955 | K16: 7.537 | L16: 0.737 | M16: 20.407 | N16: 78.886 | O16: 22.933 | P16: 26.1 | Q16: 0.0001004549563 | R16: 4.108932278e-05 | S16: -703.7624 | U16: =G16-INDEX($C16:$G16,1,aux!$AL$1) -> 441.236 | V16: 0.004900744801 | W16: 0.003185762956 | X16: =+IF(INDEX($C16:$G16,1,aux!$AL$1)>0,(G16/INDEX($C16:$G16,1,aux!$AL$1))^(1/($G$3-INDEX($C$3:$G$3,1,aux!$AL$1)))-1,"n.d.") -> 0.1460154721 | Y16: =IF(INDEX($C16:$G16,1,aux!$AL$1)>0,(G16-INDEX($C16:$G16,1,aux!$AL$1))/INDEX($C16:$G16,1,aux!$AL$1),"n.d.") -> 0.7248920636 | AA16: =O16-INDEX($K16:$O16,1,aux!$AL$1) -> 15.396 | AB16: 0.0001337693342 | AC16: 7.978907244e-05 | AD16: =+IF(INDEX($K16:$O16,1,aux!$AL$1)>0,(O16/INDEX($K16:$O16,1,aux!$AL$1))^(1/($O$3-INDEX($K$3:$O$3,1,aux!$AL$1)))-1,"n.d.") -> 0.3207347019 | AE16: =IF(INDEX($K16:$O16,1,aux!$AL$1)>0,(O16-INDEX($K16:$O16,1,aux!$AL$1))/INDEX($K16:$O16,1,aux!$AL$1),"n.d.") -> 2.042722569 | AX16: 02
A17: 0207 | B17: Carnes e miudezas de aves de capoeira | C17: 13923.357 | D17: 9847.242 | E17: 14882.941 | F17: 19218.227 | G17: 17014.664 | H17: 14977.2862 | I17: 0.02160467301 | J17: 0.0169618921 | K17: 52.932 | L17: 74.556 | M17: 287.224 | N17: 451.553 | O17: 1142.863 | P17: 401.8256 | Q17: 0.001546566019 | R17: 0.0006325954705 | S17: -14575.4606 | U17: =G17-INDEX($C17:$G17,1,aux!$AL$1) -> 3091.307 | V17: 0.03433470231 | W17: 0.02231951003 | X17: =+IF(INDEX($C17:$G17,1,aux!$AL$1)>0,(G17/INDEX($C17:$G17,1,aux!$AL$1))^(1/($G$3-INDEX($C$3:$G$3,1,aux!$AL$1)))-1,"n.d.") -> 0.05140455605 | Y17: =IF(INDEX($C17:$G17,1,aux!$AL$1)>0,(G17-INDEX($C17:$G17,1,aux!$AL$1))/INDEX($C17:$G17,1,aux!$AL$1),"n.d.") -> 0.2220231084 | AA17: =O17-INDEX($K17:$O17,1,aux!$AL$1) -> 1089.931 | AB17: 0.009469949613 | AC17: 0.005648518025 | AD17: =+IF(INDEX($K17:$O17,1,aux!$AL$1)>0,(O17/INDEX($K17:$O17,1,aux!$AL$1))^(1/($O$3-INDEX($K$3:$O$3,1,aux!$AL$1)))-1,"n.d.") -> 1.155603933 | AE17: =IF(INDEX($K17:$O17,1,aux!$AL$1)>0,(O17-INDEX($K17:$O17,1,aux!$AL$1))/INDEX($K17:$O17,1,aux!$AL$1),"n.d.") -> 20.59115469 | AX17: 02
A18: 0208 | B18: Outras carnes e miudezas | C18: 62.674 | D18: 3447.115 | E18: 982.794 | F18: 1002.92 | G18: 826.934 | H18: 1264.4874 | I18: 0.001824017812 | J18: 0.00143204173 | K18: 24.66 | L18: 30.509 | M18: 25.044 | N18: 120.572 | O18: 61.056 | P18: 52.3682 | Q18: 0.0002015572891 | R18: 8.244344342e-05 | S18: -1212.1192 | U18: =G18-INDEX($C18:$G18,1,aux!$AL$1) -> 764.26 | V18: 0.008488525918 | W18: 0.005518024814 | X18: =+IF(INDEX($C18:$G18,1,aux!$AL$1)>0,(G18/INDEX($C18:$G18,1,aux!$AL$1))^(1/($G$3-INDEX($C$3:$G$3,1,aux!$AL$1)))-1,"n.d.") -> 0.9058813437 | Y18: =IF(INDEX($C18:$G18,1,aux!$AL$1)>0,(G18-INDEX($C18:$G18,1,aux!$AL$1))/INDEX($C18:$G18,1,aux!$AL$1),"n.d.") -> 12.19421132 | AA18: =O18-INDEX($K18:$O18,1,aux!$AL$1) -> 36.396 | AB18: 0.000316229455 | AC18: 0.000188620621 | AD18: =+IF(INDEX($K18:$O18,1,aux!$AL$1)>0,(O18/INDEX($K18:$O18,1,aux!$AL$1))^(1/($O$3-INDEX($K$3:$O$3,1,aux!$AL$1)))-1,"n.d.") -> 0.2543935698 | AE18: =IF(INDEX($K18:$O18,1,aux!$AL$1)>0,(O18-INDEX($K18:$O18,1,aux!$AL$1))/INDEX($K18:$O18,1,aux!$AL$1),"n.d.") -> 1.475912409 | AX18: 02
A19: 0209 | B19: Toucinho, gorduras de porco e de aves | C19: 0.121 | D19: 3.945 | E19: 18.653 | F19: 46.839 | G19: 10.929 | H19: 16.0974 | I19: 2.32204325e-05 | J19: 1.823042962e-05 | K19: 6.659 | L19: 13.467 | M19: 15.361 | N19: 6.386 | O19: 5.918 | P19: 9.5582 | Q19: 3.678806757e-05 | R19: 1.504750824e-05 | S19: -6.5392 | U19: =G19-INDEX($C19:$G19,1,aux!$AL$1) -> 10.808 | V19: 0.0001200429018 | W19: 7.803471618e-05 | X19: =+IF(INDEX($C19:$G19,1,aux!$AL$1)>0,(G19/INDEX($C19:$G19,1,aux!$AL$1))^(1/($G$3-INDEX($C$3:$G$3,1,aux!$AL$1)))-1,"n.d.") -> 2.082824231 | Y19: =IF(INDEX($C19:$G19,1,aux!$AL$1)>0,(G19-INDEX($C19:$G19,1,aux!$AL$1))/INDEX($C19:$G19,1,aux!$AL$1),"n.d.") -> 89.32231405 | AA19: =O19-INDEX($K19:$O19,1,aux!$AL$1) -> -0.741 | AB19: -6.43823569e-06 | AC19: -3.840198927e-06 | AD19: =+IF(INDEX($K19:$O19,1,aux!$AL$1)>0,(O19/INDEX($K19:$O19,1,aux!$AL$1))^(1/($O$3-INDEX($K$3:$O$3,1,aux!$AL$1)))-1,"n.d.") -> -0.02906202705 | AE19: =IF(INDEX($K19:$O19,1,aux!$AL$1)>0,(O19-INDEX($K19:$O19,1,aux!$AL$1))/INDEX($K19:$O19,1,aux!$AL$1),"n.d.") -> -0.1112779697 | AX19: 02
A20: 0210 | B20: Carnes e miudezas processadas; farinhas de carnes | C20: 4114.914 | D20: 4144.766 | E20: 4774.625 | F20: 5778.55 | G20: 5864.656 | H20: 4935.5022 | I20: 0.007119441382 | J20: 0.005589494296 | K20: 217.289 | L20: 156.098 | M20: 217.813 | N20: 568.557 | O20: 1101.446 | P20: 452.2406 | Q20: 0.001740605737 | R20: 0.0007119639843 | S20: -4483.2616 | U20: =G20-INDEX($C20:$G20,1,aux!$AL$1) -> 1749.742 | V20: 0.01943413278 | W20: 0.01263329204 | X20: =+IF(INDEX($C20:$G20,1,aux!$AL$1)>0,(G20/INDEX($C20:$G20,1,aux!$AL$1))^(1/($G$3-INDEX($C$3:$G$3,1,aux!$AL$1)))-1,"n.d.") -> 0.09262326844 | Y20: =IF(INDEX($C20:$G20,1,aux!$AL$1)>0,(G20-INDEX($C20:$G20,1,aux!$AL$1))/INDEX($C20:$G20,1,aux!$AL$1),"n.d.") -> 0.4252195793 | AA20: =O20-INDEX($K20:$O20,1,aux!$AL$1) -> 884.157 | AB20: 0.007682066333 | AC20: 0.004582103593 | AD20: =+IF(INDEX($K20:$O20,1,aux!$AL$1)>0,(O20/INDEX($K20:$O20,1,aux!$AL$1))^(1/($O$3-INDEX($K$3:$O$3,1,aux!$AL$1)))-1,"n.d.") -> 0.5004839945 | AE20: =IF(INDEX($K20:$O20,1,aux!$AL$1)>0,(O20-INDEX($K20:$O20,1,aux!$AL$1))/INDEX($K20:$O20,1,aux!$AL$1),"n.d.") -> 4.069037089 | AX20: 02
A21: 02SS | B21: Carnes e miudezas, comestíveis | C21: 0 | D21: 0 | E21: 0 | F21: 0 | G21: 0 | H21: 0 | I21: 0 | J21: 0 | K21: 0 | L21: 0 | M21: 0 | N21: 0 | O21: 0 | P21: 0 | Q21: 0 | R21: 0 | S21: 0 | U21: =G21-INDEX($C21:$G21,1,aux!$AL$1) -> 0 | V21: 0 | W21: 0 | X21: =+IF(INDEX($C21:$G21,1,aux!$AL$1)>0,(G21/INDEX($C21:$G21,1,aux!$AL$1))^(1/($G$3-INDEX($C$3:$G$3,1,aux!$AL$1)))-1,"n.d.") -> n.d. | Y21: =IF(INDEX($C21:$G21,1,aux!$AL$1)>0,(G21-INDEX($C21:$G21,1,aux!$AL$1))/INDEX($C21:$G21,1,aux!$AL$1),"n.d.") -> n.d. | AA21: =O21-INDEX($K21:$O21,1,aux!$AL$1) -> 0 | AB21: 0 | AC21: 0 | AD21: =+IF(INDEX($K21:$O21,1,aux!$AL$1)>0,(O21/INDEX($K21:$O21,1,aux!$AL$1))^(1/($O$3-INDEX($K$3:$O$3,1,aux!$AL$1)))-1,"n.d.") -> n.d. | AE21: =IF(INDEX($K21:$O21,1,aux!$AL$1)>0,(O21-INDEX($K21:$O21,1,aux!$AL$1))/INDEX($K21:$O21,1,aux!$AL$1),"n.d.") -> n.d. | AX21: 02
A22: 0401 | B22: Leite e nata, não concentrados | C22: 5944.324 | D22: 4505.485 | E22: 1316.598 | F22: 1311.011 | G22: 947.124 | H22: 2804.9084 | I22: 0.004046068693 | J22: 0.00317658039 | K22: 9.584 | L22: 14.119 | M22: 16.013 | N22: 16.6 | O22: 20.486 | P22: 15.3604 | Q22: 5.911985867e-05 | R22: 2.418193232e-05 | S22: -2789.548 | U22: =G22-INDEX($C22:$G22,1,aux!$AL$1) -> -4997.2 | V22: -0.05550318179 | W22: -0.0360802261 | X22: =+IF(INDEX($C22:$G22,1,aux!$AL$1)>0,(G22/INDEX($C22:$G22,1,aux!$AL$1))^(1/($G$3-INDEX($C$3:$G$3,1,aux!$AL$1)))-1,"n.d.") -> -0.3682051344 | Y22: =IF(INDEX($C22:$G22,1,aux!$AL$1)>0,(G22-INDEX($C22:$G22,1,aux!$AL$1))/INDEX($C22:$G22,1,aux!$AL$1),"n.d.") -> -0.8406675006 | AA22: =O22-INDEX($K22:$O22,1,aux!$AL$1) -> 10.902 | AB22: 9.47228684e-05 | AC22: 5.649912105e-05 | AD22: =+IF(INDEX($K22:$O22,1,aux!$AL$1)>0,(O22/INDEX($K22:$O22,1,aux!$AL$1))^(1/($O$3-INDEX($K$3:$O$3,1,aux!$AL$1)))-1,"n.d.") -> 0.2091427908 | AE22: =IF(INDEX($K22:$O22,1,aux!$AL$1)>0,(O22-INDEX($K22:$O22,1,aux!$AL$1))/INDEX($K22:$O22,1,aux!$AL$1),"n.d.") -> 1.137520868 | AX22: 04
A23: 0402 | B23: Leite e nata, concentrados | C23: 5942.852 | D23: 7011.375 | E23: 8843.135 | F23: 5816.651 | G23: 5339.555 | H23: 6590.7136 | I23: 0.009507076938 | J23: 0.007464033969 | K23: 104.804 | L23: 217.19 | M23: 2791.77 | N23: 2888.06 | O23: 6266.506 | P23: 2453.666 | Q23: 0.00944378969 | R23: 0.003862815106 | S23: -4137.0476 | U23: =G23-INDEX($C23:$G23,1,aux!$AL$1) -> -603.297 | V23: -0.006700733024 | W23: -0.004355857713 | X23: =+IF(INDEX($C23:$G23,1,aux!$AL$1)>0,(G23/INDEX($C23:$G23,1,aux!$AL$1))^(1/($G$3-INDEX($C$3:$G$3,1,aux!$AL$1)))-1,"n.d.") -> -0.02640678778 | Y23: =IF(INDEX($C23:$G23,1,aux!$AL$1)>0,(G23-INDEX($C23:$G23,1,aux!$AL$1))/INDEX($C23:$G23,1,aux!$AL$1),"n.d.") -> -0.10151641 | AA23: =O23-INDEX($K23:$O23,1,aux!$AL$1) -> 6161.702 | AB23: 0.05353642338 | AC23: 0.03193274144 | AD23: =+IF(INDEX($K23:$O23,1,aux!$AL$1)>0,(O23/INDEX($K23:$O23,1,aux!$AL$1))^(1/($O$3-INDEX($K$3:$O$3,1,aux!$AL$1)))-1,"n.d.") -> 1.780749708 | AE23: =IF(INDEX($K23:$O23,1,aux!$AL$1)>0,(O23-INDEX($K23:$O23,1,aux!$AL$1))/INDEX($K23:$O23,1,aux!$AL$1),"n.d.") -> 58.79262242 | AX23: 04
A24: 0403 | B24: Leitelho, leite coalhado, iogurte, etc. | C24: 29940.969 | D24: 30017.083 | E24: 27182.245 | F24: 25038.574 | G24: 29683.792 | H24: 28372.5326 | I24: 0.04092726019 | J24: 0.03213211193 | K24: 44.614 | L24: 61.536 | M24: 53.279 | N24: 45.427 | O24: 19.756 | P24: 44.9224 | Q24: 0.0001728995299 | R24: 7.072149402e-05 | S24: -28327.6102 | U24: =G24-INDEX($C24:$G24,1,aux!$AL$1) -> -257.177 | V24: -0.002856427956 | W24: -0.001856840692 | X24: =+IF(INDEX($C24:$G24,1,aux!$AL$1)>0,(G24/INDEX($C24:$G24,1,aux!$AL$1))^(1/($G$3-INDEX($C$3:$G$3,1,aux!$AL$1)))-1,"n.d.") -> -0.002154318681 | Y24: =IF(INDEX($C24:$G24,1,aux!$AL$1)>0,(G24-INDEX($C24:$G24,1,aux!$AL$1))/INDEX($C24:$G24,1,aux!$AL$1),"n.d.") -> -0.008589468163 | AA24: =O24-INDEX($K24:$O24,1,aux!$AL$1) -> -24.858 | AB24: -0.0002159806515 | AC24: -0.0001288254587 | AD24: =+IF(INDEX($K24:$O24,1,aux!$AL$1)>0,(O24/INDEX($K24:$O24,1,aux!$AL$1))^(1/($O$3-INDEX($K$3:$O$3,1,aux!$AL$1)))-1,"n.d.") -> -0.1842502232 | AE24: =IF(INDEX($K24:$O24,1,aux!$AL$1)>0,(O24-INDEX($K24:$O24,1,aux!$AL$1))/INDEX($K24:$O24,1,aux!$AL$1),"n.d.") -> -0.5571793607 | AX24: 04
A25: 0404 | B25: Soro de leite e outros produtos do leite | C25: 5751.935 | D25: 11969.572 | E25: 10618.847 | F25: 13126.529 | G25: 16200.034 | H25: 11533.3834 | I25: 0.01663685755 | J25: 0.01306164563 | K25: 40.41 | L25: 28.564 | M25: 0.78 | N25: 0.387 | O25: 11.982 | P25: 16.4246 | Q25: 6.321580367e-05 | R25: 2.585730617e-05 | S25: -11516.9588 | U25: =G25-INDEX($C25:$G25,1,aux!$AL$1) -> 10448.099 | V25: 0.1160455331 | W25: 0.07543619912 | X25: =+IF(INDEX($C25:$G25,1,aux!$AL$1)>0,(G25/INDEX($C25:$G25,1,aux!$AL$1))^(1/($G$3-INDEX($C$3:$G$3,1,aux!$AL$1)))-1,"n.d.") -> 0.2954644186 | Y25: =IF(INDEX($C25:$G25,1,aux!$AL$1)>0,(G25-INDEX($C25:$G25,1,aux!$AL$1))/INDEX($C25:$G25,1,aux!$AL$1),"n.d.") -> 1.816449421 | AA25: =O25-INDEX($K25:$O25,1,aux!$AL$1) -> -28.428 | AB25: -0.000246998872 | AC25: -0.000147326822 | AD25: =+IF(INDEX($K25:$O25,1,aux!$AL$1)>0,(O25/INDEX($K25:$O25,1,aux!$AL$1))^(1/($O$3-INDEX($K$3:$O$3,1,aux!$AL$1)))-1,"n.d.") -> -0.2620785814 | AE25: =IF(INDEX($K25:$O25,1,aux!$AL$1)>0,(O25-INDEX($K25:$O25,1,aux!$AL$1))/INDEX($K25:$O25,1,aux!$AL$1),"n.d.") -> -0.7034892353 | AX25: 04
A26: 0405 | B26: Manteiga | C26: 3585.324 | D26: 4346.309 | E26: 4016.196 | F26: 2982.388 | G26: 4056.009 | H26: 3797.2452 | I26: 0.005477510397 | J26: 0.004300409467 | K26: 261.3 | L26: 202.375 | M26: 45.975 | N26: 51.545 | O26: 51.351 | P26: 122.5092 | Q26: 0.0004715193999 | R26: 0.0001928666691 | S26: -3674.736 | U26: =G26-INDEX($C26:$G26,1,aux!$AL$1) -> 470.685 | V26: 0.00522783061 | W26: 0.003398387341 | X26: =+IF(INDEX($C26:$G26,1,aux!$AL$1)>0,(G26/INDEX($C26:$G26,1,aux!$AL$1))^(1/($G$3-INDEX($C$3:$G$3,1,aux!$AL$1)))-1,"n.d.") -> 0.03131806578 | Y26: =IF(INDEX($C26:$G26,1,aux!$AL$1)>0,(G26-INDEX($C26:$G26,1,aux!$AL$1))/INDEX($C26:$G26,1,aux!$AL$1),"n.d.") -> 0.1312810223 | AA26: =O26-INDEX($K26:$O26,1,aux!$AL$1) -> -209.949 | AB26: -0.00182415809 | AC26: -0.00108805118 | AD26: =+IF(INDEX($K26:$O26,1,aux!$AL$1)>0,(O26/INDEX($K26:$O26,1,aux!$AL$1))^(1/($O$3-INDEX($K$3:$O$3,1,aux!$AL$1)))-1,"n.d.") -> -0.3341868415 | AE26: =IF(INDEX($K26:$O26,1,aux!$AL$1)>0,(O26-INDEX($K26:$O26,1,aux!$AL$1))/INDEX($K26:$O26,1,aux!$AL$1),"n.d.") -> -0.80347876 | AX26: 04
A27: 0406 | B27: Queijos e requeijão | C27: 31029.476 | D27: 31110.458 | E27: 30571.034 | F27: 38827.27 | G27: 51176.894 | H27: 36543.0264 | I27: 0.05271316349 | J27: 0.04138525916 | K27: 782.203 | L27: 810.902 | M27: 839.18 | N27: 1950.353 | O27: 2201.232 | P27: 1316.774 | Q27: 0.005068064164 | R27: 0.002073001989 | S27: -35226.2524 | U27: =G27-INDEX($C27:$G27,1,aux!$AL$1) -> 20147.418 | V27: 0.2237744745 | W27: 0.1454661404 | X27: =+IF(INDEX($C27:$G27,1,aux!$AL$1)>0,(G27/INDEX($C27:$G27,1,aux!$AL$1))^(1/($G$3-INDEX($C$3:$G$3,1,aux!$AL$1)))-1,"n.d.") -> 0.1332477636 | Y27: =IF(INDEX($C27:$G27,1,aux!$AL$1)>0,(G27-INDEX($C27:$G27,1,aux!$AL$1))/INDEX($C27:$G27,1,aux!$AL$1),"n.d.") -> 0.6492993307 | AA27: =O27-INDEX($K27:$O27,1,aux!$AL$1) -> 1419.029 | AB27: 0.01232934299 | AC27: 0.007354053499 | AD27: =+IF(INDEX($K27:$O27,1,aux!$AL$1)>0,(O27/INDEX($K27:$O27,1,aux!$AL$1))^(1/($O$3-INDEX($K$3:$O$3,1,aux!$AL$1)))-1,"n.d.") -> 0.2951992525 | AE27: =IF(INDEX($K27:$O27,1,aux!$AL$1)>0,(O27-INDEX($K27:$O27,1,aux!$AL$1))/INDEX($K27:$O27,1,aux!$AL$1),"n.d.") -> 1.814144154 | AX27: 04
A28: 0407 | B28: Ovos de aves, com cascas | C28: 182.253 | D28: 38.79 | E28: 1.357 | F28: 0 | G28: 0.104 | H28: 44.5008 | I28: 6.419221879e-05 | J28: 5.039749912e-05 | K28: 201.114 | L28: 608.294 | M28: 1254.659 | N28: 551.972 | O28: 3.003 | P28: 523.8084 | Q28: 0.002016059385 | R28: 0.0008246334262 | S28: 479.3076 | U28: =G28-INDEX($C28:$G28,1,aux!$AL$1) -> -182.149 | V28: -0.00202310275 | W28: -0.001315131895 | X28: =+IF(INDEX($C28:$G28,1,aux!$AL$1)>0,(G28/INDEX($C28:$G28,1,aux!$AL$1))^(1/($G$3-INDEX($C$3:$G$3,1,aux!$AL$1)))-1,"n.d.") -> -0.8454426498 | Y28: =IF(INDEX($C28:$G28,1,aux!$AL$1)>0,(G28-INDEX($C28:$G28,1,aux!$AL$1))/INDEX($C28:$G28,1,aux!$AL$1),"n.d.") -> -0.9994293647 | AA28: =O28-INDEX($K28:$O28,1,aux!$AL$1) -> -198.111 | AB28: -0.001721302713 | AC28: -0.001026701281 | AD28: =+IF(INDEX($K28:$O28,1,aux!$AL$1)>0,(O28/INDEX($K28:$O28,1,aux!$AL$1))^(1/($O$3-INDEX($K$3:$O$3,1,aux!$AL$1)))-1,"n.d.") -> -0.6504347469 | AE28: =IF(INDEX($K28:$O28,1,aux!$AL$1)>0,(O28-INDEX($K28:$O28,1,aux!$AL$1))/INDEX($K28:$O28,1,aux!$AL$1),"n.d.") -> -0.9850681703 | AX28: 04
A29: 0408 | B29: Ovos de aves, sem casca | C29: 540.985 | D29: 4.89 | E29: 92.466 | F29: 84.023 | G29: 284.036 | H29: 201.28 | I29: 0.0002903455623 | J29: 0.0002279511519 | K29: 0 | L29: 0.042 | M29: 0.281 | N29: 0.04 | O29: 0.716 | P29: 0.2158 | Q29: 8.30581593e-07 | R29: 3.397347071e-07 | S29: -201.0642 | U29: =G29-INDEX($C29:$G29,1,aux!$AL$1) -> -256.949 | V29: -0.002853895593 | W29: -0.001855194512 | X29: =+IF(INDEX($C29:$G29,1,aux!$AL$1)>0,(G29/INDEX($C29:$G29,1,aux!$AL$1))^(1/($G$3-INDEX($C$3:$G$3,1,aux!$AL$1)))-1,"n.d.") -> -0.1487697648 | Y29: =IF(INDEX($C29:$G29,1,aux!$AL$1)>0,(G29-INDEX($C29:$G29,1,aux!$AL$1))/INDEX($C29:$G29,1,aux!$AL$1),"n.d.") -> -0.4749651099 | AA29: =O29-INDEX($K29:$O29,1,aux!$AL$1) -> 0.716 | AB29: 6.22102126e-06 | AC29: 3.710637559e-06 | AD29: =+IF(INDEX($K29:$O29,1,aux!$AL$1)>0,(O29/INDEX($K29:$O29,1,aux!$AL$1))^(1/($O$3-INDEX($K$3:$O$3,1,aux!$AL$1)))-1,"n.d.") -> n.d. | AE29: =IF(INDEX($K29:$O29,1,aux!$AL$1)>0,(O29-INDEX($K29:$O29,1,aux!$AL$1))/INDEX($K29:$O29,1,aux!$AL$1),"n.d.") -> n.d. | AX29: 04
A30: 0409 | B30: Mel natural | C30: 1909.468 | D30: 1700.251 | E30: 1655.135 | F30: 1449.169 | G30: 1655.795 | H30: 1673.9636 | I30: 0.002414685526 | J30: 0.001895776684 | K30: 328.209 | L30: 1150.774 | M30: 1199.189 | N30: 1442.816 | O30: 1060.163 | P30: 1036.2302 | Q30: 0.003988293467 | R30: 0.001631340888 | S30: -637.7334 | U30: =G30-INDEX($C30:$G30,1,aux!$AL$1) -> -253.673 | V30: -0.002817509532 | W30: -0.001831541502 | X30: =+IF(INDEX($C30:$G30,1,aux!$AL$1)>0,(G30/INDEX($C30:$G30,1,aux!$AL$1))^(1/($G$3-INDEX($C$3:$G$3,1,aux!$AL$1)))-1,"n.d.") -> -0.03500837197 | Y30: =IF(INDEX($C30:$G30,1,aux!$AL$1)>0,(G30-INDEX($C30:$G30,1,aux!$AL$1))/INDEX($C30:$G30,1,aux!$AL$1),"n.d.") -> -0.1328500923 | AA30: =O30-INDEX($K30:$O30,1,aux!$AL$1) -> 731.954 | AB30: 0.00635963882 | AC30: 0.003793318442 | AD30: =+IF(INDEX($K30:$O30,1,aux!$AL$1)>0,(O30/INDEX($K30:$O30,1,aux!$AL$1))^(1/($O$3-INDEX($K$3:$O$3,1,aux!$AL$1)))-1,"n.d.") -> 0.3406195221 | AE30: =IF(INDEX($K30:$O30,1,aux!$AL$1)>0,(O30-INDEX($K30:$O30,1,aux!$AL$1))/INDEX($K30:$O30,1,aux!$AL$1),"n.d.") -> 2.230146035 | AX30: 04
A31: 0410 | B31: Outros produtos comestíveis de origem animal | C31: 62.582 | D31: 77.062 | E31: 69.615 | F31: 94.331 | G31: 0 | H31: 60.718 | I31: 8.758546229e-05 | J31: 6.876360316e-05 | K31: 0 | L31: 0 | M31: 0 | N31: 122.375 | O31: 0 | P31: 24.475 | Q31: 9.420057687e-05 | R31: 3.853107951e-05 | S31: -36.243 | U31: =G31-INDEX($C31:$G31,1,aux!$AL$1) -> -62.582 | V31: -0.0006950892746 | W31: -0.0004518475766 | X31: =+IF(INDEX($C31:$G31,1,aux!$AL$1)>0,(G31/INDEX($C31:$G31,1,aux!$AL$1))^(1/($G$3-INDEX($C$3:$G$3,1,aux!$AL$1)))-1,"n.d.") -> -1 | Y31: =IF(INDEX($C31:$G31,1,aux!$AL$1)>0,(G31-INDEX($C31:$G31,1,aux!$AL$1))/INDEX($C31:$G31,1,aux!$AL$1),"n.d.") -> -1 | AA31: =O31-INDEX($K31:$O31,1,aux!$AL$1) -> 0 | AB31: 0 | AC31: 0 | AD31: =+IF(INDEX($K31:$O31,1,aux!$AL$1)>0,(O31/INDEX($K31:$O31,1,aux!$AL$1))^(1/($O$3-INDEX($K$3:$O$3,1,aux!$AL$1)))-1,"n.d.") -> n.d. | AE31: =IF(INDEX($K31:$O31,1,aux!$AL$1)>0,(O31-INDEX($K31:$O31,1,aux!$AL$1))/INDEX($K31:$O31,1,aux!$AL$1),"n.d.") -> n.d. | AX31: 04
A32: 04SS | B32: Leite e lacticínios; ovos de aves; mel natural; etc. | C32: 0 | D32: 0 | E32: 0 | F32: 0 | G32: 0 | H32: 0 | I32: 0 | J32: 0 | K32: 0 | L32: 0 | M32: 0 | N32: 0 | O32: 0 | P32: 0 | Q32: 0 | R32: 0 | S32: 0 | U32: =G32-INDEX($C32:$G32,1,aux!$AL$1) -> 0 | V32: 0 | W32: 0 | X32: =+IF(INDEX($C32:$G32,1,aux!$AL$1)>0,(G32/INDEX($C32:$G32,1,aux!$AL$1))^(1/($G$3-INDEX($C$3:$G$3,1,aux!$AL$1)))-1,"n.d.") -> n.d. | Y32: =IF(INDEX($C32:$G32,1,aux!$AL$1)>0,(G32-INDEX($C32:$G32,1,aux!$AL$1))/INDEX($C32:$G32,1,aux!$AL$1),"n.d.") -> n.d. | AA32: =O32-INDEX($K32:$O32,1,aux!$AL$1) -> 0 | AB32: 0 | AC32: 0 | AD32: =+IF(INDEX($K32:$O32,1,aux!$AL$1)>0,(O32/INDEX($K32:$O32,1,aux!$AL$1))^(1/($O$3-INDEX($K$3:$O$3,1,aux!$AL$1)))-1,"n.d.") -> n.d. | AE32: =IF(INDEX($K32:$O32,1,aux!$AL$1)>0,(O32-INDEX($K32:$O32,1,aux!$AL$1))/INDEX($K32:$O32,1,aux!$AL$1),"n.d.") -> n.d. | AX32: 04
A33: 0501 | B33: Cabelos em bruto | C33: 0 | D33: 0 | E33: 0 | F33: 0 | G33: 0 | H33: 0 | I33: 0 | J33: 0 | K33: 0 | L33: 0 | M33: 0 | N33: 0 | O33: 0 | P33: 0 | Q33: 0 | R33: 0 | S33: 0 | U33: =G33-INDEX($C33:$G33,1,aux!$AL$1) -> 0 | V33: 0 | W33: 0 | X33: =+IF(INDEX($C33:$G33,1,aux!$AL$1)>0,(G33/INDEX($C33:$G33,1,aux!$AL$1))^(1/($G$3-INDEX($C$3:$G$3,1,aux!$AL$1)))-1,"n.d.") -> n.d. | Y33: =IF(INDEX($C33:$G33,1,aux!$AL$1)>0,(G33-INDEX($C33:$G33,1,aux!$AL$1))/INDEX($C33:$G33,1,aux!$AL$1),"n.d.") -> n.d. | AA33: =O33-INDEX($K33:$O33,1,aux!$AL$1) -> 0 | AB33: 0 | AC33: 0 | AD33: =+IF(INDEX($K33:$O33,1,aux!$AL$1)>0,(O33/INDEX($K33:$O33,1,aux!$AL$1))^(1/($O$3-INDEX($K$3:$O$3,1,aux!$AL$1)))-1,"n.d.") -> n.d. | AE33: =IF(INDEX($K33:$O33,1,aux!$AL$1)>0,(O33-INDEX($K33:$O33,1,aux!$AL$1))/INDEX($K33:$O33,1,aux!$AL$1),"n.d.") -> n.d. | AX33: 05
A34: 0502 | B34: Cerdas de porco ou de javali, etc. | C34: 145.489 | D34: 356.33 | E34: 388.388 | F34: 19.936 | G34: 101.463 | H34: 202.3212 | I34: 0.0002918474889 | J34: 0.000229130319 | K34: 0 | L34: 0 | M34: 0 | N34: 0 | O34: 0 | P34: 0 | Q34: 0 | R34: 0 | S34: -202.3212 | U34: =G34-INDEX($C34:$G34,1,aux!$AL$1) -> -44.026 | V34: -0.000488990451 | W34: -0.000317871615 | X34: =+IF(INDEX($C34:$G34,1,aux!$AL$1)>0,(G34/INDEX($C34:$G34,1,aux!$AL$1))^(1/($G$3-INDEX($C$3:$G$3,1,aux!$AL$1)))-1,"n.d.") -> -0.08616163855 | Y34: =IF(INDEX($C34:$G34,1,aux!$AL$1)>0,(G34-INDEX($C34:$G34,1,aux!$AL$1))/INDEX($C34:$G34,1,aux!$AL$1),"n.d.") -> -0.30260707 | AA34: =O34-INDEX($K34:$O34,1,aux!$AL$1) -> 0 | AB34: 0 | AC34: 0 | AD34: =+IF(INDEX($K34:$O34,1,aux!$AL$1)>0,(O34/INDEX($K34:$O34,1,aux!$AL$1))^(1/($O$3-INDEX($K$3:$O$3,1,aux!$AL$1)))-1,"n.d.") -> n.d. | AE34: =IF(INDEX($K34:$O34,1,aux!$AL$1)>0,(O34-INDEX($K34:$O34,1,aux!$AL$1))/INDEX($K34:$O34,1,aux!$AL$1),"n.d.") -> n.d. | AX34: 05
A35: 0504 | B35: Tripas de animais (excepto peixes) | C35: 6957.482 | D35: 1235.324 | E35: 3157.668 | F35: 3555.085 | G35: 4149.403 | H35: 3810.9924 | I35: 0.005497340676 | J35: 0.004315978277 | K35: 6758.236 | L35: 4489.018 | M35: 7085.455 | N35: 9792.041 | O35: 10738.753 | P35: 7772.7006 | Q35: 0.02991595017 | R35: 0.01223659019 | S35: 3961.7082 | U35: =G35-INDEX($C35:$G35,1,aux!$AL$1) -> -2808.079 | V35: -0.03118892965 | W35: -0.02027457881 | X35: =+IF(INDEX($C35:$G35,1,aux!$AL$1)>0,(G35/INDEX($C35:$G35,1,aux!$AL$1))^(1/($G$3-INDEX($C$3:$G$3,1,aux!$AL$1)))-1,"n.d.") -> -0.1212134906 | Y35: =IF(INDEX($C35:$G35,1,aux!$AL$1)>0,(G35-INDEX($C35:$G35,1,aux!$AL$1))/INDEX($C35:$G35,1,aux!$AL$1),"n.d.") -> -0.4036056435 | AA35: =O35-INDEX($K35:$O35,1,aux!$AL$1) -> 3980.517 | AB35: 0.03458502917 | AC35: 0.020628849 | AD35: =+IF(INDEX($K35:$O35,1,aux!$AL$1)>0,(O35/INDEX($K35:$O35,1,aux!$AL$1))^(1/($O$3-INDEX($K$3:$O$3,1,aux!$AL$1)))-1,"n.d.") -> 0.1227424027 | AE35: =IF(INDEX($K35:$O35,1,aux!$AL$1)>0,(O35-INDEX($K35:$O35,1,aux!$AL$1))/INDEX($K35:$O35,1,aux!$AL$1),"n.d.") -> 0.5889875701 | AX35: 05
A36: 0505 | B36: Peles e outras partes de aves | C36: 73.069 | D36: 67.77 | E36: 68.946 | F36: 28.061 | G36: 60.879 | H36: 59.745 | I36: 8.618191384e-05 | J36: 6.766167316e-05 | K36: 259.364 | L36: 429.273 | M36: 16.152 | N36: 152.418 | O36: 95.934 | P36: 190.6282 | Q36: 0.0007336991382 | R36: 0.0003001066529 | S36: 130.8832 | U36: =G36-INDEX($C36:$G36,1,aux!$AL$1) -> -12.19 | V36: -0.0001353925771 | W36: -8.801287844e-05 | X36: =+IF(INDEX($C36:$G36,1,aux!$AL$1)>0,(G36/INDEX($C36:$G36,1,aux!$AL$1))^(1/($G$3-INDEX($C$3:$G$3,1,aux!$AL$1)))-1,"n.d.") -> -0.04460363062 | Y36: =IF(INDEX($C36:$G36,1,aux!$AL$1)>0,(G36-INDEX($C36:$G36,1,aux!$AL$1))/INDEX($C36:$G36,1,aux!$AL$1),"n.d.") -> -0.166828614 | AA36: =O36-INDEX($K36:$O36,1,aux!$AL$1) -> -163.43 | AB36: -0.001419974168 | AC36: -0.0008469685703 | AD36: =+IF(INDEX($K36:$O36,1,aux!$AL$1)>0,(O36/INDEX($K36:$O36,1,aux!$AL$1))^(1/($O$3-INDEX($K$3:$O$3,1,aux!$AL$1)))-1,"n.d.") -> -0.2201416718 | AE36: =IF(INDEX($K36:$O36,1,aux!$AL$1)>0,(O36-INDEX($K36:$O36,1,aux!$AL$1))/INDEX($K36:$O36,1,aux!$AL$1),"n.d.") -> -0.6301182894 | AX36: 05
A37: 0506 | B37: Ossos e núcleos córneos, em bruto | C37: 4.384 | D37: 3.839 | E37: 1.819 | F37: 1.737 | G37: 1.695 | H37: 2.6948 | I37: 3.887237784e-06 | J37: 3.051881778e-06 | K37: 0.038 | L37: 0 | M37: 24.228 | N37: 17.074 | O37: 0 | P37: 8.268 | Q37: 3.182228272e-05 | R37: 1.301634179e-05 | S37: 5.5732 | U37: =G37-INDEX($C37:$G37,1,aux!$AL$1) -> -2.689 | V37: -2.986633632e-05 | W37: -1.941481789e-05 | X37: =+IF(INDEX($C37:$G37,1,aux!$AL$1)>0,(G37/INDEX($C37:$G37,1,aux!$AL$1))^(1/($G$3-INDEX($C$3:$G$3,1,aux!$AL$1)))-1,"n.d.") -> -0.211458074 | Y37: =IF(INDEX($C37:$G37,1,aux!$AL$1)>0,(G37-INDEX($C37:$G37,1,aux!$AL$1))/INDEX($C37:$G37,1,aux!$AL$1),"n.d.") -> -0.6133667883 | AA37: =O37-INDEX($K37:$O37,1,aux!$AL$1) -> -0.038 | AB37: -3.301659328e-07 | AC37: -1.969332783e-07 | AD37: =+IF(INDEX($K37:$O37,1,aux!$AL$1)>0,(O37/INDEX($K37:$O37,1,aux!$AL$1))^(1/($O$3-INDEX($K$3:$O$3,1,aux!$AL$1)))-1,"n.d.") -> -1 | AE37: =IF(INDEX($K37:$O37,1,aux!$AL$1)>0,(O37-INDEX($K37:$O37,1,aux!$AL$1))/INDEX($K37:$O37,1,aux!$AL$1),"n.d.") -> -1 | AX37: 05
A38: 0507 | B38: Marfim, carapaças de tartaruga, etc. | C38: 0.828 | D38: 0.953 | E38: 1.879 | F38: 5.295 | G38: 5.225 | H38: 2.836 | I38: 4.090918197e-06 | J38: 3.211791867e-06 | K38: 0 | L38: 0 | M38: 0 | N38: 0 | O38: 0 | P38: 0 | Q38: 0 | R38: 0 | S38: -2.836 | U38: =G38-INDEX($C38:$G38,1,aux!$AL$1) -> 4.397 | V38: 4.88368467e-05 | W38: 3.1746729e-05 | X38: =+IF(INDEX($C38:$G38,1,aux!$AL$1)>0,(G38/INDEX($C38:$G38,1,aux!$AL$1))^(1/($G$3-INDEX($C$3:$G$3,1,aux!$AL$1)))-1,"n.d.") -> 0.5849442459 | Y38: =IF(INDEX($C38:$G38,1,aux!$AL$1)>0,(G38-INDEX($C38:$G38,1,aux!$AL$1))/INDEX($C38:$G38,1,aux!$AL$1),"n.d.") -> 5.310386473 | AA38: =O38-INDEX($K38:$O38,1,aux!$AL$1) -> 0 | AB38: 0 | AC38: 0 | AD38: =+IF(INDEX($K38:$O38,1,aux!$AL$1)>0,(O38/INDEX($K38:$O38,1,aux!$AL$1))^(1/($O$3-INDEX($K$3:$O$3,1,aux!$AL$1)))-1,"n.d.") -> n.d. | AE38: =IF(INDEX($K38:$O38,1,aux!$AL$1)>0,(O38-INDEX($K38:$O38,1,aux!$AL$1))/INDEX($K38:$O38,1,aux!$AL$1),"n.d.") -> n.d. | AX38: 05
A39: 0510 | B39: Âmbar-cinzento, castóreo, algália e almíscar, etc. | C39: 0.123 | D39: 0.303 | E39: 0 | F39: 0.022 | G39: 0.065 | H39: 0.1026 | I39: 1.48000073e-07 | J39: 1.161952911e-07 | K39: 0 | L39: 0 | M39: 0 | N39: 0 | O39: 0 | P39: 0 | Q39: 0 | R39: 0 | S39: -0.1026 | U39: =G39-INDEX($C39:$G39,1,aux!$AL$1) -> -0.058 | V39: -6.441976595e-07 | W39: -4.187651312e-07 | X39: =+IF(INDEX($C39:$G39,1,aux!$AL$1)>0,(G39/INDEX($C39:$G39,1,aux!$AL$1))^(1/($G$3-INDEX($C$3:$G$3,1,aux!$AL$1)))-1,"n.d.") -> -0.1473867818 | Y39: =IF(INDEX($C39:$G39,1,aux!$AL$1)>0,(G39-INDEX($C39:$G39,1,aux!$AL$1))/INDEX($C39:$G39,1,aux!$AL$1),"n.d.") -> -0.4715447154 | AA39: =O39-INDEX($K39:$O39,1,aux!$AL$1) -> 0 | AB39: 0 | AC39: 0 | AD39: =+IF(INDEX($K39:$O39,1,aux!$AL$1)>0,(O39/INDEX($K39:$O39,1,aux!$AL$1))^(1/($O$3-INDEX($K$3:$O$3,1,aux!$AL$1)))-1,"n.d.") -> n.d. | AE39: =IF(INDEX($K39:$O39,1,aux!$AL$1)>0,(O39-INDEX($K39:$O39,1,aux!$AL$1))/INDEX($K39:$O39,1,aux!$AL$1),"n.d.") -> n.d. | AX39: 05
A40: 0511 | B40: Outros produtos de origem animal (exc. NC 0511 91) (a) | C40: 134.024 | D40: 184.152 | E40: 497.547 | F40: 236.51 | G40: 83.872 | H40: 227.221 | I40: 0.0003277653468 | J40: 0.0002573295345 | K40: 480.65 | L40: 459.651 | M40: 198.683 | N40: 195.722 | O40: 100.285 | P40: 286.9982 | Q40: 0.001104612707 | R40: 0.0004518222865 | S40: 59.7772 | U40: =G40-INDEX($C40:$G40,1,aux!$AL$1) -> -50.152 | V40: -0.000557031052 | W40: -0.0003621018769 | X40: =+IF(INDEX($C40:$G40,1,aux!$AL$1)>0,(G40/INDEX($C40:$G40,1,aux!$AL$1))^(1/($G$3-INDEX($C$3:$G$3,1,aux!$AL$1)))-1,"n.d.") -> -0.1105764879 | Y40: =IF(INDEX($C40:$G40,1,aux!$AL$1)>0,(G40-INDEX($C40:$G40,1,aux!$AL$1))/INDEX($C40:$G40,1,aux!$AL$1),"n.d.") -> -0.3742016355 | AA40: =O40-INDEX($K40:$O40,1,aux!$AL$1) -> -380.365 | AB40: -0.003304830659 | AC40: -0.001971224379 | AD40: =+IF(INDEX($K40:$O40,1,aux!$AL$1)>0,(O40/INDEX($K40:$O40,1,aux!$AL$1))^(1/($O$3-INDEX($K$3:$O$3,1,aux!$AL$1)))-1,"n.d.") -> -0.3241477592 | AE40: =IF(INDEX($K40:$O40,1,aux!$AL$1)>0,(O40-INDEX($K40:$O40,1,aux!$AL$1))/INDEX($K40:$O40,1,aux!$AL$1),"n.d.") -> -0.7913554562 | AX40: 05
A41: 05SS | B41: Outros produtos de origem animal | C41: 0 | D41: 0 | E41: 0 | F41: 0 | G41: 0 | H41: 0 | I41: 0 | J41: 0 | K41: 0 | L41: 0 | M41: 0 | N41: 0 | O41: 0 | P41: 0 | Q41: 0 | R41: 0 | S41: 0 | U41: =G41-INDEX($C41:$G41,1,aux!$AL$1) -> 0 | V41: 0 | W41: 0 | X41: =+IF(INDEX($C41:$G41,1,aux!$AL$1)>0,(G41/INDEX($C41:$G41,1,aux!$AL$1))^(1/($G$3-INDEX($C$3:$G$3,1,aux!$AL$1)))-1,"n.d.") -> n.d. | Y41: =IF(INDEX($C41:$G41,1,aux!$AL$1)>0,(G41-INDEX($C41:$G41,1,aux!$AL$1))/INDEX($C41:$G41,1,aux!$AL$1),"n.d.") -> n.d. | AA41: =O41-INDEX($K41:$O41,1,aux!$AL$1) -> 0 | AB41: 0 | AC41: 0 | AD41: =+IF(INDEX($K41:$O41,1,aux!$AL$1)>0,(O41/INDEX($K41:$O41,1,aux!$AL$1))^(1/($O$3-INDEX($K$3:$O$3,1,aux!$AL$1)))-1,"n.d.") -> n.d. | AE41: =IF(INDEX($K41:$O41,1,aux!$AL$1)>0,(O41-INDEX($K41:$O41,1,aux!$AL$1))/INDEX($K41:$O41,1,aux!$AL$1),"n.d.") -> n.d. | AX41: 05
A42: 0601 | B42: Bolbos, tubérculos, raízes, etc. | C42: 895.646 | D42: 835.246 | E42: 989.356 | F42: 1079.432 | G42: 1669.7 | H42: 1093.876 | I42: 0.001577911577 | J42: 0.001238823004 | K42: 0 | L42: 0 | M42: 0 | N42: 0 | O42: 0 | P42: 0 | Q42: 0 | R42: 0 | S42: -1093.876 | U42: =G42-INDEX($C42:$G42,1,aux!$AL$1) -> 774.054 | V42: 0.008597306467 | W42: 0.00558873836 | X42: =+IF(INDEX($C42:$G42,1,aux!$AL$1)>0,(G42/INDEX($C42:$G42,1,aux!$AL$1))^(1/($G$3-INDEX($C$3:$G$3,1,aux!$AL$1)))-1,"n.d.") -> 0.1684913832 | Y42: =IF(INDEX($C42:$G42,1,aux!$AL$1)>0,(G42-INDEX($C42:$G42,1,aux!$AL$1))/INDEX($C42:$G42,1,aux!$AL$1),"n.d.") -> 0.8642410059 | AA42: =O42-INDEX($K42:$O42,1,aux!$AL$1) -> 0 | AB42: 0 | AC42: 0 | AD42: =+IF(INDEX($K42:$O42,1,aux!$AL$1)>0,(O42/INDEX($K42:$O42,1,aux!$AL$1))^(1/($O$3-INDEX($K$3:$O$3,1,aux!$AL$1)))-1,"n.d.") -> n.d. | AE42: =IF(INDEX($K42:$O42,1,aux!$AL$1)>0,(O42-INDEX($K42:$O42,1,aux!$AL$1))/INDEX($K42:$O42,1,aux!$AL$1),"n.d.") -> n.d. | AX42: 06
A43: 0602 | B43: Plantas vivas | C43: 4718.989 | D43: 5031.493 | E43: 6691.021 | F43: 7888.335 | G43: 8027.938 | H43: 6471.5552 | I43: 0.009335191441 | J43: 0.007329086162 | K43: 4035.438 | L43: 4640.516 | M43: 5079.692 | N43: 7548.61 | O43: 7592.611 | P43: 5779.3734 | Q43: 0.02224393496 | R43: 0.009098488089 | S43: -692.1818 | U43: =G43-INDEX($C43:$G43,1,aux!$AL$1) -> 3308.949 | V43: 0.03675202071 | W43: 0.02389090452 | X43: =+IF(INDEX($C43:$G43,1,aux!$AL$1)>0,(G43/INDEX($C43:$G43,1,aux!$AL$1))^(1/($G$3-INDEX($C$3:$G$3,1,aux!$AL$1)))-1,"n.d.") -> 0.1420595801 | Y43: =IF(INDEX($C43:$G43,1,aux!$AL$1)>0,(G43-INDEX($C43:$G43,1,aux!$AL$1))/INDEX($C43:$G43,1,aux!$AL$1),"n.d.") -> 0.7011987101 | AA43: =O43-INDEX($K43:$O43,1,aux!$AL$1) -> 3557.173 | AB43: 0.03090677215 | AC43: 0.0184348879 | AD43: =+IF(INDEX($K43:$O43,1,aux!$AL$1)>0,(O43/INDEX($K43:$O43,1,aux!$AL$1))^(1/($O$3-INDEX($K$3:$O$3,1,aux!$AL$1)))-1,"n.d.") -> 0.1711839648 | AE43: =IF(INDEX($K43:$O43,1,aux!$AL$1)>0,(O43-INDEX($K43:$O43,1,aux!$AL$1))/INDEX($K43:$O43,1,aux!$AL$1),"n.d.") -> 0.8814837448 | AX43: 06
A44: 0603 | B44: Flores e seus botões | C44: 981.571 | D44: 958.711 | E44: 1067.52 | F44: 832.73 | G44: 758.801 | H44: 919.8666 | I44: 0.001326903742 | J44: 0.001041756017 | K44: 80.667 | L44: 65.429 | M44: 140.043 | N44: 114.33 | O44: 231.586 | P44: 126.411 | Q44: 0.0004865368385 | R44: 0.0001990092867 | S44: -793.4556 | U44: =G44-INDEX($C44:$G44,1,aux!$AL$1) -> -222.77 | V44: -0.002474274355 | W44: -0.001608419108 | X44: =+IF(INDEX($C44:$G44,1,aux!$AL$1)>0,(G44/INDEX($C44:$G44,1,aux!$AL$1))^(1/($G$3-INDEX($C$3:$G$3,1,aux!$AL$1)))-1,"n.d.") -> -0.06232671263 | Y44: =IF(INDEX($C44:$G44,1,aux!$AL$1)>0,(G44-INDEX($C44:$G44,1,aux!$AL$1))/INDEX($C44:$G44,1,aux!$AL$1),"n.d.") -> -0.2269525078 | AA44: =O44-INDEX($K44:$O44,1,aux!$AL$1) -> 150.919 | AB44: 0.001311271379 | AC44: 0.0007821308796 | AD44: =+IF(INDEX($K44:$O44,1,aux!$AL$1)>0,(O44/INDEX($K44:$O44,1,aux!$AL$1))^(1/($O$3-INDEX($K$3:$O$3,1,aux!$AL$1)))-1,"n.d.") -> 0.3016796009 | AE44: =IF(INDEX($K44:$O44,1,aux!$AL$1)>0,(O44-INDEX($K44:$O44,1,aux!$AL$1))/INDEX($K44:$O44,1,aux!$AL$1),"n.d.") -> 1.870888963 | AX44: 06
A45: 0604 | B45: Folhagem, folhas, ramos e outras partes de plantas | C45: 41.531 | D45: 41.463 | E45: 441.968 | F45: 131.721 | G45: 71.268 | H45: 145.5902 | I45: 0.0002100132576 | J45: 0.0001648820241 | K45: 399.439 | L45: 1153.062 | M45: 2274.843 | N45: 1463.921 | O45: 1011.007 | P45: 1260.4544 | Q45: 0.004851298533 | R45: 0.001984337843 | S45: 1114.8642 | U45: =G45-INDEX($C45:$G45,1,aux!$AL$1) -> 29.737 | V45: 0.0003302845828 | W45: 0.0002147037708 | X45: =+IF(INDEX($C45:$G45,1,aux!$AL$1)>0,(G45/INDEX($C45:$G45,1,aux!$AL$1))^(1/($G$3-INDEX($C$3:$G$3,1,aux!$AL$1)))-1,"n.d.") -> 0.1445388681 | Y45: =IF(INDEX($C45:$G45,1,aux!$AL$1)>0,(G45-INDEX($C45:$G45,1,aux!$AL$1))/INDEX($C45:$G45,1,aux!$AL$1),"n.d.") -> 0.716019359 | AA45: =O45-INDEX($K45:$O45,1,aux!$AL$1) -> 611.568 | AB45: 0.005313655768 | AC45: 0.003169423451 | AD45: =+IF(INDEX($K45:$O45,1,aux!$AL$1)>0,(O45/INDEX($K45:$O45,1,aux!$AL$1))^(1/($O$3-INDEX($K$3:$O$3,1,aux!$AL$1)))-1,"n.d.") -> 0.2613218647 | AE45: =IF(INDEX($K45:$O45,1,aux!$AL$1)>0,(O45-INDEX($K45:$O45,1,aux!$AL$1))/INDEX($K45:$O45,1,aux!$AL$1),"n.d.") -> 1.531067322 | AX45: 06
A46: 06SS | B46: Plantas vivas e produtos de floricultura | C46: 0 | D46: 0 | E46: 0 | F46: 0 | G46: 0 | H46: 0 | I46: 0 | J46: 0 | K46: 0 | L46: 0 | M46: 0 | N46: 0 | O46: 0 | P46: 0 | Q46: 0 | R46: 0 | S46: 0 | U46: =G46-INDEX($C46:$G46,1,aux!$AL$1) -> 0 | V46: 0 | W46: 0 | X46: =+IF(INDEX($C46:$G46,1,aux!$AL$1)>0,(G46/INDEX($C46:$G46,1,aux!$AL$1))^(1/($G$3-INDEX($C$3:$G$3,1,aux!$AL$1)))-1,"n.d.") -> n.d. | Y46: =IF(INDEX($C46:$G46,1,aux!$AL$1)>0,(G46-INDEX($C46:$G46,1,aux!$AL$1))/INDEX($C46:$G46,1,aux!$AL$1),"n.d.") -> n.d. | AA46: =O46-INDEX($K46:$O46,1,aux!$AL$1) -> 0 | AB46: 0 | AC46: 0 | AD46: =+IF(INDEX($K46:$O46,1,aux!$AL$1)>0,(O46/INDEX($K46:$O46,1,aux!$AL$1))^(1/($O$3-INDEX($K$3:$O$3,1,aux!$AL$1)))-1,"n.d.") -> n.d. | AE46: =IF(INDEX($K46:$O46,1,aux!$AL$1)>0,(O46-INDEX($K46:$O46,1,aux!$AL$1))/INDEX($K46:$O46,1,aux!$AL$1),"n.d.") -> n.d. | AX46: 06
A47: 0701 | B47: Batatas, frescas ou refrigeradas | C47: 2373.641 | D47: 2610.916 | E47: 2324.906 | F47: 1794.595 | G47: 1676.788 | H47: 2156.1692 | I47: 0.003110265097 | J47: 0.002441878244 | K47: 945.683 | L47: 2806.389 | M47: 1128.008 | N47: 796.204 | O47: 757.178 | P47: 1286.6924 | Q47: 0.004952284631 | R47: 0.002025644419 | S47: -869.4768 | U47: =G47-INDEX($C47:$G47,1,aux!$AL$1) -> -696.853 | V47: -0.007739846062 | W47: -0.00503134031 | X47: =+IF(INDEX($C47:$G47,1,aux!$AL$1)>0,(G47/INDEX($C47:$G47,1,aux!$AL$1))^(1/($G$3-INDEX($C$3:$G$3,1,aux!$AL$1)))-1,"n.d.") -> -0.08321862746 | Y47: =IF(INDEX($C47:$G47,1,aux!$AL$1)>0,(G47-INDEX($C47:$G47,1,aux!$AL$1))/INDEX($C47:$G47,1,aux!$AL$1),"n.d.") -> -0.2935797789 | AA47: =O47-INDEX($K47:$O47,1,aux!$AL$1) -> -188.505 | AB47: -0.001637840241 | AC47: -0.0009769186217 | AD47: =+IF(INDEX($K47:$O47,1,aux!$AL$1)>0,(O47/INDEX($K47:$O47,1,aux!$AL$1))^(1/($O$3-INDEX($K$3:$O$3,1,aux!$AL$1)))-1,"n.d.") -> -0.05406106553 | AE47: =IF(INDEX($K47:$O47,1,aux!$AL$1)>0,(O47-INDEX($K47:$O47,1,aux!$AL$1))/INDEX($K47:$O47,1,aux!$AL$1),"n.d.") -> -0.1993321229 | AX47: 07
A48: 0702 | B48: Tomates, frescos ou refrigerados | C48: 6045.149 | D48: 7032.857 | E48: 6347.672 | F48: 3308.1 | G48: 1011.187 | H48: 4748.993 | I48: 0.006850402637 | J48: 0.005378271189 | K48: 19.489 | L48: 50.05 | M48: 241.053 | N48: 158.684 | O48: 80.933 | P48: 110.0418 | Q48: 0.0004235342611 | R48: 0.0001732391969 | S48: -4638.9512 | U48: =G48-INDEX($C48:$G48,1,aux!$AL$1) -> -5033.962 | V48: -0.05591149204 | W48: -0.03634565099 | X48: =+IF(INDEX($C48:$G48,1,aux!$AL$1)>0,(G48/INDEX($C48:$G48,1,aux!$AL$1))^(1/($G$3-INDEX($C$3:$G$3,1,aux!$AL$1)))-1,"n.d.") -> -0.3604770754 | Y48: =IF(INDEX($C48:$G48,1,aux!$AL$1)>0,(G48-INDEX($C48:$G48,1,aux!$AL$1))/INDEX($C48:$G48,1,aux!$AL$1),"n.d.") -> -0.8327275308 | AA48: =O48-INDEX($K48:$O48,1,aux!$AL$1) -> 61.444 | AB48: 0.0005338609362 | AC48: 0.0003184307461 | AD48: =+IF(INDEX($K48:$O48,1,aux!$AL$1)>0,(O48/INDEX($K48:$O48,1,aux!$AL$1))^(1/($O$3-INDEX($K$3:$O$3,1,aux!$AL$1)))-1,"n.d.") -> 0.42752598 | AE48: =IF(INDEX($K48:$O48,1,aux!$AL$1)>0,(O48-INDEX($K48:$O48,1,aux!$AL$1))/INDEX($K48:$O48,1,aux!$AL$1),"n.d.") -> 3.152752835 | AX48: 07
A49: 0703 | B49: Cebolas, alhos, etc., frescos ou refrigerados | C49: 1171.574 | D49: 1842.734 | E49: 1420.428 | F49: 1082.87 | G49: 1035.847 | H49: 1310.6906 | I49: 0.001890665735 | J49: 0.00148436721 | K49: 156.167 | L49: 118.086 | M49: 177.718 | N49: 306.841 | O49: 201.331 | P49: 192.0286 | Q49: 0.0007390890663 | R49: 0.0003023113076 | S49: -1118.662 | U49: =G49-INDEX($C49:$G49,1,aux!$AL$1) -> -135.727 | V49: -0.001507500271 | W49: -0.0009799609477 | X49: =+IF(INDEX($C49:$G49,1,aux!$AL$1)>0,(G49/INDEX($C49:$G49,1,aux!$AL$1))^(1/($G$3-INDEX($C$3:$G$3,1,aux!$AL$1)))-1,"n.d.") -> -0.03031322653 | Y49: =IF(INDEX($C49:$G49,1,aux!$AL$1)>0,(G49-INDEX($C49:$G49,1,aux!$AL$1))/INDEX($C49:$G49,1,aux!$AL$1),"n.d.") -> -0.1158501298 | AA49: =O49-INDEX($K49:$O49,1,aux!$AL$1) -> 45.164 | AB49: 0.0003924108997 | AC49: 0.0002340603837 | AD49: =+IF(INDEX($K49:$O49,1,aux!$AL$1)>0,(O49/INDEX($K49:$O49,1,aux!$AL$1))^(1/($O$3-INDEX($K$3:$O$3,1,aux!$AL$1)))-1,"n.d.") -> 0.06556597836 | AE49: =IF(INDEX($K49:$O49,1,aux!$AL$1)>0,(O49-INDEX($K49:$O49,1,aux!$AL$1))/INDEX($K49:$O49,1,aux!$AL$1),"n.d.") -> 0.2892032248 | AX49: 07
A50: 0704 | B50: Couves, frescas ou refrigeradas | C50: 1955.015 | D50: 2732.037 | E50: 1639.737 | F50: 1665.49 | G50: 1512.689 | H50: 1900.9936 | I50: 0.002742175356 | J50: 0.002152889909 | K50: 2602.777 | L50: 3852.873 | M50: 6549.094 | N50: 8763.717 | O50: 7552.346 | P50: 5864.1614 | Q50: 0.02257027117 | R50: 0.009231970139 | S50: 3963.1678 | U50: =G50-INDEX($C50:$G50,1,aux!$AL$1) -> -442.326 | V50: -0.004912851275 | W50: -0.003193632852 | X50: =+IF(INDEX($C50:$G50,1,aux!$AL$1)>0,(G50/INDEX($C50:$G50,1,aux!$AL$1))^(1/($G$3-INDEX($C$3:$G$3,1,aux!$AL$1)))-1,"n.d.") -> -0.06211435501 | Y50: =IF(INDEX($C50:$G50,1,aux!$AL$1)>0,(G50-INDEX($C50:$G50,1,aux!$AL$1))/INDEX($C50:$G50,1,aux!$AL$1),"n.d.") -> -0.2262519725 | AA50: =O50-INDEX($K50:$O50,1,aux!$AL$1) -> 4949.569 | AB50: 0.04300471226 | AC50: 0.02565091709 | AD50: =+IF(INDEX($K50:$O50,1,aux!$AL$1)>0,(O50/INDEX($K50:$O50,1,aux!$AL$1))^(1/($O$3-INDEX($K$3:$O$3,1,aux!$AL$1)))-1,"n.d.") -> 0.3051524095 | AE50: =IF(INDEX($K50:$O50,1,aux!$AL$1)>0,(O50-INDEX($K50:$O50,1,aux!$AL$1))/INDEX($K50:$O50,1,aux!$AL$1),"n.d.") -> 1.901649277 | AX50: 07
A51: 0705 | B51: Alfaces, frescas ou refrigeradas | C51: 162.514 | D51: 98.98 | E51: 59.807 | F51: 86.316 | G51: 81.114 | H51: 97.7462 | I51: 0.0001409984867 | J51: 0.0001106983252 | K51: 1668.042 | L51: 2059.839 | M51: 2147.05 | N51: 1613.014 | O51: 1956.33 | P51: 1888.855 | Q51: 0.007269917493 | R51: 0.002973631141 | S51: 1791.1088 | U51: =G51-INDEX($C51:$G51,1,aux!$AL$1) -> -81.4 | V51: -0.0009040980945 | W51: -0.0005877152014 | X51: =+IF(INDEX($C51:$G51,1,aux!$AL$1)>0,(G51/INDEX($C51:$G51,1,aux!$AL$1))^(1/($G$3-INDEX($C$3:$G$3,1,aux!$AL$1)))-1,"n.d.") -> -0.1594737917 | Y51: =IF(INDEX($C51:$G51,1,aux!$AL$1)>0,(G51-INDEX($C51:$G51,1,aux!$AL$1))/INDEX($C51:$G51,1,aux!$AL$1),"n.d.") -> -0.5008799242 | AA51: =O51-INDEX($K51:$O51,1,aux!$AL$1) -> 288.288 | AB51: 0.002504812538 | AC51: 0.001494039498 | AD51: =+IF(INDEX($K51:$O51,1,aux!$AL$1)>0,(O51/INDEX($K51:$O51,1,aux!$AL$1))^(1/($O$3-INDEX($K$3:$O$3,1,aux!$AL$1)))-1,"n.d.") -> 0.04065981178 | AE51: =IF(INDEX($K51:$O51,1,aux!$AL$1)>0,(O51-INDEX($K51:$O51,1,aux!$AL$1))/INDEX($K51:$O51,1,aux!$AL$1),"n.d.") -> 0.1728301805 | AX51: 07
A52: 0706 | B52: Cenouras, nabos, beterrabas, etc., frescos ou refrigerados | C52: 294.645 | D52: 271.53 | E52: 498.188 | F52: 317.49 | G52: 401.261 | H52: 356.6228 | I52: 0.0005144269047 | J52: 0.0004038780707 | K52: 2451.812 | L52: 4001.428 | M52: 4133.684 | N52: 3106.913 | O52: 1399.218 | P52: 3018.611 | Q52: 0.01161817763 | R52: 0.004752210028 | S52: 2661.9882 | U52: =G52-INDEX($C52:$G52,1,aux!$AL$1) -> 106.616 | V52: 0.00118416858 | W52: 0.0007697769523 | X52: =+IF(INDEX($C52:$G52,1,aux!$AL$1)>0,(G52/INDEX($C52:$G52,1,aux!$AL$1))^(1/($G$3-INDEX($C$3:$G$3,1,aux!$AL$1)))-1,"n.d.") -> 0.08026913767 | Y52: =IF(INDEX($C52:$G52,1,aux!$AL$1)>0,(G52-INDEX($C52:$G52,1,aux!$AL$1))/INDEX($C52:$G52,1,aux!$AL$1),"n.d.") -> 0.3618456108 | AA52: =O52-INDEX($K52:$O52,1,aux!$AL$1) -> -1052.594 | AB52: -0.009145544207 | AC52: -0.005455020714 | AD52: =+IF(INDEX($K52:$O52,1,aux!$AL$1)>0,(O52/INDEX($K52:$O52,1,aux!$AL$1))^(1/($O$3-INDEX($K$3:$O$3,1,aux!$AL$1)))-1,"n.d.") -> -0.1308403542 | AE52: =IF(INDEX($K52:$O52,1,aux!$AL$1)>0,(O52-INDEX($K52:$O52,1,aux!$AL$1))/INDEX($K52:$O52,1,aux!$AL$1),"n.d.") -> -0.4293126879 | AX52: 07
A53: 0707 | B53: Pepinos e pepininhos, frescos ou refrigerados | C53: 1013.848 | D53: 896.911 | E53: 968.805 | F53: 1090.569 | G53: 1411.016 | H53: 1076.2298 | I53: 0.001552457007 | J53: 0.001218838547 | K53: 11.48 | L53: 21.18 | M53: 93.703 | N53: 119.738 | O53: 74.847 | P53: 64.1896 | Q53: 0.0002470560715 | R53: 0.0001010539155 | S53: -1012.0402 | U53: =G53-INDEX($C53:$G53,1,aux!$AL$1) -> 397.168 | V53: 0.004411287862 | W53: 0.002867588097 | X53: =+IF(INDEX($C53:$G53,1,aux!$AL$1)>0,(G53/INDEX($C53:$G53,1,aux!$AL$1))^(1/($G$3-INDEX($C$3:$G$3,1,aux!$AL$1)))-1,"n.d.") -> 0.08614991464 | Y53: =IF(INDEX($C53:$G53,1,aux!$AL$1)>0,(G53-INDEX($C53:$G53,1,aux!$AL$1))/INDEX($C53:$G53,1,aux!$AL$1),"n.d.") -> 0.391743141 | AA53: =O53-INDEX($K53:$O53,1,aux!$AL$1) -> 63.367 | AB53: 0.0005505690701 | AC53: 0.0003283966065 | AD53: =+IF(INDEX($K53:$O53,1,aux!$AL$1)>0,(O53/INDEX($K53:$O53,1,aux!$AL$1))^(1/($O$3-INDEX($K$3:$O$3,1,aux!$AL$1)))-1,"n.d.") -> 0.5979313872 | AE53: =IF(INDEX($K53:$O53,1,aux!$AL$1)>0,(O53-INDEX($K53:$O53,1,aux!$AL$1))/INDEX($K53:$O53,1,aux!$AL$1),"n.d.") -> 5.519773519 | AX53: 07
A54: 0708 | B54: Tomates preparados ou conservados | C54: 1.814 | D54: 5.792 | E54: 7.196 | F54: 42.295 | G54: 2.349 | H54: 11.8892 | I54: 1.715012152e-05 | J54: 1.346461067e-05 | K54: 1.163 | L54: 2.098 | M54: 43.806 | N54: 37.028 | O54: 30.318 | P54: 22.8826 | Q54: 8.807166988e-05 | R54: 3.602415853e-05 | S54: 10.9934 | U54: =G54-INDEX($C54:$G54,1,aux!$AL$1) -> 0.535 | V54: 5.942168066e-06 | W54: 3.862747331e-06 | X54: =+IF(INDEX($C54:$G54,1,aux!$AL$1)>0,(G54/INDEX($C54:$G54,1,aux!$AL$1))^(1/($G$3-INDEX($C$3:$G$3,1,aux!$AL$1)))-1,"n.d.") -> 0.06674700821 | Y54: =IF(INDEX($C54:$G54,1,aux!$AL$1)>0,(G54-INDEX($C54:$G54,1,aux!$AL$1))/INDEX($C54:$G54,1,aux!$AL$1),"n.d.") -> 0.2949283352 | AA54: =O54-INDEX($K54:$O54,1,aux!$AL$1) -> 29.155 | AB54: 0.0002533154676 | AC54: 0.0001510944665 | AD54: =+IF(INDEX($K54:$O54,1,aux!$AL$1)>0,(O54/INDEX($K54:$O54,1,aux!$AL$1))^(1/($O$3-INDEX($K$3:$O$3,1,aux!$AL$1)))-1,"n.d.") -> 1.259592937 | AE54: =IF(INDEX($K54:$O54,1,aux!$AL$1)>0,(O54-INDEX($K54:$O54,1,aux!$AL$1))/INDEX($K54:$O54,1,aux!$AL$1),"n.d.") -> 25.06878762 | AX54: 07
A55: 0709 | B55: Outros produtos hortícolas, frescos ou refrigerados | C55: 2260.736 | D55: 2471.865 | E55: 2960.909 | F55: 3099.186 | G55: 2920.043 | H55: 2742.5478 | I55: 0.003956113787 | J55: 0.00310595653 | K55: 383.042 | L55: 685.276 | M55: 1590.202 | N55: 1608.925 | O55: 1773.553 | P55: 1208.1996 | Q55: 0.004650177704 | R55: 0.001902072925 | S55: -1534.3482 | U55: =G55-INDEX($C55:$G55,1,aux!$AL$1) -> 659.307 | V55: 0.007322828039 | W55: 0.004760254869 | X55: =+IF(INDEX($C55:$G55,1,aux!$AL$1)>0,(G55/INDEX($C55:$G55,1,aux!$AL$1))^(1/($G$3-INDEX($C$3:$G$3,1,aux!$AL$1)))-1,"n.d.") -> 0.06606785712 | Y55: =IF(INDEX($C55:$G55,1,aux!$AL$1)>0,(G55-INDEX($C55:$G55,1,aux!$AL$1))/INDEX($C55:$G55,1,aux!$AL$1),"n.d.") -> 0.2916337865 | AA55: =O55-INDEX($K55:$O55,1,aux!$AL$1) -> 1390.511 | AB55: 0.01208156214 | AC55: 0.007206260256 | AD55: =+IF(INDEX($K55:$O55,1,aux!$AL$1)>0,(O55/INDEX($K55:$O55,1,aux!$AL$1))^(1/($O$3-INDEX($K$3:$O$3,1,aux!$AL$1)))-1,"n.d.") -> 0.4668964033 | AE55: =IF(INDEX($K55:$O55,1,aux!$AL$1)>0,(O55-INDEX($K55:$O55,1,aux!$AL$1))/INDEX($K55:$O55,1,aux!$AL$1),"n.d.") -> 3.630178936 | AX55: 07
A56: 0710 | B56: Produtos hortícolas congelados | C56: 962.949 | D56: 1133.028 | E56: 735.719 | F56: 607.398 | G56: 677.302 | H56: 823.2792 | I56: 0.00118757682 | J56: 0.0009323700418 | K56: 758.506 | L56: 1114.901 | M56: 1878.123 | N56: 1982.99 | O56: 2158.039 | P56: 1578.5118 | Q56: 0.006075453408 | R56: 0.002485056738 | S56: 755.2326 | U56: =G56-INDEX($C56:$G56,1,aux!$AL$1) -> -285.647 | V56: -0.003172640152 | W56: -0.002062396611 | X56: =+IF(INDEX($C56:$G56,1,aux!$AL$1)>0,(G56/INDEX($C56:$G56,1,aux!$AL$1))^(1/($G$3-INDEX($C$3:$G$3,1,aux!$AL$1)))-1,"n.d.") -> -0.08421238079 | Y56: =IF(INDEX($C56:$G56,1,aux!$AL$1)>0,(G56-INDEX($C56:$G56,1,aux!$AL$1))/INDEX($C56:$G56,1,aux!$AL$1),"n.d.") -> -0.2966377243 | AA56: =O56-INDEX($K56:$O56,1,aux!$AL$1) -> 1399.533 | AB56: 0.01215995048 | AC56: 0.007253016362 | AD56: =+IF(INDEX($K56:$O56,1,aux!$AL$1)>0,(O56/INDEX($K56:$O56,1,aux!$AL$1))^(1/($O$3-INDEX($K$3:$O$3,1,aux!$AL$1)))-1,"n.d.") -> 0.2987485243 | AE56: =IF(INDEX($K56:$O56,1,aux!$AL$1)>0,(O56-INDEX($K56:$O56,1,aux!$AL$1))/INDEX($K56:$O56,1,aux!$AL$1),"n.d.") -> 1.845117903 | AX56: 07
A57: 0711 | B57: Produtos hortícolas conservados transitoriamente | C57: 200.794 | D57: 191.327 | E57: 146.799 | F57: 165.404 | G57: 182.187 | H57: 177.3022 | I57: 0.0002557576856 | J57: 0.0002007961086 | K57: 1.529 | L57: 1.572 | M57: 1.859 | N57: 0.065 | O57: 0.056 | P57: 1.0162 | Q57: 3.911200254e-06 | R57: 1.599807272e-06 | S57: -176.286 | U57: =G57-INDEX($C57:$G57,1,aux!$AL$1) -> -18.607 | V57: -0.0002066652733 | W57: -0.0001343441862 | X57: =+IF(INDEX($C57:$G57,1,aux!$AL$1)>0,(G57/INDEX($C57:$G57,1,aux!$AL$1))^(1/($G$3-INDEX($C$3:$G$3,1,aux!$AL$1)))-1,"n.d.") -> -0.02401832533 | Y57: =IF(INDEX($C57:$G57,1,aux!$AL$1)>0,(G57-INDEX($C57:$G57,1,aux!$AL$1))/INDEX($C57:$G57,1,aux!$AL$1),"n.d.") -> -0.09266711157 | AA57: =O57-INDEX($K57:$O57,1,aux!$AL$1) -> -1.473 | AB57: -1.279827418e-05 | AC57: -7.633755761e-06 | AD57: =+IF(INDEX($K57:$O57,1,aux!$AL$1)>0,(O57/INDEX($K57:$O57,1,aux!$AL$1))^(1/($O$3-INDEX($K$3:$O$3,1,aux!$AL$1)))-1,"n.d.") -> -0.5625331637 | AE57: =IF(INDEX($K57:$O57,1,aux!$AL$1)>0,(O57-INDEX($K57:$O57,1,aux!$AL$1))/INDEX($K57:$O57,1,aux!$AL$1),"n.d.") -> -0.9633747547 | AX57: 07
A58: 0712 | B58: Produtos hortícolas secos | C58: 1471.482 | D58: 1539.998 | E58: 1906.962 | F58: 1523.059 | G58: 2230.923 | H58: 1734.4848 | I58: 0.002501987105 | J58: 0.00196431741 | K58: 693.81 | L58: 1296.236 | M58: 786.795 | N58: 1157.62 | O58: 1388.059 | P58: 1064.504 | Q58: 0.004097115052 | R58: 0.001675852431 | S58: -669.9808 | U58: =G58-INDEX($C58:$G58,1,aux!$AL$1) -> 759.441 | V58: 0.008435001978 | W58: 0.005483231207 | X58: =+IF(INDEX($C58:$G58,1,aux!$AL$1)>0,(G58/INDEX($C58:$G58,1,aux!$AL$1))^(1/($G$3-INDEX($C$3:$G$3,1,aux!$AL$1)))-1,"n.d.") -> 0.1096407744 | Y58: =IF(INDEX($C58:$G58,1,aux!$AL$1)>0,(G58-INDEX($C58:$G58,1,aux!$AL$1))/INDEX($C58:$G58,1,aux!$AL$1),"n.d.") -> 0.5161062113 | AA58: =O58-INDEX($K58:$O58,1,aux!$AL$1) -> 694.249 | AB58: 0.006032036018 | AC58: 0.003597913987 | AD58: =+IF(INDEX($K58:$O58,1,aux!$AL$1)>0,(O58/INDEX($K58:$O58,1,aux!$AL$1))^(1/($O$3-INDEX($K$3:$O$3,1,aux!$AL$1)))-1,"n.d.") -> 0.1893011609 | AE58: =IF(INDEX($K58:$O58,1,aux!$AL$1)>0,(O58-INDEX($K58:$O58,1,aux!$AL$1))/INDEX($K58:$O58,1,aux!$AL$1),"n.d.") -> 1.000632738 | AX58: 07
A59: 0713 | B59: Legumes de vagem, secos, em grão | C59: 266.964 | D59: 244.597 | E59: 401.041 | F59: 302.316 | G59: 511.75 | H59: 345.3336 | I59: 0.0004981422807 | J59: 0.0003910929647 | K59: 70.08 | L59: 188.882 | M59: 78.318 | N59: 61.473 | O59: 307.743 | P59: 141.2992 | Q59: 0.0005438392708 | R59: 0.0002224478329 | S59: -204.0344 | U59: =G59-INDEX($C59:$G59,1,aux!$AL$1) -> 244.786 | V59: 0.002718802901 | W59: 0.001767376576 | X59: =+IF(INDEX($C59:$G59,1,aux!$AL$1)>0,(G59/INDEX($C59:$G59,1,aux!$AL$1))^(1/($G$3-INDEX($C$3:$G$3,1,aux!$AL$1)))-1,"n.d.") -> 0.1766608062 | Y59: =IF(INDEX($C59:$G59,1,aux!$AL$1)>0,(G59-INDEX($C59:$G59,1,aux!$AL$1))/INDEX($C59:$G59,1,aux!$AL$1),"n.d.") -> 0.9169251285 | AA59: =O59-INDEX($K59:$O59,1,aux!$AL$1) -> 237.663 | AB59: 0.002064953318 | AC59: 0.001231677729 | AD59: =+IF(INDEX($K59:$O59,1,aux!$AL$1)>0,(O59/INDEX($K59:$O59,1,aux!$AL$1))^(1/($O$3-INDEX($K$3:$O$3,1,aux!$AL$1)))-1,"n.d.") -> 0.4475998269 | AE59: =IF(INDEX($K59:$O59,1,aux!$AL$1)>0,(O59-INDEX($K59:$O59,1,aux!$AL$1))/INDEX($K59:$O59,1,aux!$AL$1),"n.d.") -> 3.391309932 | AX59: 07
A60: 0714 | B60: Raízes de mandioca, de araruta, batata-doce, etc. | C60: 1.065 | D60: 3.901 | E60: 9.817 | F60: 71.954 | G60: 13.107 | H60: 19.9688 | I60: 2.880491089e-05 | J60: 2.261481997e-05 | K60: 1114.929 | L60: 706.603 | M60: 918.757 | N60: 2186.185 | O60: 1070.677 | P60: 1199.4302 | Q60: 0.004616425608 | R60: 0.001888267228 | S60: 1179.4614 | U60: =G60-INDEX($C60:$G60,1,aux!$AL$1) -> 12.042 | V60: 0.0001337487623 | W60: 8.694430535e-05 | X60: =+IF(INDEX($C60:$G60,1,aux!$AL$1)>0,(G60/INDEX($C60:$G60,1,aux!$AL$1))^(1/($G$3-INDEX($C$3:$G$3,1,aux!$AL$1)))-1,"n.d.") -> 0.873002784 | Y60: =IF(INDEX($C60:$G60,1,aux!$AL$1)>0,(G60-INDEX($C60:$G60,1,aux!$AL$1))/INDEX($C60:$G60,1,aux!$AL$1),"n.d.") -> 11.30704225 | AA60: =O60-INDEX($K60:$O60,1,aux!$AL$1) -> -44.252 | AB60: -0.0003844869173 | AC60: -0.000229333985 | AD60: =+IF(INDEX($K60:$O60,1,aux!$AL$1)>0,(O60/INDEX($K60:$O60,1,aux!$AL$1))^(1/($O$3-INDEX($K$3:$O$3,1,aux!$AL$1)))-1,"n.d.") -> -0.01007380761 | AE60: =IF(INDEX($K60:$O60,1,aux!$AL$1)>0,(O60-INDEX($K60:$O60,1,aux!$AL$1))/INDEX($K60:$O60,1,aux!$AL$1),"n.d.") -> -0.03969041975 | AX60: 07
A61: 07SS | B61: Produtos hortícolas, plantas, raízes e tubérculos, comestíveis | C61: 0 | D61: 0 | E61: 0 | F61: 0 | G61: 0 | H61: 0 | I61: 0 | J61: 0 | K61: 0 | L61: 0 | M61: 0 | N61: 0 | O61: 0 | P61: 0 | Q61: 0 | R61: 0 | S61: 0 | U61: =G61-INDEX($C61:$G61,1,aux!$AL$1) -> 0 | V61: 0 | W61: 0 | X61: =+IF(INDEX($C61:$G61,1,aux!$AL$1)>0,(G61/INDEX($C61:$G61,1,aux!$AL$1))^(1/($G$3-INDEX($C$3:$G$3,1,aux!$AL$1)))-1,"n.d.") -> n.d. | Y61: =IF(INDEX($C61:$G61,1,aux!$AL$1)>0,(G61-INDEX($C61:$G61,1,aux!$AL$1))/INDEX($C61:$G61,1,aux!$AL$1),"n.d.") -> n.d. | AA61: =O61-INDEX($K61:$O61,1,aux!$AL$1) -> 0 | AB61: 0 | AC61: 0 | AD61: =+IF(INDEX($K61:$O61,1,aux!$AL$1)>0,(O61/INDEX($K61:$O61,1,aux!$AL$1))^(1/($O$3-INDEX($K$3:$O$3,1,aux!$AL$1)))-1,"n.d.") -> n.d. | AE61: =IF(INDEX($K61:$O61,1,aux!$AL$1)>0,(O61-INDEX($K61:$O61,1,aux!$AL$1))/INDEX($K61:$O61,1,aux!$AL$1),"n.d.") -> n.d. | AX61: 07
A62: 0801 | B62: Cocos, castanhas do brasil e castanha de cajú | C62: 4066.4 | D62: 4264.007 | E62: 4393.838 | F62: 4582.901 | G62: 5097.863 | H62: 4481.0018 | I62: 0.006463826447 | J62: 0.005074769089 | K62: 12.796 | L62: 13.142 | M62: 7.087 | N62: 1.393 | O62: 2.267 | P62: 7.337 | Q62: 2.823900439e-05 | R62: 1.155066518e-05 | S62: -4473.6648 | U62: =G62-INDEX($C62:$G62,1,aux!$AL$1) -> 1031.463 | V62: 0.01145631121 | W62: 0.007447254113 | X62: =+IF(INDEX($C62:$G62,1,aux!$AL$1)>0,(G62/INDEX($C62:$G62,1,aux!$AL$1))^(1/($G$3-INDEX($C$3:$G$3,1,aux!$AL$1)))-1,"n.d.") -> 0.05814337173 | Y62: =IF(INDEX($C62:$G62,1,aux!$AL$1)>0,(G62-INDEX($C62:$G62,1,aux!$AL$1))/INDEX($C62:$G62,1,aux!$AL$1),"n.d.") -> 0.2536550757 | AA62: =O62-INDEX($K62:$O62,1,aux!$AL$1) -> -10.529 | AB62: -9.148202912e-05 | AC62: -5.456606545e-05 | AD62: =+IF(INDEX($K62:$O62,1,aux!$AL$1)>0,(O62/INDEX($K62:$O62,1,aux!$AL$1))^(1/($O$3-INDEX($K$3:$O$3,1,aux!$AL$1)))-1,"n.d.") -> -0.3512246776 | AE62: =IF(INDEX($K62:$O62,1,aux!$AL$1)>0,(O62-INDEX($K62:$O62,1,aux!$AL$1))/INDEX($K62:$O62,1,aux!$AL$1),"n.d.") -> -0.822835261 | AX62: 08
A63: 0802 | B63: Frutas de casca rija | C63: 8002.803 | D63: 7371.28 | E63: 8559.98 | F63: 7125.577 | G63: 7554.974 | H63: 7722.9228 | I63: 0.011140284 | J63: 0.008746269618 | K63: 851.484 | L63: 1416.518 | M63: 2042.344 | N63: 2694.914 | O63: 2108.909 | P63: 1822.8338 | Q63: 0.00701581187 | R63: 0.002869693731 | S63: -5900.089 | U63: =G63-INDEX($C63:$G63,1,aux!$AL$1) -> -447.829 | V63: -0.004973972304 | W63: -0.003233364999 | X63: =+IF(INDEX($C63:$G63,1,aux!$AL$1)>0,(G63/INDEX($C63:$G63,1,aux!$AL$1))^(1/($G$3-INDEX($C$3:$G$3,1,aux!$AL$1)))-1,"n.d.") -> -0.01429329223 | Y63: =IF(INDEX($C63:$G63,1,aux!$AL$1)>0,(G63-INDEX($C63:$G63,1,aux!$AL$1))/INDEX($C63:$G63,1,aux!$AL$1),"n.d.") -> -0.05595901836 | AA63: =O63-INDEX($K63:$O63,1,aux!$AL$1) -> 1257.425 | AB63: 0.01092523416 | AC63: 0.006516548091 | AD63: =+IF(INDEX($K63:$O63,1,aux!$AL$1)>0,(O63/INDEX($K63:$O63,1,aux!$AL$1))^(1/($O$3-INDEX($K$3:$O$3,1,aux!$AL$1)))-1,"n.d.") -> 0.2544990511 | AE63: =IF(INDEX($K63:$O63,1,aux!$AL$1)>0,(O63-INDEX($K63:$O63,1,aux!$AL$1))/INDEX($K63:$O63,1,aux!$AL$1),"n.d.") -> 1.476745306 | AX63: 08
A64: 0803 | B64: Bananas, frescas ou secas | C64: 1.261 | D64: 18.975 | E64: 3.115 | F64: 7.71 | G64: 8.493 | H64: 7.9108 | I64: 1.141129608e-05 | J64: 8.959041995e-06 | K64: 3.309 | L64: 3.475 | M64: 61.025 | N64: 12.862 | O64: 21.978 | P64: 20.5298 | Q64: 7.901609819e-05 | R64: 3.232013712e-05 | S64: 12.619 | U64: =G64-INDEX($C64:$G64,1,aux!$AL$1) -> 7.232 | V64: 8.032478402e-05 | W64: 5.221567981e-05 | X64: =+IF(INDEX($C64:$G64,1,aux!$AL$1)>0,(G64/INDEX($C64:$G64,1,aux!$AL$1))^(1/($G$3-INDEX($C$3:$G$3,1,aux!$AL$1)))-1,"n.d.") -> 0.6109665 | Y64: =IF(INDEX($C64:$G64,1,aux!$AL$1)>0,(G64-INDEX($C64:$G64,1,aux!$AL$1))/INDEX($C64:$G64,1,aux!$AL$1),"n.d.") -> 5.735130849 | AA64: =O64-INDEX($K64:$O64,1,aux!$AL$1) -> 18.669 | AB64: 0.0001622070474 | AC64: 9.675124664e-05 | AD64: =+IF(INDEX($K64:$O64,1,aux!$AL$1)>0,(O64/INDEX($K64:$O64,1,aux!$AL$1))^(1/($O$3-INDEX($K$3:$O$3,1,aux!$AL$1)))-1,"n.d.") -> 0.6053615259 | AE64: =IF(INDEX($K64:$O64,1,aux!$AL$1)>0,(O64-INDEX($K64:$O64,1,aux!$AL$1))/INDEX($K64:$O64,1,aux!$AL$1),"n.d.") -> 5.641885766 | AX64: 08
A65: 0804 | B65: Tâmaras, figos, ananases, abacates, goiabas, mangas | C65: 2027.572 | D65: 4877.511 | E65: 6720.251 | F65: 7742.623 | G65: 7919.774 | H65: 5857.5462 | I65: 0.008449486014 | J65: 0.006633716236 | K65: 866.12 | L65: 410.781 | M65: 324.277 | N65: 249.434 | O65: 300.09 | P65: 430.1404 | Q65: 0.001655545406 | R65: 0.0006771715608 | S65: -5427.4058 | U65: =G65-INDEX($C65:$G65,1,aux!$AL$1) -> 5892.202 | V65: 0.0654438403 | W65: 0.04254221972 | X65: =+IF(INDEX($C65:$G65,1,aux!$AL$1)>0,(G65/INDEX($C65:$G65,1,aux!$AL$1))^(1/($G$3-INDEX($C$3:$G$3,1,aux!$AL$1)))-1,"n.d.") -> 0.4058342699 | Y65: =IF(INDEX($C65:$G65,1,aux!$AL$1)>0,(G65-INDEX($C65:$G65,1,aux!$AL$1))/INDEX($C65:$G65,1,aux!$AL$1),"n.d.") -> 2.906038355 | AA65: =O65-INDEX($K65:$O65,1,aux!$AL$1) -> -566.03 | AB65: -0.004917995341 | AC65: -0.002933424829 | AD65: =+IF(INDEX($K65:$O65,1,aux!$AL$1)>0,(O65/INDEX($K65:$O65,1,aux!$AL$1))^(1/($O$3-INDEX($K$3:$O$3,1,aux!$AL$1)))-1,"n.d.") -> -0.2327827408 | AE65: =IF(INDEX($K65:$O65,1,aux!$AL$1)>0,(O65-INDEX($K65:$O65,1,aux!$AL$1))/INDEX($K65:$O65,1,aux!$AL$1),"n.d.") -> -0.6535237611 | AX65: 08
A66: 0805 | B66: Citrinos, frescos ou secos | C66: 2319.272 | D66: 2319.113 | E66: 3137.652 | F66: 3343.647 | G66: 2506.423 | H66: 2725.2214 | I66: 0.003931120527 | J66: 0.003086334248 | K66: 676.824 | L66: 636.442 | M66: 1568.97 | N66: 2380.337 | O66: 3255.038 | P66: 1703.5222 | Q66: 0.006556599549 | R66: 0.002681861055 | S66: -1021.6992 | U66: =G66-INDEX($C66:$G66,1,aux!$AL$1) -> 187.151 | V66: 0.002078659244 | W66: 0.001351246777 | X66: =+IF(INDEX($C66:$G66,1,aux!$AL$1)>0,(G66/INDEX($C66:$G66,1,aux!$AL$1))^(1/($G$3-INDEX($C$3:$G$3,1,aux!$AL$1)))-1,"n.d.") -> 0.0195902424 | Y66: =IF(INDEX($C66:$G66,1,aux!$AL$1)>0,(G66-INDEX($C66:$G66,1,aux!$AL$1))/INDEX($C66:$G66,1,aux!$AL$1),"n.d.") -> 0.08069385566 | AA66: =O66-INDEX($K66:$O66,1,aux!$AL$1) -> 2578.214 | AB66: 0.02240101132 | AC66: 0.01336147724 | AD66: =+IF(INDEX($K66:$O66,1,aux!$AL$1)>0,(O66/INDEX($K66:$O66,1,aux!$AL$1))^(1/($O$3-INDEX($K$3:$O$3,1,aux!$AL$1)))-1,"n.d.") -> 0.4808807173 | AE66: =IF(INDEX($K66:$O66,1,aux!$AL$1)>0,(O66-INDEX($K66:$O66,1,aux!$AL$1))/INDEX($K66:$O66,1,aux!$AL$1),"n.d.") -> 3.809282768 | AX66: 08
A67: 0806 | B67: Uvas, frescas ou secas | C67: 1971.646 | D67: 2812.538 | E67: 3718.135 | F67: 3388.548 | G67: 4118.287 | H67: 3201.8308 | I67: 0.004618627603 | J67: 0.003626098068 | K67: 1.183 | L67: 3.867 | M67: 6.204 | N67: 11.758 | O67: 22.716 | P67: 9.1456 | Q67: 3.520003252e-05 | R67: 1.439795059e-05 | S67: -3192.6852 | U67: =G67-INDEX($C67:$G67,1,aux!$AL$1) -> 2146.641 | V67: 0.0238424329 | W67: 0.01549893793 | X67: =+IF(INDEX($C67:$G67,1,aux!$AL$1)>0,(G67/INDEX($C67:$G67,1,aux!$AL$1))^(1/($G$3-INDEX($C$3:$G$3,1,aux!$AL$1)))-1,"n.d.") -> 0.2021866938 | Y67: =IF(INDEX($C67:$G67,1,aux!$AL$1)>0,(G67-INDEX($C67:$G67,1,aux!$AL$1))/INDEX($C67:$G67,1,aux!$AL$1),"n.d.") -> 1.088755791 | AA67: =O67-INDEX($K67:$O67,1,aux!$AL$1) -> 21.533 | AB67: 0.0001870911324 | AC67: 0.0001115937969 | AD67: =+IF(INDEX($K67:$O67,1,aux!$AL$1)>0,(O67/INDEX($K67:$O67,1,aux!$AL$1))^(1/($O$3-INDEX($K$3:$O$3,1,aux!$AL$1)))-1,"n.d.") -> 1.093325572 | AE67: =IF(INDEX($K67:$O67,1,aux!$AL$1)>0,(O67-INDEX($K67:$O67,1,aux!$AL$1))/INDEX($K67:$O67,1,aux!$AL$1),"n.d.") -> 18.20202874 | AX67: 08
A68: 0807 | B68: Melões, melancias e papaia, frescos | C68: 1173.577 | D68: 805.389 | E68: 1676.905 | F68: 1418.107 | G68: 2188.376 | H68: 1452.4708 | I68: 0.002095183084 | J68: 0.00164493438 | K68: 131.353 | L68: 1040.299 | M68: 262.748 | N68: 397.663 | O68: 424.695 | P68: 451.3516 | Q68: 0.00173718411 | R68: 0.0007105644284 | S68: -1001.1192 | U68: =G68-INDEX($C68:$G68,1,aux!$AL$1) -> 1014.799 | V68: =IF($U$237<>0,U68/$U$237, "n.d.") -> 0.01127122656 | W68: =IF($U$322<>0,U68/$U$322, "n.d.") -> 0.007326938559 | X68: =+IF(INDEX($C68:$G68,1,aux!$AL$1)>0,(G68/INDEX($C68:$G68,1,aux!$AL$1))^(1/($G$3-INDEX($C$3:$G$3,1,aux!$AL$1)))-1,"n.d.") -> 0.1685642302 | Y68: =IF(INDEX($C68:$G68,1,aux!$AL$1)>0,(G68-INDEX($C68:$G68,1,aux!$AL$1))/INDEX($C68:$G68,1,aux!$AL$1),"n.d.") -> 0.8647059375 | AA68: =O68-INDEX($K68:$O68,1,aux!$AL$1) -> 293.342 | AB68: =IF($AA$237<>0,AA68/$AA$237, "n.d.") -> 0.002548724607 | AC68: =IF($AA$322<>0,AA68/$AA$322, "n.d.") -> 0.001520231624 | AD68: =+IF(INDEX($K68:$O68,1,aux!$AL$1)>0,(O68/INDEX($K68:$O68,1,aux!$AL$1))^(1/($O$3-INDEX($K$3:$O$3,1,aux!$AL$1)))-1,"n.d.") -> 0.3409398211 | AE68: =IF(INDEX($K68:$O68,1,aux!$AL$1)>0,(O68-INDEX($K68:$O68,1,aux!$AL$1))/INDEX($K68:$O68,1,aux!$AL$1),"n.d.") -> 2.23323411 | AX68: 08
A69: 0808 | B69: Maçãs, peras e marmelos, frescos | C69: 1468.856 | D69: 1203.177 | E69: 846.342 | F69: 1696.914 | G69: 3416.862 | H69: 1726.4302 | I69: 0.002490368378 | J69: 0.001955195513 | K69: 8521.139 | L69: 10644.265 | M69: 10919.354 | N69: 13643.038 | O69: 20223.045 | P69: 12790.1682 | Q69: 0.04922742483 | R69: 0.02013560727 | S69: 11063.738 | U69: =G69-INDEX($C69:$G69,1,aux!$AL$1) -> 1948.006 | V69: 0.02163622251 | W69: 0.01406477566 | X69: =+IF(INDEX($C69:$G69,1,aux!$AL$1)>0,(G69/INDEX($C69:$G69,1,aux!$AL$1))^(1/($G$3-INDEX($C$3:$G$3,1,aux!$AL$1)))-1,"n.d.") -> 0.2349860567 | Y69: =IF(INDEX($C69:$G69,1,aux!$AL$1)>0,(G69-INDEX($C69:$G69,1,aux!$AL$1))/INDEX($C69:$G69,1,aux!$AL$1),"n.d.") -> 1.326206245 | AA69: =O69-INDEX($K69:$O69,1,aux!$AL$1) -> 11701.906 | AB69: 0.1016729134 | AC69: 0.06064459765 | AD69: =+IF(INDEX($K69:$O69,1,aux!$AL$1)>0,(O69/INDEX($K69:$O69,1,aux!$AL$1))^(1/($O$3-INDEX($K$3:$O$3,1,aux!$AL$1)))-1,"n.d.") -> 0.2411870184 | AE69: =IF(INDEX($K69:$O69,1,aux!$AL$1)>0,(O69-INDEX($K69:$O69,1,aux!$AL$1))/INDEX($K69:$O69,1,aux!$AL$1),"n.d.") -> 1.373279558 | AX69: 08
A70: 0809 | B70: Damascos, cerejas, pêssegos, etc., frescos | C70: 249.962 | D70: 1176.791 | E70: 707.855 | F70: 735.583 | G70: 1607.967 | H70: 895.6316 | I70: 0.001291944855 | J70: 0.001014309693 | K70: 292.331 | L70: 179.775 | M70: 1624.584 | N70: 2968.38 | O70: 4626.85 | P70: 1938.384 | Q70: 0.00746054713 | R70: 0.003051604822 | S70: 1042.7524 | U70: =G70-INDEX($C70:$G70,1,aux!$AL$1) -> 1358.005 | V70: 0.01508316625 | W70: 0.009804916242 | X70: =+IF(INDEX($C70:$G70,1,aux!$AL$1)>0,(G70/INDEX($C70:$G70,1,aux!$AL$1))^(1/($G$3-INDEX($C$3:$G$3,1,aux!$AL$1)))-1,"n.d.") -> 0.5925782681 | Y70: =IF(INDEX($C70:$G70,1,aux!$AL$1)>0,(G70-INDEX($C70:$G70,1,aux!$AL$1))/INDEX($C70:$G70,1,aux!$AL$1),"n.d.") -> 5.432845793 | AA70: =O70-INDEX($K70:$O70,1,aux!$AL$1) -> 4334.519 | AB70: 0.03766080286 | AC70: 0.02246344833 | AD70: =+IF(INDEX($K70:$O70,1,aux!$AL$1)>0,(O70/INDEX($K70:$O70,1,aux!$AL$1))^(1/($O$3-INDEX($K$3:$O$3,1,aux!$AL$1)))-1,"n.d.") -> 0.9945854056 | AE70: =IF(INDEX($K70:$O70,1,aux!$AL$1)>0,(O70-INDEX($K70:$O70,1,aux!$AL$1))/INDEX($K70:$O70,1,aux!$AL$1),"n.d.") -> 14.82743534 | AX70: 08
A71: 0810 | B71: Outras frutas frescas | C71: 3920.448 | D71: 4549.183 | E71: 5537.668 | F71: 4849.67 | G71: 5266.268 | H71: 4824.6474 | I71: 0.006959533794 | J71: 0.00546395038 | K71: 48007.289 | L71: 53542.34 | M71: 49673.776 | N71: 54692.108 | O71: 54078.371 | P71: 51998.7768 | Q71: 0.200135435 | R71: 0.08186185917 | S71: 47174.1294 | U71: =G71-INDEX($C71:$G71,1,aux!$AL$1) -> 1345.82 | V71: 0.01494782921 | W71: 0.009716939464 | X71: =+IF(INDEX($C71:$G71,1,aux!$AL$1)>0,(G71/INDEX($C71:$G71,1,aux!$AL$1))^(1/($G$3-INDEX($C$3:$G$3,1,aux!$AL$1)))-1,"n.d.") -> 0.07656886268 | Y71: =IF(INDEX($C71:$G71,1,aux!$AL$1)>0,(G71-INDEX($C71:$G71,1,aux!$AL$1))/INDEX($C71:$G71,1,aux!$AL$1),"n.d.") -> 0.3432821963 | AA71: =O71-INDEX($K71:$O71,1,aux!$AL$1) -> 6071.082 | AB71: 0.05274906452 | AC71: 0.0314631074 | AD71: =+IF(INDEX($K71:$O71,1,aux!$AL$1)>0,(O71/INDEX($K71:$O71,1,aux!$AL$1))^(1/($O$3-INDEX($K$3:$O$3,1,aux!$AL$1)))-1,"n.d.") -> 0.03021793158 | AE71: =IF(INDEX($K71:$O71,1,aux!$AL$1)>0,(O71-INDEX($K71:$O71,1,aux!$AL$1))/INDEX($K71:$O71,1,aux!$AL$1),"n.d.") -> 0.1264616713 | AX71: 08
A72: 0811 | B72: Frutas não cozidas ou cozidas em água ou vapor, congeladas | C72: 1043.146 | D72: 1239.399 | E72: 1274.202 | F72: 1577.57 | G72: 1827.068 | H72: 1392.277 | I72: 0.002008353778 | J72: 0.001576764438 | K72: 133.34 | L72: 261.657 | M72: 2152.897 | N72: 3465.158 | O72: 4714.538 | P72: 2145.518 | Q72: 0.008257774598 | R72: 0.003377696615 | S72: 753.241 | U72: =G72-INDEX($C72:$G72,1,aux!$AL$1) -> 783.922 | V72: 0.008706908924 | W72: 0.005659986193 | X72: =+IF(INDEX($C72:$G72,1,aux!$AL$1)>0,(G72/INDEX($C72:$G72,1,aux!$AL$1))^(1/($G$3-INDEX($C$3:$G$3,1,aux!$AL$1)))-1,"n.d.") -> 0.150409352 | Y72: =IF(INDEX($C72:$G72,1,aux!$AL$1)>0,(G72-INDEX($C72:$G72,1,aux!$AL$1))/INDEX($C72:$G72,1,aux!$AL$1),"n.d.") -> 0.7514978728 | AA72: =O72-INDEX($K72:$O72,1,aux!$AL$1) -> 4581.198 | AB72: 0.03980409239 | AC72: 0.02374185107 | AD72: =+IF(INDEX($K72:$O72,1,aux!$AL$1)>0,(O72/INDEX($K72:$O72,1,aux!$AL$1))^(1/($O$3-INDEX($K$3:$O$3,1,aux!$AL$1)))-1,"n.d.") -> 1.438482664 | AE72: =IF(INDEX($K72:$O72,1,aux!$AL$1)>0,(O72-INDEX($K72:$O72,1,aux!$AL$1))/INDEX($K72:$O72,1,aux!$AL$1),"n.d.") -> 34.35726714 | AX72: 08
A73: 0812 | B73: Frutas conservadas transitoriamente | C73: 591.071 | D73: 1022.349 | E73: 1018.337 | F73: 803.098 | G73: 578.299 | H73: 802.6308 | I73: 0.001157791588 | J73: 0.0009089855696 | K73: 0.078 | L73: 0 | M73: 0.436 | N73: 3.672 | O73: 0.437 | P73: 0.9246 | Q73: 3.558645695e-06 | R73: 1.455601067e-06 | S73: -801.7062 | U73: =G73-INDEX($C73:$G73,1,aux!$AL$1) -> -12.772 | V73: -0.0001418567674 | W73: -9.221496993e-05 | X73: =+IF(INDEX($C73:$G73,1,aux!$AL$1)>0,(G73/INDEX($C73:$G73,1,aux!$AL$1))^(1/($G$3-INDEX($C$3:$G$3,1,aux!$AL$1)))-1,"n.d.") -> -0.005446391735 | Y73: =IF(INDEX($C73:$G73,1,aux!$AL$1)>0,(G73-INDEX($C73:$G73,1,aux!$AL$1))/INDEX($C73:$G73,1,aux!$AL$1),"n.d.") -> -0.02160823319 | AA73: =O73-INDEX($K73:$O73,1,aux!$AL$1) -> 0.359 | AB73: 3.119199207e-06 | AC73: 1.860501234e-06 | AD73: =+IF(INDEX($K73:$O73,1,aux!$AL$1)>0,(O73/INDEX($K73:$O73,1,aux!$AL$1))^(1/($O$3-INDEX($K$3:$O$3,1,aux!$AL$1)))-1,"n.d.") -> 0.5384971943 | AE73: =IF(INDEX($K73:$O73,1,aux!$AL$1)>0,(O73-INDEX($K73:$O73,1,aux!$AL$1))/INDEX($K73:$O73,1,aux!$AL$1),"n.d.") -> 4.602564103 | AX73: 08
A74: 0813 | B74: Outras frutas secas | C74: 2864.525 | D74: 3176.759 | E74: 4078.425 | F74: 3430.136 | G74: 3743.736 | H74: 3458.7162 | I74: 0.004989183723 | J74: 0.003917022765 | K74: 1.506 | L74: 0.864 | M74: 678.868 | N74: 0.875 | O74: 3.749 | P74: 137.1724 | Q74: 0.0005279558411 | R74: 0.000215950997 | S74: -3321.5438 | U74: =G74-INDEX($C74:$G74,1,aux!$AL$1) -> 879.211 | V74: 0.009765270145 | W74: 0.006347981203 | X74: =+IF(INDEX($C74:$G74,1,aux!$AL$1)>0,(G74/INDEX($C74:$G74,1,aux!$AL$1))^(1/($G$3-INDEX($C$3:$G$3,1,aux!$AL$1)))-1,"n.d.") -> 0.06921033917 | Y74: =IF(INDEX($C74:$G74,1,aux!$AL$1)>0,(G74-INDEX($C74:$G74,1,aux!$AL$1))/INDEX($C74:$G74,1,aux!$AL$1),"n.d.") -> 0.3069308175 | AA74: =O74-INDEX($K74:$O74,1,aux!$AL$1) -> 2.243 | AB74: 1.948847861e-05 | AC74: 1.162424587e-05 | AD74: =+IF(INDEX($K74:$O74,1,aux!$AL$1)>0,(O74/INDEX($K74:$O74,1,aux!$AL$1))^(1/($O$3-INDEX($K$3:$O$3,1,aux!$AL$1)))-1,"n.d.") -> 0.2560953768 | AE74: =IF(INDEX($K74:$O74,1,aux!$AL$1)>0,(O74-INDEX($K74:$O74,1,aux!$AL$1))/INDEX($K74:$O74,1,aux!$AL$1),"n.d.") -> 1.48937583 | AX74: 08
A75: 0814 | B75: Cascas de citrinos, melões ou melancias | C75: 0.084 | D75: 0 | E75: 0 | F75: 0 | G75: 0 | H75: 0.0168 | I75: 2.423393008e-08 | J75: 1.902612953e-08 | K75: 4.977 | L75: 18.912 | M75: 0 | N75: 0 | O75: 0 | P75: 4.7778 | Q75: 1.838903028e-05 | R75: 7.521707525e-06 | S75: 4.761 | U75: =G75-INDEX($C75:$G75,1,aux!$AL$1) -> -0.084 | V75: -9.329759206e-07 | W75: -6.064874314e-07 | X75: =+IF(INDEX($C75:$G75,1,aux!$AL$1)>0,(G75/INDEX($C75:$G75,1,aux!$AL$1))^(1/($G$3-INDEX($C$3:$G$3,1,aux!$AL$1)))-1,"n.d.") -> -1 | Y75: =IF(INDEX($C75:$G75,1,aux!$AL$1)>0,(G75-INDEX($C75:$G75,1,aux!$AL$1))/INDEX($C75:$G75,1,aux!$AL$1),"n.d.") -> -1 | AA75: =O75-INDEX($K75:$O75,1,aux!$AL$1) -> -4.977 | AB75: -4.324304862e-05 | AC75: -2.5793077e-05 | AD75: =+IF(INDEX($K75:$O75,1,aux!$AL$1)>0,(O75/INDEX($K75:$O75,1,aux!$AL$1))^(1/($O$3-INDEX($K$3:$O$3,1,aux!$AL$1)))-1,"n.d.") -> -1 | AE75: =IF(INDEX($K75:$O75,1,aux!$AL$1)>0,(O75-INDEX($K75:$O75,1,aux!$AL$1))/INDEX($K75:$O75,1,aux!$AL$1),"n.d.") -> -1 | AX75: =+LEFT(A75,2) -> 08
A76: 08SS | B76: Frutas; cascas de citrinos e de melões | C76: 0 | D76: 0 | E76: 0 | F76: 0 | G76: 0 | H76: 0 | I76: 0 | J76: 0 | K76: 0 | L76: 0 | M76: 0 | N76: 0 | O76: 0 | P76: 0 | Q76: 0 | R76: 0 | S76: 0 | U76: =G76-INDEX($C76:$G76,1,aux!$AL$1) -> 0 | V76: 0 | W76: 0 | X76: =+IF(INDEX($C76:$G76,1,aux!$AL$1)>0,(G76/INDEX($C76:$G76,1,aux!$AL$1))^(1/($G$3-INDEX($C$3:$G$3,1,aux!$AL$1)))-1,"n.d.") -> n.d. | Y76: =IF(INDEX($C76:$G76,1,aux!$AL$1)>0,(G76-INDEX($C76:$G76,1,aux!$AL$1))/INDEX($C76:$G76,1,aux!$AL$1),"n.d.") -> n.d. | AA76: =O76-INDEX($K76:$O76,1,aux!$AL$1) -> 0 | AB76: 0 | AC76: 0 | AD76: =+IF(INDEX($K76:$O76,1,aux!$AL$1)>0,(O76/INDEX($K76:$O76,1,aux!$AL$1))^(1/($O$3-INDEX($K$3:$O$3,1,aux!$AL$1)))-1,"n.d.") -> n.d. | AE76: =IF(INDEX($K76:$O76,1,aux!$AL$1)>0,(O76-INDEX($K76:$O76,1,aux!$AL$1))/INDEX($K76:$O76,1,aux!$AL$1),"n.d.") -> n.d. | AX76: 08
A77: 0901 | B77: Café | C77: 10166.737 | D77: 8525.275 | E77: 13145.145 | F77: 16627.05 | G77: 19958.475 | H77: 13684.5364 | I77: 0.0197398868 | J77: 0.01549784299 | K77: 1505.228 | L77: 2056.813 | M77: 1932.405 | N77: 2523.261 | O77: 5249.18 | P77: 2653.3774 | Q77: 0.01021244869 | R77: 0.004177221473 | S77: -11031.159 | U77: =G77-INDEX($C77:$G77,1,aux!$AL$1) -> 9791.738 | V77: 0.1087554259 | W77: 0.07069721463 | X77: =+IF(INDEX($C77:$G77,1,aux!$AL$1)>0,(G77/INDEX($C77:$G77,1,aux!$AL$1))^(1/($G$3-INDEX($C$3:$G$3,1,aux!$AL$1)))-1,"n.d.") -> 0.18368581 | Y77: =IF(INDEX($C77:$G77,1,aux!$AL$1)>0,(G77-INDEX($C77:$G77,1,aux!$AL$1))/INDEX($C77:$G77,1,aux!$AL$1),"n.d.") -> 0.9631151076 | AA77: =O77-INDEX($K77:$O77,1,aux!$AL$1) -> 3743.952 | AB77: 0.03252961591 | AC77: 0.01940286161 | AD77: =+IF(INDEX($K77:$O77,1,aux!$AL$1)>0,(O77/INDEX($K77:$O77,1,aux!$AL$1))^(1/($O$3-INDEX($K$3:$O$3,1,aux!$AL$1)))-1,"n.d.") -> 0.3665398295 | AE77: =IF(INDEX($K77:$O77,1,aux!$AL$1)>0,(O77-INDEX($K77:$O77,1,aux!$AL$1))/INDEX($K77:$O77,1,aux!$AL$1),"n.d.") -> 2.487298934 | AX77: 09
A78: 0902 | B78: Chá | C78: 945.019 | D78: 899.686 | E78: 671.122 | F78: 688.358 | G78: 789.142 | H78: 798.6654 | I78: 0.001152071515 | J78: 0.0009044947235 | K78: 3.029 | L78: 1.008 | M78: 1.104 | N78: 2.9 | O78: 48.58 | P78: 11.3242 | Q78: 4.358513474e-05 | R78: 1.782772832e-05 | S78: -787.3412 | U78: =G78-INDEX($C78:$G78,1,aux!$AL$1) -> -155.877 | V78: -0.001731303424 | W78: -0.00112544573 | X78: =+IF(INDEX($C78:$G78,1,aux!$AL$1)>0,(G78/INDEX($C78:$G78,1,aux!$AL$1))^(1/($G$3-INDEX($C$3:$G$3,1,aux!$AL$1)))-1,"n.d.") -> -0.04406435816 | Y78: =IF(INDEX($C78:$G78,1,aux!$AL$1)>0,(G78-INDEX($C78:$G78,1,aux!$AL$1))/INDEX($C78:$G78,1,aux!$AL$1),"n.d.") -> -0.16494589 | AA78: =O78-INDEX($K78:$O78,1,aux!$AL$1) -> 45.551 | AB78: 0.0003957733791 | AC78: 0.0002360659937 | AD78: =+IF(INDEX($K78:$O78,1,aux!$AL$1)>0,(O78/INDEX($K78:$O78,1,aux!$AL$1))^(1/($O$3-INDEX($K$3:$O$3,1,aux!$AL$1)))-1,"n.d.") -> 1.001195692 | AE78: =IF(INDEX($K78:$O78,1,aux!$AL$1)>0,(O78-INDEX($K78:$O78,1,aux!$AL$1))/INDEX($K78:$O78,1,aux!$AL$1),"n.d.") -> 15.03829647 | AX78: 09
A79: 0903 | B79: Mate | C79: 0.086 | D79: 0.018 | E79: 0 | F79: 15.328 | G79: 30.185 | H79: 9.1234 | I79: 1.316046653e-05 | J79: 1.033232085e-05 | K79: 0.405 | L79: 0.141 | M79: 0.533 | N79: 1.99 | O79: 2.246 | P79: 1.063 | Q79: 4.091326383e-06 | R79: 1.673484679e-06 | S79: -8.0604 | U79: =G79-INDEX($C79:$G79,1,aux!$AL$1) -> 30.099 | V79: 0.0003343052647 | W79: 0.0002173174428 | X79: =+IF(INDEX($C79:$G79,1,aux!$AL$1)>0,(G79/INDEX($C79:$G79,1,aux!$AL$1))^(1/($G$3-INDEX($C$3:$G$3,1,aux!$AL$1)))-1,"n.d.") -> 3.32835808 | Y79: =IF(INDEX($C79:$G79,1,aux!$AL$1)>0,(G79-INDEX($C79:$G79,1,aux!$AL$1))/INDEX($C79:$G79,1,aux!$AL$1),"n.d.") -> 349.9883721 | AA79: =O79-INDEX($K79:$O79,1,aux!$AL$1) -> 1.841 | AB79: 1.599567059e-05 | AC79: 9.540899088e-06 | AD79: =+IF(INDEX($K79:$O79,1,aux!$AL$1)>0,(O79/INDEX($K79:$O79,1,aux!$AL$1))^(1/($O$3-INDEX($K$3:$O$3,1,aux!$AL$1)))-1,"n.d.") -> 0.5345769908 | AE79: =IF(INDEX($K79:$O79,1,aux!$AL$1)>0,(O79-INDEX($K79:$O79,1,aux!$AL$1))/INDEX($K79:$O79,1,aux!$AL$1),"n.d.") -> 4.545679012 | AX79: 09
A80: 0904 | B80: Pimenta | C80: 515.569 | D80: 706.251 | E80: 748.486 | F80: 719.961 | G80: 712.661 | H80: 680.5856 | I80: 0.0009817418954 | J80: 0.0007707684396 | K80: 8.815 | L80: 4.658 | M80: 4.988 | N80: 7.646 | O80: 2.183 | P80: 5.658 | Q80: 2.177678709e-05 | R80: 8.907409514e-06 | S80: -674.9276 | U80: =G80-INDEX($C80:$G80,1,aux!$AL$1) -> 197.092 | V80: 0.002189072502 | W80: 0.001423021677 | X80: =+IF(INDEX($C80:$G80,1,aux!$AL$1)>0,(G80/INDEX($C80:$G80,1,aux!$AL$1))^(1/($G$3-INDEX($C$3:$G$3,1,aux!$AL$1)))-1,"n.d.") -> 0.08429897979 | Y80: =IF(INDEX($C80:$G80,1,aux!$AL$1)>0,(G80-INDEX($C80:$G80,1,aux!$AL$1))/INDEX($C80:$G80,1,aux!$AL$1),"n.d.") -> 0.3822805483 | AA80: =O80-INDEX($K80:$O80,1,aux!$AL$1) -> -6.632 | AB80: -5.762264385e-05 | AC80: -3.437003952e-05 | AD80: =+IF(INDEX($K80:$O80,1,aux!$AL$1)>0,(O80/INDEX($K80:$O80,1,aux!$AL$1))^(1/($O$3-INDEX($K$3:$O$3,1,aux!$AL$1)))-1,"n.d.") -> -0.2945636169 | AE80: =IF(INDEX($K80:$O80,1,aux!$AL$1)>0,(O80-INDEX($K80:$O80,1,aux!$AL$1))/INDEX($K80:$O80,1,aux!$AL$1),"n.d.") -> -0.7523539421 | AX80: 09
A81: 0905 | B81: Baunilha | C81: 170.304 | D81: 68.648 | E81: 85.057 | F81: 43.059 | G81: 39.758 | H81: 81.3652 | I81: 0.0001173689624 | J81: 9.214671636e-05 | K81: 0.015 | L81: 0 | M81: 0 | N81: 0 | O81: 0 | P81: 0.003 | Q81: 1.154654671e-08 | R81: 4.722910665e-09 | S81: -81.3622 | U81: =G81-INDEX($C81:$G81,1,aux!$AL$1) -> -130.546 | V81: -0.001449955649 | W81: -0.0009425536693 | X81: =+IF(INDEX($C81:$G81,1,aux!$AL$1)>0,(G81/INDEX($C81:$G81,1,aux!$AL$1))^(1/($G$3-INDEX($C$3:$G$3,1,aux!$AL$1)))-1,"n.d.") -> -0.3048957879 | Y81: =IF(INDEX($C81:$G81,1,aux!$AL$1)>0,(G81-INDEX($C81:$G81,1,aux!$AL$1))/INDEX($C81:$G81,1,aux!$AL$1),"n.d.") -> -0.7665468809 | AA81: =O81-INDEX($K81:$O81,1,aux!$AL$1) -> -0.015 | AB81: -1.303286577e-07 | AC81: -7.773682038e-08 | AD81: =+IF(INDEX($K81:$O81,1,aux!$AL$1)>0,(O81/INDEX($K81:$O81,1,aux!$AL$1))^(1/($O$3-INDEX($K$3:$O$3,1,aux!$AL$1)))-1,"n.d.") -> -1 | AE81: =IF(INDEX($K81:$O81,1,aux!$AL$1)>0,(O81-INDEX($K81:$O81,1,aux!$AL$1))/INDEX($K81:$O81,1,aux!$AL$1),"n.d.") -> -1 | AX81: 09
A82: 0906 | B82: Canela | C82: 247.841 | D82: 288.768 | E82: 272.499 | F82: 293.277 | G82: 200.89 | H82: 260.655 | I82: 0.0003759937527 | J82: 0.0002951937973 | K82: 4.574 | L82: 5.402 | M82: 4.489 | N82: 7.198 | O82: 2.456 | P82: 4.8238 | Q82: 1.856607733e-05 | R82: 7.594125488e-06 | S82: -255.8312 | U82: =G82-INDEX($C82:$G82,1,aux!$AL$1) -> -46.951 | V82: -0.0005214780053 | W82: -0.0003389903737 | X82: =+IF(INDEX($C82:$G82,1,aux!$AL$1)>0,(G82/INDEX($C82:$G82,1,aux!$AL$1))^(1/($G$3-INDEX($C$3:$G$3,1,aux!$AL$1)))-1,"n.d.") -> -0.05115277562 | Y82: =IF(INDEX($C82:$G82,1,aux!$AL$1)>0,(G82-INDEX($C82:$G82,1,aux!$AL$1))/INDEX($C82:$G82,1,aux!$AL$1),"n.d.") -> -0.1894400039 | AA82: =O82-INDEX($K82:$O82,1,aux!$AL$1) -> -2.118 | AB82: -1.840240646e-05 | AC82: -1.097643904e-05 | AD82: =+IF(INDEX($K82:$O82,1,aux!$AL$1)>0,(O82/INDEX($K82:$O82,1,aux!$AL$1))^(1/($O$3-INDEX($K$3:$O$3,1,aux!$AL$1)))-1,"n.d.") -> -0.1439816972 | AE82: =IF(INDEX($K82:$O82,1,aux!$AL$1)>0,(O82-INDEX($K82:$O82,1,aux!$AL$1))/INDEX($K82:$O82,1,aux!$AL$1),"n.d.") -> -0.4630520332 | AX82: 09
A83: 0907 | B83: Cravo-da-índia | C83: 48.538 | D83: 29.67 | E83: 9.515 | F83: 6.426 | G83: 5.04 | H83: 19.8378 | I83: 2.861594394e-05 | J83: 2.246646146e-05 | K83: 0.056 | L83: 0.029 | M83: 0.054 | N83: 0.228 | O83: 0.011 | P83: 0.0756 | Q83: 2.90972977e-07 | R83: 1.190173488e-07 | S83: -19.7622 | U83: =G83-INDEX($C83:$G83,1,aux!$AL$1) -> -43.498 | V83: -0.0004831260309 | W83: -0.0003140594082 | X83: =+IF(INDEX($C83:$G83,1,aux!$AL$1)>0,(G83/INDEX($C83:$G83,1,aux!$AL$1))^(1/($G$3-INDEX($C$3:$G$3,1,aux!$AL$1)))-1,"n.d.") -> -0.4323414745 | Y83: =IF(INDEX($C83:$G83,1,aux!$AL$1)>0,(G83-INDEX($C83:$G83,1,aux!$AL$1))/INDEX($C83:$G83,1,aux!$AL$1),"n.d.") -> -0.8961638304 | AA83: =O83-INDEX($K83:$O83,1,aux!$AL$1) -> -0.045 | AB83: -3.90985973e-07 | AC83: -2.332104611e-07 | AD83: =+IF(INDEX($K83:$O83,1,aux!$AL$1)>0,(O83/INDEX($K83:$O83,1,aux!$AL$1))^(1/($O$3-INDEX($K$3:$O$3,1,aux!$AL$1)))-1,"n.d.") -> -0.3342653455 | AE83: =IF(INDEX($K83:$O83,1,aux!$AL$1)>0,(O83-INDEX($K83:$O83,1,aux!$AL$1))/INDEX($K83:$O83,1,aux!$AL$1),"n.d.") -> -0.8035714286 | AX83: 09
A84: 0908 | B84: Noz-moscada, etc. | C84: 65.316 | D84: 86.708 | E84: 109.011 | F84: 128.076 | G84: 87.425 | H84: 95.3072 | I84: 0.0001374802393 | J84: 0.0001079361389 | K84: 0.261 | L84: 0.312 | M84: 0.273 | N84: 0.35 | O84: 0.178 | P84: 0.2748 | Q84: 1.057663678e-06 | R84: 4.326186169e-07 | S84: -95.0324 | U84: =G84-INDEX($C84:$G84,1,aux!$AL$1) -> 22.109 | V84: 0.0002455614837 | W84: 0.000159628936 | X84: =+IF(INDEX($C84:$G84,1,aux!$AL$1)>0,(G84/INDEX($C84:$G84,1,aux!$AL$1))^(1/($G$3-INDEX($C$3:$G$3,1,aux!$AL$1)))-1,"n.d.") -> 0.07560797885 | Y84: =IF(INDEX($C84:$G84,1,aux!$AL$1)>0,(G84-INDEX($C84:$G84,1,aux!$AL$1))/INDEX($C84:$G84,1,aux!$AL$1),"n.d.") -> 0.3384928655 | AA84: =O84-INDEX($K84:$O84,1,aux!$AL$1) -> -0.083 | AB84: -7.211519058e-07 | AC84: -4.301437394e-07 | AD84: =+IF(INDEX($K84:$O84,1,aux!$AL$1)>0,(O84/INDEX($K84:$O84,1,aux!$AL$1))^(1/($O$3-INDEX($K$3:$O$3,1,aux!$AL$1)))-1,"n.d.") -> -0.09124905865 | AE84: =IF(INDEX($K84:$O84,1,aux!$AL$1)>0,(O84-INDEX($K84:$O84,1,aux!$AL$1))/INDEX($K84:$O84,1,aux!$AL$1),"n.d.") -> -0.3180076628 | AX84: 09
A85: 0909 | B85: Sementes de anis, funcho, etc. | C85: 93.373 | D85: 94.156 | E85: 27.747 | F85: 63.536 | G85: 68.063 | H85: 69.375 | I85: 0.0001000731488 | J85: 7.856772241e-05 | K85: 0.594 | L85: 0.937 | M85: 1.41 | N85: 37.09 | O85: 6.631 | P85: 9.3324 | Q85: 3.591899749e-05 | R85: 1.46920305e-05 | S85: -60.0426 | U85: =G85-INDEX($C85:$G85,1,aux!$AL$1) -> -25.31 | V85: -0.0002811145304 | W85: -0.0001827404392 | X85: =+IF(INDEX($C85:$G85,1,aux!$AL$1)>0,(G85/INDEX($C85:$G85,1,aux!$AL$1))^(1/($G$3-INDEX($C$3:$G$3,1,aux!$AL$1)))-1,"n.d.") -> -0.07599899469 | Y85: =IF(INDEX($C85:$G85,1,aux!$AL$1)>0,(G85-INDEX($C85:$G85,1,aux!$AL$1))/INDEX($C85:$G85,1,aux!$AL$1),"n.d.") -> -0.2710633695 | AA85: =O85-INDEX($K85:$O85,1,aux!$AL$1) -> 6.037 | AB85: 5.245294043e-05 | AC85: 3.128647897e-05 | AD85: =+IF(INDEX($K85:$O85,1,aux!$AL$1)>0,(O85/INDEX($K85:$O85,1,aux!$AL$1))^(1/($O$3-INDEX($K$3:$O$3,1,aux!$AL$1)))-1,"n.d.") -> 0.8278819561 | AE85: =IF(INDEX($K85:$O85,1,aux!$AL$1)>0,(O85-INDEX($K85:$O85,1,aux!$AL$1))/INDEX($K85:$O85,1,aux!$AL$1),"n.d.") -> 10.16329966 | AX85: 09
A86: 0910 | B86: Gengibre, açafrão, tomilho, louro, etc. | C86: 685.796 | D86: 672.37 | E86: 1090.169 | F86: 1165.535 | G86: 1548.216 | H86: 1032.4172 | I86: 0.001489257514 | J86: 0.001169220439 | K86: 18.667 | L86: 240.227 | M86: 885.525 | N86: 696.898 | O86: 365.219 | P86: 441.3072 | Q86: 0.001698524732 | R86: 0.0006947514938 | S86: -591.11 | U86: =G86-INDEX($C86:$G86,1,aux!$AL$1) -> 862.42 | V86: 0.009578774922 | W86: 0.006226748698 | X86: =+IF(INDEX($C86:$G86,1,aux!$AL$1)>0,(G86/INDEX($C86:$G86,1,aux!$AL$1))^(1/($G$3-INDEX($C$3:$G$3,1,aux!$AL$1)))-1,"n.d.") -> 0.2257704597 | Y86: =IF(INDEX($C86:$G86,1,aux!$AL$1)>0,(G86-INDEX($C86:$G86,1,aux!$AL$1))/INDEX($C86:$G86,1,aux!$AL$1),"n.d.") -> 1.257545976 | AA86: =O86-INDEX($K86:$O86,1,aux!$AL$1) -> 346.552 | AB86: 0.003011043798 | AC86: 0.001795990038 | AD86: =+IF(INDEX($K86:$O86,1,aux!$AL$1)>0,(O86/INDEX($K86:$O86,1,aux!$AL$1))^(1/($O$3-INDEX($K$3:$O$3,1,aux!$AL$1)))-1,"n.d.") -> 1.103147387 | AE86: =IF(INDEX($K86:$O86,1,aux!$AL$1)>0,(O86-INDEX($K86:$O86,1,aux!$AL$1))/INDEX($K86:$O86,1,aux!$AL$1),"n.d.") -> 18.5649542 | AX86: 09
A87: 09SS | B87: Café, chá, mate e especiarias | C87: 0 | D87: 0 | E87: 0 | F87: 0 | G87: 0 | H87: 0 | I87: 0 | J87: 0 | K87: 0 | L87: 0 | M87: 0 | N87: 0 | O87: 0 | P87: 0 | Q87: 0 | R87: 0 | S87: 0 | U87: =G87-INDEX($C87:$G87,1,aux!$AL$1) -> 0 | V87: 0 | W87: 0 | X87: =+IF(INDEX($C87:$G87,1,aux!$AL$1)>0,(G87/INDEX($C87:$G87,1,aux!$AL$1))^(1/($G$3-INDEX($C$3:$G$3,1,aux!$AL$1)))-1,"n.d.") -> n.d. | Y87: =IF(INDEX($C87:$G87,1,aux!$AL$1)>0,(G87-INDEX($C87:$G87,1,aux!$AL$1))/INDEX($C87:$G87,1,aux!$AL$1),"n.d.") -> n.d. | AA87: =O87-INDEX($K87:$O87,1,aux!$AL$1) -> 0 | AB87: 0 | AC87: 0 | AD87: =+IF(INDEX($K87:$O87,1,aux!$AL$1)>0,(O87/INDEX($K87:$O87,1,aux!$AL$1))^(1/($O$3-INDEX($K$3:$O$3,1,aux!$AL$1)))-1,"n.d.") -> n.d. | AE87: =IF(INDEX($K87:$O87,1,aux!$AL$1)>0,(O87-INDEX($K87:$O87,1,aux!$AL$1))/INDEX($K87:$O87,1,aux!$AL$1),"n.d.") -> n.d. | AX87: 09
A88: 1001 | B88: Trigo e mistura trigo/centeio | C88: 10074.981 | D88: 6611.652 | E88: 7799.175 | F88: 17450.376 | G88: 15002.478 | H88: 11387.7324 | I88: 0.01642675659 | J88: 0.01289669475 | K88: 4.274 | L88: 0.175 | M88: 0.173 | N88: 0.196 | O88: 0.072 | P88: 0.978 | Q88: 3.764174226e-06 | R88: 1.539668877e-06 | S88: -11386.7544 | U88: =G88-INDEX($C88:$G88,1,aux!$AL$1) -> 4927.497 | V88: 0.05472900059 | W88: 0.03557696427 | X88: =+IF(INDEX($C88:$G88,1,aux!$AL$1)>0,(G88/INDEX($C88:$G88,1,aux!$AL$1))^(1/($G$3-INDEX($C$3:$G$3,1,aux!$AL$1)))-1,"n.d.") -> 0.1046627021 | Y88: =IF(INDEX($C88:$G88,1,aux!$AL$1)>0,(G88-INDEX($C88:$G88,1,aux!$AL$1))/INDEX($C88:$G88,1,aux!$AL$1),"n.d.") -> 0.4890825104 | AA88: =O88-INDEX($K88:$O88,1,aux!$AL$1) -> -4.202 | AB88: -3.650940131e-05 | AC88: -2.177667462e-05 | AD88: =+IF(INDEX($K88:$O88,1,aux!$AL$1)>0,(O88/INDEX($K88:$O88,1,aux!$AL$1))^(1/($O$3-INDEX($K$3:$O$3,1,aux!$AL$1)))-1,"n.d.") -> -0.6397329904 | AE88: =IF(INDEX($K88:$O88,1,aux!$AL$1)>0,(O88-INDEX($K88:$O88,1,aux!$AL$1))/INDEX($K88:$O88,1,aux!$AL$1),"n.d.") -> -0.9831539541 | AX88: 10
A89: 1002 | B89: Centeio | C89: 0 | D89: 979.041 | E89: 364.073 | F89: 445.118 | G89: 1148.357 | H89: 587.3178 | I89: 0.0008472034821 | J89: 0.000665141937 | K89: 0 | L89: 0 | M89: 0 | N89: 0 | O89: 0 | P89: 0 | Q89: 0 | R89: 0 | S89: -587.3178 | U89: =G89-INDEX($C89:$G89,1,aux!$AL$1) -> 1148.357 | V89: 0.01275463606 | W89: 0.008291239135 | X89: =+IF(INDEX($C89:$G89,1,aux!$AL$1)>0,(G89/INDEX($C89:$G89,1,aux!$AL$1))^(1/($G$3-INDEX($C$3:$G$3,1,aux!$AL$1)))-1,"n.d.") -> n.d. | Y89: =IF(INDEX($C89:$G89,1,aux!$AL$1)>0,(G89-INDEX($C89:$G89,1,aux!$AL$1))/INDEX($C89:$G89,1,aux!$AL$1),"n.d.") -> n.d. | AA89: =O89-INDEX($K89:$O89,1,aux!$AL$1) -> 0 | AB89: 0 | AC89: 0 | AD89: =+IF(INDEX($K89:$O89,1,aux!$AL$1)>0,(O89/INDEX($K89:$O89,1,aux!$AL$1))^(1/($O$3-INDEX($K$3:$O$3,1,aux!$AL$1)))-1,"n.d.") -> n.d. | AE89: =IF(INDEX($K89:$O89,1,aux!$AL$1)>0,(O89-INDEX($K89:$O89,1,aux!$AL$1))/INDEX($K89:$O89,1,aux!$AL$1),"n.d.") -> n.d. | AX89: 10
A90: 1003 | B90: Cevada | C90: 4073.762 | D90: 782.571 | E90: 2613.908 | F90: 11910.104 | G90: 48693.837 | H90: 13614.8364 | I90: 0.01963934484 | J90: 0.0154189072 | K90: 0.854 | L90: 0.756 | M90: 0.971 | N90: 0.253 | O90: 0.131 | P90: 0.593 | Q90: 2.282367399e-06 | R90: 9.335620081e-07 | S90: -13614.2434 | U90: =G90-INDEX($C90:$G90,1,aux!$AL$1) -> 44620.075 | V90: 0.4955887566 | W90: 0.322160889 | X90: =+IF(INDEX($C90:$G90,1,aux!$AL$1)>0,(G90/INDEX($C90:$G90,1,aux!$AL$1))^(1/($G$3-INDEX($C$3:$G$3,1,aux!$AL$1)))-1,"n.d.") -> 0.8593861265 | Y90: =IF(INDEX($C90:$G90,1,aux!$AL$1)>0,(G90-INDEX($C90:$G90,1,aux!$AL$1))/INDEX($C90:$G90,1,aux!$AL$1),"n.d.") -> 10.95303923 | AA90: =O90-INDEX($K90:$O90,1,aux!$AL$1) -> -0.723 | AB90: -6.2818413e-06 | AC90: -3.746914742e-06 | AD90: =+IF(INDEX($K90:$O90,1,aux!$AL$1)>0,(O90/INDEX($K90:$O90,1,aux!$AL$1))^(1/($O$3-INDEX($K$3:$O$3,1,aux!$AL$1)))-1,"n.d.") -> -0.3741743541 | AE90: =IF(INDEX($K90:$O90,1,aux!$AL$1)>0,(O90-INDEX($K90:$O90,1,aux!$AL$1))/INDEX($K90:$O90,1,aux!$AL$1),"n.d.") -> -0.8466042155 | AX90: 10
A91: 1004 | B91: Aveia | C91: 35.11 | D91: 68.537 | E91: 96.042 | F91: 143.612 | G91: 35.84 | H91: 75.8282 | I91: 0.0001093818629 | J91: 8.587602117e-05 | K91: 0 | L91: 0 | M91: 0 | N91: 0 | O91: 0 | P91: 0 | Q91: 0 | R91: 0 | S91: -75.8282 | U91: =G91-INDEX($C91:$G91,1,aux!$AL$1) -> 0.73 | V91: 8.108005024e-06 | W91: 5.270664583e-06 | X91: =+IF(INDEX($C91:$G91,1,aux!$AL$1)>0,(G91/INDEX($C91:$G91,1,aux!$AL$1))^(1/($G$3-INDEX($C$3:$G$3,1,aux!$AL$1)))-1,"n.d.") -> 0.005157905914 | Y91: =IF(INDEX($C91:$G91,1,aux!$AL$1)>0,(G91-INDEX($C91:$G91,1,aux!$AL$1))/INDEX($C91:$G91,1,aux!$AL$1),"n.d.") -> 0.02079179721 | AA91: =O91-INDEX($K91:$O91,1,aux!$AL$1) -> 0 | AB91: 0 | AC91: 0 | AD91: =+IF(INDEX($K91:$O91,1,aux!$AL$1)>0,(O91/INDEX($K91:$O91,1,aux!$AL$1))^(1/($O$3-INDEX($K$3:$O$3,1,aux!$AL$1)))-1,"n.d.") -> n.d. | AE91: =IF(INDEX($K91:$O91,1,aux!$AL$1)>0,(O91-INDEX($K91:$O91,1,aux!$AL$1))/INDEX($K91:$O91,1,aux!$AL$1),"n.d.") -> n.d. | AX91: 10
A92: 1005 | B92: Milho | C92: 72072.975 | D92: 32.985 | E92: 3.266 | F92: 3.6 | G92: 7.1 | H92: 14423.9852 | I92: 0.02080653862 | J92: 0.01633527445 | K92: 0.484 | L92: 0.206 | M92: 0.327 | N92: 0.849 | O92: 0.465 | P92: 0.4662 | Q92: 1.794333358e-06 | R92: 7.339403173e-07 | S92: -14423.519 | U92: =G92-INDEX($C92:$G92,1,aux!$AL$1) -> -72065.875 | V92: -0.8004253104 | W92: -0.5203219931 | X92: =+IF(INDEX($C92:$G92,1,aux!$AL$1)>0,(G92/INDEX($C92:$G92,1,aux!$AL$1))^(1/($G$3-INDEX($C$3:$G$3,1,aux!$AL$1)))-1,"n.d.") -> -0.9003742796 | Y92: =IF(INDEX($C92:$G92,1,aux!$AL$1)>0,(G92-INDEX($C92:$G92,1,aux!$AL$1))/INDEX($C92:$G92,1,aux!$AL$1),"n.d.") -> -0.9999014887 | AA92: =O92-INDEX($K92:$O92,1,aux!$AL$1) -> -0.019 | AB92: -1.650829664e-07 | AC92: -9.846663915e-08 | AD92: =+IF(INDEX($K92:$O92,1,aux!$AL$1)>0,(O92/INDEX($K92:$O92,1,aux!$AL$1))^(1/($O$3-INDEX($K$3:$O$3,1,aux!$AL$1)))-1,"n.d.") -> -0.009961923302 | AE92: =IF(INDEX($K92:$O92,1,aux!$AL$1)>0,(O92-INDEX($K92:$O92,1,aux!$AL$1))/INDEX($K92:$O92,1,aux!$AL$1),"n.d.") -> -0.03925619835 | AX92: 10
A93: 1006 | B93: Arroz | C93: 125.434 | D93: 109.89 | E93: 109.582 | F93: 161.347 | G93: 165.992 | H93: 134.449 | I93: 0.0001939421229 | J93: 0.0001522645292 | K93: 813.648 | L93: 866.973 | M93: 1004.623 | N93: 763.117 | O93: 1052.131 | P93: 900.0984 | Q93: 0.003464342738 | R93: 0.001417028111 | S93: 765.6494 | U93: =G93-INDEX($C93:$G93,1,aux!$AL$1) -> 40.558 | V93: 0.0004504718737 | W93: 0.0002928323481 | X93: =+IF(INDEX($C93:$G93,1,aux!$AL$1)>0,(G93/INDEX($C93:$G93,1,aux!$AL$1))^(1/($G$3-INDEX($C$3:$G$3,1,aux!$AL$1)))-1,"n.d.") -> 0.07255104774 | Y93: =IF(INDEX($C93:$G93,1,aux!$AL$1)>0,(G93-INDEX($C93:$G93,1,aux!$AL$1))/INDEX($C93:$G93,1,aux!$AL$1),"n.d.") -> 0.3233413588 | AA93: =O93-INDEX($K93:$O93,1,aux!$AL$1) -> 238.483 | AB93: 0.002072077951 | AC93: 0.001235927342 | AD93: =+IF(INDEX($K93:$O93,1,aux!$AL$1)>0,(O93/INDEX($K93:$O93,1,aux!$AL$1))^(1/($O$3-INDEX($K$3:$O$3,1,aux!$AL$1)))-1,"n.d.") -> 0.0663709705 | AE93: =IF(INDEX($K93:$O93,1,aux!$AL$1)>0,(O93-INDEX($K93:$O93,1,aux!$AL$1))/INDEX($K93:$O93,1,aux!$AL$1),"n.d.") -> 0.2931034059 | AX93: 10
A94: 1007 | B94: Sorgo de grão | C94: 0 | D94: 0 | E94: 0 | F94: 0 | G94: 0 | H94: 0 | I94: 0 | J94: 0 | K94: 0 | L94: 0 | M94: 11.821 | N94: 0 | O94: 0 | P94: 2.3642 | Q94: 9.099448574e-06 | R94: 3.721968465e-06 | S94: 2.3642 | U94: =G94-INDEX($C94:$G94,1,aux!$AL$1) -> 0 | V94: 0 | W94: 0 | X94: =+IF(INDEX($C94:$G94,1,aux!$AL$1)>0,(G94/INDEX($C94:$G94,1,aux!$AL$1))^(1/($G$3-INDEX($C$3:$G$3,1,aux!$AL$1)))-1,"n.d.") -> n.d. | Y94: =IF(INDEX($C94:$G94,1,aux!$AL$1)>0,(G94-INDEX($C94:$G94,1,aux!$AL$1))/INDEX($C94:$G94,1,aux!$AL$1),"n.d.") -> n.d. | AA94: =O94-INDEX($K94:$O94,1,aux!$AL$1) -> 0 | AB94: 0 | AC94: 0 | AD94: =+IF(INDEX($K94:$O94,1,aux!$AL$1)>0,(O94/INDEX($K94:$O94,1,aux!$AL$1))^(1/($O$3-INDEX($K$3:$O$3,1,aux!$AL$1)))-1,"n.d.") -> n.d. | AE94: =IF(INDEX($K94:$O94,1,aux!$AL$1)>0,(O94-INDEX($K94:$O94,1,aux!$AL$1))/INDEX($K94:$O94,1,aux!$AL$1),"n.d.") -> n.d. | AX94: 10
A95: 1008 | B95: Trigo mourisco, painço e outros cereais | C95: 59.484 | D95: 17.623 | E95: 103.156 | F95: 47.002 | G95: 59.353 | H95: 57.3236 | I95: 8.268905442e-05 | J95: 6.491941899e-05 | K95: 0.371 | L95: 0.43 | M95: 0.409 | N95: 2.344 | O95: 5.757 | P95: 1.8622 | Q95: 7.167326425e-06 | R95: 2.93166808e-06 | S95: -55.4614 | U95: =G95-INDEX($C95:$G95,1,aux!$AL$1) -> -0.131 | V95: -1.454998162e-06 | W95: -9.458315895e-07 | X95: =+IF(INDEX($C95:$G95,1,aux!$AL$1)>0,(G95/INDEX($C95:$G95,1,aux!$AL$1))^(1/($G$3-INDEX($C$3:$G$3,1,aux!$AL$1)))-1,"n.d.") -> -0.0005510234931 | Y95: =IF(INDEX($C95:$G95,1,aux!$AL$1)>0,(G95-INDEX($C95:$G95,1,aux!$AL$1))/INDEX($C95:$G95,1,aux!$AL$1),"n.d.") -> -0.00220227288 | AA95: =O95-INDEX($K95:$O95,1,aux!$AL$1) -> 5.386 | AB95: 4.679667669e-05 | AC95: 2.791270097e-05 | AD95: =+IF(INDEX($K95:$O95,1,aux!$AL$1)>0,(O95/INDEX($K95:$O95,1,aux!$AL$1))^(1/($O$3-INDEX($K$3:$O$3,1,aux!$AL$1)))-1,"n.d.") -> 0.9847489459 | AE95: =IF(INDEX($K95:$O95,1,aux!$AL$1)>0,(O95-INDEX($K95:$O95,1,aux!$AL$1))/INDEX($K95:$O95,1,aux!$AL$1),"n.d.") -> 14.51752022 | AX95: 10
A96: 10SS | B96: Cereais | C96: 0 | D96: 0 | E96: 0 | F96: 0 | G96: 0 | H96: 0 | I96: 0 | J96: 0 | K96: 0 | L96: 0 | M96: 0 | N96: 0 | O96: 0 | P96: 0 | Q96: 0 | R96: 0 | S96: 0 | U96: =G96-INDEX($C96:$G96,1,aux!$AL$1) -> 0 | V96: 0 | W96: 0 | X96: =+IF(INDEX($C96:$G96,1,aux!$AL$1)>0,(G96/INDEX($C96:$G96,1,aux!$AL$1))^(1/($G$3-INDEX($C$3:$G$3,1,aux!$AL$1)))-1,"n.d.") -> n.d. | Y96: =IF(INDEX($C96:$G96,1,aux!$AL$1)>0,(G96-INDEX($C96:$G96,1,aux!$AL$1))/INDEX($C96:$G96,1,aux!$AL$1),"n.d.") -> n.d. | AA96: =O96-INDEX($K96:$O96,1,aux!$AL$1) -> 0 | AB96: 0 | AC96: 0 | AD96: =+IF(INDEX($K96:$O96,1,aux!$AL$1)>0,(O96/INDEX($K96:$O96,1,aux!$AL$1))^(1/($O$3-INDEX($K$3:$O$3,1,aux!$AL$1)))-1,"n.d.") -> n.d. | AE96: =IF(INDEX($K96:$O96,1,aux!$AL$1)>0,(O96-INDEX($K96:$O96,1,aux!$AL$1))/INDEX($K96:$O96,1,aux!$AL$1),"n.d.") -> n.d. | AX96: 10
A97: 1101 | B97: Farinhas de trigo ou trigo/centeio | C97: 257.433 | D97: 368.133 | E97: 489.507 | F97: 669.029 | G97: 858.863 | H97: 528.593 | I97: 0.0007624932025 | J97: 0.0005986356482 | K97: 7.647 | L97: 9.103 | M97: 18.699 | N97: 9.254 | O97: 19.954 | P97: 12.9314 | Q97: 4.977100469e-05 | R97: 2.035794899e-05 | S97: -515.6616 | U97: =G97-INDEX($C97:$G97,1,aux!$AL$1) -> 601.43 | V97: 0.006679996523 | W97: 0.004342377808 | X97: =+IF(INDEX($C97:$G97,1,aux!$AL$1)>0,(G97/INDEX($C97:$G97,1,aux!$AL$1))^(1/($G$3-INDEX($C$3:$G$3,1,aux!$AL$1)))-1,"n.d.") -> 0.3514964802 | Y97: =IF(INDEX($C97:$G97,1,aux!$AL$1)>0,(G97-INDEX($C97:$G97,1,aux!$AL$1))/INDEX($C97:$G97,1,aux!$AL$1),"n.d.") -> 2.336258366 | AA97: =O97-INDEX($K97:$O97,1,aux!$AL$1) -> 12.307 | AB97: 0.0001069303193 | AC97: 6.378046989e-05 | AD97: =+IF(INDEX($K97:$O97,1,aux!$AL$1)>0,(O97/INDEX($K97:$O97,1,aux!$AL$1))^(1/($O$3-INDEX($K$3:$O$3,1,aux!$AL$1)))-1,"n.d.") -> 0.2709683022 | AE97: =IF(INDEX($K97:$O97,1,aux!$AL$1)>0,(O97-INDEX($K97:$O97,1,aux!$AL$1))/INDEX($K97:$O97,1,aux!$AL$1),"n.d.") -> 1.609389303 | AX97: 11
